Workbook

Sheet Read me
A8: FIESTA ENERGY TOOL
D14: CIRCE Foundation
D15: Mariano Esquillor Gómez, 15 - 50018 Zaragoza (SPAIN)
D16: Tel.:[+34] 976 761 863 Fax: [+34] 976 732 078
D17: www.fcirce.es
D18: E-Mail: jvalero@fcirce.es
E22: Version: 05.08.2016
C26: The sole responsibility for the content of this spreadesheet tool lies with the authors. It does not necessarily reflect the opinion of the European Union. Neither the EASME nor the European Commission are responsible for any use that may be made of the information contained therein.

Sheet Identification
A1: HOUSEHOLD / FAMILY
A2: ENERGY audit ID code*
A3: Address | J3: Required Field
A4: City / Town* | J4: Optional Field
A5: Postcode
A6: Country
A8: CONTACT INFORMATION
A9: First Name
A10: Last Name
A11: Phone number
A12: E-Mail
A13: Nationality
A15: Date
A20: Number of hours audit

Sheet Family
B2: Household / Family roster | C2: Sex | D2: Age | E2: Employment Situation* | F2: Average time a week that the house remains empty
B3: Person 1 | G3: =IF(AND(D3<=16,D3>0),1,0) -> 0
B4: Person 2 | G4: =IF(AND(D4<=16,D4>0),1,0) -> 0
B5: Person 3 | G5: 0
B6: Person 4 | G6: 0
B7: Person 5 | G7: 0
B8: Person 6 | G8: 0
B9: Person 7 | G9: 0
B10: Person 8 | G10: 0
B11: Person 9 | G11: 0
B12: Person 10 | G12: 0
B13: =10-COUNTBLANK(C3:C12) -> 0 | F13: =(168-F3)/168 -> 1
B14: Monthly Family Net Income on average over the past year*
B16: Social Housing

Sheet Housing
C2: Type
B3: Building
C5: Type
B6: Property
C8: Type
B9: Roof
B11: Construction
B12: =IF(C3="Housing block","The_house_is_on","Number_of_floors") -> Number_of_floors
B13: Year of construction of the building
B14: Total dwelling square meters
B15: Number of rooms (kitchen, living-room, bathrooms, bedrooms, and others)
B16: Indoor temperature (on average) (ºC) | C16: Winter | D16: Summer
B18: What is your level of comfort with indoor temperature?
B20: Main orientation
B22: Refurbishment in recent years | C22: % | D22: How long ago?
B23: Windows frame refurbished
B24: Glazed surface over total glazed surface
B25: Facade and envelope refurbished
B26: Rooftop and/or ceiling refurbished
D27: Window 2 | E27: Window 3 | F27: Window 4 | G27: Window 5 | H27: Window 6 | I27: Window 7 | J27: Window 8 | K27: Window 9 | L27: Window 10 | M27: Window 11 | N27: Window 12 | O27: Window 13 | P27: Window 14 | Q27: Window 15 | R27: Window 16 | S27: Window 17 | T27: Window 18
C28: Window 1 | D28: =IF(C30="","",D27) ->  | J28: =IF(I30="","",J27) ->  | O28: =IF(N30="","",O27) ->  | V28: =19-(1+COUNTBLANK((C28:U28))) -> 0
B29: Orientation | V29: =COUNTIF(C29:U29,"North") -> 0
B30: Room
B31: Height (cm)
B32: Width (cm)
B33: Curtains | V33: =19-(COUNTBLANK((C33:U33))) -> 0
B34: Blinds | V34: =19-(COUNTBLANK((C34:U34))) -> 0
B35: Windowpane | V35: =COUNTIF(C35:U35,"Single") -> 0 | W35: =COUNTIF(C35:U35,"Low e- glass") -> 0
B36: Window frame | V36: =COUNTIF(C36:U36,"Metal") -> 0
B37: Awnings on windows | V37: =19-(COUNTBLANK((C37:U37))) -> 0
B38: Air leaks | V38: =COUNTIF(C38:U38,"Typical") -> 0
B40: House ventilation
B41: Type
B42: When? | C42: Winter | D42: Summer
B44: For how long (minutes/day)?
B45: Does the house show signs of humidity?
B47: COMMUNITY OF OWNERS
B48: Elevators
B49: Concierge
B50: Communal areas
B51: Number of flats in the building
B52: Monthly bill (€)
C56: =C31*C32 -> 0 | D56: 0 | E56: =E31*E32 -> 0 | F56: 0 | G56: 0 | H56: 0 | I56: 0 | J56: 0 | K56: 0 | L56: 0 | M56: 0 | N56: 0 | O56: 0 | P56: 0 | Q56: 0 | R56: 0 | S56: 0 | T56: 0 | U56: 0
C57: =(C31+C32)*2 -> 0 | D57: 0 | E57: 0 | F57: 0 | G57: 0 | H57: 0 | I57: 0 | J57: 0 | K57: 0 | L57: 0 | M57: 0 | N57: 0 | O57: 0 | P57: 0 | Q57: 0 | R57: 0 | S57: 0 | T57: 0 | U57: 0
C59: =IF(AND(AND(C29<>"North",C29<>""),C37=""),1,0) -> 0 | D59: =IF(AND(AND(D29<>"North",D29<>""),D37=""),1,0) -> 0 | E59: 0 | F59: 0 | G59: 0 | H59: 0 | I59: 0 | J59: 0 | K59: 0 | L59: 0 | M59: 0 | N59: 0 | O59: 0 | P59: 0 | Q59: 0 | R59: 0 | S59: 0 | T59: 0 | U59: 0
C60: =C59*C31*C32/10000 -> 0 | D60: =D59*D31*D32/10000 -> 0 | E60: 0 | F60: 0 | G60: 0 | H60: 0 | I60: 0 | J60: 0 | K60: 0 | L60: 0 | M60: 0 | N60: 0 | O60: 0 | P60: 0 | Q60: 0 | R60: 0 | S60: 0 | T60: 0 | U60: 0 | V60: =SUM(C60:U60) -> 0
C61: =IF(C29<>"North",1,0)*(C31*C32/10000) -> 0 | D61: =IF(D29<>"North",1,0)*(D31*D32/10000) -> 0 | E61: 0 | F61: 0 | G61: 0 | H61: 0 | I61: 0 | J61: 0 | K61: 0 | L61: 0 | M61: 0 | N61: 0 | O61: 0 | P61: 0 | Q61: 0 | R61: 0 | S61: 0 | T61: 0 | U61: 0 | V61: =SUM(C61:U61) -> 0 | W61: =IFERROR(V60/V61,0) -> 0
C63: =IF(AND(C38<>"Typical",C38<>""),1,0) -> 0 | D63: =IF(AND(D38<>"Typical",D38<>""),1,0) -> 0 | E63: 0 | F63: 0 | G63: 0 | H63: 0 | I63: 0 | J63: 0 | K63: 0 | L63: 0 | M63: 0 | N63: 0 | O63: 0 | P63: 0 | Q63: 0 | R63: 0 | S63: 0 | T63: 0 | U63: 0
C64: =C63*((C31+C32)/100)*2 -> 0 | D64: =D63*((D31+D32)/100)*2 -> 0 | E64: 0 | F64: 0 | G64: 0 | H64: 0 | I64: 0 | J64: 0 | K64: 0 | L64: 0 | M64: 0 | N64: 0 | O64: 0 | P64: 0 | Q64: 0 | R64: 0 | S64: 0 | T64: 0 | U64: 0 | V64: =SUM(C64:U64) -> 0
C66: =IF(OR(C35="Low e- glass",C35="",C35="Solar control"),0,1) -> 0 | D66: 0 | E66: 0 | F66: 0 | G66: 0 | H66: 0 | I66: 0 | J66: 0 | K66: 0 | L66: 0 | M66: 0 | N66: 0 | O66: 0 | P66: 0 | Q66: 0 | R66: 0 | S66: 0 | T66: 0 | U66: 0
C67: =IF(C66=1,(C31*C32)/10000,0) -> 0 | D67: 0 | E67: 0 | F67: 0 | G67: 0 | H67: 0 | I67: 0 | J67: 0 | K67: 0 | L67: 0 | M67: 0 | N67: 0 | O67: 0 | P67: 0 | Q67: 0 | R67: 0 | S67: 0 | T67: 0 | U67: 0 | V67: =SUM(C67:U67) -> 0
C69: =IF(C35="Single",1,0) -> 0 | D69: 0 | E69: 0 | F69: 0 | G69: 0 | H69: 0 | I69: 0 | J69: 0 | K69: 0 | L69: 0 | M69: 0 | N69: 0 | O69: 0 | P69: 0 | Q69: 0 | R69: 0 | S69: 0 | T69: 0 | U69: 0
C70: =IF(C69=1,(C31*C32)/10000,0) -> 0 | D70: 0 | E70: 0 | F70: 0 | G70: 0 | H70: 0 | I70: 0 | J70: 0 | K70: 0 | L70: 0 | M70: 0 | N70: 0 | O70: 0 | P70: 0 | Q70: 0 | R70: 0 | S70: 0 | T70: 0 | U70: 0 | V70: =SUM(C70:U70) -> 0
C72: =COUNTIF(C38,"Drafty/ Street noise") -> 0 | D72: 0 | E72: 0 | F72: 0 | G72: 0 | H72: 0 | I72: 0 | J72: 0 | K72: 0 | L72: 0 | M72: 0 | N72: 0 | O72: 0 | P72: 0 | Q72: 0 | R72: 0 | S72: 0 | T72: 0 | U72: 0
C73: =C72*(C32*C31/10000) -> 0 | D73: 0 | E73: 0 | F73: 0 | G73: 0 | H73: 0 | I73: 0 | J73: 0 | K73: 0 | L73: 0 | M73: 0 | N73: 0 | O73: 0 | P73: 0 | Q73: 0 | R73: 0 | S73: 0 | T73: 0 | U73: 0 | V73: =SUM(C73:U73) -> 0
C75: =COUNTIF(C38,"Rubber strips need repair") -> 0 | D75: 0 | E75: 0 | F75: 0 | G75: 0 | H75: 0 | I75: 0 | J75: 0 | K75: 0 | L75: 0 | M75: 0 | N75: 0 | O75: 0 | P75: 0 | Q75: 0 | R75: 0 | S75: 0 | T75: 0 | U75: 0
C76: =C75*(C31*C32/100000) -> 0 | D76: 0 | E76: 0 | F76: 0 | G76: 0 | H76: 0 | I76: 0 | J76: 0 | K76: 0 | L76: 0 | M76: 0 | N76: 0 | O76: 0 | P76: 0 | Q76: 0 | R76: 0 | S76: 0 | T76: 0 | U76: 0 | V76: =SUM(C76:U76) -> 0
C78: =IF(C33="Yes",0,1) -> 1 | D78: 1 | E78: 1 | F78: 1 | G78: 1 | H78: 1 | I78: 1 | J78: 1 | K78: 1 | L78: 1 | M78: 1 | N78: 1 | O78: 1 | P78: 1 | Q78: 1 | R78: 1 | S78: 1 | T78: 1 | U78: 1
C79: =(C78*C31*C32)/10000 -> 0 | D79: 0 | E79: 0 | F79: 0 | G79: 0 | H79: 0 | I79: 0 | J79: 0 | K79: 0 | L79: 0 | M79: 0 | N79: 0 | O79: 0 | P79: 0 | Q79: 0 | R79: 0 | S79: 0 | T79: 0 | U79: 0 | V79: =SUM(C79:U79) -> 0
C81: =IF(AND(C33="",C29<>""),1,0) -> 0 | D81: =IF(AND(D33="",D29<>""),1,0) -> 0 | E81: 0 | F81: 0 | G81: 0 | H81: 0 | I81: 0 | J81: 0 | K81: 0 | L81: 0 | M81: 0 | N81: 0 | O81: 0 | P81: 0 | Q81: 0 | R81: 0 | S81: 0 | T81: 0 | U81: 0 | V81: =SUM(C81:U81) -> 0 | W81: =IFERROR(V81/V28,0) -> 0
C82: =(C81*C31*C32)/10000 -> 0 | D82: =(D81*D31*D32)/10000 -> 0 | E82: 0 | F82: 0 | G82: 0 | H82: 0 | I82: 0 | J82: 0 | K82: 0 | L82: 0 | M82: 0 | N82: 0 | O82: 0 | P82: 0 | Q82: 0 | R82: 0 | S82: 0 | T82: 0 | U82: 0 | V82: =SUM(C82:U82) -> 0

Sheet Energy
B4: ENERGY SUPPLY | C4: unit | D4: Jan | E4: Feb | F4: Mar | G4: Apr | H4: May | I4: Jun | J4: Jul | K4: Aug | L4: Sep | M4: Oct | N4: Nov | O4: Dec | P4: TOTAL | R4: Energy cost | S4: unit | T4: Jan | U4: Feb | V4: Mar | W4: Apr | X4: May | Y4: Jun | Z4: Jul | AA4: Aug | AB4: Sep | AC4: Oct | AD4: Nov | AE4: Dec | AF4: Average | AH4: € fixed cost | AI4: Jan | AJ4: Feb | AK4: Mar | AL4: Apr | AM4: May | AN4: Jun | AO4: Jul | AP4: Aug | AQ4: Sep | AR4: Oct | AS4: Nov | AT4: Dec | AU4: TOTAL
B5: Electricity TOTAL | C5: kWh | D5: =SUM(D6:D9) -> 0 | E5: =SUM(E6:E9) -> 0 | F5: 0 | G5: 0 | H5: 0 | I5: 0 | J5: 0 | K5: 0 | L5: 0 | M5: 0 | N5: 0 | O5: 0 | P5: =SUM(D5:O5) -> 0 | R5: Electricity TOTAL | S5: €/kWh | T5: =IFERROR((T6*D6+D7*T7+T8*D8+D9*T9)/D5,0) -> 0 | U5: =IFERROR((U6*E6+E7*U7+U8*E8+E9*U9)/E5,0) -> 0 | V5: 0 | W5: 0 | X5: 0 | Y5: 0 | Z5: 0 | AA5: 0 | AB5: 0 | AC5: 0 | AD5: 0 | AE5: 0 | AF5: =IFERROR(AVERAGE(T5:AE5),"") -> 0 | AH5: Electricity | AU5: =SUM(AI5:AT5) -> 0
B6: Electricity F1 | C6: kWh | P6: =SUM(D6:O6) -> 0 | R6: Electricity F1 | S6: €/kWh | AH6: Natural Gas | AU6: =SUM(AI6:AT6) -> 0
B7: Electricity F2 | C7: kWh | P7: 0 | R7: Electricity F2 | S7: €/kWh | AH7: Butane
B8: Electricity F3 | C8: kWh | P8: 0 | R8: Electricity F3 | S8: €/kWh | AH8: Propane | AU8: 0
B9: Electricity F4 | C9: kWh | P9: 0 | R9: Electricity F4 | S9: €/kWh | AH9: Diesel
B10: Natural Gas | C10: m3 | P10: 0 | R10: Natural Gas | S10: €/m3 | AF10: =IFERROR(AVERAGE(T10:AE10),"") ->  | AH10: Pellet
B11: Butane | C11: Kilograms | P11: 0 | R11: Butane | S11: €/kg | AF11: =IFERROR(AVERAGE(T11:AE11),"") ->  | AH11: Firewood
B12: Propane | C12: Kilograms | P12: 0 | R12: Propane | S12: €/kg | AH12: Central Boiler | AU12: 0
B13: Diesel | C13: Litres | P13: 0 | R13: Diesel | S13: €/l | AH13: District heating | AU13: 0
B14: Pellet | C14: Kilograms | P14: 0 | R14: Pellet | S14: €/kg | AH14: District heating - Sanitary Hot Water | AU14: 0
B15: Firewood | C15: Kilograms | P15: 0 | R15: Firewood | S15: €/kg | AH15: District cooling | AU15: 0
B16: Central Boiler | C16: kWh | P16: 0 | R16: Central Boiler | S16: €/kWh | AH16: TOTAL | AI16: =SUM(AI5:AI15) -> 0 | AJ16: 0 | AK16: 0 | AL16: 0 | AM16: 0 | AN16: 0 | AO16: 0 | AP16: 0 | AQ16: 0 | AR16: 0 | AS16: 0 | AT16: 0 | AU16: 0
B17: District heating | C17: kWh | P17: 0 | R17: District heating | S17: €/kWh
B18: District heating - Sanitary Hot Water | C18: kWh | P18: =SUM(D18:O18) -> 0 | R18: District heating - Sanitary Hot Water | S18: €/kWh
B19: District cooling | C19: kWh | P19: 0 | R19: District cooling | S19: €/kWh
B21: ELECTRICITY SUPPLY
B22: The contract has been reviewed/changed over the last two years
B23: Have you ever experienced a power disconnection for exceding your contracted demand of electricity?
B24: Carbon emmisions average (kCO2/kWh)
B26: ELECTRICITY SUPPLY | C26: Current | D26: Previous | G26: RES total power
B27: Company name | G27: Power | H27: Application | I27: Year of installation
B28: Who is the contract holder ? | F28: Solar PV
B29: Power (kW) | F29: Geothermal heat pump
B30: Contract type | F30: Wind power
F31: Co-generation
B32: Electricity payment method
B33: Payment frequency
B34: Flat rate
B35: Electronic Meter
B36: Additional Services
B39: NATURAL GAS SUPPLY | C39: Current | D39: Previous
B40: Company name
B42: Gas method of payment
B43: Payment frequency
B44: Flat rate
B45: Additional Services

Sheet Heating and cooling
B6: Month | C6: Jan | D6: Feb | E6: Mar | F6: Apr | G6: May | H6: Jun | I6: Jul | J6: Aug | K6: Sep | L6: Oct | M6: Nov | N6: Dec
B7: Heating Degree Days | O7: =COUNTIF(C7:N7,">5") -> 0 | P7: =SUM(C7:N7) -> 0 | Q7: =P7/O7 -> 
B8: Cooling Degree Days | O8: =COUNTIF(C8:N8,">2") -> 0 | P8: =SUM(C8:N8) -> 0 | Q8: =P8/O8 -> 
B10: HEATING SOURCE | D10: Installation year | E10: Power (kW) | F10: Hours/day (when necesary) | G10: COP (%) | H10: Fuel | I10: Consumo teórico
B11: Central heating
B12: Individual meter
B13: Individual adjustable thermostat
B14: Adjustable thermostat in each radiator / room
B15: Natural Gas boiler
B16: Propane boiler
B17: Diesel boiler
B18: Biomass boiler
B19: Central Heat Pump | I19: =E19*F19*30*$O$7 -> 0
B20: Electrical boiler without accumulator tank | I20: =E20*F20*30*$O$7 -> 0
B21: Electrical boiler with accumulator tank | I21: =E21*F21*30*$O$7 -> 0
B22: Electrical - Radiant heating | I22: =E22*F22*30*$O$7 -> 0
B24: INDIVIDUAL HEATING SOURCE | D24: Installation year | E24: Average Power (kW) | F24: Hours/day (when necesary) | G24: COP (%) | H24: Number
B25: Individual Electrical stove | I25: =IFERROR(E25*H25*F25*30*$O$7,0) -> 0
B26: Individual Heat Pump split | I26: =IFERROR(E26*H26*F26*30*$O$7,0) -> 0
B27: Butane/propane stove | I27: =E27*H27 -> 0
B28: Wood- burning stove | I28: 0
B29: Fireplace | I29: 0
B30: Individual Pellet stove | I30: 0
B31: Electric baseboard heat | I31: =IFERROR(E31*H31*F31*30*$O$7,0) -> 0
B32: Geothermal heat pump support | I32: 0
B33: Fan coil | I33: =IFERROR(E33*H33*F33*30*$O$7,0) -> 0
B34: Solar thermal support | I34: 0
B36: Main rooms | C36: Number of rooms | D36: Height of the ceiling (cm) | E36: Square meters
B37: Kitchen | F37: =COUNTIF(Housing!$C$30:$U$30,"Kitchen") -> 0 | G37: =IF(F37=0,C37,IF(F37>C37,C37,F37)) -> 0 | H37: =G37*(D37/100)*E37*0.33 -> 0
B38: Living Room | F38: =COUNTIF(Housing!$C$30:$U$30,"Living Room") -> 0 | G38: =IF(F38=0,C38,IF(F38>C38,C38,F38)) -> 0 | H38: 0
B39: Bedroom | F39: =COUNTIF(Housing!$C$30:$U$30,"Bedroom") -> 0 | G39: 0 | H39: 0
B40: Bathroom | F40: =COUNTIF(Housing!$C$30:$U$30,"Bathroom") -> 0 | G40: 0 | H40: =G40*(D40/100)*E40*0.33 -> 0
B41: Hall and corridors | F41: =COUNTIF(Housing!$C$30:$U$30,"Hall and corridors") -> 0 | G41: 0 | H41: 0
B42: Home office | F42: =COUNTIF(Housing!$C$30:$U$30,"Home office") -> 0 | G42: =IF(F42>C42,C42,F42) -> 0 | H42: 0
E43: Area of thermal insulation on facade | F43: =SUM(H37:H42) -> 0 | G43: m2
B44: HEATING DEVICES
B45: Do you have temperature time setting plug?
B46: Do you have a digital heating thermostat?
B47: Percentage of thermostatic valves in radiators
B49: COOLING | D49: Installation year | E49: Average Power (kW) | F49: Hours/day (when necesary) | G49: EER (%)
B50: Central air conditioning | J50: =IFERROR(E50*F50*30*$O$8,0) -> 0
B51: Geothermal
B52: Solar cooling | H52: Number | I52: Estimated electricity consumption
B53: Individual air conditioning units (splits) | I53: =IFERROR(E53*F53*30*$O$8,0)*H53 -> 0 | J53: kWh | L53: =E53*H53 -> 0
B54: Fans | I54: =IFERROR(E54*F54*30*$O$8,0)*H54 -> 0 | J54: kWh | L54: =E54*H54 -> 0
B55: Small cooling appliances | I55: =IFERROR(E55*F55*30*$O$8,0)*H55 -> 0 | J55: kWh | L55: =E55*H55 -> 0
B56: Evaporative cooling | I56: =IFERROR(E56*F56*30*$O$8,0)*H56 -> 0 | J56: kWh | L56: =E56*H56 -> 0
I57: =SUM(I53:I56) -> 0 | J57: kWh
B58: COOLING DEVICES | I58: =IFERROR(I57/Energy!P5,"") ->  | J58: =IF(I58<="","","of total of "&Energy!P5&" kWh in electricity") -> 
B59: Do you have a temperature time setting plug?
B60: Do you have a cooling system with digital thermostat?
B62: Domestic hot water | D62: Hours/day | E62: With boiler system | F62: Installation Year | G62: Power (kW) | H62: COP (%) | I62: Fuel
B63: Centralized system
B64: Individual meter per dwelling
B65: Electrical heater | I65: =IF(E65="yes",0,G65) -> 0 | J65: =IF(C65<>"Yes",0,IF(E65="Yes",0,((330*30*Family!B13*(1.16/1000)*30*1.1)))) -> 0
B66: Natural gas heater
B67: Butane/propane heater
B68: Diesel heater
B69: Biomass heater
B70: Solar collectors
B72: Heated water flow control | C72: Over total (%)
B73: Single lever control or thermostatic taps
B74: Aerators in taps
B76: HEATING EQUIPMENT MAINTENANCE | D76: Frequency
B77: Self made | E77: =IF(Heating!C32="Si",0,IF(C77="",3,IF(D77="More than once a year",2,IF(D77="Once a year",1,0)))) -> 3 | F77: =E77*0.01 -> 0.03
B78: Subcontracted to a specialized company | E78: =IF(Heating!C32="Si",0,IF(C78="",2,IF(D78="More than once a year",1,0))) -> 2 | F78: ='Heating and cooling'!E78*IF(Heating!C31>12,0.1,0.05) -> 0.2 | G78: =SUM(F77:F78) -> 0.23
B79: No maintenance out of corrective is done
B81: =IF(OR(C15="Yes",C66="Yes"), "","Does the family have access to natural gas in the house?") -> Does the family have access to natural gas in the house?

Sheet Appliances and Lighting
B2: APPLIANCES | D2: Number | E2: Use (Hours/Week) | F2: Total Power (W) | G2: Energy Label | H2: Switching off | I2: Estimated Electricity Consumption | J2: Stand Bye
B3: Fridge/ Combined refrigerator- freezer | I3: =(E3*F3*52*D3)/1000*(0.15+(0.01*Family!$B$13)+(0.015*('Heating and cooling'!P8/52))) -> 0 | J3: =IF(D3>0,F3/1000/D3,F3/1000) -> 0 | L3: 750
B4: Freezer | I4: =(E4*F4*52*D4)/1000*(0.15+(0.02*Family!$B$13)) -> 0 | J4: =IF(D4>0,F4/1000/D4,F4/1000) -> 0 | L4: 500
B5: Oven | I5: =(E5*F5*52*D5)/1000*0.7 -> 0 | J5: =IF(D5>0,F5/1000/D5,F5/1000) -> 0 | L5: 500
B6: Microwave | I6: =(E6*F6*52*D6)/1000*0.9 -> 0 | J6: =IF(D6>0,F6/1000/D6,F6/1000) -> 0
B7: Electrical cooker | I7: =(E7*F7*52*D7)/1000*(0.3+0.02*Family!$B$13) -> 0 | J7: =IF(D7>0,F7/1000/D7,F7/1000) -> 0
B8: Ceramic hob | I8: =(E8*F8*52*D8)/1000*(0.3+0.02*Family!$B$13) -> 0 | J8: =IF(D8>0,((F8/1000/D8)*(0.5+(0.5*Family!$F$13))),((F8/1000)*(0.5+(0.5*Family!$F$13)))) -> 0
B9: Induction cooktop | I9: =(E9*F9*52*D9)/1000*(0.3+0.02*Family!$B$13) -> 0 | J9: =IF(D9>0,((F9/1000/D9)*(0.5+(0.5*Family!$F$13))),((F9/1000)*(0.5+(0.5*Family!$F$13)))) -> 0 | L9: 600
B10: Washing machine | I10: =(E10*F10*52*D10)/1000*0.65 -> 0 | J10: =IF(D10>0,F10/1000/D10,F10/1000) -> 0 | L10: 400
B11: Dryer | I11: =(E11*F11*52*D11)/1000*0.9 -> 0 | J11: 0 | L11: 400
B12: Dishwasher | I12: =(E12*F12*52*D12)/1000*0.3 -> 0 | J12: 0 | L12: 500
B13: Television | I13: =(E13*F13*52*D13)/1000*0.5 -> 0 | J13: 0 | K13: =IF(C13="Yes",2*(365*24-(E13*52))/1000,0) -> 0 | L13: 450
B14: Personal Computer | I14: =(E14*F14*52*D14)/1000*0.4 -> 0 | J14: 0 | K14: =IF(C14="Yes",5*(365*24-(E14*52))/1000,0) -> 0
B15: Laptop | I15: =(E15*F15*52*D15)/1000*0.35 -> 0 | J15: 0 | K15: =IF(C15="Yes",4*(365*24-(E15*52))/1000,0) -> 0
B16: Other electronic and informatic equipment (router, mobile charge...)
I17: =SUM(I3:I15) -> 0 | J17: kWh
B18: APPLIANCES | D18: Number | E18: Use (Hours/Week) | F18: Total Power (W) | G18: Energy Label | H18: Estimated Gas Consumption | J18: Consumo anual teórico 100%
B19: Gas cooker | H19: =(E19*F19*52*D19)/1000*(0.3+0.02*Family!$B$13)/IF(Energy!C10="kWh",1,9.8) -> 0 | I19: =IF(Energy!C10="kWh","kWh","m3")& " Gas for cooking" -> m3 Gas for cooking | L19: =IF(D19>0,F19/1000/D19,F19/1000) -> 0
H20: =IFERROR(H19/(Energy!P10+(Energy!P11*12.78)+(Energy!P12*12.93)),"0%") -> 0% | I20: ="of a total of "&(Energy!P10+(Energy!P11*12.78)+(Energy!P12*12.93)&IF(Energy!C10="kWh"," kWh"," m3")&" gas total consumption") -> of a total of 0 m3 gas total consumption
B21: Lighting | D21: Number | E21: Use (Hours/Week) | F21: Power of each bulb (kW) | G21: Total power (W) | H21: Energy Label | I21: Estimated Energy Consumption | J21: INV | L21: SAV | M21: SAV (€)
B22: Incandescent Light Bulbs | I22: =(E22*G22*52)/1000 -> 0 | J22: =IF(C22="Yes",IF(50*E22>1000,'EE Appliances and Lighting'!R6*G22,G22*'EE Appliances and Lighting'!R7),0) -> 0 | L22: =IF(E22*50>400,0.75*G22*E22*50,IF(E22*50>100,0.65*E22*G22*50,0))/1000 -> 0 | M22: =IF('Appliances and Lighting'!E22*50>1000,('Appliances and Lighting'!D22*18)*(('Appliances and Lighting'!E22*50)/18000),IF('Appliances and Lighting'!E22*50>100,(6*'Appliances and Lighting'!D22)*(('Appliances and Lighting'!E22*50)/6000),0)) -> 0
B23: Low- consumption bulbs | I23: =(E23*G23*52)/1000 -> 0 | J23: =IF(C23="Yes",IF(E23*50>2000,G23*'EE Appliances and Lighting'!S6,0),0) -> 0 | L23: =IF(E23*50>2000,0.1*G23*E23*50,0)/1000 -> 0 | M23: =IF(E23*50>2000,D23*24*((E23*50)/(18000)),0) -> 0
B24: Led light bulbs | I24: =(E24*G24*52)/1000 -> 0
B25: Fluorescent bulbs | I25: =(E25*G25*52)/1000 -> 0 | J25: =IF(C25="Yes",IF(E25*50>2000,G25*'EE Appliances and Lighting'!S6,0),0) -> 0 | L25: =IF(E25*50>2000,0.1*G25*E25*50,0)/1000 -> 0 | M25: =IF(E25*50>2000,D25*24*((E25*50)/(18000)),0) -> 0
B26: Halogen light bulbs | I26: =(E26*G26*52)/1000 -> 0 | J26: =IF(C26="Yes",IF(50*E26>1000,'EE Appliances and Lighting'!R6*G26,G26*'EE Appliances and Lighting'!R7),0) -> 0 | L26: =IF(E26*50>400,0.75*G26*E26*50,IF(E26*50>100,0.65*E26*G26*50,0))/1000 -> 0 | M26: =IF('Appliances and Lighting'!E26*50>1000,('Appliances and Lighting'!D26*10)*(('Appliances and Lighting'!E26*50)/18000),IF('Appliances and Lighting'!E26*50>100,(4*'Appliances and Lighting'!D26)*(('Appliances and Lighting'!E26*50)/6000),0)) -> 0
H27: TOTAL estimated energy consumption of lighting | I27: =SUM(I22:I26) -> 0 | J27: =SUM(J22:J26) -> 0 | L27: =SUM(L22:L26) -> 0 | M27: =SUM(M22:M26) -> 0
B29: Appliances | C29: Nº Elect
B30: A+++ | C30: =COUNTIF($G$3:$G$15,B30) -> 0
B31: A++ | C31: 0
B32: A+ | C32: 0
B33: A | C33: 0
B34: B | C34: 0
B35: C | C35: 0
B36: D | C36: 0
B37: E | C37: 0
B38: F | C38: 0
B39: Vacío | C39: =C20-SUM(C30:C38)-COUNTIF(C14:C15,"Yes")-COUNTIF(C6,"Yes") -> 0
C40: =SUM(C30:C39) -> 0
C41: =SUM(C34:C39) -> 0
C42: =C41/C40 -> 

Sheet Opinion
B2: QUESTIONS TO ASSESS THE PERCEPTION OF ENERGY ISSUES | C2: 0 (TOTALLY DISAGREE) - 10 (TOTALLY AGREE)
B3: Energy bills are too expansive for my family.
B4: In my country, there are many families who can't afford the energy bill.
B5: I am willing to buy "green" electricity (even if it is more expansive).
B6: I am willing to change my habits to save energy.
B7: I am willing to invest some money to save energy.
B8: I already implement energy efficiency measures at home
B9: I think my house has a very good insulation (facade, windows, rooftop)
B12: FINAL OPINION | C12: 0 (TOTALLY DISAGREE) - 10 (TOTALLY AGREE)
B13: Would you repeat the energy audit? Was it useful? Would you recommend it to your friends?
B15: ACTUAL SAVINGS ACHIEVED THROUGH IMPROVED HABITS
B16: We CHANGED our habits following the tips received by FIESTA guide / EHD / Auditor.
B17: Was it easy?
B18: if NO, what was the main obstacle?
B21: ACTUAL SAVINGS DUE TO PURCHASING EFFICIENT DEVICES
B22: We PURCHASED energy efficient devices (e.g. lights, appliances, thermal regulation, boilers, solar shading…) following the tips received by FIESTA guide / EHD / Auditor
B23: We spent (or we will spend soon) [€].
B24: Short description of the devices purchased (or to be purchased soon).
B25: We did NOT purchase because…
B28: ACTUAL SAVINGS DUE TO INVESTING IN RENOVATION
B29: We INVESTED some money to improve the energy efficiency of our house (e.g. thermal insulation,windows, solar shadings, heating and cooling systems, solar and photovoltaic systems...).
B30: We spent (or we will spend soon) [€].
B31: Short description of the investments done (or to be done soon).
B32: In my family, the obstacle we find harder to overcome when it comes to invest in renovation.

Sheet DatosBD (hidden)
A1: Identification | M1: Family | BC1: Hosuing | AFX1: Heating & Cooling | APO1: Appliances and Lighting | ATJ1: OPINION | AUC1: AUDIT | AUZ1: QUESTIONARIE | AVJ1: NEW DATA
A2: Energy Code Audit | B2: Adress | C2: City/Town | D2: Postcode | E2: Country | F2: First Name | G2: Last Name | H2: Phone number | I2: E-Mail | J2: Nationality | K2: Date | L2: Number of hours audit | M2: Sex-Person 1 | N2: Sex-Person 2 | O2: Sex-Person 3 | P2: Sex-Person 4 | Q2: Sex-Person 5 | R2: Sex-Person 6 | S2: Sex-Person 7 | T2: Sex-Person 8 | U2: Sex-Person 9 | V2: Sex-Person 10 | W2: Age - Person 1 | X2: Age - Person 2 | Y2: Age - Person 3 | Z2: Age - Person 4 | AA2: Age - Person 5 | AB2: Age - Person 6 | AC2: Age - Person 7 | AD2: Age - Person 8 | AE2: Age - Person 9 | AF2: Age - Person 10 | AG2: Eployment Situation Person 1 | AH2: Eployment Situation Person 2 | AI2: Eployment Situation Person 3 | AJ2: Eployment Situation Person 4 | AK2: Eployment Situation Person 5 | AL2: Eployment Situation Person 6 | AM2: Eployment Situation Person 7 | AN2: Eployment Situation Person 8 | AO2: Eployment Situation Person 9 | AP2: Eployment Situation Person 10 | AQ2: Average time - Person 1 | AR2: Average time - Person 2 | AS2: Average time - Person 3 | AT2: Average time - Person 4 | AU2: Average time - Person 5 | AV2: Average time - Person 6 | AW2: Average time - Person 7 | AX2: Average time - Person 8 | AY2: Average time - Person 9 | AZ2: Average time - Person 10 | BA2: Incomes | BB2: Social Housing | BC2: Property | BD2: Bulding Roof | BE2: =Housing!B12 -> Number_of_floors | BF2: Year of construction | BG2: Squre meters | BH2: Number of rooms | BI2: Indoor temperature Winter | BJ2: Indoor temperatur Summer | BK2: Sensation Winter | BL2: Sensation Summer | BM2: Main orientation | BN2: Windows frame refurbished % | BO2: Glazed surface over total glazed surface % | BP2: Facade and envelope refurbished % | BQ2: Roof and house top refurbished % | BR2: Windows frame refurbished Time Ago | BS2: Glazed surface over total glazed surface Time Ago | BT2: Facade and envelope refurbished Time Ago | BU2: Roof and house top refurbished Time Ago | BV2: Orientation Window 1 | BW2: Orientation Window 2 | BX2: Orientation Window 3 | BY2: Orientation Window 4 | BZ2: Orientation Window 5 | CA2: Orientation Window 6 | CB2: Orientation Window 7 | CC2: Orientation Window 8 | CD2: Orientation Window 9 | CE2: Orientation Window 10 | CF2: Orientation Window 11 | CG2: Orientation Window 12 | CH2: Orientation Window 13 | CI2: Orientation Window 14 | CJ2: Orientation Window 15 | CK2: Orientation Window 16 | CL2: Orientation Window 17 | CM2: Orientation Window 18 | CN2: Orientation Window 19 | CO2: Room Window 1 | CP2: Room Window 2 | CQ2: Room Window 3 | CR2: Room Window 4 | CS2: Room Window 5 | CT2: Room Window 6 | CU2: Room Window 7 | CV2: Room Window 8 | CW2: Room Window 9 | CX2: Room Window 10 | CY2: Room Window 11 | CZ2: Room Window 12 | DA2: Room Window 13 | DB2: Room Window 14 | DC2: Room Window 15 | DD2: Room Window 16 | DE2: Room Window 17 | DF2: Room Window 18 | DG2: Room Window 19 | DH2: Height Window 1 | DI2: Height Window 2 | DJ2: Height Window 3 | DK2: Height Window 4 | DL2: Height Window 5 | DM2: Height Window 6 | DN2: Height Window 7 | DO2: Height Window 8 | DP2: Height Window 9 | DQ2: Height Window 10 | DR2: Height Window 11 | DS2: Height Window 12 | DT2: Height Window 13 | DU2: Height Window 14 | DV2: Height Window 15 | DW2: Height Window 16 | DX2: Height Window 17 | DY2: Height Window 18 | DZ2: Height Window 19 | EA2: Width Window 1 | EB2: Width Window 2 | EC2: Width Window 3 | ED2: Width Window 4 | EE2: Width Window 5 | EF2: Width Window 6 | EG2: Width Window 7 | EH2: Width Window 8 | EI2: Width Window 9 | EJ2: Width Window 10 | EK2: Width Window 11 | EL2: Width Window 12 | EM2: Width Window 13 | EN2: Width Window 14 | EO2: Width Window 15 | EP2: Width Window 16 | EQ2: Width Window 17 | ER2: Width Window 18 | ES2: Width Window 19 | ET2: Curtains Window 1 | EU2: Curtains Window 2 | EV2: Curtains Window 3 | EW2: Curtains Window 4 | EX2: Curtains Window 5 | EY2: Curtains Window 6 | EZ2: Curtains Window 7 | FA2: Curtains Window 8 | FB2: Curtains Window 9 | FC2: Curtains Window 10 | FD2: Curtains Window 11 | FE2: Curtains Window 12 | FF2: Curtains Window 13 | FG2: Curtains Window 14 | FH2: Curtains Window 15 | FI2: Curtains Window 16 | FJ2: Curtains Window 17 | FK2: Curtains Window 18 | FL2: Curtains Window 19 | FM2: Blinds Window 1 | FN2: Blinds Window 2 | FO2: Blinds Window 3 | FP2: Blinds Window 4 | FQ2: Blinds Window 5 | FR2: Blinds Window 6 | FS2: Blinds Window 7 | FT2: Blinds Window 8 | FU2: Blinds Window 9 | FV2: Blinds Window 10 | FW2: Blinds Window 11 | FX2: Blinds Window 12 | FY2: Blinds Window 13 | FZ2: Blinds Window 14 | GA2: Blinds Window 15 | GB2: Blinds Window 16 | GC2: Blinds Window 17 | GD2: Blinds Window 18 | GE2: Blinds Window 19 | GF2: Windowpane Window 1 | GG2: Windowpane Window 2 | GH2: Windowpane Window 3 | GI2: Windowpane Window 4 | GJ2: Windowpane Window 5 | GK2: Windowpane Window 6 | GL2: Windowpane Window 7 | GM2: Windowpane Window 8 | GN2: Windowpane Window 9 | GO2: Windowpane Window 10 | GP2: Windowpane Window 11 | GQ2: Windowpane Window 12 | GR2: Windowpane Window 13 | GS2: Windowpane Window 14 | GT2: Windowpane Window 15 | GU2: Windowpane Window 16 | GV2: Windowpane Window 17 | GW2: Windowpane Window 18 | GX2: Windowpane Window 19 | GY2: Window frame Window 1 | GZ2: Window frame Window 2 | HA2: Window frame Window 3 | HB2: Window frame Window 4 | HC2: Window frame Window 5 | HD2: Window frame Window 6 | HE2: Window frame Window 7 | HF2: Window frame Window 8 | HG2: Window frame Window 9 | HH2: Window frame Window 10 | HI2: Window frame Window 11 | HJ2: Window frame Window 12 | HK2: Window frame Window 13 | HL2: Window frame Window 14 | HM2: Window frame Window 15 | HN2: Window frame Window 16 | HO2: Window frame Window 17 | HP2: Window frame Window 18 | HQ2: Window frame Window 19 | HR2: Awnings Window 1 | HS2: Awnings Window 2 | HT2: Awnings Window 3 | HU2: Awnings Window 4 | HV2: Awnings Window 5 | HW2: Awnings Window 6 | HX2: Awnings Window 7 | HY2: Awnings Window 8 | HZ2: Awnings Window 9 | IA2: Awnings Window 10 | IB2: Awnings Window 11 | IC2: Awnings Window 12 | ID2: Awnings Window 13 | IE2: Awnings Window 14 | IF2: Awnings Window 15 | IG2: Awnings Window 16 | IH2: Awnings Window 17 | II2: Awnings Window 18 | IJ2: Awnings Window 19 | IK2: Air Leaks Window 1 | IL2: Air Leaks Window 2 | IM2: Air Leaks Window 3 | IN2: Air Leaks Window 4 | IO2: Air Leaks Window 5 | IP2: Air Leaks Window 6 | IQ2: Air Leaks Window 7 | IR2: Air Leaks Window 8 | IS2: Air Leaks Window 9 | IT2: Air Leaks Window 10 | IU2: Air Leaks Window 11 | IV2: Air Leaks Window 12 | IW2: Air Leaks Window 13 | IX2: Air Leaks Window 14 | IY2: Air Leaks Window 15 | IZ2: Air Leaks Window 16 | JA2: Air Leaks Window 17 | JB2: Air Leaks Window 18 | JC2: Air Leaks Window 19 | JD2: Ventilation type | JE2: When? Winter | JF2: When? Summer | JG2: How long? Winter | JH2: How long? Summer | JI2: Humidity? Winter | JJ2: Humidity? Summer | JK2: Elevators | JL2: Concierge | JM2: Communal areas | JN2: Number of flats in the building | JO2: Monthly bill (€) | JP2: Jan electricity TOTAL | JQ2: Jan Electricity F1 | JR2: Jan Electricity F2 | JS2: Jan Electricity F3 | JT2: Jan electricity F4 | JU2: unit Natural Gas | JV2: Jan Natural Gas | JW2: Jan Butane | JX2: Jan Porpane | JY2: Jan Diesel | JZ2: Jan Pellet | KA2: Jan Firewood | KB2: Jan Cental Boiler | KC2: Jan District heating | KD2: Jan Distric heating-Sanitary hot water | KE2: Jan District cooling | KF2: Feb electricity TOTAL | KG2: Feb Electricity F1 | KH2: Feb Electricity F2 | KI2: Feb Electricity F3 | KJ2: Feb electricity F4 | KK2: Feb Natural Gas | KL2: Feb Butane | KM2: Feb Porpane | KN2: Feb Diesel | KO2: Feb Pellet | KP2: Feb Firewood | KQ2: Feb Cental Boiler | KR2: Feb District heating | KS2: Feb Distric heating-Sanitary hot water | KT2: Feb District cooling | KU2: Mar electricity TOTAL | KV2: Mar Electricity F1 | KW2: Mar Electricity F2 | KX2: Mar Electricity F3 | KY2: Mar electricity F4 | KZ2: Mar Natural Gas | LA2: Mar Butane | LB2: Mar Porpane | LC2: Mar Diesel | LD2: Mar Pellet | LE2: Mar Firewood | LF2: Mar Cental Boiler | LG2: Mar District heating | LH2: Mar Distric heating-Sanitary hot water | LI2: Mar District cooling | LJ2: Apr electricity TOTAL | LK2: Apr Electricity F1 | LL2: Apr Electricity F2 | LM2: Apr Electricity F3 | LN2: Apr electricity F4 | LO2: Apr Natural Gas | LP2: Apr Butane | LQ2: Apr Porpane | LR2: Apr Diesel | LS2: Apr Pellet | LT2: Apr Firewood | LU2: Apr Cental Boiler | LV2: Apr District heating | LW2: Apr Distric heating-Sanitary hot water | LX2: Apr District cooling | LY2: May electricity TOTAL | LZ2: May Electricity F1 | MA2: May Electricity F2 | MB2: May Electricity F3 | MC2: May electricity F4 | MD2: May Natural Gas | ME2: May Butane | MF2: May Porpane | MG2: May Diesel | MH2: May Pellet | MI2: May Firewood | MJ2: May Cental Boiler | MK2: May District heating | ML2: May Distric heating-Sanitary hot water | MM2: May District cooling | MN2: Jun electricity TOTAL | MO2: Jun Electricity F1 | MP2: Jun Electricity F2 | MQ2: Jun Electricity F3 | MR2: Jun electricity F4 | MS2: Jun Natural Gas | MT2: Jun Butane | MU2: Jun Porpane | MV2: Jun Diesel | MW2: Jun Pellet | MX2: Jun Firewood | MY2: Jun Cental Boiler | MZ2: Jun District heating | NA2: Jun Distric heating-Sanitary hot water | NB2: Jun District cooling | NC2: Jul electricity TOTAL | ND2: Jul Electricity F1 | NE2: Jul Electricity F2 | NF2: Jul Electricity F3 | NG2: Jul electricity F4 | NH2: Jul Natural Gas | NI2: Jul Butane | NJ2: Jul Porpane | NK2: Jul Diesel | NL2: Jul Pellet | NM2: Jul Firewood | NN2: Jul Cental Boiler | NO2: Jul District heating | NP2: Jul Distric heating-Sanitary hot water | NQ2: Jul District cooling | NR2: Aug electricity TOTAL | NS2: Aug Electricity F1 | NT2: Aug Electricity F2 | NU2: Aug Electricity F3 | NV2: Aug electricity F4 | NW2: Aug Natural Gas | NX2: Aug Butane | NY2: Aug Porpane | NZ2: Aug Diesel | OA2: Aug Pellet | OB2: Aug Firewood | OC2: Aug Cental Boiler | OD2: Aug District heating | OE2: Aug Distric heating-Sanitary hot water | OF2: Aug District cooling | OG2: Sep electricity TOTAL | OH2: Sep Electricity F1 | OI2: Sep Electricity F2 | OJ2: Sep Electricity F3 | OK2: Sep electricity F4 | OL2: Sep Natural Gas | OM2: Sep Butane | ON2: Sep Porpane | OO2: Sep Diesel | OP2: Sep Pellet | OQ2: Sep Firewood | OR2: Sep Cental Boiler | OS2: Sep District heating | OT2: Sep Distric heating-Sanitary hot water | OU2: Sep District cooling | OV2: Oct electricity TOTAL | OW2: Oct Electricity F1 | OX2: Oct Electricity F2 | OY2: Oct Electricity F3 | OZ2: Oct electricity F4 | PA2: Oct Natural Gas | PB2: Oct Butane | PC2: Oct Porpane | PD2: Oct Diesel | PE2: Oct Pellet | PF2: Oct Firewood | PG2: Oct Cental Boiler | PH2: Oct District heating | PI2: Oct Distric heating-Sanitary hot water | PJ2: Oct District cooling | PK2: Nov electricity TOTAL | PL2: Nov Electricity F1 | PM2: Nov Electricity F2 | PN2: Nov Electricity F3 | PO2: Nov electricity F4 | PP2: Nov Natural Gas | PQ2: Nov Butane | PR2: Nov Porpane | PS2: Nov Diesel | PT2: Nov Pellet | PU2: Nov Firewood | PV2: Nov Cental Boiler | PW2: Nov District heating | PX2: Nov Distric heating-Sanitary hot water | PY2: Nov District cooling | PZ2: Dec electricity TOTAL | QA2: Dec Electricity F1 | QB2: Dec Electricity F2 | QC2: Dec Electricity F3 | QD2: Dec electricity F4 | QE2: Dec Natural Gas | QF2: Dec Butane | QG2: Dec Porpane | QH2: Dec Diesel | QI2: Dec Pellet | QJ2: Dec Firewood | QK2: Dec Cental Boiler | QL2: Dec District heating | QM2: Dec Distric heating-Sanitary hot water | QN2: Dec District cooling | QO2: TOTAL electricity TOTAL | QP2: TOTAL Electricity F1 | QQ2: TOTAL Electricity F2 | QR2: TOTAL Electricity F3 | QS2: TOTAL electricity F4 | QT2: TOTAL Natural Gas | QU2: TOTAL Butane | QV2: TOTAL Porpane | QW2: TOTAL Diesel | QX2: TOTAL Pellet | QY2: TOTAL Firewood | QZ2: TOTAL Cental Boiler | RA2: TOTAL District heating | RB2: TOTAL Distric heating-Sanitary hot water | RC2: TOTAL District cooling | RD2: Jan electricity TOTAL | RE2: Jan Electricity F1 | RF2: Jan Electricity F2 | RG2: Jan Electricity F3 | RH2: Jan electricity F4 | RI2: unit Natural Gas | RJ2: Jan Natural Gas | RK2: Jan Butane | RL2: Jan Porpane | RM2: Jan Diesel | RN2: Jan Pellet | RO2: Jan Firewood | RP2: Jan Cental Boiler | RQ2: Jan District heating | RR2: Jan Distric heating-Sanitary hot water | RS2: Jan District cooling | RT2: Feb electricity TOTAL | RU2: Feb Electricity F1 | RV2: Feb Electricity F2 | RW2: Feb Electricity F3 | RX2: Feb electricity F4 | RY2: Feb Natural Gas | RZ2: Feb Butane | SA2: Feb Porpane | SB2: Feb Diesel | SC2: Feb Pellet | SD2: Feb Firewood | SE2: Feb Cental Boiler | SF2: Feb District heating | SG2: Feb Distric heating-Sanitary hot water | SH2: Feb District cooling | SI2: Mar electricity TOTAL | SJ2: Mar Electricity F1 | SK2: Mar Electricity F2 | SL2: Mar Electricity F3 | SM2: Mar electricity F4 | SN2: Mar Natural Gas | SO2: Mar Butane | SP2: Mar Porpane | SQ2: Mar Diesel | SR2: Mar Pellet | SS2: Mar Firewood | ST2: Mar Cental Boiler | SU2: Mar District heating | SV2: Mar Distric heating-Sanitary hot water | SW2: Mar District cooling | SX2: Apr electricity TOTAL | SY2: Apr Electricity F1 | SZ2: Apr Electricity F2 | TA2: Apr Electricity F3 | TB2: Apr electricity F4 | TC2: Apr Natural Gas | TD2: Apr Butane | TE2: Apr Porpane | TF2: Apr Diesel | TG2: Apr Pellet | TH2: Apr Firewood | TI2: Apr Cental Boiler | TJ2: Apr District heating | TK2: Apr Distric heating-Sanitary hot water | TL2: Apr District cooling | TM2: May electricity TOTAL | TN2: May Electricity F1 | TO2: May Electricity F2 | TP2: May Electricity F3 | TQ2: May electricity F4 | TR2: May Natural Gas | TS2: May Butane | TT2: May Porpane | TU2: May Diesel | TV2: May Pellet | TW2: May Firewood | TX2: May Cental Boiler | TY2: May District heating | TZ2: May Distric heating-Sanitary hot water | UA2: May District cooling | UB2: Jun electricity TOTAL | UC2: Jun Electricity F1 | UD2: Jun Electricity F2 | UE2: Jun Electricity F3 | UF2: Jun electricity F4 | UG2: Jun Natural Gas | UH2: Jun Butane | UI2: Jun Porpane | UJ2: Jun Diesel | UK2: Jun Pellet | UL2: Jun Firewood | UM2: Jun Cental Boiler | UN2: Jun District heating | UO2: Jun Distric heating-Sanitary hot water | UP2: Jun District cooling | UQ2: Jul electricity TOTAL | UR2: Jul Electricity F1 | US2: Jul Electricity F2 | UT2: Jul Electricity F3 | UU2: Jul electricity F4 | UV2: Jul Natural Gas | UW2: Jul Butane | UX2: Jul Porpane | UY2: Jul Diesel | UZ2: Jul Pellet | VA2: Jul Firewood | VB2: Jul Cental Boiler | VC2: Jul District heating | VD2: Jul Distric heating-Sanitary hot water | VE2: Jul District cooling | VF2: Aug electricity TOTAL | VG2: Aug Electricity F1 | VH2: Aug Electricity F2 | VI2: Aug Electricity F3 | VJ2: Aug electricity F4 | VK2: Aug Natural Gas | VL2: Aug Butane | VM2: Aug Porpane | VN2: Aug Diesel | VO2: Aug Pellet | VP2: Aug Firewood | VQ2: Aug Cental Boiler | VR2: Aug District heating | VS2: Aug Distric heating-Sanitary hot water | VT2: Aug District cooling | VU2: Sep electricity TOTAL | VV2: Sep Electricity F1 | VW2: Sep Electricity F2 | VX2: Sep Electricity F3 | VY2: Sep electricity F4 | VZ2: Sep Natural Gas | WA2: Sep Butane | WB2: Sep Porpane | WC2: Sep Diesel | WD2: Sep Pellet | WE2: Sep Firewood | WF2: Sep Cental Boiler | WG2: Sep District heating | WH2: Sep Distric heating-Sanitary hot water | WI2: Sep District cooling | WJ2: Oct electricity TOTAL | WK2: Oct Electricity F1 | WL2: Oct Electricity F2 | WM2: Oct Electricity F3 | WN2: Oct electricity F4 | WO2: Oct Natural Gas | WP2: Oct Butane | WQ2: Oct Porpane | WR2: Oct Diesel | WS2: Oct Pellet | WT2: Oct Firewood | WU2: Oct Cental Boiler | WV2: Oct District heating | WW2: Oct Distric heating-Sanitary hot water | WX2: Oct District cooling | WY2: Nov electricity TOTAL | WZ2: Nov Electricity F1 | XA2: Nov Electricity F2 | XB2: Nov Electricity F3 | XC2: Nov electricity F4 | XD2: Nov Natural Gas | XE2: Nov Butane | XF2: Nov Porpane | XG2: Nov Diesel | XH2: Nov Pellet | XI2: Nov Firewood | XJ2: Nov Cental Boiler | XK2: Nov District heating | XL2: Nov Distric heating-Sanitary hot water | XM2: Nov District cooling | XN2: Dec electricity TOTAL | XO2: Dec Electricity F1 | XP2: Dec Electricity F2 | XQ2: Dec Electricity F3 | XR2: Dec electricity F4 | XS2: Dec Natural Gas | XT2: Dec Butane | XU2: Dec Porpane | XV2: Dec Diesel | XW2: Dec Pellet | XX2: Dec Firewood | XY2: Dec Cental Boiler | XZ2: Dec District heating | YA2: Dec Distric heating-Sanitary hot water | YB2: Dec District cooling | YC2: Average electricity TOTAL | YD2: Average Electricity F1 | YE2: Average Electricity F2 | YF2: Average Electricity F3 | YG2: Average electricity F4 | YH2: Average Natural Gas | YI2: Average Butane | YJ2: Average Porpane | YK2: Average Diesel | YL2: Average Pellet | YM2: Average Firewood | YN2: Average Cental Boiler | YO2: Average District heating | YP2: Average Distric heating-Sanitary hot water | YQ2: Average District cooling | YR2: Jan Electricity | YS2: Jan Natural Gas | YT2: Jan Butane | YU2: Jan Porpane | YV2: Jan Diesel | YW2: Jan Pellet | YX2: Jan Firewood | YY2: Jan Cental Boiler | YZ2: Jan District heating | ZA2: Jan Distric heating-Sanitary hot water | ZB2: Jan District cooling | ZC2: Feb Electricity | ZD2: Feb Natural Gas | ZE2: Feb Butane | ZF2: Feb Porpane | ZG2: Feb Diesel | ZH2: Feb Pellet | ZI2: Feb Firewood | ZJ2: Feb Cental Boiler | ZK2: Feb District heating | ZL2: Feb Distric heating-Sanitary hot water | ZM2: Feb District cooling | ZN2: Mar Electricity | ZO2: Mar Natural Gas | ZP2: Mar Butane | ZQ2: Mar Porpane | ZR2: Mar Diesel | ZS2: Mar Pellet | ZT2: Mar Firewood | ZU2: Mar Cental Boiler | ZV2: Mar District heating | ZW2: Mar Distric heating-Sanitary hot water | ZX2: Mar District cooling | ZY2: Apr Electricity | ZZ2: Apr Natural Gas | AAA2: Apr Butane | AAB2: Apr Porpane | AAC2: Apr Diesel | AAD2: Apr Pellet | AAE2: Apr Firewood | AAF2: Apr Cental Boiler | AAG2: Apr District heating | AAH2: Apr Distric heating-Sanitary hot water | AAI2: Apr District cooling | AAJ2: May Electricity | AAK2: May Natural Gas | AAL2: May Butane | AAM2: May Porpane | AAN2: May Diesel | AAO2: May Pellet | AAP2: May Firewood | AAQ2: May Cental Boiler | AAR2: May District heating | AAS2: May Distric heating-Sanitary hot water | AAT2: May District cooling | AAU2: Jun Electricity | AAV2: Jun Natural Gas | AAW2: Jun Butane | AAX2: Jun Porpane | AAY2: Jun Diesel | AAZ2: Jun Pellet | ABA2: Jun Firewood | ABB2: Jun Cental Boiler | ABC2: Jun District heating | ABD2: Jun Distric heating-Sanitary hot water | ABE2: Jun District cooling | ABF2: Jul Electricity | ABG2: Jul Natural Gas | ABH2: Jul Butane | ABI2: Jul Porpane | ABJ2: Jul Diesel | ABK2: Jul Pellet | ABL2: Jul Firewood | ABM2: Jul Cental Boiler | ABN2: Jul District heating | ABO2: Jul Distric heating-Sanitary hot water | ABP2: Jul District cooling | ABQ2: Aug Electricity | ABR2: Aug Natural Gas | ABS2: Aug Butane | ABT2: Aug Porpane | ABU2: Aug Diesel | ABV2: Aug Pellet | ABW2: Aug Firewood | ABX2: Aug Cental Boiler | ABY2: Aug District heating | ABZ2: Aug Distric heating-Sanitary hot water | ACA2: Aug District cooling | ACB2: Sep Electricity | ACC2: Sep Natural Gas | ACD2: Sep Butane | ACE2: Sep Porpane | ACF2: Sep Diesel | ACG2: Sep Pellet | ACH2: Sep Firewood | ACI2: Sep Cental Boiler | ACJ2: Sep District heating | ACK2: Sep Distric heating-Sanitary hot water | ACL2: Sep District cooling | ACM2: Oct Electricity | ACN2: Oct Natural Gas | ACO2: Oct Butane | ACP2: Oct Porpane | ACQ2: Oct Diesel | ACR2: Oct Pellet | ACS2: Oct Firewood | ACT2: Oct Cental Boiler | ACU2: Oct District heating | ACV2: Oct Distric heating-Sanitary hot water | ACW2: Oct District cooling | ACX2: Nov Electricity | ACY2: Nov Natural Gas | ACZ2: Nov Butane | ADA2: Nov Porpane | ADB2: Nov Diesel | ADC2: Nov Pellet | ADD2: Nov Firewood | ADE2: Nov Cental Boiler | ADF2: Nov District heating | ADG2: Nov Distric heating-Sanitary hot water | ADH2: Nov District cooling | ADI2: Dec Electricity | ADJ2: Dec Natural Gas | ADK2: Dec Butane | ADL2: Dec Porpane | ADM2: Dec Diesel | ADN2: Dec Pellet | ADO2: Dec Firewood | ADP2: Dec Cental Boiler | ADQ2: Dec District heating | ADR2: Dec Distric heating-Sanitary hot water | ADS2: Dec District cooling | ADT2: TOTAL electricity TOTAL | ADU2: TOTAL Natural Gas | ADV2: TOTAL Butane | ADW2: TOTAL Porpane | ADX2: TOTAL Diesel | ADY2: TOTAL Pellet | ADZ2: TOTAL Firewood | AEA2: TOTAL Cental Boiler | AEB2: TOTAL District heating | AEC2: TOTAL Distric heating-Sanitary hot water | AED2: TOTAL District cooling | AEE2: TOTAL Jan | AEF2: TOTAL Feb | AEG2: TOTAL Mar | AEH2: TOTAL Apr | AEI2: TOTAL May | AEJ2: TOTAL Jun | AEK2: TOTAL Jul | AEL2: TOTAL Aug | AEM2: TOTAL Sep | AEN2: TOTAL Oct | AEO2: TOTAL Nov | AEP2: TOTAL Dec | AEQ2: TOTAL TOTAL | AER2: I have been reviewed/ changed me contract over the last two year | AES2: Have you ever experienced a power disconnection for exceding your contracted demand of electricity? | AET2: Carbon emmisions average (kCO2/kWh) | AEU2: Current Company Name | AEV2: Previous Company Name | AEW2: Current Who is the contract holder ? | AEX2: Previous Who is the contract holder ? | AEY2: Current Power (kW) | AEZ2: Previous Power (kW) | AFA2: Current Contract type | AFB2: Previous Contract type | AFC2: RES total power Power Solar PV | AFD2: RES total power Power Geothermal heat pump | AFE2: RES total power Power Wind power | AFF2: RES total power Power Co-generation | AFG2: RES total power Application Solar PV | AFH2: RES total power Application Geothermal heat pump | AFI2: RES total power Application Wind power | AFJ2: RES total power Application Co-generation | AFK2: RES total power Year of installation Solar PV | AFL2: RES total power Year of installation Geothermal heat pump | AFM2: RES total power Year of installation Wind power | AFN2: RES total power Year of installation Co-generation | AFO2: Payment frequency | AFP2: Flat rate | AFQ2: Electronic Meter | AFR2: Additional Services | AFS2: NATURAL GAS SUPPLY Company name Current | AFT2: NATURAL GAS SUPPLY Company name Previous | AFU2: Gas method of payment Payment frequency | AFV2: Gas method of payment Flat rate | AFW2: Gas method of payment Additional Services | AFX2: Jan Heating Degree Days | AFY2: Jan Cooling Degree Days | AFZ2: Feb Heating Degree Days | AGA2: Feb Cooling Degree Days | AGB2: Mar Heating Degree Days | AGC2: Mar Cooling Degree Days | AGD2: Apr Heating Degree Days | AGE2: Apr Cooling Degree Days | AGF2: May Heating Degree Days | AGG2: May Cooling Degree Days | AGH2: Jun Heating Degree Days | AGI2: Jun Cooling Degree Days | AGJ2: Jul Heating Degree Days | AGK2: Jul Cooling Degree Days | AGL2: Aug Heating Degree Days | AGM2: Aug Cooling Degree Days | AGN2: Sep Heating Degree Days | AGO2: Sep Cooling Degree Days | AGP2: Oct Heating Degree Days | AGQ2: Oct Cooling Degree Days | AGR2: Nov Heating Degree Days | AGS2: Nov Cooling Degree Days | AGT2: Dec Heating Degree Days | AGU2: Dec Cooling Degree Days | AGV2: HEATING SOURCE Central heating | AGW2: HEATING SOURCE Individual meter | AGX2: HEATING SOURCE Individual adjustable thermostat | AGY2: HEATING SOURCE Adjustable thermostat in each radiator / room | AGZ2: HEATING SOURCE Natural Gas boiler | AHA2: HEATING SOURCE Propane boiler | AHB2: HEATING SOURCE Diesel boiler | AHC2: HEATING SOURCE Biomass boiler | AHD2: HEATING SOURCE Central Heat Pump | AHE2: HEATING SOURCE Electrical boiler without accumulator tank | AHF2: HEATING SOURCE Electrical boiler with accumulator tank | AHG2: HEATING SOURCE Electrical - Radiant heating | AHH2: Installation year Central heating | AHI2: Installation year Natural Gas boiler | AHJ2: Installation year Propane boiler | AHK2: Installation year Diesel boiler | AHL2: Installation year Biomass boiler | AHM2: Installation year Central Heat Pump | AHN2: Installation year Electrical boiler without accumulator tank | AHO2: Installation year Electrical boiler with accumulator tank | AHP2: Installation year Electrical - Radiant heating | AHQ2: Power (kW) Central heating | AHR2: Power (kW) Natural Gas boiler | AHS2: Power (kW) Propane boiler | AHT2: Power (kW) Diesel boiler | AHU2: Power (kW) Biomass boiler | AHV2: Power (kW) Central Heat Pump | AHW2: Power (kW) Electrical boiler without accumulator tank | AHX2: Power (kW) Electrical boiler with accumulator tank | AHY2: Power (kW) Electrical - Radiant heating | AHZ2: Hours/day (when necesary) Central heating | AIA2: Hours/day (when necesary) Natural Gas boiler | AIB2: Hours/day (when necesary) Propane boiler | AIC2: Hours/day (when necesary) Diesel boiler | AID2: Hours/day (when necesary) Biomass boiler | AIE2: Hours/day (when necesary) Central Heat Pump | AIF2: Hours/day (when necesary) Electrical boiler without accumulator tank | AIG2: Hours/day (when necesary) Electrical boiler with accumulator tank | AIH2: Hours/day (when necesary) Electrical - Radiant heating | AII2: COP (%) Central heating | AIJ2: COP (%) Natural Gas boiler | AIK2: COP (%) Propane boiler | AIL2: COP (%) Diesel boiler | AIM2: COP (%) Biomass boiler | AIN2: COP (%) Central Heat Pump | AIO2: COP (%) Electrical boiler without accumulator tank | AIP2: COP (%) Electrical boiler with accumulator tank | AIQ2: COP (%) Electrical - Radiant heating | AIR2: INDIVIDUAL HEATING SOURCE Individual Electrical stove | AIS2: INDIVIDUAL HEATING SOURCE Individual Heat Pump split | AIT2: INDIVIDUAL HEATING SOURCE Butane/propane stove | AIU2: INDIVIDUAL HEATING SOURCE Wood- burning stove | AIV2: INDIVIDUAL HEATING SOURCE Fireplace | AIW2: INDIVIDUAL HEATING SOURCE Individual Pellet stove | AIX2: INDIVIDUAL HEATING SOURCE Electric baseboard heat | AIY2: INDIVIDUAL HEATING SOURCE Geothermal heat pump support | AIZ2: INDIVIDUAL HEATING SOURCE Fan coil | AJA2: INDIVIDUAL HEATING SOURCE Solar thermal support | AJB2: Installation year Individual Electrical stove | AJC2: Installation year Individual Heat Pump split | AJD2: Installation year Butane/propane stove | AJE2: Installation year Wood- burning stove | AJF2: Installation year Fireplace | AJG2: Installation yearIndividual Pellet stove | AJH2: Installation year Electric baseboard heat | AJI2: Installation year Geothermal heat pump support | AJJ2: Installation year Fan coil | AJK2: Installation year Solar thermal support | AJL2: Average Power (kW) Individual Electrical stove | AJM2: Average Power (kW) Individual Heat Pump split | AJN2: Average Power (kW) Butane/propane stove | AJO2: Average Power (kW) Wood- burning stove | AJP2: Average Power (kW) Fireplace | AJQ2: Average Power (kW) Individual Pellet stove | AJR2: Average Power (kW) Electric baseboard heat | AJS2: Average Power (kW) Geothermal heat pump support | AJT2: Average Power (kW) Fan coil | AJU2: Average Power (kW) Solar thermal support | AJV2: Hours/day (when necesary) Individual Electrical stove | AJW2: Hours/day (when necesary) Individual Heat Pump split | AJX2: Hours/day (when necesary) Butane/propane stove | AJY2: Hours/day (when necesary) Wood- burning stove | AJZ2: Hours/day (when necesary) Fireplace | AKA2: Hours/day (when necesary) Individual Pellet stove | AKB2: Hours/day (when necesary) Electric baseboard heat | AKC2: Hours/day (when necesary) Geothermal heat pump support | AKD2: Hours/day (when necesary) Fan coil | AKE2: Hours/day (when necesary) Solar thermal support | AKF2: COP (%) Individual Electrical stove | AKG2: COP (%) Individual Heat Pump split | AKH2: COP (%) Butane/propane stove | AKI2: COP (%) Wood- burning stove | AKJ2: COP (%) Fireplace | AKK2: COP (%) Individual Pellet stove | AKL2: COP (%) Electric baseboard heat | AKM2: COP (%) Geothermal heat pump support | AKN2: COP (%) Fan coil | AKO2: COP (%) Solar thermal support | AKP2: Number Individual Electrical stove | AKQ2: Number Individual Heat Pump split | AKR2: Number Butane/propane stove | AKS2: Number Wood- burning stove | AKT2: Number Fireplace | AKU2: Number Individual Pellet stove | AKV2: Number Electric baseboard heat | AKW2: Number Geothermal heat pump support | AKX2: COP (%) Fan coil | AKY2: Number Solar thermal support | AKZ2: Number of rooms Kitchen | ALA2: Number of rooms Living Room | ALB2: Number of rooms Bedroom | ALC2: Number of rooms Bathroom | ALD2: Number of rooms Hall and corridors | ALE2: Number of rooms Home office | ALF2: Height of the ceiling (cm) Kitchen | ALG2: Height of the ceiling (cm) Living Room | ALH2: Height of the ceiling (cm) Bedroom | ALI2: Height of the ceiling (cm) Bathroom | ALJ2: Height of the ceiling (cm) Hall and corridors | ALK2: Height of the ceiling (cm) Home office | ALL2: Squared meters Kitchen | ALM2: Squared meters Living Room | ALN2: Squared meters Bedroom | ALO2: Squared meters Bathroom | ALP2: Squared meters Hall and corridors | ALQ2: Squared meters Home office | ALR2: HEATING DEVICES Do you have temperature time setting plug? | ALS2: HEATING DEVICES Do you have a digital heating thermostat? | ALT2: HEATING DEVICES Percentage of thermostatic valves in radiators | ALU2: COOLING Central air conditioning | ALV2: COOLING Geothermal | ALW2: COOLING Solar cooling | ALX2: COOLING Individual air conditioning units (splits) | ALY2: COOLING Fans | ALZ2: COOLING Small cooling appliances | AMA2: COOLING Evaporative cooling | AMB2: Installation year Central air conditioning | AMC2: Installation year Geothermal | AMD2: Installation year Solar cooling | AME2: Installation year Individual air conditioning units (splits) | AMF2: Installation year Fans | AMG2: Installation year Small cooling appliances | AMH2: Installation year Evaporative cooling | AMI2: Average Power (kW) Central air conditioning | AMJ2: Average Power (kW) Geothermal | AMK2: Average Power (kW) Solar cooling | AML2: Average Power (kW) Individual air conditioning units (splits) | AMM2: Average Power (kW) Fans | AMN2: Average Power (kW) Small cooling appliances | AMO2: Average Power (kW) Evaporative cooling | AMP2: Hours/day (when necesary) Central air conditioning | AMQ2: Hours/day (when necesary) Geothermal | AMR2: Hours/day (when necesary) Solar cooling | AMS2: Hours/day (when necesary) Individual air conditioning units (splits) | AMT2: Hours/day (when necesary) Fans | AMU2: Hours/day (when necesary) Small cooling appliances | AMV2: Hours/day (when necesary) Evaporative cooling | AMW2: EER (%) Central air conditioning | AMX2: EER (%) Geothermal | AMY2: EER (%) Solar cooling | AMZ2: EER (%) Individual air conditioning units (splits) | ANA2: EER (%) Fans | ANB2: EER (%) Small cooling appliances | ANC2: EER (%) Evaporative cooling | AND2: Number Individual air conditioning units (splits) | ANE2: Number Fans | ANF2: Number Small cooling appliances | ANG2: Number Evaporative cooling | ANH2: COOLING DEVICES Do you have a temperature time setting plug? | ANI2: COOLING DEVICES Do you have a cooling system with digital thermostat? | ANK2: Domestic hot water Centralized system | ANL2: Domestic hot water Individual meter per dwelling | ANM2: Domestic hot water Electrical heater | ANN2: Domestic hot water Natural gas heater | ANO2: Domestic hot water Butane/propane heater | ANP2: Domestic hot water Diesel heater | ANQ2: Domestic hot water Biomass heater | ANR2: Domestic hot water Solar collectors | ANS2: Hours/day Centralized system | ANT2: Hours/day Individual meter per dwelling | ANU2: Hours/day Electrical heater | ANV2: Hours/day Natural gas heater | ANW2: Hours/day Butane/propane heater | ANX2: Hours/day Diesel heater | ANY2: Hours/day Biomass heater | ANZ2: Hours/day Solar collectors | AOA2: With boiler system Centralized system | AOB2: With boiler system Individual meter per dwelling | AOC2: With boiler system Electrical heater | AOD2: With boiler system Natural gas heater | AOE2: With boiler system Butane/propane heater | AOF2: With boiler system Diesel heater | AOG2: With boiler system Biomass heater | AOH2: With boiler system Solar collectors | AOI2: Installation Year Centralized system | AOJ2: Installation Year Individual meter per dwelling | AOK2: Installation Year Electrical heater | AOL2: Installation Year Natural gas heater | AOM2: Installation Year Butane/propane heater | AON2: Installation Year Diesel heater | AOO2: Installation Year Biomass heater | AOP2: Installation Year Solar collectors | AOQ2: Power (kW) Centralized system | AOR2: Power (kW) Individual meter per dwelling | AOS2: Power (kW) Electrical heater | AOT2: Power (kW) Natural gas heater | AOU2: Power (kW) Butane/propane heater | AOV2: Power (kW) Diesel heater | AOW2: Power (kW) Biomass heater | AOX2: Power (kW) Solar collectors | AOY2: COP (%) Centralized system | AOZ2: COP (%) Individual meter per dwelling | APA2: COP (%) Electrical heater | APB2: COP (%) Natural gas heater | APC2: COP (%) Butane/propane heater | APD2: COP (%) Diesel heater | APE2: COP (%) Biomass heater | APF2: COP (%) Solar collectors | APG2: Single lever control | APH2: Aerators in taps | API2: HEATING EQUIPMENT MAINTENANCE Self made | APJ2: HEATING EQUIPMENT MAINTENANCE Subcontracted to a specialized company | APK2: HEATING EQUIPMENT MAINTENANCE No maintenance out of corrective is done | APL2: Frequency Self made | APM2: Frequency Subcontracted to a specialized company | APN2: Frequency No maintenance out of corrective is done | APO2: APPLIANCES Fridge/ Combined refrigerator- freezer | APP2: APPLIANCES Freezer | APQ2: APPLIANCES Oven | APR2: APPLIANCES Microwave | APS2: APPLIANCES Electrical cooker | APT2: APPLIANCES Ceramic hob | APU2: APPLIANCES Induction cooktop | APV2: APPLIANCES Gas cooker | APW2: APPLIANCES Washing machine | APX2: APPLIANCES Dryer | APY2: APPLIANCES Dishwasher | APZ2: APPLIANCES Television | AQA2: APPLIANCES Personal Computer | AQB2: APPLIANCES Laptop | AQC2: Number Fridge/ Combined refrigerator- freezer | AQD2: Number Freezer | AQE2: Number Oven | AQF2: Number Microwave | AQG2: Number Electrical cooker | AQH2: Number Ceramic hob | AQI2: Number Induction cooktop | AQJ2: Number Gas cooker | AQK2: Number Washing machine | AQL2: Number Dryer | AQM2: Number Dishwasher | AQN2: Number Television | AQO2: Number Personal Computer | AQP2: Number Laptop | AQQ2: Use (Hours/Week) Fridge/ Combined refrigerator- freezer | AQR2: Use (Hours/Week) Freezer | AQS2: Use (Hours/Week) Oven | AQT2: Use (Hours/Week) Microwave | AQU2: Use (Hours/Week) Electrical cooker | AQV2: Use (Hours/Week) Ceramic hob | AQW2: Use (Hours/Week) Induction cooktop | AQX2: Use (Hours/Week) Gas cooker | AQY2: Use (Hours/Week) Washing machine | AQZ2: Use (Hours/Week) Dryer | ARA2: Use (Hours/Week) Dishwasher | ARB2: Use (Hours/Week) Television | ARC2: Use (Hours/Week) Personal Computer | ARD2: Use (Hours/Week) Laptop | ARE2: Total Power (W) Fridge/ Combined refrigerator- freezer | ARF2: Total Power (W) Freezer | ARG2: Total Power (W) Oven | ARH2: Total Power (W) Microwave | ARI2: Total Power (W) Electrical cooker | ARJ2: Total Power (W) Ceramic hob | ARK2: Total Power (W) Induction cooktop | ARL2: Total Power (W) Gas cooker | ARM2: Total Power (W) Washing machine | ARN2: Total Power (W) Dryer | ARO2: Total Power (W) Dishwasher | ARP2: Total Power (W) Television | ARQ2: Total Power (W) Personal Computer | ARR2: Total Power (W) Laptop | ARS2: Energy Label Fridge/ Combined refrigerator- freezer | ART2: Energy Label Freezer | ARU2: Energy Label Oven | ARV2: Energy Label Microwave | ARW2: Energy Label Electrical cooker | ARX2: Energy Label Ceramic hob | ARY2: Energy Label Induction cooktop | ARZ2: Energy Label Gas cooker | ASA2: Energy Label Washing machine | ASB2: Energy Label Dryer | ASC2: Energy Label Dishwasher | ASD2: Energy Label Television | ASE2: Energy Label Personal Computer | ASF2: Energy Label Laptop | ASG2: Television Stand by mode | ASH2: Personal Computer Stand by mode | ASI2: Laptop Stand by mode | ASJ2: Other electronic Stand by mode | ASK2: Incandescent Light Bulbs | ASL2: Low- consumption bulbs | ASM2: Led light bulbs | ASN2: Fluorescent bulbs | ASO2: Halogen light bulbs | ASP2: Number Incandescent Light Bulbs | ASQ2: Number Low- consumption bulbs | ASR2: Number Led light bulbs | ASS2: Number Fluorescent bulbs | AST2: Number Halogen light bulbs | ASU2: Use Incandescent Light Bulbs | ASV2: Use Low- consumption bulbs | ASW2: Use Led light bulbs | ASX2: Use Fluorescent bulbs | ASY2: Use Halogen light bulbs | ASZ2: Total power (W) Incandescent Light Bulbs | ATA2: Total power (W) Low- consumption bulbs | ATB2: Total power (W) Led light bulbs | ATC2: Total power (W) Fluorescent bulbs | ATD2: Total power (W) Halogen light bulbs | ATE2: Energy Label Incandescent Light Bulbs | ATF2: Energy Label Low- consumption bulbs | ATG2: Energy Label Led light bulbs | ATH2: Energy Label Fluorescent bulbs | ATI2: Energy Label Halogen light bulbs | ATJ2: In my country, there are many families who can not afford the energy bill. | ATK2: Energy bills are too expansive for my family. | ATL2: I am willing to buy "green" electricity (even if it is more expansive). | ATM2: I would be willing to accept power cut off for a tariff reduction | ATN2: I am willing to invest some money to save energy. | ATO2: I already implement energy efficiency measures at home | ATP2: I think my house has a very good insulation (facade, windows, rooftop) | ATQ2: We CHANGED our habits following the tips received by FIESTA guide / EHD / Auditor. | ATR2: Was it easy? | ATS2: Was it easy? | ATT2: We PURCHASED energy efficient devices (e.g. lights, appliances, thermal regulation, boilers, solar shading…) following the tips received by FIESTA guide / EHD / Auditor | ATU2: We spent (or we will spend soon) [€]. | ATV2: Short description of the devices purchased (or to be purchased soon). | ATW2: We did NOT purchase because… | ATX2: We INVESTED some money to improve the energy efficiency of our house (e.g. thermal insulation,windows, solar shadings, heating and cooling systems, solar and photovoltaic systems...). | ATY2: We spent (or we will spend soon) [€]. | ATZ2: Short description of the investments done (or to be done soon). | AUA2: In my family, the obstacle we find harder to overcome when it comes to invest in renovation | AUC2: ID Audit | AUD2: Size of dwelling (m2) | AUE2: electricity power (kW) | AUF2: electricity consumption (kWh) | AUG2: eletricity cost (€/kWh) | AUH2: fuel | AUI2: fuel consumption (kWh) | AUJ2: fuel cost (€/kWh) | AUK2: How many members of the household? | AUL2: How many children? | AUM2: Social Housing | AUN2: date of energy audit | AUO2: time required for the energy audit | AUP2: Awareness about energy efficiency and RES technology | AUQ2: POTENTIAL energy saving (behavioural) electricity (kWh) | AUR2: POTENTIAL energy saving (small purchase) electricity (kWh) | AUS2: POTENTIAL energy saving (large investments) electricity (kWh) | AUT2: POTENTIAL C02 savings (kilograms) | AUU2: POTENTIAL Electricity from Renewable Energy Sources (kWh) | AUV2: POTENTIAL Heat from Renewable Energy Sources (kWh) | AUW2: POTENTIAL investment for energy saving (small purchase) (€) | AUX2: POTENTIAL investment for energy saving (large investment) (€) | AUY2: POTENTIAL investment for Renewable Energy Sources (€) | AUZ2: date of the questionnaire | AVA2: ACTUAL energy saving (behavioural) electricity [kWh] | AVB2: ACTUAL energy saving (small purchase)electricity [kWh] | AVC2: ACTUAL energy saving (large investments) electricity [kWh] | AVD2: ACTUAL C02 savings [kg] | AVE2: ACTUAL Electricity from Renewable Energy Sources [kWh] | AVF2: ACTUAL Heat from Renewable Energy Sources [kWh] | AVG2: ACTUAL investment for energy saving (small purchase) [€] | AVH2: ACTUAL investment for energy saving (large investment) [€] | AVI2: ACTUAL investment for Renewable Energy Sources [€] | AVJ2: Fuel central heating | AVK2: Fuel central hotwater | AVL2: POTENTIAL energy saving (behavioural) fuel [kWh] | AVM2: POTENTIAL energy saving (small purchase) fuel [kWh] | AVN2: POTENTIAL energy saving (investments) fuel [kWh] | AVO2: ACTUAL energy saving (behavioural) fuel [kWh] | AVP2: ACTUAL energy saving (small purchase) fuel [kWh] | AVQ2: ACTUAL energy saving (large investments) fuel [kWh] | AVR2: Would you repeat the energy audit? Was it useful? Would you recommend it to your friends? | AVS2: I am willing to change my habits to save energy
A3: ='Savings Indicator'!D7 -> 0 | B3: =Identification!B3 -> 0 | C3: =Identification!B4 -> 0 | D3: =Identification!B5 -> 0 | E3: =Identification!B6 -> 0 | F3: =Identification!B9 -> 0 | G3: =Identification!B10 -> 0 | H3: =Identification!B11 -> 0 | I3: =Identification!B12 -> 0 | J3: =Identification!B13 -> 0 | K3: =Identification!B15 -> 00:00:00 | L3: =Identification!B20 -> 00:00:00 | M3: =Family!C3 -> 0 | N3: =Family!C4 -> 0 | O3: =Family!C5 -> 0 | P3: =Family!C6 -> 0 | Q3: =Family!C7 -> 0 | R3: =Family!C8 -> 0 | S3: =Family!C9 -> 0 | T3: =Family!C10 -> 0 | U3: =Family!C11 -> 0 | V3: =Family!C12 -> 0 | W3: =Family!D3 -> 0 | X3: =Family!D4 -> 0 | Y3: =Family!D5 -> 0 | Z3: =Family!D6 -> 0 | AA3: =Family!D7 -> 0 | AB3: =Family!D8 -> 0 | AC3: =Family!D9 -> 0 | AD3: =Family!D10 -> 0 | AE3: =Family!D11 -> 0 | AF3: =Family!D12 -> 0 | AG3: =Family!E3 -> 0 | AH3: =Family!E4 -> 0 | AI3: =Family!E5 -> 0 | AJ3: =Family!E6 -> 0 | AK3: =Family!E7 -> 0 | AL3: =Family!E8 -> 0 | AM3: =Family!E9 -> 0 | AN3: =Family!E10 -> 0 | AO3: =Family!E11 -> 0 | AP3: =Family!E12 -> 0 | AQ3: =Family!F3 -> 0 | AR3: =Family!F4 -> 0 | AS3: =Family!F5 -> 0 | AT3: =Family!F6 -> 0 | AU3: =Family!F7 -> 0 | AV3: =Family!F8 -> 0 | AW3: =Family!F9 -> 0 | AX3: =Family!F10 -> 0 | AY3: =Family!F11 -> 0 | AZ3: =Family!F12 -> 0 | BA3: =Family!D14 -> 0 | BB3: =Family!C16 -> 0 | BC3: =Housing!C6 -> 0 | BD3: =Housing!C9 -> 0 | BE3: =Housing!C12 -> 0 | BF3: =Housing!C13 -> 0 | BG3: =Housing!C14 -> 0 | BH3: =Housing!C15 -> 0 | BI3: =Housing!C17 -> 0 | BJ3: =Housing!D17 -> 0 | BK3: =Housing!C18 -> 0 | BL3: =Housing!D18 -> 0 | BM3: =Housing!C20 -> 0 | BN3: =Housing!C23 -> 0 | BO3: =Housing!C24 -> 0 | BP3: =Housing!C25 -> 0 | BQ3: =Housing!C26 -> 0 | BR3: =Housing!D23 -> 0 | BS3: =Housing!D24 -> 0 | BT3: =Housing!D25 -> 0 | BU3: =Housing!D26 -> 0 | BV3: =Housing!C29 -> 0 | BW3: =Housing!D29 -> 0 | BX3: =Housing!E29 -> 0 | BY3: =Housing!F29 -> 0 | BZ3: =Housing!G29 -> 0 | CA3: =Housing!H29 -> 0 | CB3: =Housing!I29 -> 0 | CC3: =Housing!J29 -> 0 | CD3: =Housing!K29 -> 0 | CE3: =Housing!L29 -> 0 | CF3: =Housing!M29 -> 0 | CG3: =Housing!N29 -> 0 | CH3: =Housing!O29 -> 0 | CI3: =Housing!P29 -> 0 | CJ3: =Housing!Q29 -> 0 | CK3: =Housing!R29 -> 0 | CL3: =Housing!S29 -> 0 | CM3: =Housing!T29 -> 0 | CN3: =Housing!U29 -> 0 | CO3: =Housing!C30 -> 0 | CP3: =Housing!D30 -> 0 | CQ3: =Housing!E30 -> 0 | CR3: =Housing!F30 -> 0 | CS3: =Housing!G30 -> 0 | CT3: =Housing!H30 -> 0 | CU3: =Housing!I30 -> 0 | CV3: =Housing!J30 -> 0 | CW3: =Housing!K30 -> 0 | CX3: =Housing!L30 -> 0 | CY3: =Housing!M30 -> 0 | CZ3: =Housing!N30 -> 0 | DA3: =Housing!O30 -> 0 | DB3: =Housing!P30 -> 0 | DC3: =Housing!Q30 -> 0 | DD3: =Housing!R30 -> 0 | DE3: =Housing!S30 -> 0 | DF3: =Housing!T30 -> 0 | DG3: =Housing!U30 -> 0 | DH3: =Housing!C31 -> 0 | DI3: =Housing!D31 -> 0 | DJ3: =Housing!E31 -> 0 | DK3: =Housing!F31 -> 0 | DL3: =Housing!G31 -> 0 | DM3: =Housing!H31 -> 0 | DN3: =Housing!I31 -> 0 | DO3: =Housing!J31 -> 0 | DP3: =Housing!K31 -> 0 | DQ3: =Housing!L31 -> 0 | DR3: =Housing!M31 -> 0 | DS3: =Housing!N31 -> 0 | DT3: =Housing!O31 -> 0 | DU3: =Housing!P31 -> 0 | DV3: =Housing!Q31 -> 0 | DW3: =Housing!R31 -> 0 | DX3: =Housing!S31 -> 0 | DY3: =Housing!T31 -> 0 | DZ3: =Housing!U31 -> 0 | EA3: =Housing!C32 -> 0 | EB3: =Housing!D32 -> 0 | EC3: =Housing!E32 -> 0 | ED3: =Housing!F32 -> 0 | EE3: =Housing!G32 -> 0 | EF3: =Housing!H32 -> 0 | EG3: =Housing!I32 -> 0 | EH3: =Housing!J32 -> 0 | EI3: =Housing!K32 -> 0 | EJ3: =Housing!L32 -> 0 | EK3: =Housing!M32 -> 0 | EL3: =Housing!N32 -> 0 | EM3: =Housing!O32 -> 0 | EN3: =Housing!P32 -> 0 | EO3: =Housing!Q32 -> 0 | EP3: =Housing!R32 -> 0 | EQ3: =Housing!S32 -> 0 | ER3: =Housing!T32 -> 0 | ES3: =Housing!U32 -> 0 | ET3: =Housing!C33 -> 0 | EU3: =Housing!D33 -> 0 | EV3: =Housing!E33 -> 0 | EW3: =Housing!F33 -> 0 | EX3: =Housing!G33 -> 0 | EY3: =Housing!H33 -> 0 | EZ3: =Housing!I33 -> 0 | FA3: =Housing!J33 -> 0 | FB3: =Housing!K33 -> 0 | FC3: =Housing!L33 -> 0 | FD3: =Housing!M33 -> 0 | FE3: =Housing!N33 -> 0 | FF3: =Housing!O33 -> 0 | FG3: =Housing!P33 -> 0 | FH3: =Housing!Q33 -> 0 | FI3: =Housing!R33 -> 0 | FJ3: =Housing!S33 -> 0 | FK3: =Housing!T33 -> 0 | FL3: =Housing!U33 -> 0 | FM3: =Housing!C34 -> 0 | FN3: =Housing!D34 -> 0 | FO3: =Housing!E34 -> 0 | FP3: =Housing!F34 -> 0 | FQ3: =Housing!G34 -> 0 | FR3: =Housing!H34 -> 0 | FS3: =Housing!I34 -> 0 | FT3: =Housing!J34 -> 0 | FU3: =Housing!K34 -> 0 | FV3: =Housing!L34 -> 0 | FW3: =Housing!M34 -> 0 | FX3: =Housing!N34 -> 0 | FY3: =Housing!O34 -> 0 | FZ3: =Housing!P34 -> 0 | GA3: =Housing!Q34 -> 0 | GB3: =Housing!R34 -> 0 | GC3: =Housing!S34 -> 0 | GD3: =Housing!T34 -> 0 | GE3: =Housing!U34 -> 0 | GF3: =Housing!C35 -> 0 | GG3: =Housing!D35 -> 0 | GH3: =Housing!E35 -> 0 | GI3: =Housing!F35 -> 0 | GJ3: =Housing!G35 -> 0 | GK3: =Housing!H35 -> 0 | GL3: =Housing!I35 -> 0 | GM3: =Housing!J35 -> 0 | GN3: =Housing!K35 -> 0 | GO3: =Housing!L35 -> 0 | GP3: =Housing!M35 -> 0 | GQ3: =Housing!N35 -> 0 | GR3: =Housing!O35 -> 0 | GS3: =Housing!P35 -> 0 | GT3: =Housing!Q35 -> 0 | GU3: =Housing!R35 -> 0 | GV3: =Housing!S35 -> 0 | GW3: =Housing!T35 -> 0 | GX3: =Housing!U35 -> 0 | GY3: =Housing!C36 -> 0 | GZ3: =Housing!D36 -> 0 | HA3: =Housing!E36 -> 0 | HB3: =Housing!F36 -> 0 | HC3: =Housing!G36 -> 0 | HD3: =Housing!H36 -> 0 | HE3: =Housing!I36 -> 0 | HF3: =Housing!J36 -> 0 | HG3: =Housing!K36 -> 0 | HH3: =Housing!L36 -> 0 | HI3: =Housing!M36 -> 0 | HJ3: =Housing!N36 -> 0 | HK3: =Housing!O36 -> 0 | HL3: =Housing!P36 -> 0 | HM3: =Housing!Q36 -> 0 | HN3: =Housing!R36 -> 0 | HO3: =Housing!S36 -> 0 | HP3: =Housing!T36 -> 0 | HQ3: =Housing!U36 -> 0 | HR3: =Housing!C37 -> 0 | HS3: =Housing!D37 -> 0 | HT3: =Housing!E37 -> 0 | HU3: =Housing!F37 -> 0 | HV3: =Housing!G37 -> 0 | HW3: =Housing!H37 -> 0 | HX3: =Housing!I37 -> 0 | HY3: =Housing!J37 -> 0 | HZ3: =Housing!K37 -> 0 | IA3: =Housing!L37 -> 0 | IB3: =Housing!M37 -> 0 | IC3: =Housing!N37 -> 0 | ID3: =Housing!O37 -> 0 | IE3: =Housing!P37 -> 0 | IF3: =Housing!Q37 -> 0 | IG3: =Housing!R37 -> 0 | IH3: =Housing!S37 -> 0 | II3: =Housing!T37 -> 0 | IJ3: =Housing!U37 -> 0 | IK3: =Housing!C38 -> 0 | IL3: =Housing!D38 -> 0 | IM3: =Housing!E38 -> 0 | IN3: =Housing!F38 -> 0 | IO3: =Housing!G38 -> 0 | IP3: =Housing!H38 -> 0 | IQ3: =Housing!I38 -> 0 | IR3: =Housing!J38 -> 0 | IS3: =Housing!K38 -> 0 | IT3: =Housing!L38 -> 0 | IU3: =Housing!M38 -> 0 | IV3: =Housing!N38 -> 0 | IW3: =Housing!O38 -> 0 | IX3: =Housing!P38 -> 0 | IY3: =Housing!Q38 -> 0 | IZ3: =Housing!R38 -> 0 | JA3: =Housing!S38 -> 0 | JB3: =Housing!T38 -> 0 | JC3: =Housing!U38 -> 0 | JD3: =Housing!C41 -> 0 | JE3: =Housing!C43 -> 0 | JF3: =Housing!D43 -> 0 | JG3: =Housing!C44 -> 0 | JH3: =Housing!D44 -> 0 | JI3: =Housing!C45 -> 0 | JJ3: =Housing!D45 -> 0 | JK3: =Housing!C48 -> 0 | JL3: =Housing!C49 -> 0 | JM3: =Housing!C50 -> 0 | JN3: =Housing!C51 -> 0 | JO3: =Housing!C52 -> 0 | JP3: =Energy!D5 -> 0 | JQ3: =Energy!D6 -> 0 | JR3: =Energy!D7 -> 0 | JS3: =Energy!D8 -> 0 | JT3: =Energy!D9 -> 0 | JU3: kWh | JV3: =Energy!D10 -> 0 | JW3: =Energy!D11 -> 0 | JX3: =Energy!D12 -> 0 | JY3: =Energy!D13 -> 0 | JZ3: =Energy!D14 -> 0 | KA3: =Energy!D15 -> 0 | KB3: =Energy!D16 -> 0 | KC3: =Energy!D17 -> 0 | KD3: =Energy!D18 -> 0 | KE3: =Energy!D19 -> 0 | KF3: =Energy!E5 -> 0 | KG3: =Energy!E6 -> 0 | KH3: =Energy!E7 -> 0 | KI3: =Energy!E8 -> 0 | KJ3: =Energy!E9 -> 0 | KK3: =Energy!E10 -> 0 | KL3: =Energy!E11 -> 0 | KM3: =Energy!E12 -> 0 | KN3: =Energy!E13 -> 0 | KO3: =Energy!E14 -> 0 | KP3: =Energy!E15 -> 0 | KQ3: =Energy!E16 -> 0 | KR3: =Energy!E17 -> 0 | KS3: =Energy!E18 -> 0 | KT3: =Energy!E19 -> 0 | KU3: =Energy!F5 -> 0 | KV3: =Energy!F6 -> 0 | KW3: =Energy!F7 -> 0 | KX3: =Energy!F8 -> 0 | KY3: =Energy!F9 -> 0 | KZ3: =Energy!F10 -> 0 | LA3: =Energy!F11 -> 0 | LB3: =Energy!F12 -> 0 | LC3: =Energy!F13 -> 0 | LD3: =Energy!F14 -> 0 | LE3: =Energy!F15 -> 0 | LF3: =Energy!F16 -> 0 | LG3: =Energy!F17 -> 0 | LH3: =Energy!F18 -> 0 | LI3: =Energy!F19 -> 0 | LJ3: =Energy!G5 -> 0 | LK3: =Energy!G6 -> 0 | LL3: =Energy!G7 -> 0 | LM3: =Energy!G8 -> 0 | LN3: =Energy!G9 -> 0 | LO3: =Energy!G10 -> 0 | LP3: =Energy!G11 -> 0 | LQ3: =Energy!G12 -> 0 | LR3: =Energy!G13 -> 0 | LS3: =Energy!G14 -> 0 | LT3: =Energy!G15 -> 0 | LU3: =Energy!G16 -> 0 | LV3: =Energy!G17 -> 0 | LW3: =Energy!G18 -> 0 | LX3: =Energy!G19 -> 0 | LY3: =Energy!H5 -> 0 | LZ3: =Energy!H6 -> 0 | MA3: =Energy!H7 -> 0 | MB3: =Energy!H8 -> 0 | MC3: =Energy!H9 -> 0 | MD3: =Energy!H10 -> 0 | ME3: =Energy!H11 -> 0 | MF3: =Energy!H12 -> 0 | MG3: =Energy!H13 -> 0 | MH3: =Energy!H14 -> 0 | MI3: =Energy!H15 -> 0 | MJ3: =Energy!H16 -> 0 | MK3: =Energy!H17 -> 0 | ML3: =Energy!H18 -> 0 | MM3: =Energy!H19 -> 0 | MN3: =Energy!I5 -> 0 | MO3: =Energy!I6 -> 0 | MP3: =Energy!I7 -> 0 | MQ3: =Energy!I8 -> 0 | MR3: =Energy!I9 -> 0 | MS3: =Energy!I10 -> 0 | MT3: =Energy!I11 -> 0 | MU3: =Energy!I12 -> 0 | MV3: =Energy!I13 -> 0 | MW3: =Energy!I14 -> 0 | MX3: =Energy!I15 -> 0 | MY3: =Energy!I16 -> 0 | MZ3: =Energy!I17 -> 0 | NA3: =Energy!I18 -> 0 | NB3: =Energy!I19 -> 0 | NC3: =Energy!J5 -> 0 | ND3: =Energy!J6 -> 0 | NE3: =Energy!J7 -> 0 | NF3: =Energy!J8 -> 0 | NG3: =Energy!J9 -> 0 | NH3: =Energy!J10 -> 0 | NI3: =Energy!J11 -> 0 | NJ3: =Energy!J12 -> 0 | NK3: =Energy!J13 -> 0 | NL3: =Energy!J14 -> 0 | NM3: =Energy!J15 -> 0 | NN3: =Energy!J16 -> 0 | NO3: =Energy!J17 -> 0 | NP3: =Energy!J18 -> 0 | NQ3: =Energy!J19 -> 0 | NR3: =Energy!K5 -> 0 | NS3: =Energy!K6 -> 0 | NT3: =Energy!K7 -> 0 | NU3: =Energy!K8 -> 0 | NV3: =Energy!K9 -> 0 | NW3: =Energy!K10 -> 0 | NX3: =Energy!K11 -> 0 | NY3: =Energy!K12 -> 0 | NZ3: =Energy!K13 -> 0 | OA3: =Energy!K14 -> 0 | OB3: =Energy!K15 -> 0 | OC3: =Energy!K16 -> 0 | OD3: =Energy!K17 -> 0 | OE3: =Energy!K18 -> 0 | OF3: =Energy!K19 -> 0 | OG3: =Energy!L5 -> 0 | OH3: =Energy!L6 -> 0 | OI3: =Energy!L7 -> 0 | OJ3: =Energy!L8 -> 0 | OK3: =Energy!L9 -> 0 | OL3: =Energy!L10 -> 0 | OM3: =Energy!L11 -> 0 | ON3: =Energy!L12 -> 0 | OO3: =Energy!L13 -> 0 | OP3: =Energy!L14 -> 0 | OQ3: =Energy!L15 -> 0 | OR3: =Energy!L16 -> 0 | OS3: =Energy!L17 -> 0 | OT3: =Energy!L18 -> 0 | OU3: =Energy!L19 -> 0 | OV3: =Energy!M5 -> 0 | OW3: =Energy!M6 -> 0 | OX3: =Energy!M7 -> 0 | OY3: =Energy!M8 -> 0 | OZ3: =Energy!M9 -> 0 | PA3: =Energy!M10 -> 0 | PB3: =Energy!M11 -> 0 | PC3: =Energy!M12 -> 0 | PD3: =Energy!M13 -> 0 | PE3: =Energy!M14 -> 0 | PF3: =Energy!M15 -> 0 | PG3: =Energy!M16 -> 0 | PH3: =Energy!M17 -> 0 | PI3: =Energy!M18 -> 0 | PJ3: =Energy!M19 -> 0 | PK3: =Energy!N5 -> 0 | PL3: =Energy!N6 -> 0 | PM3: =Energy!N7 -> 0 | PN3: =Energy!N8 -> 0 | PO3: =Energy!N9 -> 0 | PP3: =Energy!N10 -> 0 | PQ3: =Energy!N11 -> 0 | PR3: =Energy!N12 -> 0 | PS3: =Energy!N13 -> 0 | PT3: =Energy!N14 -> 0 | PU3: =Energy!N15 -> 0 | PV3: =Energy!N16 -> 0 | PW3: =Energy!N17 -> 0 | PX3: =Energy!N18 -> 0 | PY3: =Energy!N19 -> 0 | PZ3: =Energy!O5 -> 0 | QA3: =Energy!O6 -> 0 | QB3: =Energy!O7 -> 0 | QC3: =Energy!O8 -> 0 | QD3: =Energy!O9 -> 0 | QE3: =Energy!O10 -> 0 | QF3: =Energy!O11 -> 0 | QG3: =Energy!O12 -> 0 | QH3: =Energy!O13 -> 0 | QI3: =Energy!O14 -> 0 | QJ3: =Energy!O15 -> 0 | QK3: =Energy!O16 -> 0 | QL3: =Energy!O17 -> 0 | QM3: =Energy!O18 -> 0 | QN3: =Energy!O19 -> 0 | QO3: =Energy!P5 -> 0 | QP3: =Energy!P6 -> 0 | QQ3: =Energy!P7 -> 0 | QR3: =Energy!P8 -> 0 | QS3: =Energy!P9 -> 0 | QT3: =Energy!P10 -> 0 | QU3: =Energy!P11 -> 0 | QV3: =Energy!P12 -> 0 | QW3: =Energy!P13 -> 0 | QX3: =Energy!P14 -> 0 | QY3: =Energy!P15 -> 0 | QZ3: =Energy!P16 -> 0 | RA3: =Energy!P17 -> 0 | RB3: =Energy!P18 -> 0 | RC3: =Energy!P19 -> 0 | RD3: =Energy!T5 -> 0 | RE3: =Energy!T6 -> 0 | RF3: =Energy!T7 -> 0 | RG3: =Energy!T8 -> 0 | RH3: =Energy!T9 -> 0 | RI3: €/ kWh | RJ3: =Energy!T10 -> 0 | RK3: =Energy!T11 -> 0 | RL3: =Energy!T12 -> 0 | RM3: =Energy!T13 -> 0 | RN3: =Energy!T14 -> 0 | RO3: =Energy!T15 -> 0 | RP3: =Energy!T16 -> 0 | RQ3: =Energy!T17 -> 0 | RR3: =Energy!T18 -> 0 | RS3: =Energy!U5 -> 0 | RT3: =Energy!U5 -> 0 | RU3: =Energy!U6 -> 0 | RV3: =Energy!U7 -> 0 | RW3: =Energy!U8 -> 0 | RX3: =Energy!U9 -> 0 | RY3: =Energy!U10 -> 0 | RZ3: =Energy!U11 -> 0 | SA3: =Energy!U12 -> 0 | SB3: =Energy!U13 -> 0 | SC3: =Energy!U14 -> 0 | SD3: =Energy!U15 -> 0 | SE3: =Energy!U16 -> 0 | SF3: =Energy!U17 -> 0 | SG3: =Energy!U18 -> 0 | SH3: =Energy!U19 -> 0 | SI3: =Energy!V5 -> 0 | SJ3: =Energy!V6 -> 0 | SK3: =Energy!V7 -> 0 | SL3: =Energy!V8 -> 0 | SM3: =Energy!V9 -> 0 | SN3: =Energy!V10 -> 0 | SO3: =Energy!V11 -> 0 | SP3: =Energy!V12 -> 0 | SQ3: =Energy!V13 -> 0 | SR3: =Energy!V14 -> 0 | SS3: =Energy!V15 -> 0 | ST3: =Energy!V16 -> 0 | SU3: =Energy!V17 -> 0 | SV3: =Energy!V18 -> 0 | SW3: =Energy!V19 -> 0 | SX3: =Energy!W5 -> 0 | SY3: =Energy!W6 -> 0 | SZ3: =Energy!W7 -> 0 | TA3: =Energy!W8 -> 0 | TB3: =Energy!W9 -> 0 | TC3: =Energy!W10 -> 0 | TD3: =Energy!W11 -> 0 | TE3: =Energy!W12 -> 0 | TF3: =Energy!W13 -> 0 | TG3: =Energy!W14 -> 0 | TH3: =Energy!W15 -> 0 | TI3: =Energy!W16 -> 0 | TJ3: =Energy!W17 -> 0 | TK3: =Energy!W18 -> 0 | TL3: =Energy!W19 -> 0 | TM3: =Energy!X5 -> 0 | TN3: =Energy!X6 -> 0 | TO3: =Energy!X7 -> 0 | TP3: =Energy!X8 -> 0 | TQ3: =Energy!X9 -> 0 | TR3: =Energy!X10 -> 0 | TS3: =Energy!X11 -> 0 | TT3: =Energy!X12 -> 0 | TU3: =Energy!X13 -> 0 | TV3: =Energy!X14 -> 0 | TW3: =Energy!X15 -> 0 | TX3: =Energy!X16 -> 0 | TY3: =Energy!X17 -> 0 | TZ3: =Energy!X18 -> 0 | UA3: =Energy!X19 -> 0 | UB3: =Energy!Y5 -> 0 | UC3: =Energy!Y6 -> 0 | UD3: =Energy!Y7 -> 0 | UE3: =Energy!Y8 -> 0 | UF3: =Energy!Y9 -> 0 | UG3: =Energy!Y10 -> 0 | UH3: =Energy!Y11 -> 0 | UI3: =Energy!Y12 -> 0 | UJ3: =Energy!Y13 -> 0 | UK3: =Energy!Y14 -> 0 | UL3: =Energy!Y15 -> 0 | UM3: =Energy!Y16 -> 0 | UN3: =Energy!Y17 -> 0 | UO3: =Energy!Y18 -> 0 | UP3: =Energy!Y19 -> 0 | UQ3: =Energy!Z5 -> 0 | UR3: =Energy!Z6 -> 0 | US3: =Energy!Z7 -> 0 | UT3: =Energy!Z8 -> 0 | UU3: =Energy!Z9 -> 0 | UV3: =Energy!Z10 -> 0 | UW3: =Energy!Z11 -> 0 | UX3: =Energy!Z12 -> 0 | UY3: =Energy!Z13 -> 0 | UZ3: =Energy!Z14 -> 0 | VA3: =Energy!Z15 -> 0 | VB3: =Energy!Z16 -> 0 | VC3: =Energy!Z17 -> 0 | VD3: =Energy!Z18 -> 0 | VE3: =Energy!Z19 -> 0 | VF3: =Energy!AA5 -> 0 | VG3: =Energy!AA6 -> 0 | VH3: =Energy!AA7 -> 0 | VI3: =Energy!AA8 -> 0 | VJ3: =Energy!AA9 -> 0 | VK3: =Energy!AA10 -> 0 | VL3: =Energy!AA11 -> 0 | VM3: =Energy!AA12 -> 0 | VN3: =Energy!AA13 -> 0 | VO3: =Energy!AA14 -> 0 | VP3: =Energy!AA15 -> 0 | VQ3: =Energy!AA16 -> 0 | VR3: =Energy!AA17 -> 0 | VS3: =Energy!AA18 -> 0 | VT3: =Energy!AA19 -> 0 | VU3: =Energy!AB5 -> 0 | VV3: =Energy!AB6 -> 0 | VW3: =Energy!AB7 -> 0 | VX3: =Energy!AB8 -> 0 | VY3: =Energy!AB9 -> 0 | VZ3: =Energy!AB10 -> 0 | WA3: =Energy!AB11 -> 0 | WB3: =Energy!AB12 -> 0 | WC3: =Energy!AB13 -> 0 | WD3: =Energy!AB14 -> 0 | WE3: =Energy!AB15 -> 0 | WF3: =Energy!AB16 -> 0 | WG3: =Energy!AB17 -> 0 | WH3: =Energy!AB18 -> 0 | WI3: =Energy!AB19 -> 0 | WJ3: =Energy!AC5 -> 0 | WK3: =Energy!AC6 -> 0 | WL3: =Energy!AC7 -> 0 | WM3: =Energy!AC8 -> 0 | WN3: =Energy!AC9 -> 0 | WO3: =Energy!AC10 -> 0 | WP3: =Energy!AC11 -> 0 | WQ3: =Energy!AC12 -> 0 | WR3: =Energy!AC13 -> 0 | WS3: =Energy!AC14 -> 0 | WT3: =Energy!AC15 -> 0 | WU3: =Energy!AC16 -> 0 | WV3: =Energy!AC17 -> 0 | WW3: =Energy!AC18 -> 0 | WX3: =Energy!AC19 -> 0 | WY3: =Energy!AD5 -> 0 | WZ3: =Energy!AD6 -> 0 | XA3: =Energy!AD7 -> 0 | XB3: =Energy!AD8 -> 0 | XC3: =Energy!AD9 -> 0 | XD3: =Energy!AD10 -> 0 | XE3: =Energy!AD11 -> 0 | XF3: =Energy!AD12 -> 0 | XG3: =Energy!AD13 -> 0 | XH3: =Energy!AD14 -> 0 | XI3: =Energy!AD15 -> 0 | XJ3: =Energy!AD16 -> 0 | XK3: =Energy!AD17 -> 0 | XL3: =Energy!AD18 -> 0 | XM3: =Energy!AD19 -> 0 | XN3: =Energy!AE5 -> 0 | XO3: =Energy!AE6 -> 0 | XP3: =Energy!AE7 -> 0 | XQ3: =Energy!AE8 -> 0 | XR3: =Energy!AE9 -> 0 | XS3: =Energy!AE10 -> 0 | XT3: =Energy!AE11 -> 0 | XU3: =Energy!AE12 -> 0 | XV3: =Energy!AE13 -> 0 | XW3: =Energy!AE14 -> 0 | XX3: =Energy!AE15 -> 0 | XY3: =Energy!AE16 -> 0 | XZ3: =Energy!AE17 -> 0 | YA3: =Energy!AE18 -> 0 | YB3: =Energy!AE19 -> 0 | YC3: =IFERROR(Energy!AF5,0) -> 0 | YD3: =Energy!AF6 -> 0 | YE3: =Energy!AF7 -> 0 | YF3: =Energy!AF8 -> 0 | YG3: =Energy!AF9 -> 0 | YH3: =IFERROR(Energy!AF10,0) ->  | YI3: =IFERROR(Energy!AF11,"") ->  | YJ3: =IFERROR(Energy!AF12,"") ->  | YK3: =IFERROR(Energy!AF13,"") ->  | YL3: =IFERROR(Energy!AF14,"") ->  | YM3: =IFERROR(Energy!AF15,"") ->  | YN3: =IFERROR(Energy!AF16,"") ->  | YO3: =IFERROR(Energy!AF17,"") ->  | YP3: =IFERROR(Energy!AF18,"") ->  | YQ3: =IFERROR(Energy!AF19,"") ->  | YR3: =Energy!AI5 -> 0 | YS3: =Energy!AI6 -> 0 | YT3: =Energy!AI7 -> 0 | YU3: =ANK3 -> 0 | YV3: =Energy!AI9 -> 0 | YW3: =Energy!AI10 -> 0 | YX3: =Energy!AI11 -> 0 | YY3: =Energy!AI12 -> 0 | YZ3: =Energy!AI13 -> 0 | ZA3: =Energy!AI14 -> 0 | ZB3: =Energy!AI15 -> 0 | ZC3: =Energy!AJ5 -> 0 | ZD3: =Energy!AJ6 -> 0 | ZE3: =Energy!AJ7 -> 0 | ZF3: =Energy!AJ8 -> 0 | ZG3: =Energy!AJ9 -> 0 | ZH3: =Energy!AJ10 -> 0 | ZI3: =Energy!AJ11 -> 0 | ZJ3: =Energy!AJ12 -> 0 | ZK3: =Energy!AJ13 -> 0 | ZL3: =Energy!AJ14 -> 0 | ZM3: =Energy!AJ15 -> 0 | ZN3: =Energy!AK5 -> 0 | ZO3: =Energy!AK6 -> 0 | ZP3: =Energy!AK7 -> 0 | ZQ3: =Energy!AK8 -> 0 | ZR3: =Energy!AK9 -> 0 | ZS3: =Energy!AK10 -> 0 | ZT3: =Energy!AK11 -> 0 | ZU3: =Energy!AK12 -> 0 | ZV3: =Energy!AK13 -> 0 | ZW3: =Energy!AK14 -> 0 | ZX3: =Energy!AK15 -> 0 | ZY3: =Energy!AL5 -> 0 | ZZ3: =Energy!AL6 -> 0 | AAA3: =Energy!AL7 -> 0 | AAB3: =Energy!AL8 -> 0 | AAC3: =Energy!AL9 -> 0 | AAD3: =Energy!AL10 -> 0 | AAE3: =Energy!AL11 -> 0 | AAF3: =Energy!AL12 -> 0 | AAG3: =Energy!AL13 -> 0 | AAH3: =Energy!AL14 -> 0 | AAI3: =Energy!AL15 -> 0 | AAJ3: =Energy!AM5 -> 0 | AAK3: =Energy!AM6 -> 0 | AAL3: =Energy!AM7 -> 0 | AAM3: =Energy!AM8 -> 0 | AAN3: =Energy!AM9 -> 0 | AAO3: =Energy!AM10 -> 0 | AAP3: =Energy!AM11 -> 0 | AAQ3: =Energy!AM12 -> 0 | AAR3: =Energy!AM13 -> 0 | AAS3: =Energy!AM14 -> 0 | AAT3: =Energy!AM15 -> 0 | AAU3: =Energy!AN5 -> 0 | AAV3: =Energy!AN6 -> 0 | AAW3: =Energy!AN7 -> 0 | AAX3: =Energy!AN8 -> 0 | AAY3: =Energy!AN9 -> 0 | AAZ3: =Energy!AN10 -> 0 | ABA3: =Energy!AN11 -> 0 | ABB3: =Energy!AN12 -> 0 | ABC3: =Energy!AN13 -> 0 | ABD3: =Energy!AN14 -> 0 | ABE3: =Energy!AN15 -> 0 | ABF3: =Energy!AO5 -> 0 | ABG3: =Energy!AO6 -> 0 | ABH3: =Energy!AO7 -> 0 | ABI3: =Energy!AO8 -> 0 | ABJ3: =Energy!AO9 -> 0 | ABK3: =Energy!AO10 -> 0 | ABL3: =Energy!AO11 -> 0 | ABM3: =Energy!AO12 -> 0 | ABN3: =Energy!AO13 -> 0 | ABO3: =Energy!AO14 -> 0 | ABP3: =Energy!AO15 -> 0 | ABQ3: =Energy!AP5 -> 0 | ABR3: =Energy!AP6 -> 0 | ABS3: =Energy!AP7 -> 0 | ABT3: =Energy!AP8 -> 0 | ABU3: =Energy!AP9 -> 0 | ABV3: =Energy!AP10 -> 0 | ABW3: =Energy!AP11 -> 0 | ABX3: =Energy!AP12 -> 0 | ABY3: =Energy!AP13 -> 0 | ABZ3: =Energy!AP14 -> 0 | ACA3: =Energy!AP15 -> 0 | ACB3: =Energy!AQ5 -> 0 | ACC3: =Energy!AQ6 -> 0 | ACD3: =Energy!AQ7 -> 0 | ACE3: =Energy!AQ8 -> 0 | ACF3: =Energy!AQ9 -> 0 | ACG3: =Energy!AQ10 -> 0 | ACH3: =Energy!AQ11 -> 0 | ACI3: =Energy!AQ12 -> 0 | ACJ3: =Energy!AQ13 -> 0 | ACK3: =Energy!AQ14 -> 0 | ACL3: =Energy!AQ15 -> 0 | ACM3: =Energy!AR5 -> 0 | ACN3: =Energy!AR6 -> 0 | ACO3: =Energy!AR7 -> 0 | ACP3: =Energy!AR8 -> 0 | ACQ3: =Energy!AR9 -> 0 | ACR3: =Energy!AR10 -> 0 | ACS3: =Energy!AR11 -> 0 | ACT3: =Energy!AR12 -> 0 | ACU3: =Energy!AR13 -> 0 | ACV3: =Energy!AR14 -> 0 | ACW3: =Energy!AR15 -> 0 | ACX3: =Energy!AS5 -> 0 | ACY3: =Energy!AS6 -> 0 | ACZ3: =Energy!AS7 -> 0 | ADA3: =Energy!AS8 -> 0 | ADB3: =Energy!AS9 -> 0 | ADC3: =Energy!AS10 -> 0 | ADD3: =Energy!AS11 -> 0 | ADE3: =Energy!AS12 -> 0 | ADF3: =Energy!AS13 -> 0 | ADG3: =Energy!AS14 -> 0 | ADH3: =Energy!AS15 -> 0 | ADI3: =Energy!AT5 -> 0 | ADJ3: =Energy!AT6 -> 0 | ADK3: =Energy!AT7 -> 0 | ADL3: =Energy!AT8 -> 0 | ADM3: =Energy!AT9 -> 0 | ADN3: =Energy!AT10 -> 0 | ADO3: =Energy!AT11 -> 0 | ADP3: =Energy!AT12 -> 0 | ADQ3: =Energy!AT13 -> 0 | ADR3: =Energy!AT14 -> 0 | ADS3: =Energy!AT15 -> 0 | ADT3: =Energy!AU5 -> 0 | ADU3: =Energy!AU6 -> 0 | ADV3: =Energy!AU7 -> 0 | ADW3: =Energy!AU8 -> 0 | ADX3: =Energy!AU9 -> 0 | ADY3: =Energy!AU10 -> 0 | ADZ3: =Energy!AU11 -> 0 | AEA3: =Energy!AU12 -> 0 | AEB3: =Energy!AU13 -> 0 | AEC3: =Energy!AU14 -> 0 | AED3: =Energy!AU15 -> 0 | AEE3: =Energy!AI16 -> 0 | AEF3: =Energy!AJ16 -> 0 | AEG3: =Energy!AK16 -> 0 | AEH3: =Energy!AL16 -> 0 | AEI3: =Energy!AM16 -> 0 | AEJ3: =Energy!AN16 -> 0 | AEK3: =Energy!AO16 -> 0 | AEL3: =Energy!AP16 -> 0 | AEM3: =Energy!AQ16 -> 0 | AEN3: =Energy!AR16 -> 0 | AEO3: =Energy!AS16 -> 0 | AEP3: =Energy!AT16 -> 0 | AEQ3: =Energy!AU16 -> 0 | AER3: =Energy!C22 -> 0 | AES3: =Energy!C23 -> 0 | AET3: =Energy!C24 -> 0 | AEU3: =Energy!C27 -> 0 | AEV3: =Energy!D27 -> 0 | AEW3: =Energy!C28 -> 0 | AEX3: =Energy!D28 -> 0 | AEY3: =Energy!C29 -> 0 | AEZ3: =Energy!D29 -> 0 | AFA3: =Energy!C30 -> 0 | AFB3: =Energy!D30 -> 0 | AFC3: =Energy!G28 -> 0 | AFD3: =Energy!G29 -> 0 | AFE3: =Energy!G30 -> 0 | AFF3: =Energy!G31 -> 0 | AFG3: =Energy!H28 -> 0 | AFH3: =Energy!H29 -> 0 | AFI3: =Energy!H30 -> 0 | AFJ3: =Energy!H31 -> 0 | AFK3: =Energy!I28 -> 0 | AFL3: =Energy!I29 -> 0 | AFM3: =Energy!I30 -> 0 | AFN3: =Energy!I31 -> 0 | AFO3: =Energy!C33 -> 0 | AFP3: =Energy!C34 -> 0 | AFQ3: =Energy!C35 -> 0 | AFR3: =Energy!C36 -> 0 | AFS3: =Energy!C40 -> 0 | AFT3: =Energy!H40 -> 0 | AFU3: =Energy!C43 -> 0 | AFV3: =Energy!C44 -> 0 | AFW3: =Energy!C45 -> 0 | AFX3: ='Heating and cooling'!C7 -> 0 | AFY3: ='Heating and cooling'!C8 -> 0 | AFZ3: ='Heating and cooling'!D7 -> 0 | AGA3: ='Heating and cooling'!D8 -> 0 | AGB3: ='Heating and cooling'!E7 -> 0 | AGC3: ='Heating and cooling'!E8 -> 0 | AGD3: ='Heating and cooling'!F7 -> 0 | AGE3: ='Heating and cooling'!F8 -> 0 | AGF3: ='Heating and cooling'!G7 -> 0 | AGG3: ='Heating and cooling'!G8 -> 0 | AGH3: ='Heating and cooling'!H7 -> 0 | AGI3: ='Heating and cooling'!H8 -> 0 | AGJ3: ='Heating and cooling'!I7 -> 0 | AGK3: ='Heating and cooling'!I8 -> 0 | AGL3: ='Heating and cooling'!J7 -> 0 | AGM3: ='Heating and cooling'!J8 -> 0 | AGN3: ='Heating and cooling'!K7 -> 0 | AGO3: ='Heating and cooling'!K8 -> 0 | AGP3: ='Heating and cooling'!L7 -> 0 | AGQ3: ='Heating and cooling'!L8 -> 0 | AGR3: ='Heating and cooling'!M7 -> 0 | AGS3: ='Heating and cooling'!M8 -> 0 | AGT3: ='Heating and cooling'!N7 -> 0 | AGU3: ='Heating and cooling'!N8 -> 0 | AGV3: ='Heating and cooling'!C11 -> 0 | AGW3: ='Heating and cooling'!C12 -> 0 | AGX3: ='Heating and cooling'!C13 -> 0 | AGY3: ='Heating and cooling'!C14 -> 0 | AGZ3: ='Heating and cooling'!C15 -> 0 | AHA3: ='Heating and cooling'!C16 -> 0 | AHB3: ='Heating and cooling'!C17 -> 0 | AHC3: ='Heating and cooling'!C18 -> 0 | AHD3: ='Heating and cooling'!C19 -> 0 | AHE3: ='Heating and cooling'!C20 -> 0 | AHF3: ='Heating and cooling'!C21 -> 0 | AHG3: ='Heating and cooling'!C22 -> 0 | AHH3: ='Heating and cooling'!D11 -> 0 | AHI3: ='Heating and cooling'!D15 -> 0 | AHJ3: ='Heating and cooling'!D16 -> 0 | AHK3: ='Heating and cooling'!D17 -> 0 | AHL3: ='Heating and cooling'!D18 -> 0 | AHM3: ='Heating and cooling'!D19 -> 0 | AHN3: ='Heating and cooling'!D20 -> 0 | AHO3: ='Heating and cooling'!D21 -> 0 | AHP3: ='Heating and cooling'!D22 -> 0 | AHQ3: ='Heating and cooling'!E11 -> 0 | AHR3: ='Heating and cooling'!E15 -> 0 | AHS3: ='Heating and cooling'!E16 -> 0 | AHT3: ='Heating and cooling'!E17 -> 0 | AHU3: ='Heating and cooling'!E18 -> 0 | AHV3: ='Heating and cooling'!E19 -> 0 | AHW3: ='Heating and cooling'!E20 -> 0 | AHX3: ='Heating and cooling'!E21 -> 0 | AHY3: ='Heating and cooling'!E22 -> 0 | AHZ3: ='Heating and cooling'!F11 -> 0 | AIA3: ='Heating and cooling'!F15 -> 0 | AIB3: ='Heating and cooling'!F16 -> 0 | AIC3: ='Heating and cooling'!F17 -> 0 | AID3: ='Heating and cooling'!F18 -> 0 | AIE3: ='Heating and cooling'!F19 -> 0 | AIF3: ='Heating and cooling'!F20 -> 0 | AIG3: ='Heating and cooling'!F21 -> 0 | AIH3: ='Heating and cooling'!F22 -> 0 | AII3: ='Heating and cooling'!G11 -> 0 | AIJ3: ='Heating and cooling'!G15 -> 0 | AIK3: ='Heating and cooling'!G16 -> 0 | AIL3: ='Heating and cooling'!G17 -> 0 | AIM3: ='Heating and cooling'!G18 -> 0 | AIN3: ='Heating and cooling'!G19 -> 0 | AIO3: ='Heating and cooling'!G20 -> 0 | AIP3: ='Heating and cooling'!G21 -> 0 | AIQ3: ='Heating and cooling'!G22 -> 0 | AIR3: ='Heating and cooling'!C25 -> 0 | AIS3: ='Heating and cooling'!C26 -> 0 | AIT3: ='Heating and cooling'!C27 -> 0 | AIU3: ='Heating and cooling'!C28 -> 0 | AIV3: ='Heating and cooling'!C29 -> 0 | AIW3: ='Heating and cooling'!C30 -> 0 | AIX3: ='Heating and cooling'!C31 -> 0 | AIY3: ='Heating and cooling'!C32 -> 0 | AIZ3: ='Heating and cooling'!C33 -> 0 | AJA3: ='Heating and cooling'!C34 -> 0 | AJB3: ='Heating and cooling'!D25 -> 0 | AJC3: ='Heating and cooling'!D26 -> 0 | AJD3: ='Heating and cooling'!D27 -> 0 | AJE3: ='Heating and cooling'!D28 -> 0 | AJF3: ='Heating and cooling'!D29 -> 0 | AJG3: ='Heating and cooling'!D30 -> 0 | AJH3: ='Heating and cooling'!D31 -> 0 | AJI3: ='Heating and cooling'!D32 -> 0 | AJJ3: ='Heating and cooling'!D33 -> 0 | AJK3: ='Heating and cooling'!D34 -> 0 | AJL3: ='Heating and cooling'!E25 -> 0 | AJM3: ='Heating and cooling'!E26 -> 0 | AJN3: ='Heating and cooling'!E27 -> 0 | AJO3: ='Heating and cooling'!E28 -> 0 | AJP3: ='Heating and cooling'!E29 -> 0 | AJQ3: ='Heating and cooling'!E30 -> 0 | AJR3: ='Heating and cooling'!E31 -> 0 | AJS3: ='Heating and cooling'!E32 -> 0 | AJT3: ='Heating and cooling'!E33 -> 0 | AJU3: ='Heating and cooling'!E34 -> 0 | AJV3: ='Heating and cooling'!F25 -> 0 | AJW3: ='Heating and cooling'!F26 -> 0 | AJX3: ='Heating and cooling'!F27 -> 0 | AJY3: ='Heating and cooling'!F28 -> 0 | AJZ3: ='Heating and cooling'!F29 -> 0 | AKA3: ='Heating and cooling'!F30 -> 0 | AKB3: ='Heating and cooling'!F31 -> 0 | AKC3: ='Heating and cooling'!F32 -> 0 | AKD3: ='Heating and cooling'!F33 -> 0 | AKE3: ='Heating and cooling'!F34 -> 0 | AKF3: ='Heating and cooling'!G25 -> 0 | AKG3: ='Heating and cooling'!G26 -> 0 | AKH3: ='Heating and cooling'!G27 -> 0 | AKI3: ='Heating and cooling'!G28 -> 0 | AKJ3: ='Heating and cooling'!G29 -> 0 | AKK3: ='Heating and cooling'!G30 -> 0 | AKL3: ='Heating and cooling'!G31 -> 0 | AKM3: ='Heating and cooling'!G32 -> 0 | AKN3: ='Heating and cooling'!G33 -> 0 | AKO3: ='Heating and cooling'!G34 -> 0 | AKP3: ='Heating and cooling'!H25 -> 0 | AKQ3: ='Heating and cooling'!H26 -> 0 | AKR3: ='Heating and cooling'!H27 -> 0 | AKS3: ='Heating and cooling'!H28 -> 0 | AKT3: ='Heating and cooling'!H29 -> 0 | AKU3: ='Heating and cooling'!H30 -> 0 | AKV3: ='Heating and cooling'!H31 -> 0 | AKW3: ='Heating and cooling'!H32 -> 0 | AKX3: ='Heating and cooling'!H33 -> 0 | AKY3: ='Heating and cooling'!H34 -> 0 | AKZ3: ='Heating and cooling'!C37 -> 0 | ALA3: ='Heating and cooling'!C38 -> 0 | ALB3: ='Heating and cooling'!C39 -> 0 | ALC3: ='Heating and cooling'!C40 -> 0 | ALD3: ='Heating and cooling'!C41 -> 0 | ALE3: ='Heating and cooling'!C42 -> 0 | ALF3: ='Heating and cooling'!D37 -> 0 | ALG3: ='Heating and cooling'!D38 -> 0 | ALH3: ='Heating and cooling'!D39 -> 0 | ALI3: ='Heating and cooling'!D40 -> 0 | ALJ3: ='Heating and cooling'!D41 -> 0 | ALK3: ='Heating and cooling'!D42 -> 0 | ALL3: ='Heating and cooling'!E37 -> 0 | ALM3: ='Heating and cooling'!E38 -> 0 | ALN3: ='Heating and cooling'!E39 -> 0 | ALO3: ='Heating and cooling'!E40 -> 0 | ALP3: ='Heating and cooling'!E41 -> 0 | ALQ3: ='Heating and cooling'!E42 -> 0 | ALR3: ='Heating and cooling'!C45 -> 0 | ALS3: ='Heating and cooling'!C46 -> 0 | ALT3: ='Heating and cooling'!C47 -> 0 | ALU3: ='Heating and cooling'!C50 -> 0 | ALV3: ='Heating and cooling'!C51 -> 0 | ALW3: ='Heating and cooling'!C52 -> 0 | ALX3: ='Heating and cooling'!C53 -> 0 | ALY3: ='Heating and cooling'!C54 -> 0 | ALZ3: ='Heating and cooling'!C55 -> 0 | AMA3: ='Heating and cooling'!C56 -> 0 | AMB3: ='Heating and cooling'!D50 -> 0 | AMC3: ='Heating and cooling'!D51 -> 0 | AMD3: ='Heating and cooling'!D52 -> 0 | AME3: ='Heating and cooling'!D53 -> 0 | AMF3: ='Heating and cooling'!D54 -> 0 | AMG3: ='Heating and cooling'!D55 -> 0 | AMH3: ='Heating and cooling'!E50 -> 0 | AMI3: ='Heating and cooling'!E50 -> 0 | AMJ3: ='Heating and cooling'!E51 -> 0 | AMK3: ='Heating and cooling'!E52 -> 0 | AML3: ='Heating and cooling'!E53 -> 0 | AMM3: ='Heating and cooling'!E54 -> 0 | AMN3: ='Heating and cooling'!E55 -> 0 | AMO3: ='Heating and cooling'!E56 -> 0 | AMP3: ='Heating and cooling'!F50 -> 0 | AMQ3: ='Heating and cooling'!F51 -> 0 | AMR3: ='Heating and cooling'!F52 -> 0 | AMS3: ='Heating and cooling'!F53 -> 0 | AMT3: ='Heating and cooling'!F54 -> 0 | AMU3: ='Heating and cooling'!F55 -> 0 | AMV3: ='Heating and cooling'!F56 -> 0 | AMW3: ='Heating and cooling'!G50 -> 0 | AMX3: ='Heating and cooling'!G51 -> 0 | AMY3: ='Heating and cooling'!G52 -> 0 | AMZ3: ='Heating and cooling'!G53 -> 0 | ANA3: ='Heating and cooling'!G54 -> 0 | ANB3: ='Heating and cooling'!G55 -> 0 | ANC3: ='Heating and cooling'!G56 -> 0 | AND3: ='Heating and cooling'!H53 -> 0 | ANE3: ='Heating and cooling'!H54 -> 0 | ANF3: ='Heating and cooling'!H55 -> 0 | ANG3: ='Heating and cooling'!H56 -> 0 | ANH3: ='Heating and cooling'!C59 -> 0 | ANI3: ='Heating and cooling'!C60 -> 0 | ANK3: ='Heating and cooling'!C63 -> 0 | ANL3: ='Heating and cooling'!C64 -> 0 | ANM3: ='Heating and cooling'!C65 -> 0 | ANN3: ='Heating and cooling'!C66 -> 0 | ANO3: ='Heating and cooling'!C67 -> 0 | ANP3: ='Heating and cooling'!C68 -> 0 | ANQ3: ='Heating and cooling'!C69 -> 0 | ANR3: ='Heating and cooling'!C70 -> 0 | ANS3: ='Heating and cooling'!D63 -> 0 | ANT3: ='Heating and cooling'!D64 -> 0 | ANU3: ='Heating and cooling'!D65 -> 0 | ANV3: ='Heating and cooling'!D66 -> 0 | ANW3: ='Heating and cooling'!D67 -> 0 | ANX3: ='Heating and cooling'!D68 -> 0 | ANY3: ='Heating and cooling'!D69 -> 0 | ANZ3: ='Heating and cooling'!D70 -> 0 | AOA3: ='Heating and cooling'!E63 -> 0 | AOB3: ='Heating and cooling'!E64 -> 0 | AOC3: ='Heating and cooling'!E65 -> 0 | AOD3: ='Heating and cooling'!E66 -> 0 | AOE3: ='Heating and cooling'!E67 -> 0 | AOF3: ='Heating and cooling'!E68 -> 0 | AOG3: ='Heating and cooling'!E69 -> 0 | AOH3: ='Heating and cooling'!E70 -> 0 | AOI3: ='Heating and cooling'!F63 -> 0 | AOJ3: ='Heating and cooling'!F64 -> 0 | AOK3: ='Heating and cooling'!F65 -> 0 | AOL3: ='Heating and cooling'!F66 -> 0 | AOM3: ='Heating and cooling'!F67 -> 0 | AON3: ='Heating and cooling'!F68 -> 0 | AOO3: ='Heating and cooling'!F69 -> 0 | AOP3: ='Heating and cooling'!F70 -> 0 | AOQ3: ='Heating and cooling'!G63 -> 0 | AOR3: ='Heating and cooling'!G64 -> 0 | AOS3: ='Heating and cooling'!G65 -> 0 | AOT3: ='Heating and cooling'!G66 -> 0 | AOU3: ='Heating and cooling'!G67 -> 0 | AOV3: ='Heating and cooling'!G68 -> 0 | AOW3: ='Heating and cooling'!G69 -> 0 | AOX3: ='Heating and cooling'!G70 -> 0 | AOY3: ='Heating and cooling'!H63 -> 0 | AOZ3: ='Heating and cooling'!H64 -> 0 | APA3: ='Heating and cooling'!H65 -> 0 | APB3: ='Heating and cooling'!H66 -> 0 | APC3: ='Heating and cooling'!H67 -> 0 | APD3: ='Heating and cooling'!H68 -> 0 | APE3: ='Heating and cooling'!H69 -> 0 | APF3: ='Heating and cooling'!H70 -> 0 | APG3: ='Heating and cooling'!C73 -> 0 | APH3: ='Heating and cooling'!C74 -> 0 | API3: ='Heating and cooling'!C77 -> 0 | APJ3: ='Heating and cooling'!C78 -> 0 | APK3: ='Heating and cooling'!C79 -> 0 | APL3: ='Heating and cooling'!D77 -> 0 | APM3: ='Heating and cooling'!D78 -> 0 | APN3: ='Heating and cooling'!D79 -> 0 | APO3: ='Appliances and Lighting'!C3 -> 0 | APP3: ='Appliances and Lighting'!C4 -> 0 | APQ3: ='Appliances and Lighting'!C5 -> 0 | APR3: ='Appliances and Lighting'!C6 -> 0 | APS3: ='Appliances and Lighting'!C7 -> 0 | APT3: ='Appliances and Lighting'!C8 -> 0 | APU3: ='Appliances and Lighting'!C9 -> 0 | APV3: ='Appliances and Lighting'!C19 -> 0 | APW3: ='Appliances and Lighting'!C10 -> 0 | APX3: ='Appliances and Lighting'!C11 -> 0 | APY3: ='Appliances and Lighting'!C12 -> 0 | APZ3: ='Appliances and Lighting'!C13 -> 0 | AQA3: ='Appliances and Lighting'!C14 -> 0 | AQB3: ='Appliances and Lighting'!C15 -> 0 | AQC3: ='Appliances and Lighting'!D3 -> 0 | AQD3: ='Appliances and Lighting'!D4 -> 0 | AQE3: ='Appliances and Lighting'!D5 -> 0 | AQF3: ='Appliances and Lighting'!D6 -> 0 | AQG3: ='Appliances and Lighting'!D7 -> 0 | AQH3: ='Appliances and Lighting'!D8 -> 0 | AQI3: ='Appliances and Lighting'!D9 -> 0 | AQJ3: ='Appliances and Lighting'!D19 -> 0 | AQK3: ='Appliances and Lighting'!D10 -> 0 | AQL3: ='Appliances and Lighting'!D11 -> 0 | AQM3: ='Appliances and Lighting'!D12 -> 0 | AQN3: ='Appliances and Lighting'!D13 -> 0 | AQO3: ='Appliances and Lighting'!D14 -> 0 | AQP3: ='Appliances and Lighting'!D15 -> 0 | AQQ3: ='Appliances and Lighting'!E3 -> 0 | AQR3: ='Appliances and Lighting'!E4 -> 0 | AQS3: ='Appliances and Lighting'!E5 -> 0 | AQT3: ='Appliances and Lighting'!E6 -> 0 | AQU3: ='Appliances and Lighting'!E7 -> 0 | AQV3: ='Appliances and Lighting'!E8 -> 0 | AQW3: ='Appliances and Lighting'!E9 -> 0 | AQX3: ='Appliances and Lighting'!E19 -> 0 | AQY3: ='Appliances and Lighting'!E10 -> 0 | AQZ3: ='Appliances and Lighting'!E11 -> 0 | ARA3: ='Appliances and Lighting'!E12 -> 0 | ARB3: ='Appliances and Lighting'!E13 -> 0 | ARC3: ='Appliances and Lighting'!E14 -> 0 | ARD3: ='Appliances and Lighting'!E15 -> 0 | ARE3: ='Appliances and Lighting'!F3 -> 0 | ARF3: ='Appliances and Lighting'!F4 -> 0 | ARG3: ='Appliances and Lighting'!F5 -> 0 | ARH3: ='Appliances and Lighting'!F6 -> 0 | ARI3: ='Appliances and Lighting'!F7 -> 0 | ARJ3: ='Appliances and Lighting'!F8 -> 0 | ARK3: ='Appliances and Lighting'!F9 -> 0 | ARL3: ='Appliances and Lighting'!F19 -> 0 | ARM3: ='Appliances and Lighting'!F10 -> 0 | ARN3: ='Appliances and Lighting'!F11 -> 0 | ARO3: ='Appliances and Lighting'!F12 -> 0 | ARP3: ='Appliances and Lighting'!F13 -> 0 | ARQ3: ='Appliances and Lighting'!F14 -> 0 | ARR3: ='Appliances and Lighting'!F15 -> 0 | ARS3: ='Appliances and Lighting'!G3 -> 0 | ART3: ='Appliances and Lighting'!G4 -> 0 | ARU3: ='Appliances and Lighting'!G5 -> 0 | ARV3: ='Appliances and Lighting'!G6 -> 0 | ARW3: ='Appliances and Lighting'!G7 -> 0 | ARX3: ='Appliances and Lighting'!G8 -> 0 | ARY3: ='Appliances and Lighting'!G9 -> 0 | ARZ3: ='Appliances and Lighting'!G19 -> 0 | ASA3: ='Appliances and Lighting'!G10 -> 0 | ASB3: ='Appliances and Lighting'!G11 -> 0 | ASC3: ='Appliances and Lighting'!G12 -> 0 | ASD3: ='Appliances and Lighting'!G13 -> 0 | ASE3: ='Appliances and Lighting'!G14 -> 0 | ASF3: ='Appliances and Lighting'!G15 -> 0 | ASG3: ='Appliances and Lighting'!H13 -> 0 | ASH3: ='Appliances and Lighting'!H14 -> 0 | ASI3: ='Appliances and Lighting'!H15 -> 0 | ASJ3: ='Appliances and Lighting'!H16 -> 0 | ASK3: ='Appliances and Lighting'!C22 -> 0 | ASL3: ='Appliances and Lighting'!C23 -> 0 | ASM3: ='Appliances and Lighting'!C24 -> 0 | ASN3: ='Appliances and Lighting'!C25 -> 0 | ASO3: ='Appliances and Lighting'!C26 -> 0 | ASP3: ='Appliances and Lighting'!D22 -> 0 | ASQ3: ='Appliances and Lighting'!D23 -> 0 | ASR3: ='Appliances and Lighting'!D24 -> 0 | ASS3: ='Appliances and Lighting'!D25 -> 0 | AST3: ='Appliances and Lighting'!D26 -> 0 | ASU3: ='Appliances and Lighting'!E22 -> 0 | ASV3: ='Appliances and Lighting'!E23 -> 0 | ASW3: ='Appliances and Lighting'!E24 -> 0 | ASX3: ='Appliances and Lighting'!E25 -> 0 | ASY3: ='Appliances and Lighting'!E26 -> 0 | ASZ3: ='Appliances and Lighting'!G22 -> 0 | ATA3: ='Appliances and Lighting'!G23 -> 0 | ATB3: ='Appliances and Lighting'!G24 -> 0 | ATC3: ='Appliances and Lighting'!G25 -> 0 | ATD3: ='Appliances and Lighting'!G26 -> 0 | ATE3: ='Appliances and Lighting'!H22 -> 0 | ATF3: ='Appliances and Lighting'!H23 -> 0 | ATG3: ='Appliances and Lighting'!H24 -> 0 | ATH3: ='Appliances and Lighting'!H25 -> 0 | ATI3: ='Appliances and Lighting'!H26 -> 0 | ATJ3: =Opinion!C4 -> 0 | ATK3: =Opinion!C3 -> 0 | ATL3: =Opinion!C5 -> 0 | ATN3: =Opinion!C7 -> 0 | ATO3: =Opinion!C8 -> 0 | ATP3: =Opinion!C9 -> 0 | ATQ3: =Opinion!C16 -> 0 | ATR3: =Opinion!C17 -> 0 | ATS3: =Opinion!C18 -> 0 | ATT3: =Opinion!C22 -> 0 | ATU3: =Opinion!C23 -> 0 | ATV3: =Opinion!C24 -> 0 | ATW3: =Opinion!C25 -> 0 | ATX3: =Opinion!C29 -> 0 | ATY3: =Opinion!C30 -> 0 | ATZ3: =Opinion!C31 -> 0 | AUA3: =Opinion!C32 -> 0 | AUC3: ='Savings Indicator'!D7 -> 0 | AUD3: ='Savings Indicator'!D8 -> 0 | AUE3: ='Savings Indicator'!D9 -> 0 | AUF3: ='Savings Indicator'!D10 -> 0 | AUG3: ='Savings Indicator'!D11 ->  | AUH3: ='Savings Indicator'!D12 -> - | AUI3: ='Savings Indicator'!D13 -> 0 | AUJ3: =IFERROR('Savings Indicator'!D14,"-") -> - | AUK3: ='Savings Indicator'!D15 -> 0 | AUL3: ='Savings Indicator'!D16 -> 0 | AUM3: ='Savings Indicator'!D17 -> No | AUN3: =IF('Savings Indicator'!D18="","",'Savings Indicator'!D18) -> 00:00:00 | AUO3: =IF('Savings Indicator'!D19="","",'Savings Indicator'!D19) -> 00:00:00 | AUP3: =IFERROR(IF(Statistics!I43>0.5,1,IF(Statistics!I43>0.35,2,IF(Statistics!I43>0.25,3,IF(Statistics!I43>0.1,4,1)))),"-") -> - | AUQ3: ='Savings Indicator'!D21 -> 0 | AUR3: ='Savings Indicator'!D22 -> 0 | AUS3: ='Savings Indicator'!D23 -> 0 | AUT3: ='Savings Indicator'!D26 -> 0 | AUU3: ='Savings Indicator'!D25 -> 0 | AUV3: ='Savings Indicator'!E25 -> 0 | AUW3: ='Savings Indicator'!D27 -> 0 | AUX3: ='Savings Indicator'!D28 -> 0 | AUY3: ='Savings Indicator'!D29 -> 0 | AUZ3: =IFERROR('Savings Indicator'!H7:I7,"") ->  | AVA3: ='Savings Indicator'!H9 -> 0 | AVB3: ='Savings Indicator'!H10 -> 0 | AVC3: ='Savings Indicator'!H11 -> 0 | AVD3: ='Savings Indicator'!H14 -> 0 | AVE3: ='Savings Indicator'!H13 -> 0 | AVF3: ='Savings Indicator'!I13 -> 0 | AVG3: =IFERROR('Savings Indicator'!H15:I15,0) -> 0 | AVH3: ='Savings Indicator'!H16 -> 0 | AVI3: ='Savings Indicator'!H17 -> 0 | AVJ3: ='Heating and cooling'!H11 -> 0 | AVK3: ='Heating and cooling'!I63 -> 0 | AVL3: ='Savings Indicator'!E21 -> 0 | AVM3: ='Savings Indicator'!E22 -> 0 | AVN3: ='Savings Indicator'!E23 -> 0 | AVO3: ='Savings Indicator'!I9 -> 0 | AVP3: ='Savings Indicator'!I10 -> 0 | AVQ3: ='Savings Indicator'!I11 -> 0 | AVR3: =Opinion!C13 -> 0 | AVS3: =Opinion!C6 -> 0

Sheet Summary Results

Sheet Optimal Power
B4: Actual Power | C4: =Energy!C29 -> 0 | D4: kW
B5: Optimal Power | C5: =IF((SUM('Heating and cooling'!E19,'Heating and cooling'!E20,'Heating and cooling'!E21,'Heating and cooling'!E22,'Heating and cooling'!E25:E26,'Heating and cooling'!E31,'Heating and cooling'!E32,'Heating and cooling'!E33,'Heating and cooling'!E53:E56)+'Heating and cooling'!G65+(SUM('Appliances and Lighting'!F3:F9,'Appliances and Lighting'!F10:F15,'Appliances and Lighting'!G22:G26)/1000))*(0.2+(0.3*Family!F13))<E5,E5,(SUM('Heating and cooling'!E19,'Heating and cooling'!E20,'Heating and cooling'!E21,'Heating and cooling'!E22,'Heating and cooling'!E25:E26,'Heating and cooling'!E31,'Heating and cooling'!E32,'Heating and cooling'!E33,'Heating and cooling'!E53:E56)+IF('Heating and cooling'!E65="Yes",0,'Heating and cooling'!G65)+(SUM('Appliances and Lighting'!F3:F9,'Appliances and Lighting'!F10:F15,'Appliances and Lighting'!G22:G26)/1000))*(0.2+(0.3*Family!F13))) -> 0 | D5: kW | E5: =MAX('Heating and cooling'!E19,'Heating and cooling'!E20,'Heating and cooling'!E21,'Heating and cooling'!E22,'Heating and cooling'!E25,'Heating and cooling'!E26,'Heating and cooling'!E31,'Heating and cooling'!E50,'Heating and cooling'!E53,'Heating and cooling'!E54,'Heating and cooling'!E55,'Heating and cooling'!E56,(IF('Heating and cooling'!E65="Yes",0,'Heating and cooling'!G65)),'Appliances and Lighting'!J3:J9,'Appliances and Lighting'!J10:J15,'Appliances and Lighting'!F22:F26) -> 0
B7: TIPS | G7: Annual Potential savings (€) | H7: Potential investment | I7: Payback | J7: Type of measure | K7: Price
B8: =IF(C4>C5,"Change your actual power for the optimal power","") ->  | G8: =IF(B8<>"",(C4-C5)*(Energy!AU5/'Optimal Power'!C4),0) -> 0 | H8: =IF(B8<>"",K8,0) -> 0 | I8: =IFERROR(H8/G8,"") ->  | J8: =IF(B8<>"","Low investment","") ->  | K8: 10 | L8: per change

Sheet Heating
B4: TIPS | G4: Potential savings (kWh) | H4: Potential savings (€) | I4: Potential savings (kCO2) | J4: Potential investment | K4: Payback | L4: Type of measure | M4: Price | Q4: Potential savings (kWh) | R4: Potential savings (€) | S4: Potential savings (kCO2) | T4: Potential investment
B5: =IFERROR(IF(AND('Heating and cooling'!C15="Yes",C24="Si",OR(AND(C36<>"Si",C33<>"Si",C26=TRUE,C28=TRUE,C27=TRUE),AND(C36<>"Si",C33<>"Sí",C26=FALSE,C29="Altos",C27=TRUE,C28=TRUE),AND(C33="Si",OR('Heating and cooling'!G15<0.9,'Heating and cooling'!D15<2000)))),"New natural gas boiler",""),"") ->  | G5: =IFERROR(IF(AND(B5<>"",C38<1.1),(1-(C38/1.1))*'Excel de Apoyo'!Q4,0),0) -> 0 | H5: =IFERROR((G5*IF(Heating!C34="Si",'Excel de Apoyo'!P34,IF(OR(C32="Si",Heating!C33="Si"),Energy!AF5,IF(Heating!C35="Si",'Excel de Apoyo'!P37,IF(Heating!C36="Si",AVERAGE('Excel de Apoyo'!P35:P36),AVERAGE('Excel de Apoyo'!P38:P39))))))+(('Excel de Apoyo'!Q4-G5)*IF(B5<>"",(IF(Heating!C34="Si",'Excel de Apoyo'!P34,IF(OR(C32="Si",Heating!C33="Si"),Energy!AF5,IF(Heating!C35="Si",'Excel de Apoyo'!P37,IF(Heating!C36="Si",AVERAGE('Excel de Apoyo'!P35:P36),AVERAGE('Excel de Apoyo'!P38:P39)))))-(IF('Excel de Apoyo'!P34>0,'Excel de Apoyo'!P34,0.08))),0)),0) -> 0 | I5: =IF(B5<>"",IFERROR(G5*IF(Heating!C34="Si",'Excel de Apoyo'!G8,IF(OR(C32="Si",Heating!C33="Si"),Energy!C24,IF(Heating!C35="Si",'Excel de Apoyo'!G11,IF(Heating!C36="Si",AVERAGE('Excel de Apoyo'!G9:G10),0))))+(('Excel de Apoyo'!Q4-Heating!G5)*(IF(Heating!C34="Si",'Excel de Apoyo'!G8,IF(OR(C32="Si",Heating!C33="Si"),Energy!C24,IF(Heating!C35="Si",'Excel de Apoyo'!G11,IF(Heating!C36="Si",AVERAGE('Excel de Apoyo'!G9:G10),0))))-'Excel de Apoyo'!G8)),0),0) -> 0 | J5: =IF(B5<>"",IF(C27=TRUE,M5*Housing!C14,N5*Housing!C14),0) -> 0 | K5: =IFERROR(J5/H5,"") ->  | L5: =IF(B5<>"","High investment","") ->  | M5: 14 | N5: 54 | O5: m2
B6: =IF(AND('Heating and cooling'!C11="Yes",'Heating and cooling'!D11<1990),"install a highly efficient centralized system","") ->  | G6: =IF(AND(B6<>"",OR('Heating and cooling'!C12="",'Heating and cooling'!C13="")),0.2*'Excel de Apoyo'!Q4,0) -> 0 | H6: =G6*'Excel de Apoyo'!P40 -> 0 | L6: =IF(B6<>"","High investment","") ->  | M6: 0 | P6: Free | Q6: =G18+G19+G15+G14 -> 0 | R6: =H18+H19+H15+H14 -> 0 | S6: =I18+I19+I15+I14 -> 0 | T6: =J18+J19+J15+J14 -> 0
B7: =IFERROR(IF(AND(C25="Si",OR(AND(C33="Si",C30="Altos",OR(AND('Heating and cooling'!G19<2.6,'Heating and cooling'!C19="Yes"),AND('Heating and cooling'!G26<2.6,'Heating and cooling'!C26="Yes"))),AND(C32="Si",C27=FALSE,C30="Bajos"),AND(C32="Si",C27=FALSE,C30="Altos",C29=FALSE),AND(C32="Si",C27=TRUE,C28=TRUE,C29=FALSE))),"New Heat Pump",""),"") ->  | G7: =IF(B7<>"",IF(C33="Si",(1-((AVERAGE('Heating and cooling'!G26,'Heating and cooling'!G19))/4.6))*'Excel de Apoyo'!Q4,((1-(1/4.6))*'Excel de Apoyo'!Q4)),0) -> 0 | H7: =G7*'Excel de Apoyo'!P33 -> 0 | I7: =G7*Energy!C24 -> 0 | J7: =IF(B7<>"",IF(C30="Altos",N7*Housing!C14,M7*Housing!C14),0) -> 0 | L7: =IF(B7<>"","High investment","") ->  | M7: 12 | N7: 21 | O7: m2 | P7: Low | Q7: =G17+G12+G13+G20+G21+G16 -> 0 | R7: =H17+H12+H13+H20+H21+H16 -> 0 | S7: =I17+I12+I13+I20+I21+I16 -> 0 | T7: =IFERROR(J17+J12+J13+J20+J16+J21,0) -> 0
B8: =IFERROR(IF(AND(C25="Si",OR(AND(OR(C34="",(YEAR(TODAY())-'Heating and cooling'!D15)>15),C37<>"Si",C27=TRUE,C28=FALSE),AND((OR(C34="",(YEAR(TODAY())-'Heating and cooling'!D15)>15)),C37<>"Si",C27=FALSE,C30="Altos",C28=FALSE))),"New biomass boilder",""),"") ->  | G8: 0 | H8: =IFERROR('Excel de Apoyo'!Q4*IF(B8<>"",(IF(Heating!C34="Si",'Excel de Apoyo'!P34,IF(OR(C32="Si",Heating!C33="Si"),Energy!AF5,IF(Heating!C35="Si",'Excel de Apoyo'!P37,IF(Heating!C36="Si",AVERAGE('Excel de Apoyo'!P35:P36),AVERAGE('Excel de Apoyo'!P38:P39)))))-0.05),0),0) -> 0 | I8: =IF(B8<>"",'Excel de Apoyo'!Q4*IF(Heating!C34="Si",'Excel de Apoyo'!G8,IF(OR(C32="Si",Heating!C33="Si"),Energy!C24,IF(Heating!C35="Si",'Excel de Apoyo'!G11,IF(Heating!C36="Si",AVERAGE('Excel de Apoyo'!G9:G10),0)))),0) -> 0 | J8: =IF(B8<>"",IF(C27=TRUE,M8*Housing!C14,N8*Housing!C14),0) -> 0 | L8: =IF(B8<>"","RES invesment","") ->  | M8: =IF(C27=TRUE,20,20+40) -> 60 | N8: 60 | O8: m2 | P8: High | Q8: =G11+G10+G9+G5+G7+G6 -> 0 | R8: =H11+H10+H9+H5+H7+H6 -> 0 | S8: =IFERROR(I11+I10+I9+I5+I7+I6,0) -> 0 | T8: =J11+J10+J9+J5+J7+J6 -> 0
B9: =IFERROR(IF(AND(YEAR(TODAY())-Housing!C13>35,OR(Housing!C25="",Housing!C25="0- 25%",Housing!D25="More than 10 years"),C30="Altos"),"Insulate the facade",""),"") ->  | G9: =IF(B9<>"",0.25*('Excel de Apoyo'!Q4-U9),0) -> 0 | H9: =G9*IF(Heating!C34="Si",'Excel de Apoyo'!P34,IF(OR(C32="Si",Heating!C33="Si"),Energy!AF5,IF(Heating!C35="Si",'Excel de Apoyo'!P37,IF(Heating!C36="Si",AVERAGE('Excel de Apoyo'!P35:P36),IF(C37="Si",AVERAGE('Excel de Apoyo'!P38:P39),AVERAGE('Excel de Apoyo'!P40:P41)))))) -> 0 | I9: =IF($C$26="Central",G9*'Excel de Apoyo'!S27,G9*IF(Heating!$C$34="Si",'Excel de Apoyo'!$G$8,IF(OR($C$32="Si",Heating!$C$33="Si"),Energy!$C$24,IF(Heating!$C$35="Si",'Excel de Apoyo'!$G$11,IF(Heating!$C$36="Si",AVERAGE('Excel de Apoyo'!$G$9:$G$10),0))))) -> 0 | J9: =IF(B9<>"",'Heating and cooling'!F43*M9,0) -> 0 | L9: =IF(B9<>"","High investment","") ->  | M9: 80 | N9: m2 | P9: RES | Q9: =G22+G8 -> 0 | R9: =H22+H8 -> 0 | S9: =I22+I8 -> 0 | T9: =J22+J8 -> 0 | U9: =G8+G7+G6+G5 -> 0
B10: =IFERROR(IF(AND(C30="Altos",OR(((Housing!V35/Housing!V28)+(Housing!V36/Housing!V28))/2>0.75,Housing!V35/Housing!V28>0.35)),"Install high efficiency windowpanes and frames",""),"") ->  | G10: =IF(B10<>"",0.4*('Excel de Apoyo'!Q4-U10),0) -> 0 | H10: =G10*IF(Heating!C34="Si",'Excel de Apoyo'!P34,IF(OR(C32="Si",Heating!C33="Si"),Energy!AF5,IF(Heating!C35="Si",'Excel de Apoyo'!P37,IF(Heating!C36="Si",AVERAGE('Excel de Apoyo'!P35:P36),IF(C37="Si",AVERAGE('Excel de Apoyo'!P38:P39),AVERAGE('Excel de Apoyo'!P40:P41)))))) -> 0 | I10: =IF($C$26="Central",G10*'Excel de Apoyo'!S27,G10*IF(Heating!$C$34="Si",'Excel de Apoyo'!$G$8,IF(OR($C$32="Si",Heating!$C$33="Si"),Energy!$C$24,IF(Heating!$C$35="Si",'Excel de Apoyo'!$G$11,IF(Heating!$C$36="Si",AVERAGE('Excel de Apoyo'!$G$9:$G$10),0))))) -> 0 | J10: =IF(B10<>"",M10*Housing!V70,0) -> 0 | L10: =IF(B10<>"","High investment","") ->  | M10: 200 | N10: m2 | U10: =U9+G9 -> 0
B11: =IFERROR(IF(AND(YEAR(TODAY())-Housing!C13>35,OR(Housing!C26="0- 25%",Housing!D26="More than 10 years"),C30="Altos",OR(Housing!C3<>"Housing block",Housing!C12="Top floor")),"Refurbish the ceiling from the inside",""),"") ->  | G11: =IF(B11<>"",('Excel de Apoyo'!Q4-U11)*0.35*Housing!I26,0) -> 0 | H11: =G11*IF(Heating!C34="Si",'Excel de Apoyo'!P34,IF(OR(C32="Si",Heating!C33="Si"),Energy!AF5,IF(Heating!C35="Si",'Excel de Apoyo'!P37,IF(Heating!C36="Si",AVERAGE('Excel de Apoyo'!P35:P36),IF(C37="Si",AVERAGE('Excel de Apoyo'!P38:P39),AVERAGE('Excel de Apoyo'!P40:P41)))))) -> 0 | I11: =IF($C$26="Central",G11*'Excel de Apoyo'!S27,G11*IF(Heating!$C$34="Si",'Excel de Apoyo'!$G$8,IF(OR($C$32="Si",Heating!$C$33="Si"),Energy!$C$24,IF(Heating!$C$35="Si",'Excel de Apoyo'!$G$11,IF(Heating!$C$36="Si",AVERAGE('Excel de Apoyo'!$G$9:$G$10),0))))) -> 0 | J11: =IF(B11<>"",IF(Housing!C3="Housing block",Housing!C14*M11*0.9,(Housing!C14/Housing!C12)*M11*0.9),0) -> 0 | L11: =IF(B11<>"","High investment","") ->  | M11: 40 | N11: m2 | U11: =U10+G10 -> 0
B12: =IF(Housing!V64>4,"Avoid air infiltrations","") ->  | G12: =IF(B12<>"",((0.05*(Housing!V73/'Excel de Apoyo'!M10))+0.1*(Housing!V76/'Excel de Apoyo'!M10))*('Excel de Apoyo'!Q4-U12),0) -> 0 | H12: =G12*IF(Heating!C34="Si",'Excel de Apoyo'!P34,IF(OR(C32="Si",Heating!C33="Si"),Energy!AF5,IF(Heating!C35="Si",'Excel de Apoyo'!P37,IF(Heating!C36="Si",AVERAGE('Excel de Apoyo'!P35:P36),IF(C37="Si",AVERAGE('Excel de Apoyo'!P38:P39),AVERAGE('Excel de Apoyo'!P40:P41)))))) -> 0 | I12: =IF($C$26="Central",G12*'Excel de Apoyo'!S27,G12*IF(Heating!$C$34="Si",'Excel de Apoyo'!$G$8,IF(OR($C$32="Si",Heating!$C$33="Si"),Energy!$C$24,IF(Heating!$C$35="Si",'Excel de Apoyo'!$G$11,IF(Heating!$C$36="Si",AVERAGE('Excel de Apoyo'!$G$9:$G$10),0))))) -> 0 | J12: =IF(B12<>"",M12*Housing!V64,0) -> 0 | L12: =IF(B12<>"","Low invesment","") ->  | M12: 2.5 | N12: m | U12: 0
B13: =IF(OR(AND('Heating and cooling'!C46="Yes",'Heating and cooling'!C45="Yes"),C27=FALSE),"",IF(AND('Heating and cooling'!C45="",'Heating and cooling'!C46="",C27=TRUE),"Install a digital programmable thermostat",IF(AND('Heating and cooling'!C45="Yes",C27=TRUE),"Install a digital programmable thermostat","Install a time setting plug"))) ->  | G13: =IFERROR(IF(B13<>"",0.2*('Excel de Apoyo'!Q4-U13),0),0) -> 0 | H13: =IFERROR(G13*IF(Heating!C34="Si",'Excel de Apoyo'!P34,IF(OR(C32="Si",Heating!C33="Si"),Energy!AF5,IF(Heating!C35="Si",'Excel de Apoyo'!P37,IF(Heating!C36="Si",AVERAGE('Excel de Apoyo'!P35:P36),IF(C37="Si",AVERAGE('Excel de Apoyo'!P38:P39),AVERAGE('Excel de Apoyo'!P40:P41)))))),0) -> 0 | I13: =IF($C$26="Central",G13*'Excel de Apoyo'!S27,G13*IF(Heating!$C$34="Si",'Excel de Apoyo'!$G$8,IF(OR($C$32="Si",Heating!$C$33="Si"),Energy!$C$24,IF(Heating!$C$35="Si",'Excel de Apoyo'!$G$11,IF(Heating!$C$36="Si",AVERAGE('Excel de Apoyo'!$G$9:$G$10),0))))) -> 0 | J13: =IF(B13<>"",M13,0) -> 0 | L13: =IF(B13<>"","Low invesment","") ->  | M13: 100 | N13: per thermostat | U13: 0
B14: =IF(AND(Housing!C17>21,C27=TRUE),"Set indoor temperature at 21ºC","") ->  | G14: =IF(B14<>"",(Housing!C17-21)*0.07*('Excel de Apoyo'!Q4-U14),0) -> 0 | H14: =G14*IF(Heating!C34="Si",'Excel de Apoyo'!P34,IF(OR(C32="Si",Heating!C33="Si"),Energy!AF5,IF(Heating!C35="Si",'Excel de Apoyo'!P37,IF(Heating!C36="Si",AVERAGE('Excel de Apoyo'!P35:P36),IF(C37="Si",AVERAGE('Excel de Apoyo'!P38:P39),AVERAGE('Excel de Apoyo'!P40:P41)))))) -> 0 | I14: =IF($C$26="Central",G14*'Excel de Apoyo'!S27,G14*IF(Heating!$C$34="Si",'Excel de Apoyo'!$G$8,IF(OR($C$32="Si",Heating!$C$33="Si"),Energy!$C$24,IF(Heating!$C$35="Si",'Excel de Apoyo'!$G$11,IF(Heating!$C$36="Si",AVERAGE('Excel de Apoyo'!$G$9:$G$10),0))))) -> 0 | J14: 0 | L14: =IF(B14<>"","Free","") ->  | M14: 0 | U14: 0
B15: =IF(AND(C27=TRUE,OR('Heating and cooling'!C77<>"",'Heating and cooling'!C78<>"")),IF(OR(AND('Heating and cooling'!C77="Yes",OR('Heating and cooling'!D77="Once a year",'Heating and cooling'!D77="Less than once a year")),AND('Heating and cooling'!C78="Yes",OR('Heating and cooling'!D78="Once a year",'Heating and cooling'!D78="Less than once a year"))),"","Properly mantain your radiators at least once a year"),"") ->  | G15: =IF(B15<>"",('Excel de Apoyo'!Q4-U15)*'Heating and cooling'!G78,0) -> 0 | H15: =G15*IF(Heating!C34="Si",'Excel de Apoyo'!P34,IF(OR(C32="Si",Heating!C33="Si"),Energy!AF5,IF(Heating!C35="Si",'Excel de Apoyo'!P37,IF(Heating!C36="Si",AVERAGE('Excel de Apoyo'!P35:P36),IF(C37="Si",AVERAGE('Excel de Apoyo'!P38:P39),AVERAGE('Excel de Apoyo'!P40:P41)))))) -> 0 | I15: =IF($C$26="Central",G15*'Excel de Apoyo'!S27,G15*IF(Heating!$C$34="Si",'Excel de Apoyo'!$G$8,IF(OR($C$32="Si",Heating!$C$33="Si"),Energy!$C$24,IF(Heating!$C$35="Si",'Excel de Apoyo'!$G$11,IF(Heating!$C$36="Si",AVERAGE('Excel de Apoyo'!$G$9:$G$10),0))))) -> 0 | J15: 0 | L15: =IF(B15<>"","Free","") ->  | M15: 0 | U15: 0
B16: =IF(AND('Heating and cooling'!C47<0.75,Heating!C27=TRUE),"Install thermostatic valves in radiators","") ->  | G16: =IF(B16<>"",(1-'Heating and cooling'!C47)*0.2*('Excel de Apoyo'!Q4-U16),0) -> 0 | H16: =IFERROR(G16*IF(Heating!C34="Si",'Excel de Apoyo'!P34,IF(OR(C32="Si",Heating!C33="Si"),Energy!AF5,IF(Heating!C35="Si",'Excel de Apoyo'!P37,IF(Heating!C36="Si",AVERAGE('Excel de Apoyo'!P35:P36),IF(C37="Si",AVERAGE('Excel de Apoyo'!P38:P39),AVERAGE('Excel de Apoyo'!P40:P41)))))),"") -> 0 | I16: =IF($C$26="Central",G16*'Excel de Apoyo'!S27,G16*IF(Heating!$C$34="Si",'Excel de Apoyo'!$G$8,IF(OR($C$32="Si",Heating!$C$33="Si"),Energy!$C$24,IF(Heating!$C$35="Si",'Excel de Apoyo'!$G$11,IF(Heating!$C$36="Si",AVERAGE('Excel de Apoyo'!$G$9:$G$10),0))))) -> 0 | J16: =IF(B16<>"",(1-'Heating and cooling'!C47)*M16*SUM('Heating and cooling'!C37,'Heating and cooling'!C38,'Heating and cooling'!C39,'Heating and cooling'!C40,'Heating and cooling'!C42),0) -> 0 | L16: =IF(B16<>"","Low invesment","") ->  | M16: 40 | N16: per radiator | U16: 0
B17: =IFERROR(IF((Housing!V79/'Excel de Apoyo'!M10)>0.25,"Install curtains",""),"") ->  | G17: =IF(B17<>"",0.01*(1-(Housing!V33/Housing!V28))*('Excel de Apoyo'!Q4-U17),0) -> 0 | H17: =G17*IF(Heating!C34="Si",'Excel de Apoyo'!P34,IF(OR(C32="Si",Heating!C33="Si"),Energy!AF5,IF(Heating!C35="Si",'Excel de Apoyo'!P37,IF(Heating!C36="Si",AVERAGE('Excel de Apoyo'!P35:P36),IF(C37="Si",AVERAGE('Excel de Apoyo'!P38:P39),AVERAGE('Excel de Apoyo'!P40:P41)))))) -> 0 | I17: =IF($C$26="Central",G17*'Excel de Apoyo'!S27,G17*IF(Heating!$C$34="Si",'Excel de Apoyo'!$G$8,IF(OR($C$32="Si",Heating!$C$33="Si"),Energy!$C$24,IF(Heating!$C$35="Si",'Excel de Apoyo'!$G$11,IF(Heating!$C$36="Si",AVERAGE('Excel de Apoyo'!$G$9:$G$10),0))))) -> 0 | J17: =IFERROR(IF(B17<>"",(M17*Housing!V79),0),0) -> 0 | L17: =IF(B17<>"","Low invesment","") ->  | M17: 10 | N17: m2 | U17: 0
B18: =IF(Housing!C44>10,"10 minutes are enough to ventilate in excessive cold weather","") ->  | G18: =IF(B18<>"",(0.005+(0.0000694*(Housing!C44-10)))*('Excel de Apoyo'!Q4-U18),0) -> 0 | H18: =G18*IF(Heating!C34="Si",'Excel de Apoyo'!P34,IF(OR(C32="Si",Heating!C33="Si"),Energy!AF5,IF(Heating!C35="Si",'Excel de Apoyo'!P37,IF(Heating!C36="Si",AVERAGE('Excel de Apoyo'!P35:P36),IF(C37="Si",AVERAGE('Excel de Apoyo'!P38:P39),AVERAGE('Excel de Apoyo'!P40:P41)))))) -> 0 | I18: =IF($C$26="Central",G18*'Excel de Apoyo'!S27,G18*IF(Heating!$C$34="Si",'Excel de Apoyo'!$G$8,IF(OR($C$32="Si",Heating!$C$33="Si"),Energy!$C$24,IF(Heating!$C$35="Si",'Excel de Apoyo'!$G$11,IF(Heating!$C$36="Si",AVERAGE('Excel de Apoyo'!$G$9:$G$10),0))))) -> 0 | J18: 0 | K18: =IFERROR(J18/H18,"") ->  | L18: =IF(B18<>"","Free","") ->  | M18: 0 | U18: 0
B19: =IF(OR(Housing!C43="",OR(Housing!C43="Afternoon",Housing!C43="Noon")),"","Ventilate in warmer hours (close to noon)") ->  | G19: =IF(B19<>"",IF(B18<>"",G18,10*0.0000694),0) -> 0 | H19: =G19*IF(Heating!C34="Si",'Excel de Apoyo'!P34,IF(OR(C32="Si",Heating!C33="Si"),Energy!AF5,IF(Heating!C35="Si",'Excel de Apoyo'!P37,IF(Heating!C36="Si",AVERAGE('Excel de Apoyo'!P35:P36),IF(C37="Si",AVERAGE('Excel de Apoyo'!P38:P39),AVERAGE('Excel de Apoyo'!P40:P41)))))) -> 0 | I19: =IF($C$26="Central",G19*'Excel de Apoyo'!S27,G19*IF(Heating!$C$34="Si",'Excel de Apoyo'!$G$8,IF(OR($C$32="Si",Heating!$C$33="Si"),Energy!$C$24,IF(Heating!$C$35="Si",'Excel de Apoyo'!$G$11,IF(Heating!$C$36="Si",AVERAGE('Excel de Apoyo'!$G$9:$G$10),0))))) -> 0 | J19: 0 | L19: =IF(B19<>"","Free","") ->  | M19: 0 | U19: 0
B20: =IF(AND('Heating and cooling'!C74<1,'Heating and cooling'!C74<>""),"Install aerators on taps","") ->  | G20: =IF(B20<>"",(1-'Heating and cooling'!C74)*0.5*'Excel de Apoyo'!Q6,0) -> 0 | H20: =G20*(IF('Heating and cooling'!C63="Yes",AVERAGE('Excel de Apoyo'!P40:P42),IF('Heating and cooling'!C65="Yes",'Excel de Apoyo'!P33,IF('Heating and cooling'!C66="Yes",'Excel de Apoyo'!P34,IF('Heating and cooling'!C67="Yes",AVERAGE('Excel de Apoyo'!P35:P36),IF('Heating and cooling'!C68="Yes",'Excel de Apoyo'!P37,AVERAGE('Excel de Apoyo'!P38:P39))))))) -> 0 | I20: =IF('Heating and cooling'!C63="Yes",G20*'Excel de Apoyo'!S27,G20*(IF('Heating and cooling'!C65="Yes",Energy!C24,IF('Heating and cooling'!C66="Yes",'Excel de Apoyo'!G8,IF('Heating and cooling'!C67="Yes",AVERAGE('Excel de Apoyo'!G9:G10),IF('Heating and cooling'!C68="Yes",'Excel de Apoyo'!G11,0)))))) -> 0 | J20: =IF(B20<>"",M20*(1-'Heating and cooling'!C74)*(2+(Family!B13/2.5)),0) -> 0 | L20: =IF(B20<>"","Low invesment","") ->  | M20: 4 | N20: per tap
B21: =IF(AND('Heating and cooling'!C73<1,'Heating and cooling'!C73<>""),"Install thermostatic taps","") ->  | G21: =IF(B21<>"",0.15*(1-'Heating and cooling'!C73)*'Excel de Apoyo'!Q6,0) -> 0 | H21: =G21*(IF('Heating and cooling'!C63="Yes",AVERAGE('Excel de Apoyo'!P40:P42),IF('Heating and cooling'!C65="Yes",'Excel de Apoyo'!P33,IF('Heating and cooling'!C66="Yes",'Excel de Apoyo'!P34,IF('Heating and cooling'!C67="Yes",AVERAGE('Excel de Apoyo'!P35:P36),IF('Heating and cooling'!C68="Yes",'Excel de Apoyo'!P37,AVERAGE('Excel de Apoyo'!P38:P39))))))) -> 0 | I21: =IF('Heating and cooling'!C63="Yes",G21*'Excel de Apoyo'!T27,G21*(IF('Heating and cooling'!B65="Yes",Energy!C24,IF('Heating and cooling'!C66="Yes",'Excel de Apoyo'!G8,IF('Heating and cooling'!C67="Yes",AVERAGE('Excel de Apoyo'!G9:G10),IF('Heating and cooling'!C68="Yes",'Excel de Apoyo'!G11,0)))))) -> 0 | J21: =IF(B21<>"",M21*(1-'Heating and cooling'!C73)*(2+(Family!B13/2.5)),0) -> 0 | L21: =IF(B21<>"","Low invesment","") ->  | M21: 40 | N21: per tap
B22: =IF(OR('Heating and cooling'!C70="Yes",'Heating and cooling'!C34="Yes",OR(Housing!C3="Housing Block",Housing!C3="")),"","Reduce to a large extent your energy consumption in domestic hot water by installing solar thermal energy") ->  | G22: 0 | H22: =IFERROR(IF(B22<>"",'DHW-ST'!N80*1.16222222222*(IF('Heating and cooling'!C66="Yes",'Excel de Apoyo'!Q47,IF('Heating and cooling'!C63="Yes",'Excel de Apoyo'!P40,IF('Heating and cooling'!C65="Yes",'Excel de Apoyo'!P33,IF('Heating and cooling'!C722="Yes",'Excel de Apoyo'!P34,IF('Heating and cooling'!C67="Yes",AVERAGE('Excel de Apoyo'!P35:P36),IF('Heating and cooling'!C68="Yes",'Excel de Apoyo'!P37,AVERAGE('Excel de Apoyo'!P38:P39)))))))),0),0) -> 0 | I22: =IFERROR(IF(B22<>"",'DHW-ST'!H75,0),"") -> 0 | J22: =IF(B22<>"",M22*'DHW-ST'!I52,0) -> 0 | L22: =IF(B22<>"","RES invesment","") ->  | M22: 1300 | N22: per collector
G23: =SUM(G5:G22) -> 0 | H23: =SUM(H5:H22) -> 0 | I23: =SUM(I5:I22) -> 0 | J23: =SUM(J5:J22) -> 0
B25: ¿Heating? | C25: =IF(OR(C32="Si",C33="Si",C34="Si",C35="Si",C36="Si",C37="Si",),"Si","") -> 
B26: Tipo de sistema | C26: =IF('Heating and cooling'!C11="Yes","Central","Individual") -> Individual
B27: Caldera | C27: =OR('Heating and cooling'!C15="Yes",'Heating and cooling'!C16="Yes",'Heating and cooling'!C17="Yes",'Heating and cooling'!C18="Yes",'Heating and cooling'!C20="Yes",'Heating and cooling'!C21="Yes",AND('Heating and cooling'!C11="Yes",'Heating and cooling'!C12,'Heating and cooling'!C12="Yes")) -> FALSE
B28: Bloque de pisos | C28: =AND(Housing!C3="Housing block") -> FALSE
B29: Acceso a GN | C29: =AND('Heating and cooling'!C81="Yes") -> FALSE
B30: HDD | C30: =IF('Heating and cooling'!Q7>75,"Altos","Bajos") -> 
B31: Edad caldera | C31: =IF(C27=TRUE,YEAR(TODAY())-AVERAGE('Heating and cooling'!D11,'Heating and cooling'!D15:D22),"") -> 
B32: Joule | C32: =IF(OR('Heating and cooling'!C20="Yes",'Heating and cooling'!C21="Yes",'Heating and cooling'!C22="Yes",'Heating and cooling'!C25="Yes",'Heating and cooling'!C31="Yes"),"Si","") ->  | J32: =ROUND("",2) -> 
B33: Bomba de calor | C33: =IF(OR('Heating and cooling'!C19="Yes",'Heating and cooling'!C26="Yes"),"Si","") -> 
B34: Gas Natural | C34: =IF(OR('Heating and cooling'!C15="Yes",AND('Heating and cooling'!C11="Yes",'Heating and cooling'!H11="Natural Gas")),"Si","") -> 
B35: Diesel | C35: =IF('Heating and cooling'!C17="Yes","Si","") -> 
B36: Propano | C36: =IF(OR('Heating and cooling'!C27="Yes",'Heating and cooling'!C16="Yes"),"Si","") -> 
B37: Biomasa | C37: =IF(OR('Heating and cooling'!C18="Yes",'Heating and cooling'!C28="Yes",'Heating and cooling'!C29="Yes",'Heating and cooling'!C30="Yes"),"Si","") -> 
B38: COP | C38: =AVERAGE('Heating and cooling'!G15:G22,'Heating and cooling'!G25:G34) -> 

Sheet DHW-ST
A1: DOMESTIC HOT WATER PRODUCTION WITH ENERGY SOLAR THERMAL | V1: 1 | W1: 2 | X1: 3
V2: Viv.unifamiliar | W2: 30 | X2: por persona
A3: CLIMATODOLOGHY DATA | V3: Viv.multifamiliar | W3: 22 | X3: por persona
T4: Álava | V4: Hospital/Clínica | W4: 55 | X4: por cama
C5: Provincia: | H5: Soria | T5: Albacete | V5: Hotel**** | W5: 70 | X5: por cama
C6: Latitud de la capital [º]: | I6: =VLOOKUP($H$5,RADIACION!$A$3:$BA$54,16) -> 41.8 | T6: Alicante | V6: Hotel*** | W6: 55 | X6: por cama
C8: Angulo de instalación de los captadores | H8: 50
C9: Zona climática de la capital (CTE) | I9: =VLOOKUP($H$5,RADIACION!$A$3:$BA$54,41) -> III | T9: Almería | V9: Hotel/Hostal** | W9: 40 | X9: por cama
C10: Altitud de la capital [m]: | I10: =VLOOKUP($H$5,RADIACION!$A$3:$BA$54,14) -> 1063 | T10: Asturias | V10: Camping | W10: 40 | X10: por emplazamiento
C11: Humedad relativa media [%]: | I11: =VLOOKUP($H$5,RADIACION!$A$3:$BA$54,18) -> 45 | T11: Ávila | V11: Hostal/Pension* | W11: 35 | X11: por cama
C12: Velocidad media del viento [Km/h]: | I12: =VLOOKUP($H$5,RADIACION!$A$3:$BA$54,36) -> 15 | T12: Badajoz | V12: Residenc Est/3Edad | W12: 55 | X12: por cama
C13: Temperatura máxima en verano [ºC]: | I13: =VLOOKUP($H$5,RADIACION!$A$3:$BA$54,19) -> 29 | T13: Baleares | V13: Vestuario/Duchas | W13: 15 | X13: por servicio
C14: Temperatura mínima en invierno [ºC]: | I14: =VLOOKUP($H$5,RADIACION!$A$3:$BA$54,20) -> -7 | T14: Barcelona | V14: Escuela | W14: 3 | X14: por alumno
C15: Variación diurna: | I15: =VLOOKUP($H$5,RADIACION!$A$3:$BA$54,17) -> 18 | T15: Burgos | V15: Cuartel | W15: 20 | X15: por persona
C16: Grados-día. Temperatura base 15/15 (UNE 24046): | I16: =VLOOKUP($H$5,RADIACION!$A$3:$BA$54,33) -> 1609.1 | J16: (Periodo Noviembre/Marzo) | T16: Cáceres | V16: Fábrica/Taller | W16: 15 | X16: por persona
C17: Grados-día. Temperatura base 15/15 (UNE 24046): | I17: =VLOOKUP($H$5,RADIACION!$A$3:$BA$54,34) -> 1977.6 | J17: (Todo el año) | T17: Cádiz | V17: Administrativo | W17: 3 | X17: por persona
T18: Cantabria | V18: Gimnasio | W18: 25 | X18: por usuario
A19: Months | B19: January | C19: February | D19: March | E19: April | F19: May | G19: June | H19: July | I19: August | J19: Sept. | K19: Oct. | L19: Nov. | M19: Dec. | N19: Annual | T19: Castellon | V19: Lavandería | W19: 5 | X19: por kilo de ropa
A20: Average Temperature [ºC]: | B20: 6.9 | C20: 7.9 | D20: 11.2 | E20: 14 | F20: 18.5 | G20: 23.4 | H20: 25.6 | I20: 25.3 | J20: 21.1 | K20: 16.9 | L20: 10.7 | M20: 7.1 | N20: =AVERAGE(B20:M20) -> 15.71666667 | T20: Ceuta | V20: Restaurante | W20: 10 | X20: por comida
A21: Water network temperature [ºC]: | B21: 8 | C21: 9 | D21: 10 | E21: 12 | F21: 15 | G21: 17 | H21: 20 | I21: 19 | J21: 17 | K21: 14 | L21: 10 | M21: 8 | N21: =AVERAGE(B21:M21) -> 13.25 | T21: Ciudad Real | V21: Cafetería | W21: 1 | X21: por almuerzo
A22: Radiation [W/m2/day]: | B22: 3640 | C22: 5080 | D22: 6090 | E22: 5740 | F22: 5790 | G22: 5970 | H22: 6440 | I22: 6480 | J22: 6240 | K22: 5330 | L22: 4160 | M22: 3440 | N22: 5366.666667 | T22: Córdoba
B23: 3.6 | C23: 3.6 | D23: 3.6 | E23: 3.6 | F23: 3.6 | G23: 3.6 | H23: 3.6 | I23: 3.6 | J23: 3.6 | K23: 3.6 | L23: 3.6 | M23: 3.6
A24: Rad. [kJ/m2/día]: | B24: =B22*B23 -> 13104 | C24: 18288 | D24: 21924 | E24: 20664 | F24: 20844 | G24: 21492 | H24: 23184 | I24: 23328 | J24: 22464 | K24: 19188 | L24: 14976 | M24: 12384 | N24: =AVERAGE(B24:M24) -> 19320 | T24: Cuenca
T25: Gerona
A26: ENERGY DEMAND DATA | T26: Huesca
T27: Jaén
C28: Number of occupants | I28: =Family!B13 -> 0 | T28: La Coruña
C29: Consumption by resident 60ºC [L/pers/day]: | I29: =IF(Housing!C3="Housing block",22,30) -> 30 | J29: =" … average "&I31&"ºC [L/pers/day]:" -> … average 45ºC [L/pers/day]: | N29: =N30/I28 ->  | T29: La Rioja
C30: Sanitary hot water consumption max. ocuppation 60ºC [L/day]: | I30: =+$I$28*$I$29 -> 0 | J30: =" … average "&I31&"ºC [L/day]:" -> … average 45ºC [L/day]: | N30: =1000*SUM(RADIACION!B66:M66)/365 -> 0 | T30: Las Palmas
C31: Temperature HSW [ºC]: | I31: 45 | T31: León
T32: Lérida
A33: Months | B33: January | C33: February | D33: March | E33: April | F33: May | G33: June | H33: July | I33: August | J33: Sept. | K33: Oct. | L33: Nov. | M33: Dec. | N33: Annual | T33: Lugo
A34: % occupation: | B34: 100 | C34: 100 | D34: 100 | E34: 100 | F34: 100 | G34: 100 | H34: 100 | I34: 90 | J34: 100 | K34: 100 | L34: 100 | M34: 100 | N34: =AVERAGE(B34:M34) -> 99.16666667 | T34: Madrid
T35: Málaga
T36: Palencia
A37: SYSTEM DATA | T37: Pontevedra
T38: Salamanca
C39: ="Collector efficiency curve: Eff. = "&I46&" - "&I48&" · (tm - ta) / I" -> Collector efficiency curve: Eff. = 0,75 - 3,7 · (tm - ta) / I | T39: Santa Cruz de Tenerife
D40: tm: | E40: Fluid average temperature | T40: Segovia
D41: ta: | E41: Temperature | T41: Sevilla
D42: It : | E42: Irradiance [W/m2] | T42: Soria
T43: Tarragona
B44: Useful collector surface [m2]: | I44: 2.32 | T44: Teruel
B46: Maximun collector efficiency: | I46: 0.75 | T46: Toledo
B48: Loses [W/(m2·ºC)]: | I48: 3.7 | T48: Valencia
B50: Accumulation volume [L/m2]: | I50: 70 | J50: =IF(I50<50,"No Cumple CTE",IF(I50>180,"No Cumple CTE"," ")) ->  | T50: Valladolid
B52: Number of collectors | I52: 3
B54: Caudal en circuito primario [(L/h)/m2] - [(Kg/h)/m2]: | I54: =95/1.886 -> 50.37115589 | T54: Vizcaya
B55: Caudal en circuito secundario [(L/h)/m2] - [(Kg/h)/m2]: | I55: =86/1.886 -> 45.59915164 | T55: Zamora
B56: Calor específico en circuito primario [Kcal/(Kg·ºC)]: | I56: 0.9 | T56: Zaragoza
B57: Calor específico en circuito secundario [Kcal/(Kg·ºC)]: | I57: 1
B58: Eficiencia del intercambiador: | I58: 0.8
B59: Energy Support: | I59: ='Savings Indicator'!D12 -> - | T59: Gas Natural
T60: Gasóleo
A61: ENERGY CALCULATION | T61: GLP
T62: Carbón domést.
A63: Months | B63: January | C63: February | D63: March | E63: April | F63: May | G63: June | H63: July | I63: August | J63: Sept. | K63: Oct. | L63: Nov. | M63: Dec. | N63: Annual | T63: Electricidad
A64: Water consumption 60ºC [m3]: | B64: =RADIACION!B63 -> 0 | C64: =RADIACION!C63 -> 0 | D64: =RADIACION!D63 -> 0 | E64: =RADIACION!E63 -> 0 | F64: =RADIACION!F63 -> 0 | G64: =RADIACION!G63 -> 0 | H64: =RADIACION!H63 -> 0 | I64: =RADIACION!I63 -> 0 | J64: =RADIACION!J63 -> 0 | K64: =RADIACION!K63 -> 0 | L64: =RADIACION!L63 -> 0 | M64: =RADIACION!M63 -> 0 | N64: =SUM(B64:M64) -> 0
A65: Temperature increase. [ºC]: | B65: =RADIACION!B64 -> 52 | C65: =RADIACION!C64 -> 51 | D65: =RADIACION!D64 -> 50 | E65: =RADIACION!E64 -> 48 | F65: =RADIACION!F64 -> 45 | G65: =RADIACION!G64 -> 43 | H65: =RADIACION!H64 -> 40 | I65: =RADIACION!I64 -> 41 | J65: =RADIACION!J64 -> 43 | K65: =RADIACION!K64 -> 46 | L65: =RADIACION!L64 -> 50 | M65: =RADIACION!M64 -> 52
A66: Energy needs. [Mcal]: | B66: =RADIACION!B65 -> 0 | C66: =RADIACION!C65 -> 0 | D66: =RADIACION!D65 -> 0 | E66: =RADIACION!E65 -> 0 | F66: =RADIACION!F65 -> 0 | G66: =RADIACION!G65 -> 0 | H66: =RADIACION!H65 -> 0 | I66: =RADIACION!I65 -> 0 | J66: =RADIACION!J65 -> 0 | K66: =RADIACION!K65 -> 0 | L66: =RADIACION!L65 -> 0 | M66: =RADIACION!M65 -> 0 | N66: =SUM(B66:M66) -> 0
A67: Water consumption 45ºC [m3]: | B67: =RADIACION!B66 -> 0 | C67: =RADIACION!C66 -> 0 | D67: =RADIACION!D66 -> 0 | E67: =RADIACION!E66 -> 0 | F67: =RADIACION!F66 -> 0 | G67: =RADIACION!G66 -> 0 | H67: =RADIACION!H66 -> 0 | I67: =RADIACION!I66 -> 0 | J67: =RADIACION!J66 -> 0 | K67: =RADIACION!K66 -> 0 | L67: =RADIACION!L66 -> 0 | M67: =RADIACION!M66 -> 0 | N67: =SUM(B67:M67) -> 0
A69: OUTPUT DATA
D71: Número de colectores: | H71: =I52 -> 3
D72: Total collector surface [m2]: | H72: =H71*I44 -> 6.96
H73: =H8 -> 50
D74: Accumulation volume [L]: | H74: =H72*I50 -> 487.2
D75: CO2 avoided emissions [kg CO2]: | H75: =IF(I59="Gas Natural",$N$80*1000*RADIACION!$AF$68*RADIACION!$AF$60/RADIACION!$AF$69,IF(I59="Gasóleo",$N$80*1000*RADIACION!$AF$68*RADIACION!$AF$61/RADIACION!$AF$69,IF(I59="GLP",$N$80*1000*RADIACION!$AF$68*RADIACION!$AF$62/RADIACION!$AF$69,IF(I59="Carbón domést.",$N$80*1000*RADIACION!$AF$68*RADIACION!$AF$63/RADIACION!$AF$69,$N$80*1000*RADIACION!$AF$68*RADIACION!$AF$64/RADIACION!$AF$69)))) -> 
D76: Economic saving [€/year] | H76: =VLOOKUP($I$59,RADIACION!P59:T63,5,FALSE) -> 
A78: Months | B78: January | C78: February | D78: March | E78: April | F78: May | G78: June | H78: July | I78: August | J78: Sept. | K78: Oct. | L78: Nov. | M78: Dec. | N78: Annual
A79: HSW Total Energy [Mcal]: | B79: =RADIACION!B65 -> 0 | C79: =RADIACION!C65 -> 0 | D79: =RADIACION!D65 -> 0 | E79: =RADIACION!E65 -> 0 | F79: =RADIACION!F65 -> 0 | G79: =RADIACION!G65 -> 0 | H79: =RADIACION!H65 -> 0 | I79: =RADIACION!I65 -> 0 | J79: =RADIACION!J65 -> 0 | K79: =RADIACION!K65 -> 0 | L79: =RADIACION!L65 -> 0 | M79: =RADIACION!M65 -> 0 | N79: =SUM(B79:M79) -> 0
A80: Savings [Mcal]: | B80: =B79*(B81) ->  | N80: =SUM(B80:M80) -> 
A81: Savings [%]: | B81: =RADIACION!B71 ->  | C81: =RADIACION!C71 ->  | D81: =RADIACION!D71 ->  | E81: =RADIACION!E71 ->  | F81: =RADIACION!F71 ->  | G81: =RADIACION!G71 ->  | H81: =RADIACION!H71 ->  | I81: =RADIACION!I71 ->  | J81: =RADIACION!J71 ->  | K81: =RADIACION!K71 ->  | L81: =RADIACION!L71 ->  | M81: =RADIACION!M71 ->  | N81: =+N80/N79 -> 
A82: Excess [kcal]: | B82: =(B83/100)*B79 ->  | N82: =SUM(B82:M82) -> 
A83: Excess [%]: | B83: =IF(RADIACION!B71>1,-100+RADIACION!B71*100,0) ->  | C83: =IF(RADIACION!C71>1,-100+RADIACION!C71*100,0) ->  | D83: =IF(RADIACION!D71>1,-100+RADIACION!D71*100,0) ->  | E83: =IF(RADIACION!E71>1,-100+RADIACION!E71*100,0) ->  | F83: =IF(RADIACION!F71>1,-100+RADIACION!F71*100,0) ->  | G83: =IF(RADIACION!G71>1,-100+RADIACION!G71*100,0) ->  | H83: =IF(RADIACION!H71>1,-100+RADIACION!H71*100,0) ->  | I83: =IF(RADIACION!I71>1,-100+RADIACION!I71*100,0) ->  | J83: =IF(RADIACION!J71>1,-100+RADIACION!J71*100,0) ->  | K83: =IF(RADIACION!K71>1,-100+RADIACION!K71*100,0) ->  | L83: =IF(RADIACION!L71>1,-100+RADIACION!L71*100,0) ->  | M83: =IF(RADIACION!M71>1,-100+RADIACION!M71*100,0) -> 
A85: HSW Total Energy [kWh]: | B85: =RADIACION!B65*$B$89 -> 0 | C85: =RADIACION!C65*$B$89 -> 0 | D85: =RADIACION!D65*$B$89 -> 0 | E85: =RADIACION!E65*$B$89 -> 0 | F85: =RADIACION!F65*$B$89 -> 0 | G85: =RADIACION!G65*$B$89 -> 0 | H85: =RADIACION!H65*$B$89 -> 0 | I85: =RADIACION!I65*$B$89 -> 0 | J85: =RADIACION!J65*$B$89 -> 0 | K85: =RADIACION!K65*$B$89 -> 0 | L85: =RADIACION!L65*$B$89 -> 0 | M85: =RADIACION!M65*$B$89 -> 0 | N85: =SUM(B85:M85) -> 0
A86: Savings [kWh]: | B86: =B85*(B81) ->  | C86: =C85*(C81) ->  | N86: =SUM(B86:M86) -> 
A87: Excess [kWh]: | B87: =(B88/100)*B85 ->  | N87: =SUM(B87:M87) -> 
A88: Excess [%]: | B88: =IF(RADIACION!B71>1,-100+RADIACION!B71*100,0) ->  | C88: =IF(RADIACION!C71>1,-100+RADIACION!C71*100,0) ->  | D88: =IF(RADIACION!D71>1,-100+RADIACION!D71*100,0) ->  | E88: =IF(RADIACION!E71>1,-100+RADIACION!E71*100,0) ->  | F88: =IF(RADIACION!F71>1,-100+RADIACION!F71*100,0) ->  | G88: =IF(RADIACION!G71>1,-100+RADIACION!G71*100,0) ->  | H88: =IF(RADIACION!H71>1,-100+RADIACION!H71*100,0) ->  | I88: =IF(RADIACION!I71>1,-100+RADIACION!I71*100,0) ->  | J88: =IF(RADIACION!J71>1,-100+RADIACION!J71*100,0) ->  | K88: =IF(RADIACION!K71>1,-100+RADIACION!K71*100,0) ->  | L88: =IF(RADIACION!L71>1,-100+RADIACION!L71*100,0) ->  | M88: =IF(RADIACION!M71>1,-100+RADIACION!M71*100,0) -> 
A89: [Mcal] to [kWh] | B89: 1.16

Sheet PV
A1: DOMESTIC ENERGY PRODUCTION WITH SOLAR PHOTOVOLTAIC | V1: 1 | W1: 2 | X1: 3
V2: Viv.unifamiliar | W2: 30 | X2: por persona
A3: CLIMATODOLOGHY DATA | V3: Viv.multifamiliar | W3: 22 | X3: por persona
T4: Álava | V4: Hospital/Clínica | W4: 55 | X4: por cama
C6: Angulo de instalación de los captadores | H6: 50
C7: Zona climática de la capital (CTE) | I7: =VLOOKUP(#REF!,RADIACION!$A$3:$BA$54,41) ->  | T7: Almería | V7: Hotel/Hostal** | W7: 40 | X7: por cama
C8: Altitud de la capital [m]: | I8: =VLOOKUP(#REF!,RADIACION!$A$3:$BA$54,14) ->  | T8: Asturias | V8: Camping | W8: 40 | X8: por emplazamiento
C9: Humedad relativa media [%]: | I9: =VLOOKUP(#REF!,RADIACION!$A$3:$BA$54,18) ->  | T9: Ávila | V9: Hostal/Pension* | W9: 35 | X9: por cama
C10: Velocidad media del viento [Km/h]: | I10: =VLOOKUP(#REF!,RADIACION!$A$3:$BA$54,36) ->  | T10: Badajoz | V10: Residenc Est/3Edad | W10: 55 | X10: por cama
C11: Temperatura máxima en verano [ºC]: | I11: =VLOOKUP(#REF!,RADIACION!$A$3:$BA$54,19) ->  | T11: Baleares | V11: Vestuario/Duchas | W11: 15 | X11: por servicio
C12: Temperatura mínima en invierno [ºC]: | I12: =VLOOKUP(#REF!,RADIACION!$A$3:$BA$54,20) ->  | T12: Barcelona | V12: Escuela | W12: 3 | X12: por alumno
C13: Variación diurna: | I13: =VLOOKUP(#REF!,RADIACION!$A$3:$BA$54,17) ->  | T13: Burgos | V13: Cuartel | W13: 20 | X13: por persona
C14: Grados-día. Temperatura base 15/15 (UNE 24046): | I14: =VLOOKUP(#REF!,RADIACION!$A$3:$BA$54,33) ->  | J14: (Periodo Noviembre/Marzo) | T14: Cáceres | V14: Fábrica/Taller | W14: 15 | X14: por persona
C15: Grados-día. Temperatura base 15/15 (UNE 24046): | I15: =VLOOKUP(#REF!,RADIACION!$A$3:$BA$54,34) ->  | J15: (Todo el año) | T15: Cádiz | V15: Administrativo | W15: 3 | X15: por persona
A16: Days / month | B16: 31 | C16: 28 | D16: 31 | E16: 30 | F16: 31 | G16: 30 | H16: 31 | I16: 31 | J16: 30 | K16: 31 | L16: 30 | M16: 31 | N16: =+SUM(B16:M16) -> 365 | T16: Cantabria | V16: Gimnasio | W16: 25 | X16: por usuario
A17: Months | B17: January | C17: February | D17: March | E17: April | F17: May | G17: June | H17: July | I17: August | J17: Sept. | K17: Oct. | L17: Nov. | M17: Dec. | N17: Annual | T17: Castellon | V17: Lavandería | W17: 5 | X17: por kilo de ropa
A18: Radiation [W/m2/day]: | B18: 3230 | C18: 4670 | D18: 6000 | E18: 6090 | F18: 6530 | G18: 6960 | H18: 7440 | I18: 7060 | J18: 6300 | K18: 5030 | L18: 3720 | M18: 3010 | N18: =AVERAGE(B18:M18) -> 5503.333333 | T18: Córdoba
A19: Radiation [W/m2/month]: | B19: =+B18*B16 -> 100130 | C19: 130760 | D19: 186000 | E19: 182700 | F19: 202430 | G19: 208800 | H19: 230640 | I19: 218860 | J19: 189000 | K19: 155930 | L19: 111600 | M19: 93310 | N19: =SUM(B19:M19) -> 2010160
A20: Equivalent hours | B20: =+(B19*$I$31*$I$32)/($I$27) -> 80.104 | C20: 104.608 | D20: 148.8 | E20: 146.16 | F20: 161.944 | G20: 167.04 | H20: 184.512 | I20: 175.088 | J20: 151.2 | K20: 124.744 | L20: 89.28 | M20: 74.648 | N20: =SUM(B20:M20) -> 1608.128 | T20: Cuenca
A21: Consumption vs eq h | B21: =+B60/B20 -> 0 | C21: 0 | D21: 0 | E21: 0 | F21: 0 | G21: 0 | H21: 0 | I21: 0 | J21: 0 | K21: 0 | L21: 0 | M21: 0 | N21: =+AVERAGE(B21:M21) -> 0 | T21: Gerona
A23: ENERGY DEMAND DATA | T23: Huesca
C25: Annual Electricity [kWh/year] | I25: =+Energy!P5 -> 0 | T25: Jaén
C26: Electricity coverage ratio | I26: 1
C27: Modules peak power [W7m2] | I27: =+I46/I40 -> 150
C28: Net Balance system? | I28: yes
C29: Recommended coverage ratio if no accumulation and no net balance | I29: =+MIN(B21:M21) -> 0
C30: Approx Peak Power [kW] | I30: =+I25*I26/N20 -> 0 | T30: La Coruña
C31: Module Yield | I31: =+I42 -> 0.15 | T31: La Rioja
C32: Performance Ratio | I32: =+I44 -> 0.8 | T32: Las Palmas
C33: number of m2 | I33: =+ROUND(I30/(I27/1000),0) -> 0 | T33: León
T35: Málaga
T36: Palencia
A37: SYSTEM DATA | T37: Pontevedra
T38: Salamanca
T39: Tarragona
B40: Useful collector surface [m2]: | I40: 1.3 | T40: Teruel
B42: Maximun collector efficiency: | I42: 0.15 | T42: Toledo
B44: PH facility performance ratio | I44: 0.8 | T44: Valencia
B46: Module peak power W | I46: =150*1.3 -> 195 | T46: Valladolid
B48: Number of modules | I48: =+ROUND(I30/(I46/1000),0) -> 0
B50: Caudal en circuito primario [(L/h)/m2] - [(Kg/h)/m2]: | I50: =95/1.886 -> 50.37115589 | T50: Vizcaya
B51: Caudal en circuito secundario [(L/h)/m2] - [(Kg/h)/m2]: | I51: =86/1.886 -> 45.59915164 | T51: Zamora
B52: Calor específico en circuito primario [Kcal/(Kg·ºC)]: | I52: 0.9 | T52: Zaragoza
B53: Calor específico en circuito secundario [Kcal/(Kg·ºC)]: | I53: 1
B54: Eficiencia del intercambiador: | I54: 0.8
B55: Facility Peak power kW | I55: =+I48*I46/1000 -> 0 | T55: Gas Natural
T56: Gasóleo
A57: ENERGY CALCULATION | T57: GLP
T58: Carbón domést.
A59: Months | B59: January | C59: February | D59: March | E59: April | F59: May | G59: June | H59: July | I59: August | J59: Sept. | K59: Oct. | L59: Nov. | M59: Dec. | N59: Annual | T59: Electricidad
A60: Monthly consumption | B60: =+Energy!D5 -> 0 | C60: =+Energy!E5 -> 0 | D60: =+Energy!F5 -> 0 | E60: =+Energy!G5 -> 0 | F60: =+Energy!H5 -> 0 | G60: =+Energy!I5 -> 0 | H60: =+Energy!J5 -> 0 | I60: =+Energy!K5 -> 0 | J60: =+Energy!L5 -> 0 | K60: =+Energy!M5 -> 0 | L60: =+Energy!N5 -> 0 | M60: =+Energy!O5 -> 0 | N60: =SUM(B60:M60) -> 0
A61: Monthly generation | B61: =+$I$55*B20 -> 0 | C61: 0 | D61: 0 | E61: 0 | F61: 0 | G61: 0 | H61: 0 | I61: 0 | J61: 0 | K61: 0 | L61: 0 | M61: 0 | N61: =SUM(B61:M61) -> 0
A62: Difference | B62: =RADIACION!B65 -> 0 | C62: =RADIACION!C65 -> 0 | D62: =RADIACION!D65 -> 0 | E62: =RADIACION!E65 -> 0 | F62: =RADIACION!F65 -> 0 | G62: =RADIACION!G65 -> 0 | H62: =RADIACION!H65 -> 0 | I62: =RADIACION!I65 -> 0 | J62: =RADIACION!J65 -> 0 | K62: =RADIACION!K65 -> 0 | L62: =RADIACION!L65 -> 0 | M62: =RADIACION!M65 -> 0 | N62: =SUM(B62:M62) -> 0
A63: % coverage | B63: =+B61/B60 ->  | C63: =+C61/C60 ->  | N63: =AVERAGE(B63:M63) -> 
A65: ECONOMIC ASSESSMENT
D67: Número de colectores: | H67: =I48 -> 0
D68: Price per Wp in € | H68: 2.5 | J68: Average selling price | M68: €/kWh/year
H69: =H6 -> 50 | M69: €/MWh
D70: Price instalation | H70: =+H68*I55*1000 -> 0 | J70: Average buying price | L70: =Energy!AF5 -> 0 | M70: €/kWh/year
D71: Price accumulation system | H71: 0 | J71: network costs for power | M71: €/kWp/year
D72: Total investment costs | H72: =+H70+H71 -> 0 | J72: network costs for energy | M72: €/kWh/year
D73: Project life time | H73: 20 | J73: Maintenance cost | M73: €/kWp/year
H74: =+(H61-H60)*$L$68 -> 0
A75: Months | B75: January | C75: February | D75: March | E75: April | F75: May | G75: June | H75: July | I75: August | J75: Sept. | K75: Oct. | L75: Nov. | M75: Dec. | N75: Annual
A76: Sales | B76: =+IF($I$28="yes",IF((B61-B60)>0,(B61-B60)*$L$68,0),0) -> 0 | C76: 0 | D76: 0 | E76: 0 | F76: 0 | G76: 0 | H76: 0 | I76: 0 | J76: 0 | K76: 0 | L76: 0 | M76: 0 | N76: =SUM(B76:M76) -> 0
A77: Savings | B77: =+IF((B61-B60)<0,B61*$L$70,B60*$L$70) -> 0 | C77: =+IF((C61-C60)<0,C61*$L$70,C60*$L$70) -> 0 | D77: 0 | E77: =+IF((E61-E60)<0,E61*$L$70,E60*$L$70) -> 0 | F77: 0 | G77: 0 | H77: 0 | I77: 0 | J77: 0 | K77: 0 | L77: 0 | M77: 0 | N77: =SUM(B77:M77) -> 0
A78: Network Costs | B78: =+$I$55/12*$L$71+$L$72*B61 -> 0 | C78: =+$I$55/12*$L$71+$L$72*C61 -> 0 | D78: 0 | E78: 0 | F78: 0 | G78: 0 | H78: 0 | I78: 0 | J78: 0 | K78: 0 | L78: 0 | M78: 0 | N78: =SUM(B78:M78) -> 0
A79: Maintenance cost | B79: =+$L$73/12*$I$55 -> 0 | C79: 0 | D79: 0 | E79: 0 | F79: 0 | G79: 0 | H79: 0 | I79: 0 | J79: 0 | K79: 0 | L79: 0 | M79: 0 | N79: =SUM(B79:M79) -> 0
A80: Total incomes | B80: =+B76+B77-B78-B79 -> 0 | C80: =+C76+C77-C78-C79 -> 0 | D80: 0 | E80: 0 | F80: 0 | G80: 0 | H80: 0 | I80: 0 | J80: 0 | K80: 0 | L80: 0 | M80: 0 | N80: =SUM(B80:M80) -> 0
A82: Payback | B82: =+H72/N80 ->  | C82: years

Sheet Cooling
B4: TIPS | H4: Potential savings (kWh) | I4: Potential Savings (€) | J4: Potential savings (kCO2) | K4: Potential Investment | L4: Payback | M4: Type of measure | N4: Price | R4: Potential savings (kWh) | S4: Potential savings (€) | T4: Potential savings (kCO2) | U4: Potential investment
B5: =IF(OR(AND('Heating and cooling'!C50="Yes",'Heating and cooling'!G50<2.1,'Heating and cooling'!F50>4),AND('Heating and cooling'!C53="Yes",'Heating and cooling'!G53<2.1,'Heating and cooling'!F53>4)),"Purchase a new high efficient system","") ->  | H5: =IF(B5<>"",(1-(AVERAGE('Heating and cooling'!G53,'Heating and cooling'!G50)/4.6))*'Excel de Apoyo'!Q3,0) -> 0 | I5: =H5*'Excel de Apoyo'!P33 -> 0 | J5: =H5*Energy!$C$24 -> 0 | K5: =IF(AND('Heating and cooling'!C50="Yes",Cooling!B5<>""),'Heating and cooling'!E50*300,IF(AND('Heating and cooling'!C53="Yes",Cooling!B5<>""),600*'Heating and cooling'!H53,0)) -> 0 | L5: =IFERROR(K5/I5,"") ->  | M5: =IF(B5<>"","High investment","") ->  | N5: 300 | O5: 600 | P5: per machine | Q5: Free | R5: =H11+H12+H8 -> 0 | S5: =I11+I12+I8 -> 0 | T5: =J11+J12+J8 -> 0 | U5: =K11+K12+K8 -> 0
B6: =IFERROR(IF('Excel de Apoyo'!N2<1,"",IF(AND(Housing!V67>4,C19="Altos",Housing!C20<>"North",OR('Heating and cooling'!C50="Yes",'Heating and cooling'!C53="Yes")),"Install Low e-glass with solar control","")),"") ->  | H6: =IF(B6<>"",0.3*('Excel de Apoyo'!Q3-V6),0) -> 0 | I6: =H6*'Excel de Apoyo'!P33 -> 0 | J6: =H6*Energy!$C$24 -> 0 | K6: =IFERROR(IF(AND(B6<>"",C19="Altos",OR('Heating and cooling'!C50="Yes",'Heating and cooling'!C53="Yes")),IF(AND(YEAR(TODAY())-Housing!C13>39,Housing!C25="0- 25%"),O6*Housing!V67,N6*Housing!V67),0),0) -> 0 | M6: =IF(B6<>"","High investment","") ->  | N6: 85 | O6: 250 | P6: m2 | Q6: Low | R6: =H9+H10 -> 0 | S6: =I9+I10 -> 0 | T6: =J9+J10 -> 0 | U6: =K9+K10 -> 0 | V6: =H5 -> 0
B7: =IFERROR(IF('Excel de Apoyo'!N3<1,"",IF(AND(Housing!V33/Housing!V28<0.45,Housing!V60>2.5,Housing!C20<>"North",C19="Altos",C20="Si"),"Install courtains and Awnings",IF(Housing!V33/Housing!V28<0.45,"Install courtains",IF(AND(Housing!V60>2.5,C19="Altos",C20="Si"),"Install Awnings","")))),"") ->  | H7: =IF(B7<>"",(0.45*Housing!W61*('Excel de Apoyo'!Q3-V7))+(0.1*Housing!W81*('Excel de Apoyo'!Q3-V7)),0) -> 0 | I7: =H7*'Excel de Apoyo'!$P$33 -> 0 | J7: =H7*Energy!$C$24 -> 0 | K7: =IF(B7<>"",(Housing!V60*N7)+(Housing!V82*Cooling!O7*1.33),0) -> 0 | M7: =IF(B7<>"","High investment","") ->  | N7: 100 | O7: 32 | P7: m2 | Q7: High | R7: =H7+H6+H5 -> 0 | S7: =I7+I6+I5 -> 0 | T7: =J7+J6+J5 -> 0 | U7: =K7+K6+K5 -> 0 | V7: =V6+H6 -> 0
B8: =IF(AND(Housing!D17<26,OR(AND('Heating and cooling'!C50="Yes",'Heating and cooling'!F50>0),AND('Heating and cooling'!C53="Yes",'Heating and cooling'!F53>0))),"Set the ideal energy efficiency temperature: at 26ºC","") ->  | H8: =IF(B8<>"",((26-Housing!D17)*0.07)*('Excel de Apoyo'!Q3-V8),0) -> 0 | I8: =H8*'Excel de Apoyo'!$P$33 -> 0 | J8: =H8*Energy!$C$24 -> 0 | K8: 0 | M8: =IF(B8<>"","Free","") ->  | N8: 0 | V8: 0
B9: =IF(AND('Heating and cooling'!C59="",'Heating and cooling'!C60="",OR('Heating and cooling'!C50="Yes",'Heating and cooling'!C53="Yes")),"Install a digital programmable thermostat","") ->  | H9: =IF(B9<>"",0.2*('Excel de Apoyo'!Q3-V9),0) -> 0 | I9: =H9*'Excel de Apoyo'!$P$33 -> 0 | J9: =H9*Energy!$C$24 -> 0 | K9: =IF(B9<>"",N9,0) -> 0 | M9: =IF(B9<>"","Low investment","") ->  | N9: 100 | O9: per thermostat | V9: 0
B10: =IFERROR(IF(AND(C19="Bajos",OR('Heating and cooling'!C50="Yes",'Heating and cooling'!C53="Yes"),AND('Heating and cooling'!C56="",'Heating and cooling'!C54="")),"Use only evaporative cooling and fans",IF(AND(C19="Altos",OR('Heating and cooling'!C50="Yes",'Heating and cooling'!C53="Yes"),AND('Heating and cooling'!C56="",'Heating and cooling'!C54="")),"Make the most of evaporative cooling and fans","")),"") ->  | H10: =IF(B10="Use only evaporative cooling and fans",0.8*('Excel de Apoyo'!Q3-V10),IF(Cooling!B10="Make the most of evaporative cooling and fans",0.4*('Excel de Apoyo'!Q3-V10),0)) -> 0 | I10: =H10*'Excel de Apoyo'!P33 -> 0 | J10: =H10*Energy!$C$24 -> 0 | K10: =IF(B10<>"",N10*Family!B13/2,0) -> 0 | M10: =IF(B10<>"","Low investment","") ->  | N10: 110 | O10: per evaporative system | V10: 0
B11: =IF(Housing!D44<6,"","5 minutes are enough in excessive warm weather") ->  | H11: =IF(B11<>"",(0.005+(0.0000694*(Housing!D44-5)))*('Excel de Apoyo'!Q3-V10),0) -> 0 | I11: =H11*'Excel de Apoyo'!$P$33 -> 0 | J11: =H11*Energy!$C$24 -> 0 | K11: 0 | M11: =IF(B11<>"","Free","") ->  | N11: 0 | V11: =V12+H12 -> 0
B12: =IF(Housing!D43<>"",IF(OR(Housing!D43="Morning",Housing!D43="Night"),"","Ventilate when the weather is less warm"),"") ->  | H12: =IF(B12<>"",IF(H11<>"",H11,10*0.0000694),0) -> 0 | I12: =H12*'Excel de Apoyo'!$P$33 -> 0 | J12: =H12*Energy!$C$24 -> 0 | K12: 0 | L12: =IFERROR(K12/I12,"") ->  | M12: =IF(B12<>"","Free","") ->  | N12: 0 | V12: =V10+H10 -> 0
H13: =SUM(H5:H11) -> 0 | I13: =SUM(I5:I11) -> 0 | J13: =SUM(J5:J11) -> 0 | K13: =SUM(K5:K11) -> 0
B19: CDD | C19: =IF('Heating and cooling'!Q8>10,"Altos","Bajos") -> 
B20: AC | C20: =IF(OR(AND('Heating and cooling'!C50="Yes",'Heating and cooling'!F50>0),AND('Heating and cooling'!C53="Yes",'Heating and cooling'!F53>0)),"Si","") -> 

Sheet EE Appliances and Lighting
R4: Old System
B5: TIPS | H5: Potential savings (kWh) | I5: Potential savings (€) | J5: Potential savings (kCO2) | K5: Potential investment | L5: Payback | M5: Type of measure | N5: Price | Q5: Price per W | R5: Incadescent or Halogen | S5: Low consumption light bulbs | V5: Potential savings (kWh) | W5: Potential savings (€) | X5: Potential savings (kCO2) | Y5: Potential investment
B6: =IF(OR('Appliances and Lighting'!H13="Stand by mode",'Appliances and Lighting'!H14="Stand by mode",'Appliances and Lighting'!H15="Stand by mode",'Appliances and Lighting'!H16="Stand by mode"),"Switch off completely appliances with stand-by ","") ->  | H6: =IF(B6="",0,0.1*'Excel de Apoyo'!Q5*(COUNTIF('Appliances and Lighting'!H13:H16,"Stand by mode")/4)) -> 0 | I6: =IFERROR(H6*Energy!$AF$5,0) -> 0 | J6: =H6*Energy!$C$24 -> 0 | K6: 0 | L6: =IFERROR(K6/I6,"") ->  | M6: =IF(B6<>"","Free","") ->  | N6: 0 | P6: New System | Q6: LED light bulbs | R6: 0.29 | S6: 0.94 | U6: Free | V6: =H6+H10 -> 0 | W6: =I6+I10 -> 0 | X6: 0 | Y6: 0
B7: =IF(OR(AND(OR('Appliances and Lighting'!C22="Yes",'Appliances and Lighting'!C26="Yes"),(('Appliances and Lighting'!E23+'Appliances and Lighting'!E26)*50)>1000),AND(OR('Appliances and Lighting'!C25="Yes",'Appliances and Lighting'!C23="Yes"),(('Appliances and Lighting'!E25+'Appliances and Lighting'!E22)*50)>2000)),"Changes light bulbs for LED technology",IF(AND(OR('Appliances and Lighting'!C22="Yes",'Appliances and Lighting'!C26="Yes"),(('Appliances and Lighting'!E23+'Appliances and Lighting'!E26)*50)>100),"Change the light bulbs for low consumption ones",IF((('Appliances and Lighting'!E22+'Appliances and Lighting'!E26)*50)>50,"Change progressively to a low consumption lighting system",""))) ->  | H7: =IFERROR('Appliances and Lighting'!L27,0) -> 0 | I7: ='Appliances and Lighting'!M27+H7*'Excel de Apoyo'!P33 -> 0 | J7: =H7*Energy!$C$24 -> 0 | K7: ='Appliances and Lighting'!J27 -> 0 | L7: =IFERROR(K7/I7,"") ->  | M7: =IF(B7<>"","Low investment","") ->  | Q7: Low consumption light bulbs | R7: 0.09 | S7: - | U7: Low | V7: =H7+H8 -> 0 | W7: =I7+I8 -> 0 | X7: 0 | Y7: 0
B8: =IF(OR('Appliances and Lighting'!C34>0,'Appliances and Lighting'!C35>0,'Appliances and Lighting'!C36>0,'Appliances and Lighting'!C37>0,'Appliances and Lighting'!C38>0,'Appliances and Lighting'!C39>0),"Always check the Energy Label when purchasing new appliances ","") ->  | H8: =IF(B8<>"",('Appliances and Lighting'!E3*VLOOKUP('Appliances and Lighting'!G3,'Etiqueta Energética'!B3:C13,2,FALSE))+('Appliances and Lighting'!E4*VLOOKUP('Appliances and Lighting'!G4,'Etiqueta Energética'!D3:E13,2,FALSE))+('Appliances and Lighting'!E5*VLOOKUP('Appliances and Lighting'!G5,'Etiqueta Energética'!L3:M13,2,FALSE))+('Appliances and Lighting'!E10*VLOOKUP('Appliances and Lighting'!G10,'Etiqueta Energética'!F3:G13,2,FALSE))+('Appliances and Lighting'!E11*VLOOKUP('Appliances and Lighting'!G11,'Etiqueta Energética'!J3:K13,2,FALSE))+('Appliances and Lighting'!E12*VLOOKUP('Appliances and Lighting'!G12,'Etiqueta Energética'!H3:I13,2,FALSE))+('Appliances and Lighting'!I13*VLOOKUP('Appliances and Lighting'!G13,'Etiqueta Energética'!B16:C26,2,FALSE)),0) -> 0 | I8: =H8*'Excel de Apoyo'!P33 -> 0 | J8: =H8*Energy!$C$24 -> 0 | K8: 0 | M8: =IF(B8<>"","Low investment","") ->  | U8: High | V8: =H9 -> 0 | W8: =I9 -> 0 | X8: 0 | Y8: 0
B9: =IF(AND('Appliances and Lighting'!C7="Yes",'Appliances and Lighting'!E7>2),"Install induction cooking system","") ->  | H9: =IF(B9<>"",0.5*'Appliances and Lighting'!I7,0) -> 0 | I9: =H9*'Excel de Apoyo'!P33 -> 0 | J9: =H9*Energy!$C$24 -> 0 | K9: =IF(B9<>"",N9,0) -> 0 | M9: =IF(B9<>"","High investment","") ->  | N9: 740 | O9: per induction system
B10: Check the FEE Guide and you will find new ways to save money | K10: =IF(B10<>"",0,"") -> 0 | M10: =IF(B10<>"","Free","") -> Free | N10: 0
H11: =SUM(H6:H10) -> 0 | I11: =SUM(I6:I10) -> 0 | J11: 0 | K11: 0

Sheet Statistics
E2: Estimated Consumption (kWh) | G2: %
E3: Lighting | F3: ='Excel de Apoyo'!N2 -> 0 | G3: =F3/$F$10 -> 
E4: Cooling | F4: ='Excel de Apoyo'!N3 -> 0 | G4: =F4/$F$10 ->  | I4: Fuel : real consumption | J4: Electricity: real consumption (kWh) | K4: Electricity: estimated consumption (kWh) | L4: error % | M4: Quality of the estimate
E5: Appliances | F5: ='Excel de Apoyo'!N5 -> 0 | G5: =F5/$F$10 ->  | I5: ='Excel de Apoyo'!P21 -> 0 | J5: ='Excel de Apoyo'!P20 -> 0 | K5: =SUM(F3:F5)+'Excel de Apoyo'!N4 -> 0 | L5: =(J5-K5)/J5 ->  | M5: =IF(ABS(L5)<0.05,"Good","Bad") -> 
E7: Heating | F7: ='Excel de Apoyo'!N4+'Excel de Apoyo'!D2-IF(Energy!P18>0.01,0,'Excel de Apoyo'!Q6) -> 0 | G7: =F7/$F$10 -> 
E8: DHW | F8: =IF(Energy!P18>0.01,Energy!P18,'Excel de Apoyo'!Q6) -> 0 | G8: =F8/$F$10 -> 
E10: TOTAL | F10: =SUM(F3:F8) -> 0 | G10: =SUM(G3:G8) -> 
B42: Performance | D42: kWh/m2 | E42: kCO2/m2 | F42: euro/m2 | G42: kWh/occupant | H42: kWh/occupant-hour | I42: Improvement
B43: Initial | D43: ='Excel de Apoyo'!Q7/Housing!C14 ->  | E43: ='Excel de Apoyo'!Q31/Housing!C14 ->  | F43: ='Excel de Apoyo'!R31/Housing!C14 ->  | G43: ='Excel de Apoyo'!Q7/Family!B13 ->  | H43: ='Excel de Apoyo'!Q7/(SUM(Family!F3:F12)*50) ->  | I43: =((D43*0.2+E43*0.2+F43*0.2+G43*0.2+H43*0.2)-(D46*0.2+E46*0.2+F46*0.2+G46*0.2+H46*0.2))/(D43*0.2+E43*0.2+F43*0.2+G43*0.2+H43*0.2) -> 
B44: Optimal
B45: Difference with optimal | D45: =IF(D406="","",(D43-D44)/D43) ->  | E45: =IF(E406="","",(E43-E44)/E43) -> 
B46: Potential | D46: =('Excel de Apoyo'!Q7-SUM('Savings Indicator'!D21:E23))/Housing!C14 ->  | E46: =('Excel de Apoyo'!Q31-'Savings Indicator'!D26)/Housing!C14 ->  | F46: =('Excel de Apoyo'!R31-'Optimal Power'!G8-Heating!H23-Cooling!I13-'EE Appliances and Lighting'!J11)/Housing!C14 ->  | G46: =('Excel de Apoyo'!Q7-SUM('Savings Indicator'!D21:E23))/Family!B13 ->  | H46: =('Excel de Apoyo'!Q7-SUM('Savings Indicator'!D21:E23))/(SUM(Family!F3:F12)*50) -> 

Sheet Savings Indicator
B5: AUDIT | G5: QUESTIONNAIRE
B7: ID Audit | D7: =Identification!B2 -> 0 | G7: Date of the questionnaire
B8: Data about the dwelling and energy consumption | C8: Size of dwelling (m2) | D8: =Housing!C14 -> 0 | H8: Electricity | I8: Fuel
C9: Electricity power (kW) | D9: =Energy!C29 -> 0 | G9: ACTUAL energy saving (behavioural) [kWh]
C10: Electricity consumption (kWh) | D10: ='Excel de Apoyo'!P20 -> 0 | G10: ACTUAL energy saving (small purchase) [kWh]
C11: Eletricity cost (€/kWh) | D11: =IFERROR('Excel de Apoyo'!Q46,0) ->  | G11: ACTUAL energy saving (large investments) [kWh]
C12: Fuel | D12: =IFERROR(IF(AND(AVERAGE('Excel de Apoyo'!A21:A30)=0,'Excel de Apoyo'!P20>0.5),'Excel de Apoyo'!B20,VLOOKUP(1,'Excel de Apoyo'!A21:B26,2,FALSE)),"-") -> - | H12: Electricity | I12: Heat
C13: Fuel consumption (kWh) | D13: =SUM('Excel de Apoyo'!P21:P30) -> 0 | G13: ACTUAL Energy from Renewable Energy Sources [kWh]
C14: Fuel cost (€/kWh) | D14: =IFERROR(AVERAGE('Excel de Apoyo'!Q47:Q56),"-") -> - | G14: ACTUAL C02 savings [kg]
C15: Members living in the household | D15: =Family!B13 -> 0 | G15: ACTUAL investment for energy saving (small purchase) [€]
C16: How many of them are children? | D16: =SUM(Family!G3:G12) -> 0 | G16: ACTUAL investment for energy saving (large investment) [€]
C17: Is it Social Housing? | D17: =IF(Family!C16<>"","Yes","No") -> No | G17: ACTUAL investment for Renewable Energy Sources [€]
B18: Data about the AUDIT and POTENTIAL energy saving | C18: Date of the energy audit | D18: =Identification!B15 -> 00:00:00
C19: Time required for the energy audit | D19: =Identification!B20 -> 00:00:00
D20: Electricity | E20: Fuel | G20: Report Language: | H20: English
C21: POTENTIAL energy saving (behavioural) (kWh) | D21: =IFERROR(Cooling!R5+'EE Appliances and Lighting'!V6+(Heating!Q6*(IF(('Excel de Apoyo'!N4/'Excel de Apoyo'!Q4)>1,1,'Excel de Apoyo'!N4/'Excel de Apoyo'!Q4))),0) -> 0 | E21: =IFERROR(Heating!Q6*(1-IF(('Excel de Apoyo'!N4/'Excel de Apoyo'!Q4)>1,1,'Excel de Apoyo'!N4/'Excel de Apoyo'!Q4)),0) -> 0
C22: POTENTIAL energy saving (small purchase) (kWh) | D22: =IFERROR('Optimal Power'!G8+Cooling!R6+'EE Appliances and Lighting'!V7+(Heating!Q7*(IF(('Excel de Apoyo'!N4/'Excel de Apoyo'!Q4)>1,1,'Excel de Apoyo'!N4/'Excel de Apoyo'!Q4))),0) -> 0 | E22: =IF(OR(Heating!C32="Si",Heating!C33="Si"),0,Heating!Q7) -> 0
C23: POTENTIAL energy saving (large investments) (kWh) | D23: =IFERROR(Cooling!R7+'EE Appliances and Lighting'!V8+(Heating!Q8*(IF(('Excel de Apoyo'!N4/'Excel de Apoyo'!Q4)>1,1,'Excel de Apoyo'!N4/'Excel de Apoyo'!Q4))),0) -> 0 | E23: =IF(OR(Heating!C32="Si",Heating!C33="Si"),0,Heating!Q8) -> 0
D24: Electricity | E24: Heat
C25: POTENTIAL energy generation from RES (kWh electricity / kWh heat) | D25: =PV!N61 -> 0 | E25: =IFERROR(('DHW-ST'!N80*1.162222222)+(IF(Heating!B8<>"",'Excel de Apoyo'!Q4,0)),0) -> 0
C26: POTENTIAL C02 savings (kilograms) | D26: =Heating!I23+Cooling!J13+'EE Appliances and Lighting'!J11 -> 0
C27: POTENTIAL investment for energy saving (small purchase) (€) | D27: ='Optimal Power'!H8+Heating!T7+Cooling!U6+'EE Appliances and Lighting'!Y7 -> 0 | G27: =IF(SUM(D21:D23)>(0.9*Energy!P5),"The estimated electricity savings are higher than 90% of the actual consumption. Please check the audit.","") -> 
C28: POTENTIAL investment for energy saving (large investment) (€) | D28: =Heating!T8+Cooling!U7+'EE Appliances and Lighting'!Y8 -> 0 | G28: =IF(SUM(E21:E23)>(0.9*SUM('Excel de Apoyo'!P21:P28)),"The estimated fuel savings are higher than 90% of actual consumption. Please check the audit.","") -> 
C29: POTENTIAL investment for Renewable Energy Sources (€) | D29: =Heating!T9+PV!H72 -> 0

Sheet Etiqueta Energética (hidden)
C2: Frigorificos o combi | E2: Congeladores | G2: Lavadoras | I2: Lavavajillas | K2: Secadoras | M2: Horno
A3: Ahorro por hora de uso | B3: 0 | C3: 0 | D3: 0 | E3: 0 | F3: 0 | G3: 0 | H3: 0 | I3: 0 | J3: 0 | K3: 0 | L3: 0 | M3: 0
B4: A+++ | C4: 0 | D4: A+++ | E4: 0 | F4: A+++ | G4: 0 | H4: A+++ | I4: 0 | J4: A+++ | K4: 0 | L4: A+++ | M4: 0
B5: A++ | C5: 0 | D5: A++ | E5: 0 | F5: A++ | G5: 0 | H5: A++ | I5: 0 | J5: A++ | K5: 0 | L5: A++ | M5: 0
B6: A+ | C6: 0 | D6: A+ | E6: 0 | F6: A+ | G6: 0 | H6: A+ | I6: 0 | J6: A+ | K6: 0 | L6: A+ | M6: 0
B7: A | C7: 0 | D7: A | E7: 0 | F7: A | G7: 0 | H7: A | I7: 0 | J7: A | K7: 0 | L7: A | M7: 30.66666667
B8: B | C8: 1.178571429 | D8: B | E8: 2.113095238 | F8: B | G8: 20.8 | H8: B | I8: 22.12653061 | J8: B | K8: 0 | L8: B | M8: 43
B9: C | C9: 1.625 | D9: C | E9: 2.916666667 | F9: C | G9: 27.57575758 | H9: C | I9: 29.44897959 | J9: C | K9: 69.55 | L9: C | M9: 56
B10: D | C10: 1.958333333 | D10: D | E10: 3.511904762 | F10: D | G10: 35.45454545 | H10: D | I10: 37.24897959 | J10: D | K10: 74.1 | L10: D | M10: =(($M$13-$M$9)/4)+M9 -> 66.41666667
B11: E | C11: =((C$13-C$10)/3)+C10 -> 2.291666667 | D11: E | E11: =((E$13-E$10)/3)+E10 -> 4.111111111 | F11: E | G11: =((G$13-G$10)/3)+G10 -> 41.07474747 | H11: E | I11: =((I$13-I$10)/3)+I10 -> 42.97959184 | J11: E | K11: 84.0125 | L11: E | M11: =(($M$13-$M$9)/4)+M10 -> 76.83333333
B12: F | C12: =(($C$13-$C$10)/3)+C11 -> 2.625 | D12: F | E12: =(($C$13-$C$10)/3)+E11 -> 4.444444444 | F12: F | G12: =(($C$13-$C$10)/3)+G11 -> 41.40808081 | H12: F | I12: =(($C$13-$C$10)/3)+I11 -> 43.31292517 | J12: F | K12: =((K13-K11)/2+K11) -> 100.1 | L12: F | M12: =(($M$13-$M$9)/4)+M11 -> 87.25
B13: G | C13: 2.958333333 | D13: G | E13: 5.30952381 | F13: G | G13: 52.31515152 | H13: G | I13: 54.44081633 | J13: G | K13: 116.1875 | L13: G | M13: 97.66666667
C15: TV
A16: ahorros respecto a A+++ | B16: 0 | C16: 0
B17: A+++ | C17: 0
B18: A++ | C18: 0
B19: A+ | C19: 0.375
B20: A | C20: 0.5652173913
B21: B | C21: 0.6666666667
B22: C | C22: 0.7619047619
B23: D | C23: 0.8333333333
B24: E | C24: 0.875
B25: F | C25: 0.8888888889
B26: G | C26: 0.9

Sheet Excel de Apoyo (hidden)
C1: % | D1: kWh | M1: % | N1: kWh teoricos | O1: kWh | Q1: KWh Total | R1: % TOTAL
B2: Heating & Hot Water | C2: =D2/$N$7 ->  | D2: =(P21+P22+P23-'Appliances and Lighting'!H19)+'Excel de Apoyo'!P24+'Excel de Apoyo'!P25+'Excel de Apoyo'!P26+'Excel de Apoyo'!P27+'Excel de Apoyo'!P28+'Excel de Apoyo'!P29+'Excel de Apoyo'!P30 -> 0 | E2: Combustible | L2: Lighting | M2: =N2/$N$7 ->  | N2: =SUM('Appliances and Lighting'!I22:I26) -> 0 | O2: =M2*$O$7 ->  | P2: Electricidad | Q2: =O2 ->  | R2: =Q2/$Q$7 ->  | T2: =Q2/N2 -> 
L3: Cooling | M3: =N3/$N$7 ->  | N3: =SUM('Heating and cooling'!I50:I56)+Energy!P19 -> 0 | O3: =M3*$O$7 ->  | P3: Electricidad | Q3: =O3 ->  | R3: =Q3/$Q$7 -> 
J4: =D2/(D2+N4) ->  | K4: =N4/(N4+D2) ->  | L4: Heating | M4: =N4/$N$7 ->  | N4: =SUM('Heating and cooling'!I19:I22,'Heating and cooling'!I25:I26,'Heating and cooling'!I31,'Heating and cooling'!I33,'Heating and cooling'!J65) -> 0 | O4: =M4*$O$7 ->  | P4: Electricidad | Q4: =IFERROR(O4+D2-Q6,D2) -> 0 | R4: =Q4/$Q$7 -> 
L5: Appliances | M5: =N5/$N$7 ->  | N5: =SUM('Appliances and Lighting'!I3:I15) -> 0 | O5: =M5*$O$7 ->  | P5: Electricidad | Q5: =O5 ->  | R5: =Q5/$Q$7 ->  | T5: =Q5/N5 -> 
L6: Domestic hot water | Q6: =IF(OR(,'Heating and cooling'!C63="Yes",'Heating and cooling'!C65="Yes",'Heating and cooling'!C66="Yes",'Heating and cooling'!C67="Yes",'Heating and cooling'!C68="Yes",'Heating and cooling'!C69="Yes"),1.162*'DHW-ST'!N79,0) -> 0 | R6: =Q6/Q7 -> 
F7: Factores emisión | G7: kCO2/kWh | N7: =SUM(N2:N5) -> 0 | O7: =Energy!P5 -> 0 | Q7: =SUM(Q2:Q5)+Q6 -> 
C8: ERR | D8: COP | F8: Natural Gas | G8: 0.202
B9: A+++ | C9: 4.1 | D9: 4.6 | F9: Butane | G9: 0.223 | S9: Leyenda del grafico 'Savings by type'
B10: A++ | C10: 3.6 | D10: 4.1 | F10: Propane | G10: 0.219 | L10: Total m2 ventanas | M10: =SUM(Housing!C56:U56)/(100*100) -> 0 | S10: Potential energy saving behavioural (kWh) | V10: ='Savings Indicator'!D21+'Savings Indicator'!E21 -> 0
B11: A+ | C11: 3.1 | D11: 3.6 | F11: Diesel | G11: 0.267 | L11: Total perimetro ventanas | M11: =(SUM(Housing!C57:U57)/100) -> 0 | S11: Potential energy saving with small purchase tip (kWh) | V11: ='Savings Indicator'!D22+'Savings Indicator'!E22 -> 0
B12: A | C12: 2.6 | D12: 3.1 | M12: total | N12: co2 | S12: Potential energy saving with large investment (kWh) | V12: ='Savings Indicator'!D23+'Savings Indicator'!E23 -> 0
B13: B | C13: 2.4 | D13: 2.6 | F13: Conversion factor | G13: kWh/m3 | L13: Total savings | M13: =SUM('Savings Indicator'!D21:E23) -> 0 | O13: Potential carbon savings | P13: ='Savings Indicator'!D26 -> 0
B14: C | C14: 2.1 | D14: 2.4 | F14: Natural Gas | G14: =11.146*0.9051724 -> 10.08905157 | L14: Potential consumption | M14: =M15-M13 -> 0 | O14: Estimated carbon emissions | P14: =P15-P13 -> 0
B15: Malisimo | C15: 1.5 | D15: 1.5 | L15: Total Comsumptions kWh | M15: =SUM(P20:P30) -> 0 | P15: =Q31 -> 0
B19: ENERGY SUPPLY | C19: unit | D19: Jan | E19: Feb | F19: Mar | G19: Apr | H19: May | I19: Jun | J19: Jul | K19: Aug | L19: Sep | M19: Oct | N19: Nov | O19: Dec | P19: TOTAL | Q19: kCO2/año | R19: euros
B20: Electricity | C20: kWh | D20: =Energy!D5 -> 0 | E20: =Energy!E5 -> 0 | F20: =Energy!F5 -> 0 | G20: =Energy!G5 -> 0 | H20: =Energy!H5 -> 0 | I20: =Energy!I5 -> 0 | J20: =Energy!J5 -> 0 | K20: =Energy!K5 -> 0 | L20: =Energy!L5 -> 0 | M20: =Energy!M5 -> 0 | N20: =Energy!N5 -> 0 | O20: =Energy!O5 -> 0 | P20: =SUM(D20:O20) -> 0 | Q20: =P20*Energy!C24 -> 0 | R20: =P20*P33+Energy!AU5 -> 0
A21: =IF(P21>0,1,0) -> 0 | B21: Natural gas | C21: kWh | D21: =Energy!D10*IF(Energy!$C$10="kWh",1, $G$14) -> 0 | E21: =Energy!E10*IF(Energy!$C$10="kWh",1, $G$14) -> 0 | F21: =Energy!F10*IF(Energy!$C$10="kWh",1, $G$14) -> 0 | G21: =Energy!G10*IF(Energy!$C$10="kWh",1, $G$14) -> 0 | H21: =Energy!H10*IF(Energy!$C$10="kWh",1, $G$14) -> 0 | I21: =Energy!I10*IF(Energy!$C$10="kWh",1, $G$14) -> 0 | J21: =Energy!J10*IF(Energy!$C$10="kWh",1, $G$14) -> 0 | K21: =Energy!K10*IF(Energy!$C$10="kWh",1, $G$14) -> 0 | L21: =Energy!L10*IF(Energy!$C$10="kWh",1, $G$14) -> 0 | M21: =Energy!M10*IF(Energy!$C$10="kWh",1, $G$14) -> 0 | N21: =Energy!N10*IF(Energy!$C$10="kWh",1, $G$14) -> 0 | O21: =Energy!O10*IF(Energy!$C$10="kWh",1, $G$14) -> 0 | P21: =SUM(D21:O21) -> 0 | Q21: =P21*G8 -> 0 | R21: =P21*P34+Energy!AU6 -> 0
A22: 0 | B22: Propane | C22: kWh | D22: =Energy!D11*12.72 -> 0 | E22: =Energy!E11*12.72 -> 0 | F22: =Energy!F11*12.72 -> 0 | G22: =Energy!G11*12.72 -> 0 | H22: =Energy!H11*12.72 -> 0 | I22: =Energy!I11*12.72 -> 0 | J22: =Energy!J11*12.72 -> 0 | K22: =Energy!K11*12.72 -> 0 | L22: =Energy!L11*12.72 -> 0 | M22: =Energy!M11*12.72 -> 0 | N22: =Energy!N11*12.72 -> 0 | O22: =Energy!O11*12.72 -> 0 | P22: 0 | Q22: =P22*G9 -> 0 | R22: =P22*P35+Energy!AU7 -> 0
A23: 0 | B23: Butane | C23: kWh | D23: =Energy!D12*12.888 -> 0 | E23: =Energy!E12*12.888 -> 0 | F23: =Energy!F12*12.888 -> 0 | G23: =Energy!G12*12.888 -> 0 | H23: =Energy!H12*12.888 -> 0 | I23: =Energy!I12*12.888 -> 0 | J23: =Energy!J12*12.888 -> 0 | K23: =Energy!K12*12.888 -> 0 | L23: =Energy!L12*12.888 -> 0 | M23: =Energy!M12*12.888 -> 0 | N23: =Energy!N12*12.888 -> 0 | O23: =Energy!O12*12.888 -> 0 | P23: 0 | Q23: =P23*G10 -> 0 | R23: =P23*P36+Energy!AU8 -> 0
A24: 0 | B24: Diesel | C24: kWh | D24: =Energy!D13*9.97 -> 0 | E24: =Energy!E13*9.97 -> 0 | F24: =Energy!F13*9.97 -> 0 | G24: =Energy!G13*9.97 -> 0 | H24: =Energy!H13*9.97 -> 0 | I24: =Energy!I13*9.97 -> 0 | J24: =Energy!J13*9.97 -> 0 | K24: =Energy!K13*9.97 -> 0 | L24: =Energy!L13*9.97 -> 0 | M24: =Energy!M13*9.97 -> 0 | N24: =Energy!N13*9.97 -> 0 | O24: =Energy!O13*9.97 -> 0 | P24: 0 | Q24: =P24*G11 -> 0 | R24: =P24*P37+Energy!AU9 -> 0
A25: 0 | B25: Pellet | C25: kWh | D25: =Energy!D14*4.72 -> 0 | E25: =Energy!E14*4.72 -> 0 | F25: =Energy!F14*4.72 -> 0 | G25: =Energy!G14*4.72 -> 0 | H25: =Energy!H14*4.72 -> 0 | I25: =Energy!I14*4.72 -> 0 | J25: =Energy!J14*4.72 -> 0 | K25: =Energy!K14*4.72 -> 0 | L25: =Energy!L14*4.72 -> 0 | M25: =Energy!M14*4.72 -> 0 | N25: =Energy!N14*4.72 -> 0 | O25: =Energy!O14*4.72 -> 0 | P25: 0 | R25: =P25*P38+Energy!AU10 -> 0
A26: 0 | B26: Firewood | C26: kWh | D26: =4.1*Energy!D15 -> 0 | E26: =4.1*Energy!E15 -> 0 | F26: =4.1*Energy!F15 -> 0 | G26: =4.1*Energy!G15 -> 0 | H26: =4.1*Energy!H15 -> 0 | I26: =4.1*Energy!I15 -> 0 | J26: =4.1*Energy!J15 -> 0 | K26: =4.1*Energy!K15 -> 0 | L26: =4.1*Energy!L15 -> 0 | M26: =4.1*Energy!M15 -> 0 | N26: =4.1*Energy!N15 -> 0 | O26: =4.1*Energy!O15 -> 0 | P26: 0 | R26: =P26*P39+Energy!AU11 -> 0
B27: Central boiler | C27: kWh | D27: =Energy!D16 -> 0 | E27: =Energy!E16 -> 0 | F27: =Energy!F16 -> 0 | G27: =Energy!G16 -> 0 | H27: =Energy!H16 -> 0 | I27: =Energy!I16 -> 0 | J27: =Energy!J16 -> 0 | K27: =Energy!K16 -> 0 | L27: =Energy!L16 -> 0 | M27: =Energy!M16 -> 0 | N27: =Energy!N16 -> 0 | O27: =Energy!O16 -> 0 | P27: 0 | Q27: =IFERROR(S27*P27,"") ->  | R27: =P27*P40+Energy!AU12 -> 0 | S27: =IFERROR(VLOOKUP('Heating and cooling'!H11,'Excel de Apoyo'!F8:G11,2,FALSE),"") ->  | T27: =IF(AND('Heating and cooling'!C63="Yes",'Heating and cooling'!E63=""),VLOOKUP('Heating and cooling'!I63,'Excel de Apoyo'!F8:G11,2,FALSE),'Excel de Apoyo'!S27) -> 
B28: District heating | C28: kWh | D28: =Energy!D17 -> 0 | E28: =Energy!E17 -> 0 | F28: =Energy!F17 -> 0 | G28: =Energy!G17 -> 0 | H28: =Energy!H17 -> 0 | I28: =Energy!I17 -> 0 | J28: =Energy!J17 -> 0 | K28: =Energy!K17 -> 0 | L28: =Energy!L17 -> 0 | M28: =Energy!M17 -> 0 | N28: =Energy!N17 -> 0 | O28: =Energy!O17 -> 0 | P28: 0 | R28: =P28*P41+Energy!AU13 -> 0
B29: District heating- Sanitary hot water | C29: kWh | D29: =Energy!D18 -> 0 | E29: =Energy!E18 -> 0 | F29: =Energy!F18 -> 0 | G29: =Energy!G18 -> 0 | H29: =Energy!H18 -> 0 | I29: =Energy!I18 -> 0 | J29: =Energy!J18 -> 0 | K29: =Energy!K18 -> 0 | L29: =Energy!L18 -> 0 | M29: =Energy!M18 -> 0 | N29: =Energy!N18 -> 0 | O29: =Energy!O18 -> 0 | P29: 0 | R29: =P29*P42+Energy!AU14 -> 0
B30: District cooling | C30: kWh | D30: =Energy!D19 -> 0 | E30: =Energy!E19 -> 0 | F30: =Energy!F19 -> 0 | G30: =Energy!G19 -> 0 | H30: =Energy!H19 -> 0 | I30: =Energy!I19 -> 0 | J30: =Energy!J19 -> 0 | K30: =Energy!K19 -> 0 | L30: =Energy!L19 -> 0 | M30: =Energy!M19 -> 0 | N30: =Energy!N19 -> 0 | O30: =Energy!O19 -> 0 | P30: 0 | R30: =P30*P43+Energy!AU15 -> 0
Q31: =SUM(Q20:Q30) -> 0 | R31: =SUM(R20:R30) -> 0
B32: Cost of energy | C32: unit | D32: Jan | E32: Feb | F32: Mar | G32: Apr | H32: May | I32: Jun | J32: Jul | K32: Aug | L32: Sep | M32: Oct | N32: Nov | O32: Dec | P32: Average
B33: Electricity | C33: €/kWh | D33: =Energy!T5 -> 0 | E33: =Energy!U5 -> 0 | F33: =Energy!V5 -> 0 | G33: =Energy!W5 -> 0 | H33: =Energy!X5 -> 0 | I33: =Energy!Y5 -> 0 | J33: =Energy!Z5 -> 0 | K33: =Energy!AA5 -> 0 | L33: =Energy!AB5 -> 0 | M33: =Energy!AC5 -> 0 | N33: =Energy!AD5 -> 0 | O33: =Energy!AE5 -> 0 | P33: =IFERROR(AVERAGE(D33:O33),0) -> 0
B34: Natural gas | C34: €/kWh | D34: =Energy!T10/(IF(Energy!$S$10="€/kWh",1,11.146)*0.9051724) -> 0 | E34: =Energy!U10/(IF(Energy!$S$10="€/kWh",1,11.146)*0.9051724) -> 0 | F34: =Energy!V10/(IF(Energy!$S$10="€/kWh",1,11.146)*0.9051724) -> 0 | G34: =Energy!W10/(IF(Energy!$S$10="€/kWh",1,11.146)*0.9051724) -> 0 | H34: =Energy!X10/(IF(Energy!$S$10="€/kWh",1,11.146)*0.9051724) -> 0 | I34: =Energy!Y10/(IF(Energy!$S$10="€/kWh",1,11.146)*0.9051724) -> 0 | J34: =Energy!Z10/(IF(Energy!$S$10="€/kWh",1,11.146)*0.9051724) -> 0 | K34: =Energy!AA10/(IF(Energy!$S$10="€/kWh",1,11.146)*0.9051724) -> 0 | L34: =Energy!AB10/(IF(Energy!$S$10="€/kWh",1,11.146)*0.9051724) -> 0 | M34: =Energy!AC10/(IF(Energy!$S$10="€/kWh",1,11.146)*0.9051724) -> 0 | N34: =Energy!AD10/(IF(Energy!$S$10="€/kWh",1,11.146)*0.9051724) -> 0 | O34: =Energy!AE10/(IF(Energy!$S$10="€/kWh",1,11.146)*0.9051724) -> 0 | P34: =IF(AND(SUM(D34:O34)=0,Heating!C25="Central",Heating!C33="Si"),'Excel de Apoyo'!P40,AVERAGE(D34:O34)) -> 0
B35: Propane | C35: €/kWh | D35: =Energy!T11/12.72 -> 0 | E35: =Energy!U11/12.72 -> 0 | F35: =Energy!V11/12.72 -> 0 | G35: =Energy!W11/12.72 -> 0 | H35: =Energy!X11/12.72 -> 0 | I35: =Energy!Y11/12.72 -> 0 | J35: =Energy!Z11/12.72 -> 0 | K35: =Energy!AA11/12.72 -> 0 | L35: =Energy!AB11/12.72 -> 0 | M35: =Energy!AC11/12.72 -> 0 | N35: =Energy!AD11/12.72 -> 0 | O35: =Energy!AE11/12.72 -> 0 | P35: =AVERAGE(D35:O35) -> 0
B36: Butane | C36: €/kWh | D36: =Energy!T12/12.888 -> 0 | E36: =Energy!U12/12.888 -> 0 | F36: =Energy!V12/12.888 -> 0 | G36: =Energy!W12/12.888 -> 0 | H36: =Energy!X12/12.888 -> 0 | I36: =Energy!Y12/12.888 -> 0 | J36: =Energy!Z12/12.888 -> 0 | K36: =Energy!AA12/12.888 -> 0 | L36: =Energy!AB12/12.888 -> 0 | M36: =Energy!AC12/12.888 -> 0 | N36: =Energy!AD12/12.888 -> 0 | O36: =Energy!AE12/12.888 -> 0 | P36: 0
B37: Diesel | C37: €/kWh | D37: =Energy!T13/9.97 -> 0 | E37: =Energy!U13/9.97 -> 0 | F37: =Energy!V13/9.97 -> 0 | G37: =Energy!W13/9.97 -> 0 | H37: =Energy!X13/9.97 -> 0 | I37: =Energy!Y13/9.97 -> 0 | J37: =Energy!Z13/9.97 -> 0 | K37: =Energy!AA13/9.97 -> 0 | L37: =Energy!AB13/9.97 -> 0 | M37: =Energy!AC13/9.97 -> 0 | N37: =Energy!AD13/9.97 -> 0 | O37: =Energy!AE13/9.97 -> 0 | P37: =IF(AND(SUM(D37:O37)=0,Heating!C25="Central",Heating!C34="Si"),'Excel de Apoyo'!P40,AVERAGE(D37:O37)) -> 0
B38: Pellet | C38: €/kWh | D38: =Energy!T14/4.72 -> 0 | E38: =Energy!U14/4.72 -> 0 | F38: =Energy!V14/4.72 -> 0 | G38: =Energy!W14/4.72 -> 0 | H38: =Energy!X14/4.72 -> 0 | I38: =Energy!Y14/4.72 -> 0 | J38: =Energy!Z14/4.72 -> 0 | K38: =Energy!AA14/4.72 -> 0 | L38: =Energy!AB14/4.72 -> 0 | M38: =Energy!AC14/4.72 -> 0 | N38: =Energy!AD14/4.72 -> 0 | O38: =Energy!AE14/4.72 -> 0 | P38: 0
B39: Firewood | C39: €/kWh | D39: =Energy!T15/4.1 -> 0 | E39: =Energy!U15/4.1 -> 0 | F39: =Energy!V15/4.1 -> 0 | G39: =Energy!W15/4.1 -> 0 | H39: =Energy!X15/4.1 -> 0 | I39: =Energy!Y15/4.1 -> 0 | J39: =Energy!Z15/4.1 -> 0 | K39: =Energy!AA15/4.1 -> 0 | L39: =Energy!AB15/4.1 -> 0 | M39: =Energy!AC15/4.1 -> 0 | N39: =Energy!AD15/4.1 -> 0 | O39: =Energy!AE15/4.1 -> 0 | P39: 0
B40: Central boiler | C40: €/kWh | D40: =Energy!T16 -> 0 | E40: =Energy!U16 -> 0 | F40: =Energy!V16 -> 0 | G40: =Energy!W16 -> 0 | H40: =Energy!X16 -> 0 | I40: =Energy!Y16 -> 0 | J40: =Energy!Z16 -> 0 | K40: =Energy!AA16 -> 0 | L40: =Energy!AB16 -> 0 | M40: =Energy!AC16 -> 0 | N40: =Energy!AD16 -> 0 | O40: =Energy!AE16 -> 0 | P40: 0
B41: District heating | C41: €/kWh | D41: =Energy!T17 -> 0 | E41: =Energy!U17 -> 0 | F41: =Energy!V17 -> 0 | G41: =Energy!W17 -> 0 | H41: =Energy!X17 -> 0 | I41: =Energy!Y17 -> 0 | J41: =Energy!Z17 -> 0 | K41: =Energy!AA17 -> 0 | L41: =Energy!AB17 -> 0 | M41: =Energy!AC17 -> 0 | N41: =Energy!AD17 -> 0 | O41: =Energy!AE17 -> 0 | P41: 0
B42: District heating- Sanitary hot water | C42: €/kWh | D42: =Energy!T18 -> 0 | E42: =Energy!U18 -> 0 | F42: =Energy!V18 -> 0 | G42: =Energy!W18 -> 0 | H42: =Energy!X18 -> 0 | I42: =Energy!Y18 -> 0 | J42: =Energy!Z18 -> 0 | K42: =Energy!AA18 -> 0 | L42: =Energy!AB18 -> 0 | M42: =Energy!AC18 -> 0 | N42: =Energy!AD18 -> 0 | O42: =Energy!AE18 -> 0 | P42: 0
B43: District cooling | C43: €/kWh | D43: =Energy!T19 -> 0 | E43: =Energy!U19 -> 0 | F43: =Energy!V19 -> 0 | G43: =Energy!W19 -> 0 | H43: =Energy!X19 -> 0 | I43: =Energy!Y19 -> 0 | J43: =Energy!Z19 -> 0 | K43: =Energy!AA19 -> 0 | L43: =Energy!AB19 -> 0 | M43: =Energy!AC19 -> 0 | N43: =Energy!AD19 -> 0 | O43: =Energy!AE19 -> 0 | P43: 0
B45: TOTAL Cost of energy | C45: unit | D45: Jan | E45: Feb | F45: Mar | G45: Apr | H45: May | I45: Jun | J45: Jul | K45: Aug | L45: Sep | M45: Oct | N45: Nov | O45: Dec | P45: TOTAL
B46: Electricity | C46: € | D46: =D20*D33+Energy!AI5 -> 0 | E46: =E20*E33+Energy!AJ5 -> 0 | F46: =F20*F33+Energy!AK5 -> 0 | G46: =G20*G33+Energy!AL5 -> 0 | H46: =H20*H33+Energy!AM5 -> 0 | I46: =I20*I33+Energy!AN5 -> 0 | J46: =J20*J33+Energy!AO5 -> 0 | K46: =K20*K33+Energy!AP5 -> 0 | L46: =L20*L33+Energy!AQ5 -> 0 | M46: =M20*M33+Energy!AR5 -> 0 | N46: =N20*N33+Energy!AS5 -> 0 | O46: =O20*O33+Energy!AT5 -> 0 | P46: =SUM(D46:O46) -> 0 | Q46: =IF(P46=0,"",P46/P20) -> 
B47: Natural gas | C47: € | D47: =D21*D34+Energy!AI6 -> 0 | E47: =E21*E34+Energy!AJ6 -> 0 | F47: =F21*F34+Energy!AK6 -> 0 | G47: =G21*G34+Energy!AL6 -> 0 | H47: =H21*H34+Energy!AM6 -> 0 | I47: =I21*I34+Energy!AN6 -> 0 | J47: =J21*J34+Energy!AO6 -> 0 | K47: =K21*K34+Energy!AP6 -> 0 | L47: =L21*L34+Energy!AQ6 -> 0 | M47: =M21*M34+Energy!AR6 -> 0 | N47: =N21*N34+Energy!AS6 -> 0 | O47: =O21*O34+Energy!AT6 -> 0 | P47: =SUM(D47:O47) -> 0 | Q47: =IF(P47=0,"",P47/P21) -> 
B48: Propane | C48: € | D48: =D22*D35+Energy!AI7 -> 0 | E48: =E22*E35+Energy!AJ7 -> 0 | F48: =F22*F35+Energy!AK7 -> 0 | G48: =G22*G35+Energy!AL7 -> 0 | H48: =H22*H35+Energy!AM7 -> 0 | I48: =I22*I35+Energy!AN7 -> 0 | J48: =J22*J35+Energy!AO7 -> 0 | K48: =K22*K35+Energy!AP7 -> 0 | L48: =L22*L35+Energy!AQ7 -> 0 | M48: =M22*M35+Energy!AR7 -> 0 | N48: =N22*N35+Energy!AS7 -> 0 | O48: =O22*O35+Energy!AT7 -> 0 | P48: 0
B49: Butane | C49: € | D49: =D23*D36+Energy!AI8 -> 0 | E49: =E23*E36+Energy!AJ8 -> 0 | F49: =F23*F36+Energy!AK8 -> 0 | G49: =G23*G36+Energy!AL8 -> 0 | H49: =H23*H36+Energy!AM8 -> 0 | I49: =I23*I36+Energy!AN8 -> 0 | J49: =J23*J36+Energy!AO8 -> 0 | K49: =K23*K36+Energy!AP8 -> 0 | L49: =L23*L36+Energy!AQ8 -> 0 | M49: =M23*M36+Energy!AR8 -> 0 | N49: =N23*N36+Energy!AS8 -> 0 | O49: =O23*O36+Energy!AT8 -> 0 | P49: 0
B50: Diesel | C50: € | D50: =D24*D37+Energy!AI9 -> 0 | E50: =E24*E37+Energy!AJ9 -> 0 | F50: =F24*F37+Energy!AK9 -> 0 | G50: =G24*G37+Energy!AL9 -> 0 | H50: =H24*H37+Energy!AM9 -> 0 | I50: =I24*I37+Energy!AN9 -> 0 | J50: =J24*J37+Energy!AO9 -> 0 | K50: =K24*K37+Energy!AP9 -> 0 | L50: =L24*L37+Energy!AQ9 -> 0 | M50: =M24*M37+Energy!AR9 -> 0 | N50: =N24*N37+Energy!AS9 -> 0 | O50: =O24*O37+Energy!AT9 -> 0 | P50: 0
B51: Pellet | C51: € | D51: =D25*D38+Energy!AI10 -> 0 | E51: =E25*E38+Energy!AJ10 -> 0 | F51: =F25*F38+Energy!AK10 -> 0 | G51: =G25*G38+Energy!AL10 -> 0 | H51: =H25*H38+Energy!AM10 -> 0 | I51: =I25*I38+Energy!AN10 -> 0 | J51: =J25*J38+Energy!AO10 -> 0 | K51: =K25*K38+Energy!AP10 -> 0 | L51: =L25*L38+Energy!AQ10 -> 0 | M51: =M25*M38+Energy!AR10 -> 0 | N51: =N25*N38+Energy!AS10 -> 0 | O51: =O25*O38+Energy!AT10 -> 0 | P51: 0
B52: Firewood | C52: € | D52: =D26*D39+Energy!AI11 -> 0 | E52: =E26*E39+Energy!AJ11 -> 0 | F52: =F26*F39+Energy!AK11 -> 0 | G52: =G26*G39+Energy!AL11 -> 0 | H52: =H26*H39+Energy!AM11 -> 0 | I52: =I26*I39+Energy!AN11 -> 0 | J52: =J26*J39+Energy!AO11 -> 0 | K52: =K26*K39+Energy!AP11 -> 0 | L52: =L26*L39+Energy!AQ11 -> 0 | M52: =M26*M39+Energy!AR11 -> 0 | N52: =N26*N39+Energy!AS11 -> 0 | O52: =O26*O39+Energy!AT11 -> 0 | P52: 0
B53: Central boiler | C53: € | D53: =D27*D40+Energy!AI12 -> 0 | E53: =E27*E40+Energy!AJ12 -> 0 | F53: =F27*F40+Energy!AK12 -> 0 | G53: =G27*G40+Energy!AL12 -> 0 | H53: =H27*H40+Energy!AM12 -> 0 | I53: =I27*I40+Energy!AN12 -> 0 | J53: =J27*J40+Energy!AO12 -> 0 | K53: =K27*K40+Energy!AP12 -> 0 | L53: =L27*L40+Energy!AQ12 -> 0 | M53: =M27*M40+Energy!AR12 -> 0 | N53: =N27*N40+Energy!AS12 -> 0 | O53: =O27*O40+Energy!AT12 -> 0 | P53: 0
B54: District heating | C54: € | D54: =D28*D41+Energy!AI13 -> 0 | E54: =E28*E41+Energy!AJ13 -> 0 | F54: =F28*F41+Energy!AK13 -> 0 | G54: =G28*G41+Energy!AL13 -> 0 | H54: =H28*H41+Energy!AM13 -> 0 | I54: =I28*I41+Energy!AN13 -> 0 | J54: =J28*J41+Energy!AO13 -> 0 | K54: =K28*K41+Energy!AP13 -> 0 | L54: =L28*L41+Energy!AQ13 -> 0 | M54: =M28*M41+Energy!AR13 -> 0 | N54: =N28*N41+Energy!AS13 -> 0 | O54: =O28*O41+Energy!AT13 -> 0 | P54: 0
B55: District heating- Sanitary hot water | C55: € | D55: =D29*D42+Energy!AI14 -> 0 | E55: =E29*E42+Energy!AJ14 -> 0 | F55: =F29*F42+Energy!AK14 -> 0 | G55: =G29*G42+Energy!AL14 -> 0 | H55: =H29*H42+Energy!AM14 -> 0 | I55: =I29*I42+Energy!AN14 -> 0 | J55: =J29*J42+Energy!AO14 -> 0 | K55: =K29*K42+Energy!AP14 -> 0 | L55: =L29*L42+Energy!AQ14 -> 0 | M55: =M29*M42+Energy!AR14 -> 0 | N55: =N29*N42+Energy!AS14 -> 0 | O55: =O29*O42+Energy!AT14 -> 0 | P55: 0
B56: District cooling | C56: € | D56: =D30*D43+Energy!AI15 -> 0 | E56: =E30*E43+Energy!AJ15 -> 0 | F56: =F30*F43+Energy!AK15 -> 0 | G56: =G30*G43+Energy!AL15 -> 0 | H56: =H30*H43+Energy!AM15 -> 0 | I56: =I30*I43+Energy!AN15 -> 0 | J56: =J30*J43+Energy!AO15 -> 0 | K56: =K30*K43+Energy!AP15 -> 0 | L56: =L30*L43+Energy!AQ15 -> 0 | M56: =M30*M43+Energy!AR15 -> 0 | N56: =N30*N43+Energy!AS15 -> 0 | O56: =O30*O43+Energy!AT15 -> 0 | P56: 0
B59: Tip | C59: Tip | D59: Tips English | E59: Impact English | F59: Tips Spanish | G59: Impact Spanish | H59: Tips Cyprus | I59: Impact Cyprus | J59: Tips Italy | K59: Impact Italy | L59: Tips Croatia | M59: Impact Croatia | N59: Tips Bulgaria | O59: Impact Bulgaria
B60: Tip 1 | C60: Change your actual power for the optimal power. | D60: Change your actual power for the optimal power. Sometimes it will be enough if you just don't use some appliances at the same time. | E60: ="You will save about " & ROUND('Optimal Power'!G8,2) & " €) per year. The price of reducing your power is around " & ROUND('Optimal Power'!H8,2) & " € (please request information to find out the exact cost for your case). The payback is " & ROUND('Optimal Power'!I8,0) & " years. " ->  | F60: Revisad y reducid la potencia eléctrica contratada. En ocasiones, bastará con no utilizar algunos electrodomésticos al mismo tiempo. | G60: ="Ahorraréis " & ROUND('Optimal Power'!G8,2) & " €) al año. El precio de reducir la potencia eléctrica es aproximadamente de " & ROUND('Optimal Power'!H8,2) & " € (vuestra compañía os informará del coste para vuestro caso concreto). Recuperarás la inversión aproximadamente en " & ROUND('Optimal Power'!I8,0) & " años. " ->  | H60: Αλλάξτε την πραγματική ισχύ σας για τη βέλτιστη ισχύ. Μερικές φορές είναι αρκετό απλά το να μην χρησιμοποιείτε κάποιες συσκευές ταυτόχρονα. | I60: ="Θα εξοικονομήσετε " & ROUND('Optimal Power'!G8,2) & " € τον χρόνο. Το κόστος για να μειώσετε της ισχύς σας είναι περίπου € " & ROUND('Optimal Power'!H8,2) & " (παρακαλούμε να ζητήσετε προσφορές για να μάθετε το ακριβές κόστος για την περίπτωσή σας). Η απόσβεση της επένδυσης σας είναι " & ROUND('Optimal Power'!I8,0) & " χρόνια. " ->  | J60: Abbassa la potenza contrattuale adattandola ai tuoi bisogni. Per evitare interruzioni sarà sufficiente non utilizzare tutti gli elettrodomestici contemporaneamente. | K60: ="Risparmierai " & ROUND('Optimal Power'!G8,2) & " € all'anno. Il costo del cambio di potenza ammonta a circa " & ROUND('Optimal Power'!H8,2) & " €. Il ritorno dell'investimento è pari a " & ROUND('Optimal Power'!I8,0) & " anni." ->  | L60: Promijenite svoju trenutnu potrošnju energije za optimalnu. Ponekad će biti dovoljno samo pripaziti da ne koristite neke aparate u isto vrijeme. | M60: ="Uštedjet ćete " & ROUND('Optimal Power'!G8,2) & " € godišnje. Vaš trošak pritom iznosi oko " & ROUND('Optimal Power'!H8,2) & " € (molimo vas da zatražite informacije kako bi saznali točan iznos za vaš slučaj). Jednostavan period povrata (JPP) ulaganja je " & ROUND('Optimal Power'!I8,0) & " godina. " ->  | N60: Оптимизирайте мощността си. Понякога е добре да не ползвате всички уреди по едно и също време. | O60: ="Ще спестите " & ROUND('Optimal Power'!G8,2) & " € на година. Цената на тази мярка е около " & ROUND('Optimal Power'!H8,2) & " € (потърсете по-подробна информация за точната цена във вашия случай). Срокът на изплащане е " & ROUND('Optimal Power'!I8,0) & " години." -> 
B61: Tip 2 | C61: 10 minutes are enough to ventilate in excessive cold weather. | D61: 10 minutes are enough to ventilate in excessive cold weather. Ventilation is needed to get fresh air in and let moisture and smell out. Open the windows daily. Please remember that the shorter, the better. | E61: ="You will save " & ROUND(Heating!G18,0) & " kWh (that’s worth about " & ROUND(Heating!H18,2) & " €) per year. You will help the environment by reducing your emissions in " & ROUND(Heating!I18,2) & " kgCO2 ." -> You will save 0 kWh (that’s worth about 0 €) per year. You will help the environment by reducing your emissions in 0 kgCO2 . | F61: Cuando hace frío, ventilar durante 10 minutos es suficiente. Ventilar es necesario para que se renueve el aire y para evitar los malos olores y la humedad. | G61: ="Ahorraréis " & ROUND(Heating!G18,0) & " kWh (lo que supone un ahorro de " & ROUND(Heating!H18,2) & " €) al año. Estaréis ayudando al medioambiente al reducir vuestras emisiones en " & ROUND(Heating!I18,0) & " kgCO2." -> Ahorraréis 0 kWh (lo que supone un ahorro de 0 €) al año. Estaréis ayudando al medioambiente al reducir vuestras emisiones en 0 kgCO2. | H61: 10 λεπτά είναι αρκετά για εξαερισμό σε μια αρκετά χαμηλή θερμοκρασία. Ο εξαερισμός χρειάζεται για να αναναιωθεί ο αέρας και να βγεί έξω η σκόνη. Ανοίγεται τα παράθυρα καθημερινά, αλλά όχι για μεγάλη διάρκεια. | I61: ="Θα εξοικονομήσετε " & ROUND(Heating!G18,0) & " kWh (Aυτό αντιστοιχεί σε περίπου " & ROUND(Heating!H18,2) & " €) τον χρόνο. Θα βοηθήσετε το περιβάλλον μειώνοντας τις εκπομπές σας κατά " & ROUND(Heating!I18,0) & " kgCO2." -> Θα εξοικονομήσετε 0 kWh (Aυτό αντιστοιχεί σε περίπου 0 €) τον χρόνο. Θα βοηθήσετε το περιβάλλον μειώνοντας τις εκπομπές σας κατά 0 kgCO2. | J61: Arieggia i locali di casa tua Arieggiare l’ambiente permette di diminuire i cattivi odori e soprattutto l’umidità. Apri le finestre ogni giorno e ricorda che d'inverno 10 minuti di solito sono sufficienti! | K61: ="Risparmierai fino a " & ROUND(Heating!G18,0) & " kWh , equivalenti a circa " & ROUND(Heating!H18,2) & " € all'anno. Aiuterai l'ambiente riducendo le tue emissioni di circa " & ROUND(Heating!I18,0) & " kgCO2." -> Risparmierai fino a 0 kWh , equivalenti a circa 0 € all'anno. Aiuterai l'ambiente riducendo le tue emissioni di circa 0 kgCO2. | L61: 10 minuta dovoljno je za provjetravanje u izuzetno hladnom vremenu. Provjetravanje je potrebno kako bi svjež zrak ušao, a vlaga i loši mirisi izašli iz prostorije. Svakodnevno otvarajte prozore. I podsjetite se, što kraće, to bolje. | M61: ="Uštedjet ćete " & ROUND(Heating!G18,0) & " kWh (što vrijedi oko " & ROUND(Heating!H18,2) & " €) godišnje. Pomoći ćete okolišu smanjenjem emisija " & ROUND(Heating!I18,0) & " kgCO2." -> Uštedjet ćete 0 kWh (što vrijedi oko 0 €) godišnje. Pomoći ćete okolišu smanjenjem emisija 0 kgCO2. | N61: 10 минути са достатъчни за проветряване в студени зимни дни. Проветряването е необходимо за да влезе свеж въздух и излязат влагата и миризмите. Отваряйте прозорците всеки ден. На кратки интервали е най-добре. | O61: ="Ще спестите " & ROUND(Heating!G18,0) & " кВтч (на стойност от " & ROUND(Heating!H18,2) & " €) на година. Ще намалите вредните емисии с " & ROUND(Heating!I18,0) & " kgCO2." -> Ще спестите 0 кВтч (на стойност от 0 €) на година. Ще намалите вредните емисии с 0 kgCO2.
B62: Tip 3 | C62: Ventilate in warmer hours (close to noon). | D62: Ventilate in warmer hours (close to noon). 10 minutes are generally enough! In winter do that during the last cold hours and turn the heating on only when ventilation is finished. | E62: ="You will save " & ROUND(Heating!G19,0) & " kWh (that’s worth about " & ROUND(Heating!H19,2) & " €) per year. You will help the environment by reducing your emissions in " & ROUND(Heating!I19,0) & " kgCO2." -> You will save 0 kWh (that’s worth about 0 €) per year. You will help the environment by reducing your emissions in 0 kgCO2. | F62: Cuando hace frío, ventilad en las horas menos frías (al mediodía). En invierno, recordad ventilar en las horas menos frías y esperar a encender la calefacción una vez hayáis terminado de hacerlo. | G62: ="Ahorraréis " & ROUND(Heating!G19,0) & " kWh (lo que supone un ahorro de " & ROUND(Heating!H19,2) & " €) al año. Estaréis ayudando al medioambiente al reducir vuestras emisiones en " & ROUND(Heating!I19,0) & " kgCO2." -> Ahorraréis 0 kWh (lo que supone un ahorro de 0 €) al año. Estaréis ayudando al medioambiente al reducir vuestras emisiones en 0 kgCO2. | H62: Εξαερίστε περισσότερο τις ώρες που η θερμοκρασία είναι ψηλότερη (γύρω στο μεσημέρι). Γενικά 5 λεπτά είναι υπέρ αρκετά! Το Χειμώνα να το κάνετε τις ώρες που δεν κάνει και τόσο πολύ κρύο, και να περιμένετε να ανοίξετε την θέρμανση μετά που θα ολοκληρώσετε την διαδικασία του εξαερισμού. | I62: ="Θα εξοικονομήσετε " & ROUND(Heating!G19,2) & " kWh (Aυτό αντιστοιχεί σε περίπου " & ROUND(Heating!H19,2) & " €) τον χρόνο. Θα βοηθήσετε το περιβάλλον μειώνοντας τις εκπομπές σας κατά " & ROUND(Heating!I19,0) & " kgCO2." -> Θα εξοικονομήσετε 0 kWh (Aυτό αντιστοιχεί σε περίπου 0 €) τον χρόνο. Θα βοηθήσετε το περιβάλλον μειώνοντας τις εκπομπές σας κατά 0 kgCO2. | J62: Arieggiare d'inverno. In inverno arieggia la casa durante le ore meno fredde ed accendi il riscaldamento solamente quando hai terminato l’aerazione. | K62: ="Risparmierai " & ROUND(Heating!G19,2) & " kWh, equivalenti a circa " & ROUND(Heating!H19,2) & " € all'anno. Aiuterai l'ambiente riducendo le tue emissioni di circa " & ROUND(Heating!I19,0) & " kgCO2." -> Risparmierai 0 kWh, equivalenti a circa 0 € all'anno. Aiuterai l'ambiente riducendo le tue emissioni di circa 0 kgCO2. | L62: Provjetravajte u toplijem dijelu dana (bliže podnevu). 5 minuta je obično dovoljno! Zimi to učinite u najmanje hladnom dijelu dana i uključite grijanje nakon provjetravanja. | M62: ="Uštedjet ćete " & ROUND(Heating!G19,0) & " kWh (što vrijedi oko " & ROUND(Heating!H19,2) & " €) godišnje. Pomoći ćete okolišu smanjenjem emisija " & ROUND(Heating!I19,0) & " kgCO2." -> Uštedjet ćete 0 kWh (što vrijedi oko 0 €) godišnje. Pomoći ćete okolišu smanjenjem emisija 0 kgCO2. | N62: Проветрявайте в по-топло време (по обяд). 5 минути са напълно достатъчни! Зимно време проветрявайте през последните студени часове и включете отоплението, след като приключите. | O62: ="Ще спестите " & ROUND(Heating!G19,0) & " кВтч (което е около " & ROUND(Heating!H19,2) & " €) годишно. Ще намалите вредните емисии с " & ROUND(Heating!I19,0) & " kgCO2." -> Ще спестите 0 кВтч (което е около 0 €) годишно. Ще намалите вредните емисии с 0 kgCO2.
B63: Tip 4 | C63: Install curtains. | D63: Install curtains. In winter, they will keep the heat inside. Close courtains and shutters at night, and try switching off the heating. In summer, close courtains and shutters during the day and use awnings to protect windows from the sun. | E63: =IF(Heating!K17<>"","You will save " & ROUND(Heating!G17,0) & " kWh (that’s worth about " & ROUND(Heating!H17,2) & " €) per year. " & "The price of installing courtains is around " & ROUND(Heating!J17,2) & " € (please request quotations to find out the exact cost for your case). " & "The payback is " & ROUND(Heating!K17,2) & " years. You will help the environment by reducing your emissions in " & ROUND(Heating!I17,0) & " kgCO2.","You will save " & ROUND(Heating!G17,0) & " kWh (that’s worth about " & ROUND(Heating!H17,2) & " €) per year. " & "The price of installing courtains is around " & ROUND(Heating!J17,2) & " € (please request quotations to find out the exact cost for your case). You will help the environment by reducing your emissions in " & ROUND(Heating!I17,0) & " kgCO2.") -> You will save 0 kWh (that’s worth about 0 €) per year. The price of installing courtains is around 0 € (please request quotations to find out the exact cost for your case). You will help the environment by reducing your emissions in 0 kgCO2. | F63: Instalad cortinas en las ventanas. En invierno, mantendrán el calor dentro de la casa. Cerrad cortinas y persianas por la noche y tratad de apagar la calefacción. En verano, cerradlas durante el día y utilizad, si tenéis, los toldos. | G63: =IF(Heating!K17<>"","Ahorraréis " & ROUND(Heating!G17,0) & " kWh (lo que supone un ahorro de " & ROUND(Heating!H17,2) & " €) al año. " & "El precio de instalar cortinas es aproximadamente de " & ROUND(Heating!J17,2) & " € (os recomendamos que solicitéis presupuesto para vuestro caso concreto). " & "Recuperaréis la inversión aproximadamente en " & ROUND(Heating!K17,2) & " años. Estaréis ayudando al medioambiente al reducir vuestras emisiones en " & ROUND(Heating!I17,0) & " kgCO2.","Ahorraréis " & ROUND(Heating!G17,0) & " kWh (lo que supone un ahorro de " & ROUND(Heating!H17,2) & " €) al año. " & "El precio de instalar cortinas es aproximadamente de " & ROUND(Heating!J17,2) & " € (os recomendamos que solicitéis presupuesto para vuestro caso concreto). Estaréis ayudando al medioambiente al reducir vuestras emisiones en " & ROUND(Heating!I17,0) & " kgCO2.") -> Ahorraréis 0 kWh (lo que supone un ahorro de 0 €) al año. El precio de instalar cortinas es aproximadamente de 0 € (os recomendamos que solicitéis presupuesto para vuestro caso concreto). Estaréis ayudando al medioambiente al reducir vuestras emisiones en 0 kgCO2. | H63: Εγκαταστείστε Κουρτίνες. Το χειμώνα θα κρατήσουν την ζέστη μέσα στο σπίτι. Κλείστε τις κουρτίνες και τα παντζούρια το βράδυ και δοκιμάστε να κλείσετε την θέρμανση. Το καλοκαίρι κλείστε τις κουρτίνες και τα παντζούρια κατά την διάρκεια της μέρας και χρησιμοποιήστε τέντες για να προστατέψετε τα παράθυρα από τον ήλιο. | I63: =IF(Heating!K17<>"","Θα εξοικονομήσετε " & ROUND(Heating!G17,0) & " kWh (Aυτό αντιστοιχεί σε περίπου " & ROUND(Heating!H17,2) & " €) τον χρόνο." & " Το κόστος για να βάλετε κουρτίνες είναι περίπου € " & ROUND(Heating!J17,2) & " (παρακαλούμε να ζητήσετε προσφορές για να μάθετε το ακριβές κόστος για την περίπτωσή σας). " & "Η απόσβεση της επένδυσης σας είναι " & ROUND(Heating!K17,2) & " χρόνια. Θα βοηθήσετε το περιβάλλον μειώνοντας τις εκπομπές σας κατά " & ROUND(Heating!I17,0) & " kgCO2.","Θα εξοικονομήσετε " & ROUND(Heating!G17,0) & " kWh (Aυτό αντιστοιχεί σε περίπου " & ROUND(Heating!H17,2) & " €) τον χρόνο." & " Το κόστος για να βάλετε κουρτίνες είναι περίπου € " & ROUND(Heating!J17,2) & " (παρακαλούμε να ζητήσετε προσφορές για να μάθετε το ακριβές κόστος για την περίπτωσή σας). Θα βοηθήσετε το περιβάλλον μειώνοντας τις εκπομπές σας κατά " & ROUND(Heating!I17,0) & " kgCO2.") -> Θα εξοικονομήσετε 0 kWh (Aυτό αντιστοιχεί σε περίπου 0 €) τον χρόνο. Το κόστος για να βάλετε κουρτίνες είναι περίπου € 0 (παρακαλούμε να ζητήσετε προσφορές για να μάθετε το ακριβές κόστος για την περίπτωσή σας). Θα βοηθήσετε το περιβάλλον μειώνοντας τις εκπομπές σας κατά 0 kgCO2. | J63: Usa le tende per risparmiare energia. Di inverno mantienile chiuse durante la notte: ti aiuteranno a mantenere il calore all'interno. In estate, chiudendo le tende e le persiane durante il giorno, protteggerai le finestre dal sole e impedirai al calore di entrare in casa. | K63: =IF(Heating!K17<>"","Risparmierai fino a " & ROUND(Heating!G17,0) & " kWh , equivalenti a " & ROUND(Heating!H17,2) & " € all'anno." & " Il costo dell'installazione delle tende ammonta a circa " & ROUND(Heating!J17,2) & " €Il ritorno dell'investimento è pari a " & ROUND(Heating!K17,2) & " anni." & " Aiuterai l'ambiente riducendo le tue emissioni di " & ROUND(Heating!I17,0) & " kgCO2.","Risparmierai " & ROUND(Heating!G17,0) & " kWh , equivalenti a " & ROUND(Heating!H17,2) & " € all'anno." & " Il costo dell'installazione delle tende ammonta a circa " & ROUND(Heating!J17,2) & " €. Aiuterai l'ambiente riducendo le tue emissioni di circa" & ROUND(Heating!I17,0) & " kgCO2.") -> Risparmierai 0 kWh , equivalenti a 0 € all'anno. Il costo dell'installazione delle tende ammonta a circa 0 €. Aiuterai l'ambiente riducendo le tue emissioni di circa0 kgCO2. | L63: Postavite zavjese. Zimi one će zadržavati toplinu u prostoriji. Noću navucite zavjese i zatvorite grilje te pokušajte isključiti grijanje. Ljeti, navucite zavjese i zatvorite grilje danju te koristite tende kao zaštitu od sunca. | M63: =IF(Heating!K17<>"","Uštedjet ćete " & ROUND(Heating!G17,0) & " kWh (što vrijedi oko " & ROUND(Heating!H17,2) & " €) godišnje." & " Cijena postavljanja zavjesa je oko " & ROUND(Heating!J17,2) & " € (molimo vas da zatražite informacije kako biste saznali točan iznos za vaš slučaj). " & "Jednostavan period povrata (JPP) ulaganja je " & ROUND(Heating!K17,2) & " god. Pomoći ćete okolišu smanjenjem emisija " & ROUND(Heating!I17,0) & " kgCO2.","Uštedjet ćete " & ROUND(Heating!G17,0) & " kWh (što vrijedi oko " & ROUND(Heating!H17,2) & " €) godišnje." & " Cijena postavljanja zavjesa je oko " & ROUND(Heating!J17,2) & " € (molimo vas da zatražite informacije kako biste saznali točan iznos za vaš slučaj). Pomoći ćete okolišu smanjenjem emisija " & ROUND(Heating!I17,0) & " kgCO2.") -> Uštedjet ćete 0 kWh (što vrijedi oko 0 €) godišnje. Cijena postavljanja zavjesa je oko 0 € (molimo vas da zatražite informacije kako biste saznali točan iznos za vaš slučaj). Pomoći ćete okolišu smanjenjem emisija 0 kgCO2. | N63: Поставете завеси. През зимата те ще запазят топлината. Спуснете завесите и навесите през нощта и се опитайте да изключите отоплението. През лятото, спуснете завесите и пердетата през деня и ползвайте капаци, за да предпазите прозорците от слънцето. | O63: =IF(Heating!K17<>"","Ще спестите " & ROUND(Heating!G17,0) & " кВтч (което е около " & ROUND(Heating!H17,0) & " €) годишно. " & "Цената за завесите с монтаж е около " & ROUND(Heating!J17,0) & " € (проверете за по-точна цена във вашия случай). " & "Срокът на изплащане е " & ROUND(Heating!K17,0) & " години. Ще намалите вредните емисии с " & ROUND(Heating!I17,0) & " kgCO2.","Ще спестите " & ROUND(Heating!G17,0) & " кВтч (което е около " & ROUND(Heating!H17,0) & " €) годишно. " & "Цената за завесите с монтаж е около " & ROUND(Heating!J17,0) & " € (проверете за по-точна цена във вашия случай). Ще намалите вредните емисии с " & ROUND(Heating!I17,0) & " kgCO2.") -> Ще спестите 0 кВтч (което е около 0 €) годишно. Цената за завесите с монтаж е около 0 € (проверете за по-точна цена във вашия случай). Ще намалите вредните емисии с 0 kgCO2.
B64: Tip 5 | C64: Properly mantain your radiators at least once a year. | D64: Properly mantain your radiators at least once a year. Open the valve with a radiator key. As soon as air is out and water starts dripping, the radiator will be ready. Don’t cover radiators with curtains and don’t place objects under. | E64: ="You will save " & ROUND(Heating!G15,0) & " kWh (that’s worth about " & ROUND(Heating!H15,0) & " €) per year. You will help the environment by reducing your emissions in " & ROUND(Heating!I15,0) & " kgCO2." -> You will save 0 kWh (that’s worth about 0 €) per year. You will help the environment by reducing your emissions in 0 kgCO2. | F64: Realizad un mantenimiento adecuado de los radiadores por lo menos una vez al año. Abrid la válvula con un destornillador. Tan pronto como el aire salga y el agua comience a gotear, el radiador estará listo. No cubráis los radiadores con cortinas ni coloquéis objetos debajo de ellos. | G64: ="Ahorraréis " & ROUND(Heating!G15,0) & " kWh (lo que supone un ahorro de " & ROUND(Heating!H15,0) & " €) al año. Estaréis ayudando al medioambiente al reducir vuestras emisiones en " & ROUND(Heating!I15,0) & " kgCO2." -> Ahorraréis 0 kWh (lo que supone un ahorro de 0 €) al año. Estaréis ayudando al medioambiente al reducir vuestras emisiones en 0 kgCO2. | H64: Συντηρήστε σωστά τα συστήματα θέρμασης σας τουλάχιστον μια φορά τον χρόνο. Ανοίξτε την βαλβίδα με το κλειδί του καλοριφέρ. Μόλις βγει ο αέρας και αρχίσει να στάζει νερό, σημαίνει πως το καλοριφέρ είναι έτοιμο. Μην καλύπτετε τα θερμαντικά σώματα με κουρτίνες και μην τοποθετείτε αντικείμενα από κάτω. | I64: ="Θα εξοικονομήσετε " & ROUND(Heating!G15,0) & " kWh (Aυτό αντιστοιχεί σε περίπου " & ROUND(Heating!H15,0) & " €) τον χρόνο. Θα βοηθήσετε το περιβάλλον μειώνοντας τις εκπομπές σας κατά " & ROUND(Heating!I15,0) & " kgCO2." -> Θα εξοικονομήσετε 0 kWh (Aυτό αντιστοιχεί σε περίπου 0 €) τον χρόνο. Θα βοηθήσετε το περιβάλλον μειώνοντας τις εκπομπές σας κατά 0 kgCO2. | J64: Sfiata i radiatori almeno una volta all’anno per eliminare le bolle d’aria che ne impediscono il buon funzionamento. L’operazione è semplice: apri la valvola che si trova nella parte alta del radiatore. All’inizio può uscire un po’ d’aria. Non appena l’aria è uscita e l’acqua inizia a stillare, il radiatore è pronto. Ricordati di lasciare spazio libero sotto, sopra e davanti ai riadiatori per consentire la buona corcolazione dell’aria calda. | K64: ="Risparmierai fino a " & ROUND(Heating!G15,0) & " kWh, equivalenti a circa" & ROUND(Heating!H15,0) & " € all'anno. Aiuterai l'ambiente riducendo le tue emissioni di circa" & ROUND(Heating!I15,0) & " kgCO2." -> Risparmierai fino a 0 kWh, equivalenti a circa0 € all'anno. Aiuterai l'ambiente riducendo le tue emissioni di circa0 kgCO2. | L64: Pravilno održavajte svoje radijatore najmanje jednom godišnje. Otvorite ventil kliještima za radijator. Čim zrak izađe i voda počne kapati, radijator je spreman. Nemojte radijatore prekrivati zavjesama i ne postavljajte predmete ispod njih | M64: ="Uštedjet ćete " & ROUND(Heating!G15,0) & " kWh (što vrijedi oko " & ROUND(Heating!H15,0) & " €) godišnje. Pomoći ćete okolišu smanjenjem emisija " & ROUND(Heating!I15,0) & " kgCO2." -> Uštedjet ćete 0 kWh (što vrijedi oko 0 €) godišnje. Pomoći ćete okolišu smanjenjem emisija 0 kgCO2. | N64: Извършете профилактика на радиаторите си поне един път годишно. Отворете вентила с ключ за радиатора. След като излезе въздухът, трябва да прокапе вода - радиаторът е готов. Не ги покривайте със завеси и не поставяйте предмети под тях. | O64: ="Ще спестите " & ROUND(Heating!G15,0) & " кВтч (това е около " & ROUND(Heating!H15,2) & " €) годишно. Ще намалите вредните емисии с " & ROUND(Heating!I15,0) & " kgCO2." -> Ще спестите 0 кВтч (това е около 0 €) годишно. Ще намалите вредните емисии с 0 kgCO2.
B65: Tip 6 | C65: Avoid air infiltrations. | D65: Avoid air infiltrations. Cover cracks with cheap material as silicone, filler or draught excluders. | E65: =IF(Heating!K12<>"","You will save " & ROUND(Heating!G12,0) & " kWh (that’s worth about " & ROUND(Heating!H12,0) & " €) per year. " & "The price of avoiding air infiltrations may range between " & ROUND(Heating!J12,2) & " € (please request quotations to find out the exact cost for your case). The payback is " & ROUND(Heating!K12,2) & " years. " & "You will help the environment by reducing your emissions in " & ROUND(Heating!I12,0) & " kgCO2.","You will save " & ROUND(Heating!G12,0) & " kWh (that’s worth about " & ROUND(Heating!H12,0) & " €) per year. " & "The price of avoiding air infiltrations may range between " & ROUND(Heating!J12,2) & " € (please request quotations to find out the exact cost for your case). You will help the environment by reducing your emissions in " & ROUND(Heating!I12,0) & " kgCO2.") -> You will save 0 kWh (that’s worth about 0 €) per year. The price of avoiding air infiltrations may range between 0 € (please request quotations to find out the exact cost for your case). You will help the environment by reducing your emissions in 0 kgCO2. | F65: Evitad las infiltraciones de aire en tu hogar. Cubrid las grietas con material barato como silicona o con burletes. | G65: =IF(Heating!K12<>"","Ahorraréis " & ROUND(Heating!G12,0) & " kWh (lo que supone un ahorro de " & ROUND(Heating!H12,0) & " €) al año. " & "El precio de evitar las infiltraciones es aproximadamente de " & ROUND(Heating!J12,2) & " € (os recomendamos que utilicéis presupuesto para vuestro caso concreto). " & "Recuperaréis la inversión aproximadamente en " & ROUND(Heating!K12,2) & " años. Estaréis ayudando al medioambiente al reducir vuestras emisiones en " & ROUND(Heating!I12,0) & " kgCO2.","Ahorraréis " & ROUND(Heating!G12,0) & " kWh (lo que supone un ahorro de " & ROUND(Heating!H12,0) & " €) al año. " & "El precio de evitar las infiltraciones es aproximadamente de " & ROUND(Heating!J12,2) & " € (os recomendamos que utilicéis presupuesto para vuestro caso concreto). Estaréis ayudando al medioambiente al reducir vuestras emisiones en " & ROUND(Heating!I12,0) & " kgCO2.") -> Ahorraréis 0 kWh (lo que supone un ahorro de 0 €) al año. El precio de evitar las infiltraciones es aproximadamente de 0 € (os recomendamos que utilicéis presupuesto para vuestro caso concreto). Estaréis ayudando al medioambiente al reducir vuestras emisiones en 0 kgCO2. | H65: Αποφύγετε διαρροές αέρα. Καλύψτε τις σχισμές και τα κενά με φθηνά υλικά (όπως σιλικόνη,αφρό, αεροστόπ ή άλλο μονωτικό υλικό) | I65: =IF(Heating!K12<>"","Θα εξοικονομήσετε " & ROUND(Heating!G12,0) & " kWh (Aυτό αντιστοιχεί σε περίπου " & ROUND(Heating!H12,0) & " €) τον χρόνο. " & "Το κόστος για να αποφύγετε τις διαρροές αέρα, κυμαίνεται στα € " & ROUND(Heating!J12,2) & " (παρακαλούμε να ζητήσετε προσφορές για να μάθετε το ακριβές κόστος για την περίπτωσή σας). " & "Η απόσβεση της επένδυσης σας είναι " & ROUND(Heating!K12,2) & " χρόνια. Θα βοηθήσετε το περιβάλλον μειώνοντας τις εκπομπές σας κατά " & ROUND(Heating!I12,0) & " kgCO2.","Θα εξοικονομήσετε " & ROUND(Heating!G12,0) & " kWh (Aυτό αντιστοιχεί σε περίπου " & ROUND(Heating!H12,0) & " €) τον χρόνο. " & "Το κόστος για να αποφύγετε τις διαρροές αέρα, κυμαίνεται στα € " & ROUND(Heating!J12,2) & " (παρακαλούμε να ζητήσετε προσφορές για να μάθετε το ακριβές κόστος για την περίπτωσή σας). Θα βοηθήσετε το περιβάλλον μειώνοντας τις εκπομπές σας κατά " & ROUND(Heating!I12,0) & " kgCO2.") -> Θα εξοικονομήσετε 0 kWh (Aυτό αντιστοιχεί σε περίπου 0 €) τον χρόνο. Το κόστος για να αποφύγετε τις διαρροές αέρα, κυμαίνεται στα € 0 (παρακαλούμε να ζητήσετε προσφορές για να μάθετε το ακριβές κόστος για την περίπτωσή σας). Θα βοηθήσετε το περιβάλλον μειώνοντας τις εκπομπές σας κατά 0 kgCO2. | J65: Blocca gli spifferi controlla regolarmente le guarnizioni delle tue finestre e sostituiscile quando necessario. Le fessure tra finestre e muro vanno sigillate con il silicone. | K65: =IF(Heating!K12<>"","Risparmierai fino a " & ROUND(Heating!G12,0) & " kWh , equivalenti a circa" & ROUND(Heating!H12,0) & " € all'anno." & " Il costo necessario per evitare gli spifferi è circa di " & ROUND(Heating!J12,2) & " €Il ritorno dell'investimento è pari a " & ROUND(Heating!K12,2) & " anni." & " Aiuterai l'ambiente riducendo le tue emissioni di circa " & ROUND(Heating!I12,0) & " kgCO2.","Risparmierai fino a " & ROUND(Heating!G12,0) & " kWh , equivalenti a circa " & ROUND(Heating!H12,0) & " € all'anno." & " Il costo necessario per evitare gli spifferi è circa di " & ROUND(Heating!J12,2) & " €. Aiuterai l'ambiente riducendo le tue emissioni di circa" & ROUND(Heating!I12,0) & " kgCO2.") -> Risparmierai fino a 0 kWh , equivalenti a circa 0 € all'anno. Il costo necessario per evitare gli spifferi è circa di 0 €. Aiuterai l'ambiente riducendo le tue emissioni di circa0 kgCO2. | L65: Izbjegavajte prodore zraka. Prekrijte pukotine jeftinim materijalom poput silikona, nekog punila ili štitnicima od propuha. | M65: =IF(Heating!K12<>"","Uštedjet ćete " & ROUND(Heating!G12,0) & " kWh (što vrijedi oko " & ROUND(Heating!H12,0) & " €) godišnje. " & "Cijena izbjegavanja prodora zraka je oko " & ROUND(Heating!J12,2) & " € (molimo vas da zatražite informacije kako bi saznali točan iznos za vaš slučaj). " & "Jednostavan period povrata (JPP) ulaganja je " & ROUND(Heating!K12,2) & " god. Pomoći ćete okolišu smanjenjem emisija " & ROUND(Heating!I12,0) & " kgCO2.","Uštedjet ćete " & ROUND(Heating!G12,0) & " kWh (što vrijedi oko " & ROUND(Heating!H12,0) & " €) godišnje. " & "Cijena izbjegavanja prodora zraka je oko " & ROUND(Heating!J12,2) & " € (molimo vas da zatražite informacije kako bi saznali točan iznos za vaš slučaj). Pomoći ćete okolišu smanjenjem emisija " & ROUND(Heating!I12,0) & " kgCO2.") -> Uštedjet ćete 0 kWh (što vrijedi oko 0 €) godišnje. Cijena izbjegavanja prodora zraka je oko 0 € (molimo vas da zatražite informacije kako bi saznali točan iznos za vaš slučaj). Pomoći ćete okolišu smanjenjem emisija 0 kgCO2. | N65: Спрете инфилтрацията. Запълнете отворите с някакъв материал, силикон или полиуретанова пяна например. | O65: =IF(Heating!K12<>"","Ще спестите " & ROUND(Heating!G12,0) & " кВтч (това е около" & ROUND(Heating!H12,2) & " €) годишно. " & "Цената за премахване на въздушната инфилтрация варира около " & ROUND(Heating!J12,2) & " € (потърсете по-точна цена за вашия случай). " & "Срокът на изплащане е " & ROUND(Heating!K12,2) & " години. Ще намалите вредните емисии с " & ROUND(Heating!I12,0) & " kgCO2.","Ще спестите " & ROUND(Heating!G12,0) & " кВтч (това е около" & ROUND(Heating!H12,2) & " €) годишно. " & "Цената за премахване на въздушната инфилтрация варира около " & ROUND(Heating!J12,2) & " € (потърсете по-точна цена за вашия случай). Ще намалите вредните емисии с " & ROUND(Heating!I12,0) & " kgCO2.") -> Ще спестите 0 кВтч (това е около0 €) годишно. Цената за премахване на въздушната инфилтрация варира около 0 € (потърсете по-точна цена за вашия случай). Ще намалите вредните емисии с 0 kgCO2.
B66: Tip 7 | C66: Install thermostatic valves in radiators. | D66: Install thermostatic valves in radiators. Install thermostatic valves on radiators to achieve the right comfort combined with low energy consumption. This way you will only use the exact amount of energy needed to keep the room at the expected temperature. | E66: =IF(Heating!K16<>"","You will save " & ROUND(Heating!G16,0) & " kWh (that’s worth about " & ROUND(Heating!H16,0) & " €) per year. " & "The price ofinstalling thermostatic valves may range between " & ROUND(Heating!J16,2) & " € (please request quotations to find out the exact cost for your case). " & "The payback is " & ROUND(Heating!K16,2) & " years. You will help the environment by reducing your emissions in " & ROUND(Heating!I16,0) & " kgCO2.","You will save " & ROUND(Heating!G16,0) & " kWh (that’s worth about " & ROUND(Heating!H16,0) & " €) per year. " & "The price ofinstalling thermostatic valves may range between " & ROUND(Heating!J16,2) & " € (please request quotations to find out the exact cost for your case). " & " You will help the environment by reducing your emissions in " & ROUND(Heating!I16,0) & " kgCO2.") -> You will save 0 kWh (that’s worth about 0 €) per year. The price ofinstalling thermostatic valves may range between 0 € (please request quotations to find out the exact cost for your case). You will help the environment by reducing your emissions in 0 kgCO2. | F66: Instalad válvulas termostáticas en los radiadores. Instalad válvulas termostáticas en los radiadores para alcanzar una temperatura agradable con un consumo energético bajo. De esta manera, sólo utilizaréis la cantidad exacta de energía necesaria para mantener la habitación a la temperatura deseada. | G66: =IF(Heating!K16<>"","Ahorraréis " & ROUND(Heating!G16,0) & " kWh (lo que supone un ahorro de " & ROUND(Heating!H16,0) & " €) al año. " & "El precio de instalar válvulas termostáticas es aproximadamente de " & ROUND(Heating!J16,2) & " € (os recomendamos que utilicéis presupuesto para vuestro caso concreto). " & "Recuperaréis la inversión aproximadamente en " & ROUND(Heating!K16,2) & " años. Estaréis ayudando al medioambiente al reducir vuestras emisiones en " & ROUND(Heating!I16,0) & " kgCO2.","Ahorraréis " & ROUND(Heating!G16,0) & " kWh (lo que supone un ahorro de " & ROUND(Heating!H16,0) & " €) al año. " & "El precio de instalar válvulas termostáticas es aproximadamente de " & ROUND(Heating!J16,2) & " € (os recomendamos que utilicéis presupuesto para vuestro caso concreto). " & " Estaréis ayudando al medioambiente al reducir vuestras emisiones en " & ROUND(Heating!I16,0) & " kgCO2.") -> Ahorraréis 0 kWh (lo que supone un ahorro de 0 €) al año. El precio de instalar válvulas termostáticas es aproximadamente de 0 € (os recomendamos que utilicéis presupuesto para vuestro caso concreto). Estaréis ayudando al medioambiente al reducir vuestras emisiones en 0 kgCO2. | H66: Εγκαταστήστε θερμοστατικές βαλβίδες στα σώματα θέρμανσης. Εγκαταστήστε θερμοστατικές βαλβίδες για να επιτύχετε την κατάλληλη άνεση σε συνδυασμό με χαμηλή κατανάλωση ενέργειας. Με αυτό τον τρόπο θα χρησιμοποιήσετε μόνο το ακριβές ποσό της ενέργειας το οποίο απαιτείται για να κρατήσει το δωμάτιο στην αναμενόμενη θερμοκρασία. | I66: =IF(Heating!K16<>"","Θα εξοικονομήσετε " & ROUND(Heating!G16,0) & " kWh (Aυτό αντιστοιχεί σε περίπου " & ROUND(Heating!H16,0) & " €) τον χρόνο. " & "Το κόστος εγκατάστασης θερμοστατικών βαλβίδων, κυμαίνεται στα € " & ROUND(Heating!J16,2) & " (παρακαλούμε να ζητήσετε προσφορές για να μάθετε το ακριβές κόστος για την περίπτωσή σας). " & "Η απόσβεση της επένδυσης σας είναι " & ROUND(Heating!K16,2) & " χρόνια. Θα βοηθήσετε το περιβάλλον μειώνοντας τις εκπομπές σας κατά " & ROUND(Heating!I16,0) & " kgCO2.","Θα εξοικονομήσετε " & ROUND(Heating!G16,0) & " kWh (Aυτό αντιστοιχεί σε περίπου " & ROUND(Heating!H16,0) & " €) τον χρόνο. " & "Το κόστος εγκατάστασης θερμοστατικών βαλβίδων, κυμαίνεται στα € " & ROUND(Heating!J16,2) & " (παρακαλούμε να ζητήσετε προσφορές για να μάθετε το ακριβές κόστος για την περίπτωσή σας). Θα βοηθήσετε το περιβάλλον μειώνοντας τις εκπομπές σας κατά " & ROUND(Heating!I16,0) & " kgCO2.") -> Θα εξοικονομήσετε 0 kWh (Aυτό αντιστοιχεί σε περίπου 0 €) τον χρόνο. Το κόστος εγκατάστασης θερμοστατικών βαλβίδων, κυμαίνεται στα € 0 (παρακαλούμε να ζητήσετε προσφορές για να μάθετε το ακριβές κόστος για την περίπτωσή σας). Θα βοηθήσετε το περιβάλλον μειώνοντας τις εκπομπές σας κατά 0 kgCO2. | J66: Installa le valvole termostatiche sui radiatori. La valvola termostatica regola la temperatura in ogni stanza garantendo il giusto comfort e riducendo il tuo consumo energetico. | K66: =IF(Heating!K16<>"","Risparmierai fino a " & ROUND(Heating!G16,0) & " kWh , equivalenti a circa" & ROUND(Heating!H16,2) & " € all'anno." & " Il costo relativo all'installazione delle valvole termostatiche sui radiatori ammonta a circa " & ROUND(Heating!J16,2) & " €. Il ritorno dell'investimento è pari a " & ROUND(Heating!K16,2) & " anni." & " Aiuterai l'ambiente riducendo le tue emissioni di " & ROUND(Heating!I16,0) & " kgCO2.","Risparmierai fino a " & ROUND(Heating!G16,0) & " kWh , equivalenti a circa " & ROUND(Heating!H16,2) & " € all'anno." & " Il costo relativo all'installazione delle valvole termostatiche sui radiatori ammonta a circa " & ROUND(Heating!J16,2) & " €. Aiuterai l'ambiente riducendo le tue emissioni di circa" & ROUND(Heating!I16,0) & " kgCO2.") -> Risparmierai fino a 0 kWh , equivalenti a circa 0 € all'anno. Il costo relativo all'installazione delle valvole termostatiche sui radiatori ammonta a circa 0 €. Aiuterai l'ambiente riducendo le tue emissioni di circa0 kgCO2. | L66: Postavite termostatske ventile na radijatore. Postavite termostatske ventile na radijatore kako bi postigli ugodu niskom potrošnjom energije. Koristit će se tako samo onoliko energije koliko je potrebno da se dosegne odabrana sobna temperatura. | M66: =IF(Heating!K16<>"","Uštedjet ćete " & ROUND(Heating!G16,0) & " kWh (što vrijedi oko " & ROUND(Heating!H16,0) & " €) godišnje. " & "Cijena ugradnje termostatskih ventila je oko " & ROUND(Heating!J16,2) & " € (molimo vas da zatražite informacije kako bi saznali točan iznos za vaš slučaj). " & "Jednostavan period povrata (JPP) ulaganja je " & ROUND(Heating!K16,2) & " god. Pomoći ćete okolišu smanjenjem emisija " & ROUND(Heating!I16,0) & ".","Uštedjet ćete " & ROUND(Heating!G16,0) & " kWh (što vrijedi oko " & ROUND(Heating!H16,0) & " €) godišnje. " & "Cijena ugradnje termostatskih ventila je oko " & ROUND(Heating!J16,2) & " € (molimo vas da zatražite informacije kako bi saznali točan iznos za vaš slučaj). Pomoći ćete okolišu smanjenjem emisija " & ROUND(Heating!I16,0) & ".") -> Uštedjet ćete 0 kWh (što vrijedi oko 0 €) godišnje. Cijena ugradnje termostatskih ventila je oko 0 € (molimo vas da zatražite informacije kako bi saznali točan iznos za vaš slučaj). Pomoći ćete okolišu smanjenjem emisija 0. | N66: Монтирайте термостатни винтили на радиаторите. С тях ще постигнете комфорт и ниско потребление на енергия едновременно. По този начин, ще ползвате точно необходимото количество енергия за поддържане температурата на определени нива. | O66: =IF(Heating!K16<>"","Ще спестите " & ROUND(Heating!G16,0) & " кВтч (това е около " & ROUND(Heating!H16,2) & " €) годишно. " & "Цената на термостатни винтили е около " & ROUND(Heating!J16,0) & " € (потърсете по-точна оферта за вашия случай). " & "Срокът на изплащане е " & ROUND(Heating!K16,0) & " години. Ще намалите вредните емисии с " & ROUND(Heating!I16,0) & " kgCO2.","Ще спестите " & ROUND(Heating!G16,0) & " кВтч (това е около " & ROUND(Heating!H16,2) & " €) годишно. " & "Цената на термостатни винтили е около " & ROUND(Heating!J16,0) & " € (потърсете по-точна оферта за вашия случай). Ще намалите вредните емисии с " & ROUND(Heating!I16,0) & " kgCO2.") -> Ще спестите 0 кВтч (това е около 0 €) годишно. Цената на термостатни винтили е около 0 € (потърсете по-точна оферта за вашия случай). Ще намалите вредните емисии с 0 kgCO2.
B67: Tip 8 | C67: Install a digital programmable thermostat. | D67: Install a digital programmable thermostat. Programmers will make things easier for you, since you will be able to set “on” and “off” time periods. | E67: =IF(Heating!K13<>"","You will save " & IFERROR(ROUND(Heating!G13,0),0) + IFERROR(ROUND(Cooling!H9,0),0) & " kWh (that’s worth about " & IFERROR(ROUND(Heating!H13,0),0) + IFERROR(ROUND(Cooling!I9,0),0) & " €) per year. " & "The price of installing a digital programmable thermostat is around " & IFERROR(ROUND(Heating!J13,0),0) + IFERROR(ROUND(Cooling!K9,0),0) & " € (please request quotations to find out the exact cost for your case). " & "The payback is " & IFERROR(ROUND(Heating!K13,0),0) + IFERROR(ROUND(Cooling!L9,0),0) & " years. You will help the environment by reducing your emissions in " & IFERROR(ROUND(Heating!I13,0),0) + IFERROR(ROUND(Cooling!J9,0),0) & " kgCO2.","You will save " & IFERROR(ROUND(Heating!G13,0),0) + IFERROR(ROUND(Cooling!H9,0),0) & " kWh (that’s worth about " & IFERROR(ROUND(Heating!H13,0),0) + IFERROR(ROUND(Cooling!I9,0),0) & " €) per year. " & "The price of installing a digital programmable thermostat is around " & IFERROR(ROUND(Heating!J13,0),0) + IFERROR(ROUND(Cooling!K9,0),0) & " € (please request quotations to find out the exact cost for your case). You will help the environment by reducing your emissions in " & IFERROR(ROUND(Heating!I13,0),0) + IFERROR(ROUND(Cooling!J9,0),0) & " kgCO2.") -> You will save 0 kWh (that’s worth about 0 €) per year. The price of installing a digital programmable thermostat is around 0 € (please request quotations to find out the exact cost for your case). You will help the environment by reducing your emissions in 0 kgCO2. | F67: Instalad un termostato digital programable. Los termostatos programables os facilitarán el ahorro energético, ya que podréis establecer periodos de encendido y apagado automáticos. | G67: =IF(Heating!K13<>"","Ahorraréis " & IFERROR(ROUND(Heating!G13,0),0) + IFERROR(ROUND(Cooling!H9,0),0) & " kWh (lo que supone un ahorro de " & IFERROR(ROUND(Heating!H13,0),0) + IFERROR(ROUND(Cooling!I9,0),0) & " €) al año. " & "El precio de instalar un termostato digital programable es aproximadamente de " & IFERROR(ROUND(Heating!J13,0),0) + IFERROR(ROUND(Cooling!K9,0),0) & " € (os recomendamos que solicitéis presupuesto para vuestro caso concreto). " & "Recuperaréis la inversión aproximadamente en " & IFERROR(ROUND(Heating!K13,0),0) + IFERROR(ROUND(Cooling!L9,0),0) & " años. Estaréis ayudando al medioambiente al reducir tus emisiones en " & IFERROR(ROUND(Heating!I13,0),0) + IFERROR(ROUND(Cooling!J9,0),0) & " kgCO2.","Ahorraréis " & IFERROR(ROUND(Heating!G13,0),0) + IFERROR(ROUND(Cooling!H9,0),0) & " kWh (lo que supone un ahorro de " & IFERROR(ROUND(Heating!H13,0),0) + IFERROR(ROUND(Cooling!I9,0),0) & " €) al año. " & "El precio de instalar un termostato digital programable es aproximadamente de " & IFERROR(ROUND(Heating!J13,0),0) + IFERROR(ROUND(Cooling!K9,0),0) & " € (os recomendamos que solicitéis presupuesto para vuestro caso concreto). Estaréis ayudando al medioambiente al reducir tus emisiones en " & IFERROR(ROUND(Heating!I13,0),0) + IFERROR(ROUND(Cooling!J9,0),0) & " kgCO2.") -> Ahorraréis 0 kWh (lo que supone un ahorro de 0 €) al año. El precio de instalar un termostato digital programable es aproximadamente de 0 € (os recomendamos que solicitéis presupuesto para vuestro caso concreto). Estaréis ayudando al medioambiente al reducir tus emisiones en 0 kgCO2. | H67: Εγκαταστήστε ένα ψηφιακό προγραμματιζόμενο θερμοστάτη. Οι προγραμματιστές θα κάνουν τα πράγματα ευκολότερα για σας, μιας και μπορείτε να ρυθμίσετε αυτόματα τον χρόνο ενεργοποίησης και απενεργοποίησης. | I67: =IF(Heating!K13<>"","Θα εξοικονομήσετε " & IFERROR(ROUND(Heating!G13,0),0) + IFERROR(ROUND(Cooling!H9,0),0) & " kWh (Aυτό αντιστοιχεί σε περίπου " & IFERROR(ROUND(Heating!H13,0),0) + IFERROR(ROUND(Cooling!I9,0),0) & " €) τον χρόνο. " & "Το κόστος εγκατάστασης ψηφιακού προγραμματιζόμενου θερμοστάτη είναι περίπου € " & IFERROR(ROUND(Heating!J13,0),0) + IFERROR(ROUND(Cooling!K9,0),0) & " (παρακαλούμε να ζητήσετε προσφορές για να μάθετε το ακριβές κόστος για την περίπτωσή σας). " & "Η απόσβεση της επένδυσης σας είναι " & IFERROR(ROUND(Heating!K13,0),0) + IFERROR(ROUND(Cooling!L9,0),0) & " χρόνια. Θα βοηθήσετε το περιβάλλον μειώνοντας τις εκπομπές σας κατά " & IFERROR(ROUND(Heating!I13,0),0) + IFERROR(ROUND(Cooling!J9,0),0) & " kgCO2.","Θα εξοικονομήσετε " & IFERROR(ROUND(Heating!G13,0),0) + IFERROR(ROUND(Cooling!H9,0),0) & " kWh (Aυτό αντιστοιχεί σε περίπου " & IFERROR(ROUND(Heating!H13,0),0) + IFERROR(ROUND(Cooling!I9,0),0) & " €) τον χρόνο. " & "Το κόστος εγκατάστασης ψηφιακού προγραμματιζόμενου θερμοστάτη είναι περίπου € " & IFERROR(ROUND(Heating!J13,0),0) + IFERROR(ROUND(Cooling!K9,0),0) & " (παρακαλούμε να ζητήσετε προσφορές για να μάθετε το ακριβές κόστος για την περίπτωσή σας). Θα βοηθήσετε το περιβάλλον μειώνοντας τις εκπομπές σας κατά " & IFERROR(ROUND(Heating!I13,0),0) + IFERROR(ROUND(Cooling!J9,0),0) & " kgCO2.") -> Θα εξοικονομήσετε 0 kWh (Aυτό αντιστοιχεί σε περίπου 0 €) τον χρόνο. Το κόστος εγκατάστασης ψηφιακού προγραμματιζόμενου θερμοστάτη είναι περίπου € 0 (παρακαλούμε να ζητήσετε προσφορές για να μάθετε το ακριβές κόστος για την περίπτωσή σας). Θα βοηθήσετε το περιβάλλον μειώνοντας τις εκπομπές σας κατά 0 kgCO2. | J67: Utilizza un cronotermostato. Il termostato ti renderà le cose più facili, consentendoti di impostare i periodi di funzionamento: potrai svegliarti la mattina nella casa già calda ed andare a dormire senza doverti ogni giorno ricordare di spegnere il riscaldamento. Se la casa resta vuota per lunghi periodi durante il giorno, imposta il termostato in modo da evitare sprechi. | K67: =IF(Heating!K13<>"","Risparmierai fino a " & IFERROR(ROUND(Heating!G13,0),0) + IFERROR(ROUND(Cooling!H9,0),0) & " kWh , equivalenti a " & IFERROR(ROUND(Heating!H13,0),0) + IFERROR(ROUND(Cooling!I9,0),0) & " € all'anno." & " Il costo relativo all'installazione dei cronotermostati ammonta a circa " & IFERROR(ROUND(Heating!J13,0),0) + IFERROR(ROUND(Cooling!K9,0),0) & " €.Il ritorno dell'investimento è pari a " & IFERROR(ROUND(Heating!K13,0),0) + IFERROR(ROUND(Cooling!L9,0),0) & " anni." & " Aiuterai l'ambiente riducendo le tue emissioni di " & IFERROR(ROUND(Heating!I13,0),0) + IFERROR(ROUND(Cooling!J9,0),0) & " kgCO2.","Risparmierai " & IFERROR(ROUND(Heating!G13,0),0) + IFERROR(ROUND(Cooling!H9,0),0) & " kWh , equivalenti a " & IFERROR(ROUND(Heating!H13,0),0) + IFERROR(ROUND(Cooling!I9,0),0) & " € all'anno." & " Il costo relativo all'installazione dei cronotermostati ammonta a circa " & IFERROR(ROUND(Heating!J13,0),0) + IFERROR(ROUND(Cooling!K9,0),0) & " €. Aiuterai l'ambiente riducendo le tue emissioni di " & IFERROR(ROUND(Heating!I13,0),0) + IFERROR(ROUND(Cooling!J9,0),0) & " kgCO2.") -> Risparmierai 0 kWh , equivalenti a 0 € all'anno. Il costo relativo all'installazione dei cronotermostati ammonta a circa 0 €. Aiuterai l'ambiente riducendo le tue emissioni di 0 kgCO2. | L67: Postavite digitalni termostat s podešavanjem. Programatori će vam olakšati stvari jer ćete moći uključiti i isključiti grijanje u određenom vremenskom razdoblju. | M67: =IF(Heating!K13<>"","Uštedjet ćete " & IFERROR(ROUND(Heating!G13,0),0) + IFERROR(ROUND(Cooling!H9,0),0) & " kWh (što vrijedi oko " & IFERROR(ROUND(Heating!H13,0),0) + IFERROR(ROUND(Cooling!I9,0),0) & " €) godišnje. " & "Cijena postavljanja digitalnog termsotata kojeg je moguće programirati je oko " & IFERROR(ROUND(Heating!J13,0),0) + IFERROR(ROUND(Cooling!K9,0),0) & " € (molimo vas da zatražite informacije kako bi saznali točan iznos za vaš slučaj). " & "Jednostavan period povrata (JPP) ulaganja je " & IFERROR(ROUND(Heating!K13,0),0) + IFERROR(ROUND(Cooling!L9,0),0) & " godina. Pomoći ćete okolišu smanjenjem emisija " & IFERROR(ROUND(Heating!I13,0),0) + IFERROR(ROUND(Cooling!J9,0),0) & " kgCO2.","Uštedjet ćete " & IFERROR(ROUND(Heating!G13,0),0) + IFERROR(ROUND(Cooling!H9,0),0) & " kWh (što vrijedi oko " & IFERROR(ROUND(Heating!H13,0),0) + IFERROR(ROUND(Cooling!I9,0),0) & " €) godišnje. " & "Cijena postavljanja digitalnog termsotata kojeg je moguće programirati je oko " & IFERROR(ROUND(Heating!J13,0),0) + IFERROR(ROUND(Cooling!K9,0),0) & " € (molimo vas da zatražite informacije kako bi saznali točan iznos za vaš slučaj). Pomoći ćete okolišu smanjenjem emisija " & IFERROR(ROUND(Heating!I13,0),0) + IFERROR(ROUND(Cooling!J9,0),0) & " kgCO2.") -> Uštedjet ćete 0 kWh (što vrijedi oko 0 €) godišnje. Cijena postavljanja digitalnog termsotata kojeg je moguće programirati je oko 0 € (molimo vas da zatražite informacije kako bi saznali točan iznos za vaš slučaj). Pomoći ćete okolišu smanjenjem emisija 0 kgCO2. | N67: Монтирайте цифров програмируем термостат. Програмирането ще ви улесни, понеже ще може да задавате периоди на "вкл" и "изкл". | O67: =IF(Heating!K13<>"","Ще спестите " & IFERROR(ROUND(Heating!G13,0),0) + IFERROR(ROUND(Cooling!H9,0),0) & " кВтч (това е около " & IFERROR(ROUND(Heating!H13,0),0) + IFERROR(ROUND(Cooling!I9,0),0) & " €) годишно. " & "Цената на цифровия програмируем термостат е около " & IFERROR(ROUND(Heating!J13,0),0) + IFERROR(ROUND(Cooling!K9,0),0) & " € (проверете за по-точна цена във вашия случай). " & "Срокът на изплащане е " & IFERROR(ROUND(Heating!K13,0),0) + IFERROR(ROUND(Cooling!L9,0),0) & " години. Ще намалите вредните емисии с " & IFERROR(ROUND(Heating!I13,0),0) + IFERROR(ROUND(Cooling!J9,0),0) & " kgCO2.","Ще спестите " & IFERROR(ROUND(Heating!G13,0),0) + IFERROR(ROUND(Cooling!H9,0),0) & " кВтч (това е около " & IFERROR(ROUND(Heating!H13,0),0) + IFERROR(ROUND(Cooling!I9,0),0) & " €) годишно. " & "Цената на цифровия програмируем термостат е около " & IFERROR(ROUND(Heating!J13,0),0) + IFERROR(ROUND(Cooling!K9,0),0) & " € (проверете за по-точна цена във вашия случай). Ще намалите вредните емисии с " & IFERROR(ROUND(Heating!I13,0),0) + IFERROR(ROUND(Cooling!J9,0),0) & " kgCO2.") -> Ще спестите 0 кВтч (това е около 0 €) годишно. Цената на цифровия програмируем термостат е около 0 € (проверете за по-точна цена във вашия случай). Ще намалите вредните емисии с 0 kgCO2.
B68: Tip 9 | C68: Set indoor temperature at 21ºC. | D68: Set indoor temperature at 21ºC. In winter 21ºC during the day and 15- 18 ºC at night should be enough to make you feel comfortable. | E68: ="You will save " & ROUND(Heating!G14,0) & " kWh (that’s worth about " & ROUND(Heating!H14,0) & " €) per year. You will help the environment by reducing your emissions in " & ROUND(Heating!I14,0) & " kgCO2." -> You will save 0 kWh (that’s worth about 0 €) per year. You will help the environment by reducing your emissions in 0 kgCO2. | F68: En invierno, estableced la temperatura de tu casa en 21ºC. En invierno, 21ºC durante el día y 15-18ºC durante la noche deberían ser suficientes para vuestro confort. Podríais instalar también válvulas termostáticas en los radiadores para establecer la temperatura de los radiadores. | G68: ="Ahorraréis " & ROUND(Heating!G14,0) & " kWh (lo que supone un ahorro de " & ROUND(Heating!H14,0) & " €) al año. " & "Estaréis ayudando al medioambiente al reducir tus emisiones en " & ROUND(Heating!I14,0) & " kgCO2. Si deseáis información sobre las válvulas termostáticas, os recomendamos que solicitéis presupuesto." -> Ahorraréis 0 kWh (lo que supone un ahorro de 0 €) al año. Estaréis ayudando al medioambiente al reducir tus emisiones en 0 kgCO2. Si deseáis información sobre las válvulas termostáticas, os recomendamos que solicitéis presupuesto. | H68: Ρυθμίστε την εσωτερική θερμοκρασία στους 21°C. Το χειμώνα μια θερμοκρασία των 21ºC κατά τη διάρκεια της ημέρας πρέπει να είναι αρκετή για να σας κάνει να νιώσετε άνετα. | I68: ="Θα εξοικονομήσετε " & ROUND(Heating!G14,0) & " kWh (Aυτό αντιστοιχεί σε περίπου " & ROUND(Heating!H14,0) & " €) τον χρόνο. Θα βοηθήσετε το περιβάλλον μειώνοντας τις εκπομπές σας κατά " & ROUND(Heating!I14,0) & " kgCO2." -> Θα εξοικονομήσετε 0 kWh (Aυτό αντιστοιχεί σε περίπου 0 €) τον χρόνο. Θα βοηθήσετε το περιβάλλον μειώνοντας τις εκπομπές σας κατά 0 kgCO2. | J68: In inverno imposta la temperatura interna a 20ºC. 20ºC durante il giorno e qualche grado in meno di notte dovrebbero essere sufficiente per farti sentire a tuo agio in casa. | K68: ="Risparmierai " & ROUND(Heating!G14,0) & " kWh , equivalenti a " & ROUND(Heating!H14,2) & " € all'anno. Aiuterai l'ambiente riducendo le tue emissioni di " & ROUND(Heating!I14,0) & " kgCO2." -> Risparmierai 0 kWh , equivalenti a 0 € all'anno. Aiuterai l'ambiente riducendo le tue emissioni di 0 kgCO2. | L68: Postavite sobnu temperaturu na 21°C. Zimi je temperatura od 21°C danju i 15 do 18°C noću dovoljna da bi se osjećali ugodno. | M68: ="Uštedjet ćete " & ROUND(Heating!G14,0) & " kWh (što vrijedi oko " & ROUND(Heating!H14,0) & " €) godišnje. Pomoći ćete okolišu smanjenjem emisija " & ROUND(Heating!I14,0) & " kgCO2." -> Uštedjet ćete 0 kWh (što vrijedi oko 0 €) godišnje. Pomoći ćete okolišu smanjenjem emisija 0 kgCO2. | N68: Настройте вътрешната температура на 21ºC. През зимата 21ºC през деня и 15-18 ºC през нощта са достатъчни температури за да се чувствате уютно. | O68: ="Ще спестите " & ROUND(Heating!G14,0) & " кВтч (това е около " & ROUND(Heating!H14,0) & " €) годишно. Ще намалите вредните емисии с " & ROUND(Heating!I14,0) & " kgCO2." -> Ще спестите 0 кВтч (това е около 0 €) годишно. Ще намалите вредните емисии с 0 kgCO2.
B69: Tip 10 | C69: Install aerators on taps. | D69: Install aerators on taps. If you save hot water you will also be saving energy. | E69: =IF(Heating!K20<>"","You will save " & ROUND(Heating!G20,0) & " kWh (that’s worth about " & ROUND(Heating!H20,0) & " €) per year. " & "The cost of installing an aerator on taps may range between " & ROUND(Heating!J14,2) & " € (please request quotations to find out the exact cost for your case). " & "The payback is " & ROUND(Heating!K20,2) & " years. You will help the environment by reducing your emissions in " & ROUND(Heating!I20,0) & " kgCO2.","You will save " & ROUND(Heating!G20,0) & " kWh (that’s worth about " & ROUND(Heating!H20,0) & " €) per year. " & "The cost of installing an aerator on taps may range between " & ROUND(Heating!J14,2) & " € (please request quotations to find out the exact cost for your case). You will help the environment by reducing your emissions in " & ROUND(Heating!I20,0) & " kgCO2.") -> You will save 0 kWh (that’s worth about 0 €) per year. The cost of installing an aerator on taps may range between 0 € (please request quotations to find out the exact cost for your case). You will help the environment by reducing your emissions in 0 kgCO2. | F69: Instalad perlizadores en los grifos. Si ahorráis agua caliente estaréis ahorrando agua y energía. | G69: =IF(Heating!K20<>"","Ahorraréis " & ROUND(Heating!G20,0) & " kWh (lo que supone un ahorro de " & ROUND(Heating!H20,0) & " €) al año. " & "El precio de instalar un perlizador es aproximadamente de " & ROUND(Heating!J20,2) & " € (os recomendamos que solicitéis presupuesto para vuestro caso concreto). " & "Recuperaréis la inversión aproximadamente en " & ROUND(Heating!K20,2) & " años. Estaréis ayudando al medioambiente al reducir vuestras emisiones en " & ROUND(Heating!I20,0) & " kgCO2.","Ahorraréis " & ROUND(Heating!G20,0) & " kWh (lo que supone un ahorro de " & ROUND(Heating!H20,0) & " €) al año. " & "El precio de instalar un perlizador es aproximadamente de " & ROUND(Heating!J20,2) & " € (os recomendamos que solicitéis presupuesto para vuestro caso concreto). Estaréis ayudando al medioambiente al reducir vuestras emisiones en " & ROUND(Heating!I20,0) & " kgCO2.") -> Ahorraréis 0 kWh (lo que supone un ahorro de 0 €) al año. El precio de instalar un perlizador es aproximadamente de 0 € (os recomendamos que solicitéis presupuesto para vuestro caso concreto). Estaréis ayudando al medioambiente al reducir vuestras emisiones en 0 kgCO2. | H69: Εγκαταστείστε αεριστές στις βρύσες. Εάν εξοικονομείτε ζεστό νερό, θα εξοικονομείτε επίσης και ενέργεια. | I69: =IF(Heating!K20<>"","Θα εξοικονομήσετε " & ROUND(Heating!G20,0) & " kWh (Aυτό αντιστοιχεί σε περίπου " & ROUND(Heating!H20,0) & " €) τον χρόνο. " & "Το κόστος εγκατάστασης αεριστή, κυμαίνεται στα " & ROUND(Heating!J14,2) & " € (παρακαλούμε να ζητήσετε προσφορές για να μάθετε το ακριβές κόστος για την περίπτωσή σας). " & "Η απόσβεση της επένδυσης σας είναι " & ROUND(Heating!K20,2) & " χρόνια. Θα βοηθήσετε το περιβάλλον μειώνοντας τις εκπομπές σας κατά " & ROUND(Heating!I20,0) & " kgCO2.","Θα εξοικονομήσετε " & ROUND(Heating!G20,0) & " kWh (Aυτό αντιστοιχεί σε περίπου " & ROUND(Heating!H20,0) & " €) τον χρόνο. " & "Το κόστος εγκατάστασης αεριστή, κυμαίνεται στα " & ROUND(Heating!J14,2) & " € (παρακαλούμε να ζητήσετε προσφορές για να μάθετε το ακριβές κόστος για την περίπτωσή σας). Θα βοηθήσετε το περιβάλλον μειώνοντας τις εκπομπές σας κατά " & ROUND(Heating!I20,0) & " kgCO2.") -> Θα εξοικονομήσετε 0 kWh (Aυτό αντιστοιχεί σε περίπου 0 €) τον χρόνο. Το κόστος εγκατάστασης αεριστή, κυμαίνεται στα 0 € (παρακαλούμε να ζητήσετε προσφορές για να μάθετε το ακριβές κόστος για την περίπτωσή σας). Θα βοηθήσετε το περιβάλλον μειώνοντας τις εκπομπές σας κατά 0 kgCO2. | J69: Installa gli aeratori sui rubinetti. Se risparmi acqua calda risparimerai anche l'energia necessaria per riscaldarla. | K69: =IF(Heating!K20<>"","Risparmierai fino a" & ROUND(Heating!G20,0) & " kWh , equivalenti a " & ROUND(Heating!H20,2) & " € all'anno." & " Il costo relativo all'installazione dei aeratori sui rubinetti ammonta a circa " & ROUND(Heating!J20,2) & " €.Il ritorno dell'investimento è pari a " & ROUND(Heating!K20,2) & " anni." & " Aiuterai l'ambiente riducendo le tue emissioni di " & ROUND(Heating!I20,0) & " kgCO2.","Risparmierai " & ROUND(Heating!G20,0) & " kWh , equivalenti a " & ROUND(Heating!H20,2) & " € all'anno." & " Il costo relativo all'installazione dei aeratori sui rubinetti ammonta a circa " & ROUND(Heating!J20,2) & " €. Aiuterai l'ambiente riducendo le tue emissioni di " & ROUND(Heating!I20,0) & " kgCO2.") -> Risparmierai 0 kWh , equivalenti a 0 € all'anno. Il costo relativo all'installazione dei aeratori sui rubinetti ammonta a circa 0 €. Aiuterai l'ambiente riducendo le tue emissioni di 0 kgCO2. | L69: Postavite perlatore na slavine. Ako budete štedjeli toplu vodu, štedjet ćete i energiju. | M69: =IF(Heating!K20<>"","Uštedjet ćete " & ROUND(Heating!G20,0) & " kWh (što vrijedi oko " & ROUND(Heating!H20,0) & " €) godišnje. " & "Cijena postavljanja perlatora na izljevnim mjestima je oko " & ROUND(Heating!J14,2) & " € (molimo vas da zatražite informacije kako bi saznali točan iznos za vaš slučaj). " & "Jednostavan period povrata (JPP) ulaganja je " & ROUND(Heating!K20,2) & " god. Pomoći ćete okolišu smanjenjem emisija " & ROUND(Heating!I20,0) & " kgCO2.","Uštedjet ćete " & ROUND(Heating!G20,0) & " kWh (što vrijedi oko " & ROUND(Heating!H20,0) & " €) godišnje. " & "Cijena postavljanja perlatora na izljevnim mjestima je oko " & ROUND(Heating!J14,2) & " € (molimo vas da zatražite informacije kako bi saznali točan iznos za vaš slučaj). Pomoći ćete okolišu smanjenjem emisija " & ROUND(Heating!I20,0) & " kgCO2.") -> Uštedjet ćete 0 kWh (što vrijedi oko 0 €) godišnje. Cijena postavljanja perlatora na izljevnim mjestima je oko 0 € (molimo vas da zatražite informacije kako bi saznali točan iznos za vaš slučaj). Pomoći ćete okolišu smanjenjem emisija 0 kgCO2. | N69: Монтирайте редуцир-вентил. Пестейки топла вода, вие спестявате и енергия. | O69: =IF(Heating!K20<>"","Ще спестите " & ROUND(Heating!G20,0) & " кВтч (това е около " & ROUND(Heating!H20,2) & " €) годишно. " & "Цената на редуцир-вентил е около " & ROUND(Heating!J20,2) & " € (проверете за по-точна цена във вашия случай). " & "Срокът на изплащане е " & ROUND(Heating!K20,2) & " години. Ще намалите вредните емисии с " & ROUND(Heating!I20,0) & " kgCO2.","Ще спестите " & ROUND(Heating!G20,0) & " кВтч (това е около " & ROUND(Heating!H20,2) & " €) годишно. " & "Цената на редуцир-вентил е около " & ROUND(Heating!J20,2) & " € (проверете за по-точна цена във вашия случай). Ще намалите вредните емисии с " & ROUND(Heating!I20,0) & " kgCO2.") -> Ще спестите 0 кВтч (това е около 0 €) годишно. Цената на редуцир-вентил е около 0 € (проверете за по-точна цена във вашия случай). Ще намалите вредните емисии с 0 kgCO2.
B70: Tip 11 | C70: Install thermostatic taps. | D70: Install thermostatic taps. Use thermostatic taps in sinks and showers to set the right temperature quickly. | E70: =IF(Heating!K21<>"","You will save " & ROUND(Heating!G21,0) & " kWh (that’s worth about " & ROUND(Heating!H21,0) & " €) per year. " & "The cost of installing a thermostatic taps may range between " & ROUND(Heating!J21,2) & " euros (please request quotations to find out the exact cost for your case). " & "The payback is " & ROUND(Heating!K21,2) & " years. You will help the environment by reducing your emissions in " & ROUND(Heating!I21,0) & " kgCO2.","You will save " & ROUND(Heating!G21,0) & " kWh (that’s worth about " & ROUND(Heating!H21,0) & " €) per year. " & "The cost of installing a thermostatic taps may range between " & ROUND(Heating!J21,2) & " euros (please request quotations to find out the exact cost for your case). You will help the environment by reducing your emissions in " & ROUND(Heating!I21,0) & " kgCO2.") -> You will save 0 kWh (that’s worth about 0 €) per year. The cost of installing a thermostatic taps may range between 0 euros (please request quotations to find out the exact cost for your case). You will help the environment by reducing your emissions in 0 kgCO2. | F70: Instalad grifos termostáticos. Os permitirán alcanzar el nivel ideal de temperatura sin desperdiciar tanta agua. | G70: =IF(Heating!K21<>"","Ahorraréis " & ROUND(Heating!G21,0) & " kWh (lo que supone un ahorro de " & ROUND(Heating!H21,0) & " €) al año. " & "El precio de instalar un grifo termostático es aproximadamente de " & ROUND(Heating!J21,2) & " € (os recomendamos que solicitéis presupuesto para vuestro caso concreto). " & "Recuperaréis la inversión aproximadamente en " & ROUND(Heating!K21,2) & " años. Estaréis ayudando al medioambiente al reducir vuestras emisiones en " & ROUND(Heating!I21,0) & " kgCO2.","Ahorraréis " & ROUND(Heating!G21,0) & " kWh (lo que supone un ahorro de " & ROUND(Heating!H21,0) & " €) al año. " & "El precio de instalar un grifo termostático es aproximadamente de " & ROUND(Heating!J21,2) & " € (os recomendamos que solicitéis presupuesto para vuestro caso concreto). Estaréis ayudando al medioambiente al reducir vuestras emisiones en " & ROUND(Heating!I21,0) & " kgCO2.") -> Ahorraréis 0 kWh (lo que supone un ahorro de 0 €) al año. El precio de instalar un grifo termostático es aproximadamente de 0 € (os recomendamos que solicitéis presupuesto para vuestro caso concreto). Estaréis ayudando al medioambiente al reducir vuestras emisiones en 0 kgCO2. | H70: Εγκατάσταση θερμοστάτη στις βρύσες. Χρησιμοποιήστε θερμοστατικές βρύσες σε νεροχύτες και ντους για να μπορείτε να ρυθμίσετε γρήγορα την σωστή θερμοκρασία. | I70: =IF(Heating!K21<>"","Θα εξοικονομήσετε " & ROUND(Heating!G21,0) & " kWh (Aυτό αντιστοιχεί σε περίπου " & ROUND(Heating!H21,0) & " €) τον χρόνο. " & "Το κόστος εγκατάστασης θερμοστάτη στις βρύσες κυμαίνεται στα € " & ROUND(Heating!J21,2) & " (παρακαλούμε να ζητήσετε προσφορές για να μάθετε το ακριβές κόστος για την περίπτωσή σας). " & "Η απόσβεση της επένδυσης σας είναι " & ROUND(Heating!K21,2) & " χρόνια. Θα βοηθήσετε το περιβάλλον μειώνοντας τις εκπομπές σας κατά " & ROUND(Heating!I21,0) & " kgCO2.","Θα εξοικονομήσετε " & ROUND(Heating!G21,0) & " kWh (Aυτό αντιστοιχεί σε περίπου " & ROUND(Heating!H21,0) & " €) τον χρόνο. " & "Το κόστος εγκατάστασης θερμοστάτη στις βρύσες κυμαίνεται στα € " & ROUND(Heating!J21,2) & " (παρακαλούμε να ζητήσετε προσφορές για να μάθετε το ακριβές κόστος για την περίπτωσή σας). Θα βοηθήσετε το περιβάλλον μειώνοντας τις εκπομπές σας κατά " & ROUND(Heating!I21,0) & " kgCO2.") -> Θα εξοικονομήσετε 0 kWh (Aυτό αντιστοιχεί σε περίπου 0 €) τον χρόνο. Το κόστος εγκατάστασης θερμοστάτη στις βρύσες κυμαίνεται στα € 0 (παρακαλούμε να ζητήσετε προσφορές για να μάθετε το ακριβές κόστος για την περίπτωσή σας). Θα βοηθήσετε το περιβάλλον μειώνοντας τις εκπομπές σας κατά 0 kgCO2. | J70: Installa i rubinetti termostatici in lavandini e docce per impostare rapidamente la giusta temperatura. | K70: =IF(Heating!K21<>"","Risparmierai fino a " & ROUND(Heating!G21,0) & " kWh , equivalenti a " & ROUND(Heating!H21,2) & " € all'anno." & " Il costo relativo all'installazione dei rubinetti termostatici ammonta a circa " & ROUND(Heating!J21,2) & " €.Il ritorno dell'investimento è pari a " & ROUND(Heating!K21,2) & " anni." & " Aiuterai l'ambiente riducendo le tue emissioni di " & ROUND(Heating!I21,0) & " kgCO2.","Risparmierai " & ROUND(Heating!G21,0) & " kWh , equivalenti a " & ROUND(Heating!H21,2) & " € all'anno." & " Il costo relativo all'installazione dei rubinetti termostatici ammonta a circa " & ROUND(Heating!J21,2) & " €. Aiuterai l'ambiente riducendo le tue emissioni di " & ROUND(Heating!I21,0) & " kgCO2.") -> Risparmierai 0 kWh , equivalenti a 0 € all'anno. Il costo relativo all'installazione dei rubinetti termostatici ammonta a circa 0 €. Aiuterai l'ambiente riducendo le tue emissioni di 0 kgCO2. | L70: Postavite termostatske slavine. Koristite termostatske slavine na umivaonicama i tuševima kako bi brzo podesili željenu temperaturu vode. | M70: =IF(Heating!K21<>"","Uštedjet ćete " & ROUND(Heating!G21,0) & " kWh (što vrijedi oko " & ROUND(Heating!H21,0) & " €) godišnje. " & "Cijena postavljanja termostatskih slavina je oko " & ROUND(Heating!J21,2) & " € (molimo vas da zatražite informacije kako bi saznali točan iznos za vaš slučaj). " & "Jednostavan period povrata (JPP) ulaganja je " & ROUND(Heating!K21,2) & " god. Pomoći ćete okolišu smanjenjem emisija " & ROUND(Heating!I21,0) & ".","Uštedjet ćete " & ROUND(Heating!G21,0) & " kWh (što vrijedi oko " & ROUND(Heating!H21,0) & " €) godišnje. " & "Cijena postavljanja termostatskih slavina je oko " & ROUND(Heating!J21,2) & " € (molimo vas da zatražite informacije kako bi saznali točan iznos za vaš slučaj). Pomoći ćete okolišu smanjenjem emisija " & ROUND(Heating!I21,0) & ".") -> Uštedjet ćete 0 kWh (što vrijedi oko 0 €) godišnje. Cijena postavljanja termostatskih slavina je oko 0 € (molimo vas da zatražite informacije kako bi saznali točan iznos za vaš slučaj). Pomoći ćete okolišu smanjenjem emisija 0. | N70: Монтирайте термостатни смесители. Използвайте ги за мивки и душове за да регулирате температурата на водата бързо. | O70: =IF(Heating!K21<>"","Ще спестите " & ROUND(Heating!G21,0) & " кВтч (това е около " & ROUND(Heating!H21,2) & " €) годишно. " & "Цената на термостатните смесители е около " & ROUND(Heating!J21,2) & " euros (проверете за по-точна цена във вашия случай). " & "Срокът на изплащане е " & ROUND(Heating!K21,2) & " години. Ще намалите врените емисии с " & ROUND(Heating!I21,0) & " kgCO2.","Ще спестите " & ROUND(Heating!G21,0) & " кВтч (това е около " & ROUND(Heating!H21,2) & " €) годишно. " & "Цената на термостатните смесители е около " & ROUND(Heating!J21,2) & " euros (проверете за по-точна цена във вашия случай). Ще намалите врените емисии с " & ROUND(Heating!I21,0) & " kgCO2.") -> Ще спестите 0 кВтч (това е около 0 €) годишно. Цената на термостатните смесители е около 0 euros (проверете за по-точна цена във вашия случай). Ще намалите врените емисии с 0 kgCO2.
B71: Tip 12 | C71: Refurbish the ceiling from the inside. | D71: Refurbish the ceiling from the inside. Insulate your ceiling with systems that allow to do it from the inside. | E71: =IF(Heating!K11<>"","You will save " & ROUND(Heating!G11,0) & " kWh (that’s worth about " & ROUND(Heating!H11,2) & " €) per year. " & "The cost of refurbish the ceiling from the inside may range between " & ROUND(Heating!J11,2) & " € (please request quotations to find out the exact cost for your case). " & "The payback is " & ROUND(Heating!K11,2) & " years. You will help the environment by reducing your emissions in " & ROUND(Heating!I11,0) & " kgCO2.","You will save " & ROUND(Heating!G11,0) & " kWh (that’s worth about " & ROUND(Heating!H11,2) & " €) per year. " & "The cost of refurbish the ceiling from the inside may range between " & ROUND(Heating!J11,2) & " € (please request quotations to find out the exact cost for your case). You will help the environment by reducing your emissions in " & ROUND(Heating!I11,0) & " kgCO2.") -> You will save 0 kWh (that’s worth about 0 €) per year. The cost of refurbish the ceiling from the inside may range between 0 € (please request quotations to find out the exact cost for your case). You will help the environment by reducing your emissions in 0 kgCO2. | F71: Rehabilitad el techo desde el interior de la vivienda. Aislad vuestro techo con técnicas que permiten hacerlo desde el interior de la vivienda. | G71: =IF(Heating!K11<>"","Ahorraréis " & ROUND(Heating!G11,0) & " kWh (lo que supone un ahorro de " & ROUND(Heating!H11,0) & " €) al año. " & "El precio de rehabilitar el techo desde dentro es aproximadamente de " & ROUND(Heating!J11,2) & " (os recomendamos que solicitéis presupuesto para vuestro caso concreto). " & "Recuperaréis la inversión aproximadamente en " & ROUND(Heating!K11,2) & " años. Estaréis ayudando al medioambiente al reducir vuestras emisiones en " & ROUND(Heating!I11,0) & " kgCO2.","Ahorraréis " & ROUND(Heating!G11,0) & " kWh (lo que supone un ahorro de " & ROUND(Heating!H11,0) & " €) al año. " & "El precio de rehabilitar el techo desde dentro es aproximadamente de " & ROUND(Heating!J11,2) & " (os recomendamos que solicitéis presupuesto para vuestro caso concreto). Estaréis ayudando al medioambiente al reducir vuestras emisiones en " & ROUND(Heating!I11,0) & " kgCO2.") -> Ahorraréis 0 kWh (lo que supone un ahorro de 0 €) al año. El precio de rehabilitar el techo desde dentro es aproximadamente de 0 (os recomendamos que solicitéis presupuesto para vuestro caso concreto). Estaréis ayudando al medioambiente al reducir vuestras emisiones en 0 kgCO2. | H71: Ανακαινίστε εσωτερικά την οροφή σας. Μονώστε την οροφή σας με συστήματα που επιτρέπουν να το κάνετε από το εσωτερικό. | I71: =IF(Heating!K11<>"","Θα εξοικονομήσετε " & ROUND(Heating!G11,0) & " kWh (Aυτό αντιστοιχεί σε περίπου " & ROUND(Heating!H11,2) & " €) τον χρόνο. " & "Το κόστος για να ανακαινίσετε εσωτερικά την οροφή σας μπορεί να κυμαίνεται στα " & ROUND(Heating!J11,2) & " € (παρακαλούμε να ζητήσετε προσφορές για να μάθετε το ακριβές κόστος για την περίπτωσή σας). " & "Η απόσβεση της επένδυσης σας είναι " & ROUND(Heating!K11,2) & " χρόνια. Θα βοηθήσετε το περιβάλλον μειώνοντας τις εκπομπές σας κατά " & ROUND(Heating!I11,0) & " kgCO2.","Θα εξοικονομήσετε " & ROUND(Heating!G11,0) & " kWh (Aυτό αντιστοιχεί σε περίπου " & ROUND(Heating!H11,2) & " €) τον χρόνο. " & "Το κόστος για να ανακαινίσετε εσωτερικά την οροφή σας μπορεί να κυμαίνεται στα " & ROUND(Heating!J11,2) & " € (παρακαλούμε να ζητήσετε προσφορές για να μάθετε το ακριβές κόστος για την περίπτωσή σας). Θα βοηθήσετε το περιβάλλον μειώνοντας τις εκπομπές σας κατά " & ROUND(Heating!I11,0) & " kgCO2.") -> Θα εξοικονομήσετε 0 kWh (Aυτό αντιστοιχεί σε περίπου 0 €) τον χρόνο. Το κόστος για να ανακαινίσετε εσωτερικά την οροφή σας μπορεί να κυμαίνεται στα 0 € (παρακαλούμε να ζητήσετε προσφορές για να μάθετε το ακριβές κόστος για την περίπτωσή σας). Θα βοηθήσετε το περιβάλλον μειώνοντας τις εκπομπές σας κατά 0 kgCO2. | J71: Coibenta il tetto. Il tetto si può isolare sia dall'esterno che dall'interno. La soluzione migliore è un'isolamento dall'estreno. In alternativa valuta anche soluzioni di isolamento dall'interno. | K71: =IF(Heating!K11<>"","Risparmierai fino a" & ROUND(Heating!G11,0) & " kWh , equivalenti a " & ROUND(Heating!H11,2) & " € all'anno. Il costo relativo alla coibentazione del tetto ammonta a circa " & ROUND(Heating!J11,2) & " €." & "Il ritorno dell'investimento è pari a " & ROUND(Heating!K11,2) & " anni." & " Aiuterai l'ambiente riducendo le tue emissioni di " & ROUND(Heating!I11,0) & " kgCO2.","Risparmierai " & ROUND(Heating!G11,0) & " kWh , equivalenti a " & ROUND(Heating!H11,2) & " € all'anno. Il costo relativo alla coibentazione del tetto ammonta a circa " & ROUND(Heating!J11,2) & " €. Aiuterai l'ambiente riducendo le tue emissioni di " & ROUND(Heating!I11,0) & " kgCO2.") -> Risparmierai 0 kWh , equivalenti a 0 € all'anno. Il costo relativo alla coibentazione del tetto ammonta a circa 0 €. Aiuterai l'ambiente riducendo le tue emissioni di 0 kgCO2. | L71: Preuredite strop iznutra. Izolirajte strop sustavima koji dopuštaju da se to učini iznutra. | M71: =IF(Heating!K11<>"","Uštedjet ćete " & ROUND(Heating!G11,0) & " kWh (što vrijedi oko " & ROUND(Heating!H11,0) & " €) godišnje. " & "Cijena preuređenja stropa iznutra je oko " & ROUND(Heating!J11,2) & " € (molimo vas da zatražite informacije kako bi saznali točan iznos za vaš slučaj). " & "Jednostavan period povrata (JPP) ulaganja je " & ROUND(Heating!K11,2) & " god. Pomoći ćete okolišu smanjenjem emisija " & ROUND(Heating!I11,0) & " kgCO2.","Uštedjet ćete " & ROUND(Heating!G11,0) & " kWh (što vrijedi oko " & ROUND(Heating!H11,0) & " €) godišnje. " & "Cijena preuređenja stropa iznutra je oko " & ROUND(Heating!J11,2) & " € (molimo vas da zatražite informacije kako bi saznali točan iznos za vaš slučaj). Pomoći ćete okolišu smanjenjem emisija " & ROUND(Heating!I11,0) & " kgCO2.") -> Uštedjet ćete 0 kWh (što vrijedi oko 0 €) godišnje. Cijena preuređenja stropa iznutra je oko 0 € (molimo vas da zatražite informacije kako bi saznali točan iznos za vaš slučaj). Pomoći ćete okolišu smanjenjem emisija 0 kgCO2. | N71: Изолирайте тавана от вътре. Направете го с материали, позволяващи това да стане от вътрешната страна. | O71: =IF(Heating!K11<>"","Ще спестите " & ROUND(Heating!G11,0) & " кВтч (това е около " & ROUND(Heating!H11,2) & " €) годишно. " & "Цената на изолация на тавана от вътре може да бъде около " & ROUND(Heating!J11,2) & " € (проверете за по-точна цена във вашия случай). " & "Срокът на изплащане е " & ROUND(Heating!K11,2) & " години. Ще намалите вредните емисии с " & ROUND(Heating!I11,0) & " kgCO2.","Ще спестите " & ROUND(Heating!G11,0) & " кВтч (това е около " & ROUND(Heating!H11,2) & " €) годишно. " & "Цената на изолация на тавана от вътре може да бъде около " & ROUND(Heating!J11,2) & " € (проверете за по-точна цена във вашия случай). Ще намалите вредните емисии с " & ROUND(Heating!I11,0) & " kgCO2.") -> Ще спестите 0 кВтч (това е около 0 €) годишно. Цената на изолация на тавана от вътре може да бъде около 0 € (проверете за по-точна цена във вашия случай). Ще намалите вредните емисии с 0 kgCO2.
B72: Tip 13 | C72: Install high efficiency windowpanes and frames. | D72: Install high efficiency windowpanes and frames. Install double glazing windows and thermal break. | E72: =IF(Heating!K10<>"","You will save " & ROUND(Heating!G10,0) & " kWh (that’s worth about " & ROUND(Heating!H10,0) & " €) per year. " & "The price of installing high efficiency windowpanes and frames is around " & ROUND(Heating!J10,2) & " € (please request quotations to find out the exact cost for your case). " & "The payback is " & ROUND(Heating!K10,2) & " years. You will help the environment by reducing your emissions in " & ROUND(Heating!I10,0) & " kgCO2.","You will save " & ROUND(Heating!G10,0) & " kWh (that’s worth about " & ROUND(Heating!H10,0) & " €) per year. " & "The price of installing high efficiency windowpanes and frames is around " & ROUND(Heating!J10,2) & " € (please request quotations to find out the exact cost for your case). You will help the environment by reducing your emissions in " & ROUND(Heating!I10,0) & " kgCO2.") -> You will save 0 kWh (that’s worth about 0 €) per year. The price of installing high efficiency windowpanes and frames is around 0 € (please request quotations to find out the exact cost for your case). You will help the environment by reducing your emissions in 0 kgCO2. | F72: Instalad cristales y carpintería de alta eficiencia en tus ventanas. Si instaláis ventanas con rotura de puente térmico, evitaréis en gran medida que el frío y el calor de fuera penetre en vuestras casas. | G72: =IF(Heating!K10<>"","Ahorraréis " & ROUND(Heating!G10,0) & " kWh (lo que supone un ahorro de " & ROUND(Heating!H10,0) & " €) al año. " & "El precio de instalar cristales y carpintería de alta eficiencia es aproximadamente de " & ROUND(Heating!J10,2) & " € (os recomendaos que solicitéis presupuesto para vuestro caso concreto). " & "Recuperaréis la inversión aproximadamente en " & ROUND(Heating!K10,2) & " años. Estaréis ayudando al medioambiente al reducir tus emisiones en " & ROUND(Heating!I10,0) & " kgCO2.","Ahorraréis " & ROUND(Heating!G10,0) & " kWh (lo que supone un ahorro de " & ROUND(Heating!H10,0) & " €) al año. " & "El precio de instalar cristales y carpintería de alta eficiencia es aproximadamente de " & ROUND(Heating!J10,2) & " € (os recomendaos que solicitéis presupuesto para vuestro caso concreto). Estaréis ayudando al medioambiente al reducir tus emisiones en " & ROUND(Heating!I10,0) & " kgCO2.") -> Ahorraréis 0 kWh (lo que supone un ahorro de 0 €) al año. El precio de instalar cristales y carpintería de alta eficiencia es aproximadamente de 0 € (os recomendaos que solicitéis presupuesto para vuestro caso concreto). Estaréis ayudando al medioambiente al reducir tus emisiones en 0 kgCO2. | H72: Εγκαταστήστε υψηλής απόδοσης παράθυρα. Τοποθετήστε διπλά τζάμια και θερμικό κενό. | I72: =IF(Heating!K10<>"","Θα εξοικονομήσετε " & ROUND(Heating!G10,0) & " kWh (Aυτό αντιστοιχεί σε περίπου " & ROUND(Heating!H10,0) & " €) τον χρόνο. " & "Το κόστος εγκατάστασης παραθύρων υψηλής απόδοσης είναι περίπου € " & ROUND(Heating!J10,2) & " (παρακαλούμε να ζητήσετε προσφορές για να μάθετε το ακριβές κόστος για την περίπτωσή σας). " & "Η απόσβεση της επένδυσης σας είναι " & ROUND(Heating!K10,2) & " χρόνια. Θα βοηθήσετε το περιβάλλον μειώνοντας τις εκπομπές σας κατά " & ROUND(Heating!I10,0) & " kgCO2.","Θα εξοικονομήσετε " & ROUND(Heating!G10,0) & " kWh (Aυτό αντιστοιχεί σε περίπου " & ROUND(Heating!H10,0) & " €) τον χρόνο. " & "Το κόστος εγκατάστασης παραθύρων υψηλής απόδοσης είναι περίπου € " & ROUND(Heating!J10,2) & " (παρακαλούμε να ζητήσετε προσφορές για να μάθετε το ακριβές κόστος για την περίπτωσή σας). Θα βοηθήσετε το περιβάλλον μειώνοντας τις εκπομπές σας κατά " & ROUND(Heating!I10,0) & " kgCO2.") -> Θα εξοικονομήσετε 0 kWh (Aυτό αντιστοιχεί σε περίπου 0 €) τον χρόνο. Το κόστος εγκατάστασης παραθύρων υψηλής απόδοσης είναι περίπου € 0 (παρακαλούμε να ζητήσετε προσφορές για να μάθετε το ακριβές κόστος για την περίπτωσή σας). Θα βοηθήσετε το περιβάλλον μειώνοντας τις εκπομπές σας κατά 0 kgCO2. | J72: Installa serramenti ad alta efficienza energetica. Scegli serramenti con transmittanza a norma di legge. | K72: =IF(Heating!K10<>"","Risparmierai fino a" & ROUND(Heating!G10,0) & " kWh , equivalenti a " & ROUND(Heating!H10,2) & " € all'anno." & " Il costo relativo all'installazione di serramenti ad alta efficienza energetica ammonta a circa " & ROUND(Heating!J10,2) & " €.Il ritorno dell'investimento è pari a " & ROUND(Heating!K10,2) & " anni." & " Aiuterai l'ambiente riducendo le tue emissioni di " & ROUND(Heating!I10,0) & " kgCO2.","Risparmierai " & ROUND(Heating!G10,0) & " kWh , equivalenti a " & ROUND(Heating!H10,2) & " € all'anno." & " Il costo relativo all'installazione di serramenti ad alta efficienza energetica ammonta a circa " & ROUND(Heating!J10,2) & " €. Aiuterai l'ambiente riducendo le tue emissioni di " & ROUND(Heating!I10,0) & " kgCO2.") -> Risparmierai 0 kWh , equivalenti a 0 € all'anno. Il costo relativo all'installazione di serramenti ad alta efficienza energetica ammonta a circa 0 €. Aiuterai l'ambiente riducendo le tue emissioni di 0 kgCO2. | L72: Postavite prozorska stakla i okvire visoke učinkovitosti. Postavite dvostruko ostakljene prozore s termičkim slojem. | M72: =IF(Heating!K10<>"","Uštedjet ćete " & ROUND(Heating!G10,0) & " kWh (što vrijedi oko " & ROUND(Heating!H17,2) & " €) godišnje. " & "Cijena postavljanja energetski visoko učinkovitih stakala i okvira je oko " & ROUND(Heating!J10,2) & " € (molimo vas da zatražite informacije kako bi saznali točan iznos za vaš slučaj). " & "Jednostavan period povrata (JPP) ulaganja je " & ROUND(Heating!K10,2) & " god. Pomoći ćete okolišu smanjenjem emisija " & ROUND(Heating!I10,0) & " kgCO2.","Uštedjet ćete " & ROUND(Heating!G10,0) & " kWh (što vrijedi oko " & ROUND(Heating!H17,2) & " €) godišnje. " & "Cijena postavljanja energetski visoko učinkovitih stakala i okvira je oko " & ROUND(Heating!J10,2) & " € (molimo vas da zatražite informacije kako bi saznali točan iznos za vaš slučaj). Pomoći ćete okolišu smanjenjem emisija " & ROUND(Heating!I10,0) & " kgCO2.") -> Uštedjet ćete 0 kWh (što vrijedi oko 0 €) godišnje. Cijena postavljanja energetski visoko učinkovitih stakala i okvira je oko 0 € (molimo vas da zatražite informacije kako bi saznali točan iznos za vaš slučaj). Pomoći ćete okolišu smanjenjem emisija 0 kgCO2. | N72: Монтирайте високо ефективни прозорци и дограми. Поне двоен стъклопакет и с прекъснат термомост. | O72: =IF(Heating!K10<>"","Ще спестите " & ROUND(Heating!G10,0) & " кВтч (това е около " & ROUND(Heating!H10,2) & " €) годишно. " & "Цената на високоефективни прозорци и дограми може да бъде около " & ROUND(Heating!J10,2) & " € (проверете за по-точна цена във вашия случай). " & "Срокът на изплащане е " & ROUND(Heating!K10,2) & " години. Ще намалите вредните емисии с " & ROUND(Heating!I10,0) & " kgCO2.","Ще спестите " & ROUND(Heating!G10,0) & " кВтч (това е около " & ROUND(Heating!H10,2) & " €) годишно. " & "Цената на високоефективни прозорци и дограми може да бъде около " & ROUND(Heating!J10,2) & " € (проверете за по-точна цена във вашия случай). Ще намалите вредните емисии с " & ROUND(Heating!I10,0) & " kgCO2.") -> Ще спестите 0 кВтч (това е около 0 €) годишно. Цената на високоефективни прозорци и дограми може да бъде около 0 € (проверете за по-точна цена във вашия случай). Ще намалите вредните емисии с 0 kgCO2.
B73: Tip 14 | C73: Insulate your facade. | D73: Insulate your facade. Insulate your house through several systems available on the market: from the outside or from the inside (through injection, if there are walls with air chamber). | E73: =IF(Heating!K9<>"","You will save " & ROUND(Heating!G9,0) & " kWh (that’s worth about " & ROUND(Heating!H9,0) & " €) per year. " & "The price of renewing the building envelope is around " & ROUND(Heating!J9,2) & " € (please request quotations to find out the exact cost for your case). " & "The payback is " & ROUND(Heating!K9,2) & " years. You will help the environment by reducing your emissions in " & ROUND(Heating!I9,0) & " kgCO2.","You will save " & ROUND(Heating!G9,0) & " kWh (that’s worth about " & ROUND(Heating!H9,0) & " €) per year. " & "The price of renewing the building envelope is around " & ROUND(Heating!J9,2) & " € (please request quotations to find out the exact cost for your case). You will help the environment by reducing your emissions in " & ROUND(Heating!I9,0) & " kgCO2.") -> You will save 0 kWh (that’s worth about 0 €) per year. The price of renewing the building envelope is around 0 € (please request quotations to find out the exact cost for your case). You will help the environment by reducing your emissions in 0 kgCO2. | F73: Aislad la fachada. Aislad vuestra casa a través de los distintos sistemas existentes en el mercado: desde afuera o desde dentro (a través de inyección si en las paredes existe cámara de aire). | G73: =IF(Heating!K9<>"","Ahorraréis " & ROUND(Heating!G9,0) & " kWh (lo que supone un ahorro de " & ROUND(Heating!H9,0) & " €) al año. " & "El precio de aislar la fachada es aproximadamente de " & ROUND(Heating!J9,2) & " € (os recomendamos que solicitéis presupuesto para vuestro caso concreto). " & "Recuperaréis la inversión aproximadamente en " & ROUND(Heating!K9,2) & " años. Estaréis ayudando al medioambiente al reducir vuestras emisiones en " & ROUND(Heating!I9,0) & " kgCO2.","Ahorraréis " & ROUND(Heating!G9,0) & " kWh (lo que supone un ahorro de " & ROUND(Heating!H9,0) & " €) al año. " & "El precio de aislar la fachada es aproximadamente de " & ROUND(Heating!J9,2) & " € (os recomendamos que solicitéis presupuesto para vuestro caso concreto). Estaréis ayudando al medioambiente al reducir vuestras emisiones en " & ROUND(Heating!I9,0) & " kgCO2.") -> Ahorraréis 0 kWh (lo que supone un ahorro de 0 €) al año. El precio de aislar la fachada es aproximadamente de 0 € (os recomendamos que solicitéis presupuesto para vuestro caso concreto). Estaréis ayudando al medioambiente al reducir vuestras emisiones en 0 kgCO2. | H73: Μονώστε την πρόσοψη σας. Μονώστε το σπίτι σας μέσω διαφόρων συστημάτων που διατίθενται στην αγορά: από έξω ή από μέσα. | I73: =IF(Heating!K9<>"","Θα εξοικονομήσετε " & ROUND(Heating!G9,0) & " kWh (Aυτό αντιστοιχεί σε περίπου " & ROUND(Heating!H9,0) & " €) τον χρόνο. " & "Το κόστος ανανέωσης του εξωτερικού μέρους του σπιτιού, είναι περίπου € " & ROUND(Heating!J9,2) & " (παρακαλούμε να ζητήσετε προσφορές για να μάθετε το ακριβές κόστος για την περίπτωσή σας). " & "The payback is " & ROUND(Heating!K9,2) & " years. Θα βοηθήσετε το περιβάλλον μειώνοντας τις εκπομπές σας κατά " & ROUND(Heating!I9,0) & " kgCO2.","Θα εξοικονομήσετε " & ROUND(Heating!G9,0) & " kWh (Aυτό αντιστοιχεί σε περίπου " & ROUND(Heating!H9,0) & " €) τον χρόνο. " & "Το κόστος ανανέωσης του εξωτερικού μέρους του σπιτιού, είναι περίπου € " & ROUND(Heating!J9,2) & " (παρακαλούμε να ζητήσετε προσφορές για να μάθετε το ακριβές κόστος για την περίπτωσή σας). Θα βοηθήσετε το περιβάλλον μειώνοντας τις εκπομπές σας κατά " & ROUND(Heating!I9,0) & " kgCO2.") -> Θα εξοικονομήσετε 0 kWh (Aυτό αντιστοιχεί σε περίπου 0 €) τον χρόνο. Το κόστος ανανέωσης του εξωτερικού μέρους του σπιτιού, είναι περίπου € 0 (παρακαλούμε να ζητήσετε προσφορές για να μάθετε το ακριβές κόστος για την περίπτωσή σας). Θα βοηθήσετε το περιβάλλον μειώνοντας τις εκπομπές σας κατά 0 kgCO2. | J73: Coibenta la tua abitazione. Isola la tua casa con uno dei vari sistemi reperibili sul mercato. Il cappotto esterno consente di ottenere risultati migliori. In alternativa valuta anche il cappotto interno o altre tecnologie di isolamento. | K73: =IF(Heating!K9<>"","Risparmierai fino a" & ROUND(Heating!G9,0) & " kWh , equivalenti a " & ROUND(Heating!H9,2) & " € all'anno." & " Il costo relativo alla coibentazioend ella tua abitazione ammonta a circa " & ROUND(Heating!J9,2) & " €.Il ritorno dell'investimento è pari a " & ROUND(Heating!K9,2) & " anni." & " Aiuterai l'ambiente riducendo le tue emissioni di " & ROUND(Heating!I9,0) & " kgCO2.","Risparmierai " & ROUND(Heating!G9,0) & " kWh , equivalenti a " & ROUND(Heating!H9,2) & " € all'anno." & " Il costo relativo alla coibentazioend ella tua abitazione ammonta a circa " & ROUND(Heating!J9,2) & " €. Aiuterai l'ambiente riducendo le tue emissioni di " & ROUND(Heating!I9,0) & " kgCO2.") -> Risparmierai 0 kWh , equivalenti a 0 € all'anno. Il costo relativo alla coibentazioend ella tua abitazione ammonta a circa 0 €. Aiuterai l'ambiente riducendo le tue emissioni di 0 kgCO2. | L73: Toplinski izolirajte svoju fasadu. Izolirajte svoju kuću pomoću nekoliko sustava koji su na raspolaganju na tržištu: izvana ili iznutra (injekcijama ako zidovi imaju komore). | M73: =IF(Heating!K9<>"","Uštedjet ćete " & ROUND(Heating!G9,0) & " kWh (što vrijedi oko " & ROUND(Heating!H9,2) & " €) godišnje. " & "Cijena toplinske izolacije vanjskih zidova je oko " & ROUND(Heating!J9,2) & " € (molimo vas da zatražite informacije kako bi saznali točan iznos za vaš slučaj). " & "Jednostavan period povrata (JPP) ulaganja je " & ROUND(Heating!K9,2) & " god. Pomoći ćete okolišu smanjenjem emisija " & ROUND(Heating!I9,0) & " kgCO2.","Uštedjet ćete " & ROUND(Heating!G9,0) & " kWh (što vrijedi oko " & ROUND(Heating!H9,2) & " €) godišnje. " & "Cijena toplinske izolacije vanjskih zidova je oko " & ROUND(Heating!J9,2) & " € (molimo vas da zatražite informacije kako bi saznali točan iznos za vaš slučaj). Pomoći ćete okolišu smanjenjem emisija " & ROUND(Heating!I9,0) & " kgCO2.") -> Uštedjet ćete 0 kWh (što vrijedi oko 0 €) godišnje. Cijena toplinske izolacije vanjskih zidova je oko 0 € (molimo vas da zatražite informacije kako bi saznali točan iznos za vaš slučaj). Pomoći ćete okolišu smanjenjem emisija 0 kgCO2. | N73: Изолирайте фасадата. Излолирайте домът си с наличните продукти на пазара: от вън или от вътре (чрез впръскване, ако има стени с въздушна камера). | O73: =IF(Heating!K9<>"","Ще спестите " & ROUND(Heating!G9,0) & " кВтч (това е около " & ROUND(Heating!H9,2) & " €) годишно. " & "Цената на тази мярка може да бъде около " & ROUND(Heating!J9,2) & " € (проверете за по-точна цена във вашия случай). " & "Срокът на изплащане е " & ROUND(Heating!K9,0) & " години. Ще намалите вредните емисии с " & ROUND(Heating!I9,0) & " kgCO2.","Ще спестите " & ROUND(Heating!G9,0) & " кВтч (това е около " & ROUND(Heating!H9,2) & " €) годишно. " & "Цената на тази мярка може да бъде около " & ROUND(Heating!J9,2) & " € (проверете за по-точна цена във вашия случай). Ще намалите вредните емисии с " & ROUND(Heating!I9,0) & " kgCO2.") -> Ще спестите 0 кВтч (това е около 0 €) годишно. Цената на тази мярка може да бъде около 0 € (проверете за по-точна цена във вашия случай). Ще намалите вредните емисии с 0 kgCO2.
B74: Tip 15 | C74: Install new biomass boiler. | D74: Install new biomass boiler. It's clean and cheap. It’s a 100% renewable fuel, derived from plants remains with no carbon emissions. | E74: =IF(Heating!K8<>"","You will save " & ROUND(Heating!G8,0) & " kWh (that’s worth about " & ROUND(Heating!H8,0) & " €) per year. " & "The price of installing a new biomass boiler is around " & ROUND(Heating!J8,2) & " € (please request quotations to find out the exact cost for your case). The payback is " & ROUND(Heating!K8,2) & " years. " & "You will help the environment by reducing your emissions in " & ROUND(Heating!I8,0) & " kgCO2.","You will save " & ROUND(Heating!G8,0) & " kWh (that’s worth about " & ROUND(Heating!H8,0) & " €) per year. " & "The price of installing a new biomass boiler is around " & ROUND(Heating!J8,2) & " € (please request quotations to find out the exact cost for your case). You will help the environment by reducing your emissions in " & ROUND(Heating!I8,0) & " kgCO2.") -> You will save 0 kWh (that’s worth about 0 €) per year. The price of installing a new biomass boiler is around 0 € (please request quotations to find out the exact cost for your case). You will help the environment by reducing your emissions in 0 kgCO2. | F74: Instalad un nuevo sistema de caldera biomasa. Es no contaminante y barata. El combustible es 100% renovable, derivado de material orgánica y no tiene emisiones de carbono. | G74: =IF(Heating!K8<>"","Ahorraréis " & ROUND(Heating!G8,0) & " kWh (lo que supone un ahorro de " & ROUND(Heating!H8,0) & " €) al año. " & "El precio de instalar una nueva caldera de biomasa es aproximadamente de " & ROUND(Heating!J8,2) & " € (os recomendamos que solicitéis presupuesto para vuestro caso concreto). " & "Recuperaréis la inversión aproximadamente en " & ROUND(Heating!K8,2) & " años. Estaréis ayudando al medioambiente al reducir vuestras emisiones en " & ROUND(Heating!I8,0) & " kgCO2.","Ahorraréis " & ROUND(Heating!G8,0) & " kWh (lo que supone un ahorro de " & ROUND(Heating!H8,0) & " €) al año. " & "El precio de instalar una nueva caldera de biomasa es aproximadamente de " & ROUND(Heating!J8,2) & " € (os recomendamos que solicitéis presupuesto para vuestro caso concreto). Estaréis ayudando al medioambiente al reducir vuestras emisiones en " & ROUND(Heating!I8,0) & " kgCO2.") -> Ahorraréis 0 kWh (lo que supone un ahorro de 0 €) al año. El precio de instalar una nueva caldera de biomasa es aproximadamente de 0 € (os recomendamos que solicitéis presupuesto para vuestro caso concreto). Estaréis ayudando al medioambiente al reducir vuestras emisiones en 0 kgCO2. | H74: Εγκατάσταση νέου λέβητα βιομάζας. Είναι καθαρός και φθηνός. Είναι 100% ανανεώσιμο καύσιμο το οποίο προέρχεται από φυτά και δεν εκπέμπει διοξείδιο. | I74: =IF(Heating!K8<>"","Θα εξοικονομήσετε " & ROUND(Heating!G8,0) & " kWh (Aυτό αντιστοιχεί σε περίπου " & ROUND(Heating!H8,0) & " €) τον χρόνο. " & "Το κόστος εγκατάστασης καινούργιου λέβητα βιομάζας είναι περίπου € " & ROUND(Heating!J8,2) & " € (παρακαλούμε να ζητήσετε προσφορές για να μάθετε το ακριβές κόστος για την περίπτωσή σας). " & "Η απόσβεση της επένδυσης σας είναι " & ROUND(Heating!K8,2) & " χρόνια. Θα βοηθήσετε το περιβάλλον μειώνοντας τις εκπομπές σας κατά " & ROUND(Heating!I8,0) & " kgCO2.","Θα εξοικονομήσετε " & ROUND(Heating!G8,0) & " kWh (Aυτό αντιστοιχεί σε περίπου " & ROUND(Heating!H8,0) & " €) τον χρόνο. " & "Το κόστος εγκατάστασης καινούργιου λέβητα βιομάζας είναι περίπου € " & ROUND(Heating!J8,2) & " € (παρακαλούμε να ζητήσετε προσφορές για να μάθετε το ακριβές κόστος για την περίπτωσή σας). Θα βοηθήσετε το περιβάλλον μειώνοντας τις εκπομπές σας κατά " & ROUND(Heating!I8,0) & " kgCO2.") -> Θα εξοικονομήσετε 0 kWh (Aυτό αντιστοιχεί σε περίπου 0 €) τον χρόνο. Το κόστος εγκατάστασης καινούργιου λέβητα βιομάζας είναι περίπου € 0 € (παρακαλούμε να ζητήσετε προσφορές για να μάθετε το ακριβές κόστος για την περίπτωσή σας). Θα βοηθήσετε το περιβάλλον μειώνοντας τις εκπομπές σας κατά 0 kgCO2. | J74: Installa una caldaia a biomassa. Puoi installare una caldaia o stufa a legna, cippato o pellet. Tiene presente che la combustione di biomasse genera emissioni inquinanti (polveri sottili PM10) e sono soggette a limitazioni per garantire la qualità dell’aria. Il nostro auditor FIESTA locale potrà fornirti informazioni riguardo ad eventuali limitazione previste dal tuo Comune. | K74: =IF(Heating!K8<>"","Risparmierai fino a" & ROUND(Heating!G8,0) & " kWh , equivalenti a " & ROUND(Heating!H8,2) & " € all'anno." & " Il costo relativo all'installazione di una caldaia a biomassa ammonta a circa " & ROUND(Heating!J8,2) & " €.Il ritorno dell'investimento è pari a " & ROUND(Heating!K8,2) & " anni." & " Aiuterai l'ambiente riducendo le tue emissioni di " & ROUND(Heating!I8,0) & " kgCO2.","Risparmierai fino a " & ROUND(Heating!G8,0) & " kWh, equivalenti a " & ROUND(Heating!H8,2) & " € all'anno." & " Il costo relativo all'installazione di una caldaia a biomassa ammonta a circa " & ROUND(Heating!J8,2) & " €. Aiuterai l'ambiente riducendo le tue emissioni di " & ROUND(Heating!I8,0) & " kgCO2.") -> Risparmierai fino a 0 kWh, equivalenti a 0 € all'anno. Il costo relativo all'installazione di una caldaia a biomassa ammonta a circa 0 €. Aiuterai l'ambiente riducendo le tue emissioni di 0 kgCO2. | L74: Postavite bojler na biomasu. Čista je i jeftina. To je 100% obnovljivo gorivo, dobiva se od ostataka biljki bez emisije ugljičnog dioksida. | M74: =IF(Heating!K9<>"","Uštedjet ćete " & ROUND(Heating!G9,0) & " kWh (što vrijedi oko " & ROUND(Heating!H9,0) & " €) godišnje. " & "Cijena postavljanja novog bojlera na biomasu je oko " & ROUND(Heating!J9,2) & " € (molimo vas da zatražite informacije kako bi saznali točan iznos za vaš slučaj). " & "Jednostavan period povrata (JPP) ulaganja je " & ROUND(Heating!K9,2) & " god. Pomoći ćete okolišu smanjenjem emisija " & ROUND(Heating!I9,0) & " kgCO2.","Uštedjet ćete " & ROUND(Heating!G9,0) & " kWh (što vrijedi oko " & ROUND(Heating!H9,0) & " €) godišnje. " & "Cijena postavljanja novog bojlera na biomasu je oko " & ROUND(Heating!J9,2) & " € (molimo vas da zatražite informacije kako bi saznali točan iznos za vaš slučaj). Pomoći ćete okolišu smanjenjem emisija " & ROUND(Heating!I9,0) & " kgCO2.") -> Uštedjet ćete 0 kWh (što vrijedi oko 0 €) godišnje. Cijena postavljanja novog bojlera na biomasu je oko 0 € (molimo vas da zatražite informacije kako bi saznali točan iznos za vaš slučaj). Pomoći ćete okolišu smanjenjem emisija 0 kgCO2. | N74: Монтирайте котел на биомаса. Той е чист и евтин. 100% възобновяемо гориво, добивано от остатъчна дървесина, и никакви въглеродни емисии. | O74: =IF(Heating!K8<>"","Ще спестите " & ROUND(Heating!G8,0) & " кВтч (това е около " & ROUND(Heating!H8,0) & " €) годишно. " & "Цената на нов котел на биомаса може да бъде около " & ROUND(Heating!J8,2) & " € (проверете за по-точна цена във вашия случай). " & "Срокът на изплащане е" & ROUND(Heating!K8,2) & " години. Ще намалите вредните емисии с " & ROUND(Heating!I8,2) & " kgCO2.","Ще спестите " & ROUND(Heating!G8,0) & " кВтч (това е около " & ROUND(Heating!H8,0) & " €) годишно. " & "Цената на нов котел на биомаса може да бъде около " & ROUND(Heating!J8,2) & " € (проверете за по-точна цена във вашия случай). Ще намалите вредните емисии с " & ROUND(Heating!I8,2) & " kgCO2.") -> Ще спестите 0 кВтч (това е около 0 €) годишно. Цената на нов котел на биомаса може да бъде около 0 € (проверете за по-точна цена във вашия случай). Ще намалите вредните емисии с 0 kgCO2.
B75: Tip 16 | C75: Install new natural gas boiler. | D75: Install new natural gas boiler. Upgrade your natural gas boiler or install a new one to replace your diesel system. | E75: =IF(Heating!K5<>"","You will save " & ROUND(Heating!G5,0) & " kWh (that’s worth about " & ROUND(Heating!H5,0) & " €) per year. " & "The price of installing a new natural gas boiler is around " & ROUND(Heating!J5,2) & " € (please request quotations to find out the exact cost for your case). " & "The payback is " & ROUND(Heating!K5,2) & " years. You will help the environment by reducing your emissions in " & ROUND(Heating!I5,0) & " kgCO2.","You will save " & ROUND(Heating!G5,0) & " kWh (that’s worth about " & ROUND(Heating!H5,0) & " €) per year. " & "The price of installing a new natural gas boiler is around " & ROUND(Heating!J5,2) & " € (please request quotations to find out the exact cost for your case). You will help the environment by reducing your emissions in " & ROUND(Heating!I5,0) & " kgCO2.") -> You will save 0 kWh (that’s worth about 0 €) per year. The price of installing a new natural gas boiler is around 0 € (please request quotations to find out the exact cost for your case). You will help the environment by reducing your emissions in 0 kgCO2. | F75: Instalad una nueva caldera de gas natural. Renueva tu caldera de gas natural o sustituye por este tipo de caldera tu sistema de calefacción por gasóleo. | G75: =IF(Heating!K5<>"","Ahorraréis " & ROUND(Heating!G5,0) & " kWh (lo que supone un ahorro de " & ROUND(Heating!H5,0) & " €) al año. " & "El precio de instalar una nueva caldera de gas natural es aproximadamente de " & ROUND(Heating!J5,2) & " € (os recomendamos que solicitéis presupuesto para vuestro caso concreto). " & "Recuperaréis la inversión aproximadamente en " & ROUND(Heating!K5,2) & " años. Estaréis ayudando al medioambiente al reducir vuestras emisiones en " & ROUND(Heating!I5,0) & " kgCO2.","Ahorraréis " & ROUND(Heating!G5,0) & " kWh (lo que supone un ahorro de " & ROUND(Heating!H5,0) & " €) al año. " & "El precio de instalar una nueva caldera de gas natural es aproximadamente de " & ROUND(Heating!J5,2) & " € (os recomendamos que solicitéis presupuesto para vuestro caso concreto). Estaréis ayudando al medioambiente al reducir vuestras emisiones en " & ROUND(Heating!I5,0) & " kgCO2.") -> Ahorraréis 0 kWh (lo que supone un ahorro de 0 €) al año. El precio de instalar una nueva caldera de gas natural es aproximadamente de 0 € (os recomendamos que solicitéis presupuesto para vuestro caso concreto). Estaréis ayudando al medioambiente al reducir vuestras emisiones en 0 kgCO2. | H75: Εγκαταστήστε νέο λέβητα φυσικού αερίου. Αναβαθμήστε το λέβητα φυσικού αερίου σας ή εγκαταστήστε ένα νέο σύστημα για να αντικαταστήσει το ντίζελ σας. | I75: =IF(Heating!K5<>"","Θα εξοικονομήσετε " & ROUND(Heating!G5,0) & " kWh (Aυτό αντιστοιχεί σε περίπου " & ROUND(Heating!H5,0) & " €) τον χρόνο. " & "Το κόστος εγκατάστασης καινούργιου λέβητα φυσικού αερίου είναι περίπου € " & ROUND(Heating!J5,2) & " (παρακαλούμε να ζητήσετε προσφορές για να μάθετε το ακριβές κόστος για την περίπτωσή σας). " & "Η απόσβεση της επένδυσης σας είναι " & ROUND(Heating!K5,2) & " χρόνια. Θα βοηθήσετε το περιβάλλον μειώνοντας τις εκπομπές σας κατά " & ROUND(Heating!I5,0) & " kgCO2.","Θα εξοικονομήσετε " & ROUND(Heating!G5,0) & " kWh (Aυτό αντιστοιχεί σε περίπου " & ROUND(Heating!H5,0) & " €) τον χρόνο. " & "Το κόστος εγκατάστασης καινούργιου λέβητα φυσικού αερίου είναι περίπου € " & ROUND(Heating!J5,2) & " (παρακαλούμε να ζητήσετε προσφορές για να μάθετε το ακριβές κόστος για την περίπτωσή σας). Θα βοηθήσετε το περιβάλλον μειώνοντας τις εκπομπές σας κατά " & ROUND(Heating!I5,0) & " kgCO2.") -> Θα εξοικονομήσετε 0 kWh (Aυτό αντιστοιχεί σε περίπου 0 €) τον χρόνο. Το κόστος εγκατάστασης καινούργιου λέβητα φυσικού αερίου είναι περίπου € 0 (παρακαλούμε να ζητήσετε προσφορές για να μάθετε το ακριβές κόστος για την περίπτωσή σας). Θα βοηθήσετε το περιβάλλον μειώνοντας τις εκπομπές σας κατά 0 kgCO2. | J75: Installa una caldaia a gas metano Sostituisci la tua vecchia caldaia con una nuova caldaia a gas. | K75: =IF(Heating!K5<>"","Risparmierai fino a " & ROUND(Heating!G5,0) & " kWh , equivalenti a " & ROUND(Heating!H5,2) & " € all'anno." & " Il costo relativo all'installazione di una caldaia a gas metano ammonta a circa " & ROUND(Heating!J5,2) & " €. Il ritorno dell'investimento è pari a " & ROUND(Heating!K5,2) & " anni." & " Aiuterai l'ambiente riducendo le tue emissioni di " & ROUND(Heating!I5,0) & " kgCO2.","Risparmierai " & ROUND(Heating!G5,0) & " kWh , equivalenti a " & ROUND(Heating!H5,2) & " € all'anno." & " Il costo relativo all'installazione di una caldaia a gas metano ammonta a circa " & ROUND(Heating!J5,2) & " €. Aiuterai l'ambiente riducendo le tue emissioni di " & ROUND(Heating!I5,0) & " kgCO2.") -> Risparmierai 0 kWh , equivalenti a 0 € all'anno. Il costo relativo all'installazione di una caldaia a gas metano ammonta a circa 0 €. Aiuterai l'ambiente riducendo le tue emissioni di 0 kgCO2. | L75: Postavite novi plinski bojler. Obnovite svoj plinski bojler ili postavite novi kako biste zamijenili dizelski sustav. | M75: =IF(Heating!K5<>"","Uštedjet ćete " & ROUND(Heating!G5,0) & " kWh (što vrijedi oko " & ROUND(Heating!H5,0) & " €) godišnje. " & "Cijena postavljanja novog bojlera na prirodni plin je oko " & ROUND(Heating!J5,2) & " € (molimo vas da zatražite informacije kako bi saznali točan iznos za vaš slučaj). " & "Jednostavan period povrata (JPP) ulaganja je " & ROUND(Heating!K5,2) & " god. Pomoći ćete okolišu smanjenjem emisija " & ROUND(Heating!I8,0) & " kgCO2.","Uštedjet ćete " & ROUND(Heating!G5,0) & " kWh (što vrijedi oko " & ROUND(Heating!H5,0) & " €) godišnje. " & "Cijena postavljanja novog bojlera na prirodni plin je oko " & ROUND(Heating!J5,2) & " € (molimo vas da zatražite informacije kako bi saznali točan iznos za vaš slučaj). Pomoći ćete okolišu smanjenjem emisija " & ROUND(Heating!I8,0) & " kgCO2.") -> Uštedjet ćete 0 kWh (što vrijedi oko 0 €) godišnje. Cijena postavljanja novog bojlera na prirodni plin je oko 0 € (molimo vas da zatražite informacije kako bi saznali točan iznos za vaš slučaj). Pomoći ćete okolišu smanjenjem emisija 0 kgCO2. | N75: Монтирайте котел на природен газ. Подобрете вашият наличен котел или монтирайте нов, който да подмени дизеловият ви котел. | O75: =IF(Heating!K5<>"","Ще спестите " & ROUND(Heating!G5,0) & " кВтч (това е около " & ROUND(Heating!H5,2) & " €) годишно. " & "Цената на нов котел на природен газ може да бъде около " & ROUND(Heating!J5,2) & " € (проверете за по-точна цена във вашия случай). " & "Срокът на изплащане е " & ROUND(Heating!K5,2) & " години. Ще намалите вредните емисии с " & ROUND(Heating!I5,0) & " kgCO2.","Ще спестите " & ROUND(Heating!G5,0) & " кВтч (това е около " & ROUND(Heating!H5,2) & " €) годишно. " & "Цената на нов котел на природен газ може да бъде около " & ROUND(Heating!J5,2) & " € (проверете за по-точна цена във вашия случай). Ще намалите вредните емисии с " & ROUND(Heating!I5,0) & " kgCO2.") -> Ще спестите 0 кВтч (това е около 0 €) годишно. Цената на нов котел на природен газ може да бъде около 0 € (проверете за по-точна цена във вашия случай). Ще намалите вредните емисии с 0 kgCO2.
B76: Tip 17 | C76: Install new heat pump. | D76: Install new heat pump. Install a high efficiency heat pump (A+ or higher) to replace conventional electric heating systems | E76: =IF(Heating!K7<>"","You will save " & ROUND(Heating!G7,0) & " kWh (that’s worth about " & ROUND(Heating!H7,0) & " €) per year. " & "The price of installing a new heat pump is around " & ROUND(Heating!J7,2) & " € (please request quotations to find out the exact cost for your case). " & "The payback is " & ROUND(Heating!K7,2) & " years. You will help the environment by reducing your emissions in " & ROUND(Heating!I7,0) & " kgCO2.","You will save " & ROUND(Heating!G7,0) & " kWh (that’s worth about " & ROUND(Heating!H7,0) & " €) per year. " & "The price of installing a new heat pump is around " & ROUND(Heating!J7,2) & " € (please request quotations to find out the exact cost for your case). You will help the environment by reducing your emissions in " & ROUND(Heating!I7,0) & " kgCO2.") -> You will save 0 kWh (that’s worth about 0 €) per year. The price of installing a new heat pump is around 0 € (please request quotations to find out the exact cost for your case). You will help the environment by reducing your emissions in 0 kgCO2. | F76: Instalad una nueva bomba de calor. Instalad una bomba de calor (A+ o superior) para sustituir tus sistemas eléctricos convencionales. | G76: =IF(Heating!K7<>"","Ahorraréis " & ROUND(Heating!G7,0) & " kWh (lo que supone un ahorro de " & ROUND(Heating!H7,0) & " €) al año. " & "El precio de una nueva bomba de calor es aproximadamente de " & ROUND(Heating!J7,2) & " € (os recomendamos que solicitéis presupuesto para vuestro caso concreto). " & "Recuperaréis la inversión aproximadamente en " & ROUND(Heating!K7,2) & " años. Estaréis ayudando al medioambiente al reducir vuestras emisiones en " & ROUND(Heating!I7,0) & " kgCO2.","Ahorraréis " & ROUND(Heating!G7,0) & " kWh (lo que supone un ahorro de " & ROUND(Heating!H7,0) & " €) al año. " & "El precio de una nueva bomba de calor es aproximadamente de " & ROUND(Heating!J7,2) & " € (os recomendamos que solicitéis presupuesto para vuestro caso concreto). Estaréis ayudando al medioambiente al reducir vuestras emisiones en " & ROUND(Heating!I7,0) & " kgCO2.") -> Ahorraréis 0 kWh (lo que supone un ahorro de 0 €) al año. El precio de una nueva bomba de calor es aproximadamente de 0 € (os recomendamos que solicitéis presupuesto para vuestro caso concreto). Estaréis ayudando al medioambiente al reducir vuestras emisiones en 0 kgCO2. | H76: Εγκαταστήστε καινούργια αντλία θερμότητας. Εγκαταστείστε μια υψηλής απόδοσης αντλία θερμότητας (Α+ ή ψηλότερης) για να αντικαταστήσετε τα συμβατικά ηλεκτρικά συστήματα θέρμανσης | I76: =IF(Heating!K7<>"","Θα εξοικονομήσετε " & ROUND(Heating!G7,0) & " kWh (Aυτό αντιστοιχεί σε περίπου " & ROUND(Heating!H7,0) & " €) τον χρόνο. " & "Το κόστος εγκατάστασης καινούργιας αντλίας θερμότητας είναι περίπου € " & ROUND(Heating!J7,2) & " (παρακαλούμε να ζητήσετε προσφορές για να μάθετε το ακριβές κόστος για την περίπτωσή σας). " & "Η απόσβεση της επένδυσης σας είναι " & ROUND(Heating!K7,2) & " χρόνια. Θα βοηθήσετε το περιβάλλον μειώνοντας τις εκπομπές σας κατά " & ROUND(Heating!I7,0) & " kgCO2.","Θα εξοικονομήσετε " & ROUND(Heating!G7,0) & " kWh (Aυτό αντιστοιχεί σε περίπου " & ROUND(Heating!H7,0) & " €) τον χρόνο. " & "Το κόστος εγκατάστασης καινούργιας αντλίας θερμότητας είναι περίπου € " & ROUND(Heating!J7,2) & " (παρακαλούμε να ζητήσετε προσφορές για να μάθετε το ακριβές κόστος για την περίπτωσή σας). Θα βοηθήσετε το περιβάλλον μειώνοντας τις εκπομπές σας κατά " & ROUND(Heating!I7,0) & " kgCO2.") -> Θα εξοικονομήσετε 0 kWh (Aυτό αντιστοιχεί σε περίπου 0 €) τον χρόνο. Το κόστος εγκατάστασης καινούργιας αντλίας θερμότητας είναι περίπου € 0 (παρακαλούμε να ζητήσετε προσφορές για να μάθετε το ακριβές κόστος για την περίπτωσή σας). Θα βοηθήσετε το περιβάλλον μειώνοντας τις εκπομπές σας κατά 0 kgCO2. | J76: Installa una pompa di calore. Sostituisci i sistemi convenzionali di riscaldamento elettrico con pompe di calore ad alta efficienza energetica (A + o superiore) | K76: =IF(Heating!K7<>"","Risparmierai fino a " & ROUND(Heating!G7,0) & " kWh , equivalenti a " & ROUND(Heating!H7,2) & " € all'anno." & " Il costo relativo all'installazione di una pompa di calore ammonta a circa " & ROUND(Heating!J7,2) & " €.Il ritorno dell'investimento è pari a " & ROUND(Heating!K7,2) & " anni." & " Aiuterai l'ambiente riducendo le tue emissioni di " & ROUND(Heating!I7,0) & " kgCO2.","Risparmierai " & ROUND(Heating!G7,0) & " kWh , equivalenti a " & ROUND(Heating!H7,2) & " € all'anno." & " Il costo relativo all'installazione di una pompa di calore ammonta a circa " & ROUND(Heating!J7,2) & " €. Aiuterai l'ambiente riducendo le tue emissioni di " & ROUND(Heating!I7,0) & " kgCO2.") -> Risparmierai 0 kWh , equivalenti a 0 € all'anno. Il costo relativo all'installazione di una pompa di calore ammonta a circa 0 €. Aiuterai l'ambiente riducendo le tue emissioni di 0 kgCO2. | L76: Postavite novu toplinsku pumpu. Postavite visoko učinkovitu toplinsku pumpu (klase A+ ili više) kako bi zamijenili konvencionalne električne sustave grijanja. | M76: =IF(Heating!K7<>"","Uštedjet ćete " & ROUND(Heating!G7,0) & " kWh (što vrijedi oko " & ROUND(Heating!H7,0) & " €) godišnje. " & "Cijena postavljanja nove toplinske pumpe je oko " & ROUND(Heating!J7,2) & " € (molimo vas da zatražite informacije kako bi saznali točan iznos za vaš slučaj). " & "Jednostavan period povrata (JPP) ulaganja je " & ROUND(Heating!K7,2) & " god. Pomoći ćete okolišu smanjenjem emisija " & ROUND(Heating!I7,0) & " kgCO2.","Uštedjet ćete " & ROUND(Heating!G7,0) & " kWh (što vrijedi oko " & ROUND(Heating!H7,0) & " €) godišnje. " & "Cijena postavljanja nove toplinske pumpe je oko " & ROUND(Heating!J7,2) & " € (molimo vas da zatražite informacije kako bi saznali točan iznos za vaš slučaj). Pomoći ćete okolišu smanjenjem emisija " & ROUND(Heating!I7,0) & " kgCO2.") -> Uštedjet ćete 0 kWh (što vrijedi oko 0 €) godišnje. Cijena postavljanja nove toplinske pumpe je oko 0 € (molimo vas da zatražite informacije kako bi saznali točan iznos za vaš slučaj). Pomoći ćete okolišu smanjenjem emisija 0 kgCO2. | N76: Монтирайте нова термопомпа. Нова, високо-ефективна термопомпа (А+ или по-голям клас), която да подмени конвенционалната електричекса отоплителна система. | O76: =IF(Heating!K7<>"","Ще спестите " & ROUND(Heating!G7,0) & " кВтч (това е около " & ROUND(Heating!G7,2) & " €) годишно. " & "Цената на нова термопомпа може да бъде около " & ROUND(Heating!J7,2) & " € (проверете за по-точна цена във вашия случай). " & "Срокът на изплащане е " & ROUND(Heating!K7,2) & " години. Ще намалите вредните емисии с " & ROUND(Heating!I7,0) & " kgCO2.","Ще спестите " & ROUND(Heating!G7,0) & " кВтч (това е около " & ROUND(Heating!G7,2) & " €) годишно. " & "Цената на нова термопомпа може да бъде около " & ROUND(Heating!J7,2) & " € (проверете за по-точна цена във вашия случай). Ще намалите вредните емисии с " & ROUND(Heating!I7,0) & " kgCO2.") -> Ще спестите 0 кВтч (това е около 0 €) годишно. Цената на нова термопомпа може да бъде около 0 € (проверете за по-точна цена във вашия случай). Ще намалите вредните емисии с 0 kgCO2.
B77: Tip 18 | C77: Reduce to a large extent your energy consumption in domestic hot water by installing solar thermal energy. | D77: Reduce to a large extent your energy consumption in domestic hot water by installing solar thermal energy. Use the solar radiation to generate heat for domestic hot water and cooling. | E77: =IF(Heating!K22<>"","You will save " & ROUND(Heating!G22,0) & " kWh (that’s worth about " & ROUND(Heating!H22,0) & " €) per year. " & "The price of installing solar thermal energy is around " & ROUND(Heating!J22,2) & " € (please request quotations to find out the exact cost for your case). " & "The payback is " & ROUND(Heating!K22,2) & " years. You will help the environment by reducing your emissions in " & ROUND(Heating!I22,0) & " kgCO2.","You will save " & ROUND(Heating!G22,0) & " kWh (that’s worth about " & ROUND(Heating!H22,0) & " €) per year. " & "The price of installing solar thermal energy is around " & ROUND(Heating!J22,2) & " € (please request quotations to find out the exact cost for your case). You will help the environment by reducing your emissions in " & ROUND(Heating!I22,0) & " kgCO2.") -> You will save 0 kWh (that’s worth about 0 €) per year. The price of installing solar thermal energy is around 0 € (please request quotations to find out the exact cost for your case). You will help the environment by reducing your emissions in 0 kgCO2. | F77: Reducid en gran medida vuestro consumo de agua caliente sanitaria con una instalación de energía solar térmica. Usa la radiación solar para generar agua caliente sanitaria y refrigeración. | G77: =IF(Heating!K22<>"","Ahorraréis " & ROUND(Heating!H22,0) & " € al año. " & "El precio de una instalación de energía solar térmica es aproximadamente de " & ROUND(Heating!J22,2) & " € (os recomendamos que solicitéis presupuesto para vuestro caso concreto). " & "Recuperaréis la inversión aproximadamente en " & ROUND(Heating!K22,2) & " años. Estaréis ayudando al medioambiente al reducir vuestras emisiones en " & ROUND(Heating!I22,0) & " kgCO2.","Ahorraréis " & ROUND(Heating!H22,0) & " € al año. " & "El precio de una instalación de energía solar térmica es aproximadamente de " & ROUND(Heating!J22,2) & " € (os recomendamos que solicitéis presupuesto para vuestro caso concreto). Estaréis ayudando al medioambiente al reducir vuestras emisiones en " & ROUND(Heating!I22,0) & " kgCO2.") -> Ahorraréis 0 € al año. El precio de una instalación de energía solar térmica es aproximadamente de 0 € (os recomendamos que solicitéis presupuesto para vuestro caso concreto). Estaréis ayudando al medioambiente al reducir vuestras emisiones en 0 kgCO2. | H77: Μειώστε σε μεγάλο βαθμό την ενεργειακή σας κατανάλωση στο ζεστό νερό, με την εγκατάσταση ηλιακής θερμικής ενέργειας. Χρησιμοποιήστε την ηλιακή ακτινοβολία για να θερμάνετε τον χώρο. | I77: =IF(Heating!K22<>"","Θα εξοικονομήσετε " & ROUND(Heating!G22,0) & " kWh (Aυτό αντιστοιχεί σε περίπου " & ROUND(Heating!H22,0) & " €) τον χρόνο. " & "Το κόστος εγκατάστασης ηλιακής θερμικής ενέργειας είναι περίπου € " & ROUND(Heating!J22,2) & " (παρακαλούμε να ζητήσετε προσφορές για να μάθετε το ακριβές κόστος για την περίπτωσή σας). " & "Η απόσβεση της επένδυσης σας είναι " & ROUND(Heating!K22,2) & " χρόνια. Θα βοηθήσετε το περιβάλλον μειώνοντας τις εκπομπές σας κατά " & ROUND(Heating!I22,0) & " kgCO2.","Θα εξοικονομήσετε " & ROUND(Heating!G22,0) & " kWh (Aυτό αντιστοιχεί σε περίπου " & ROUND(Heating!H22,0) & " €) τον χρόνο. " & "Το κόστος εγκατάστασης ηλιακής θερμικής ενέργειας είναι περίπου € " & ROUND(Heating!J22,2) & " (παρακαλούμε να ζητήσετε προσφορές για να μάθετε το ακριβές κόστος για την περίπτωσή σας). Θα βοηθήσετε το περιβάλλον μειώνοντας τις εκπομπές σας κατά " & ROUND(Heating!I22,0) & " kgCO2.") -> Θα εξοικονομήσετε 0 kWh (Aυτό αντιστοιχεί σε περίπου 0 €) τον χρόνο. Το κόστος εγκατάστασης ηλιακής θερμικής ενέργειας είναι περίπου € 0 (παρακαλούμε να ζητήσετε προσφορές για να μάθετε το ακριβές κόστος για την περίπτωσή σας). Θα βοηθήσετε το περιβάλλον μειώνοντας τις εκπομπές σας κατά 0 kgCO2. | J77: Installa un impianto solare termico. Risparmia sulla produzione dell'acqua calda sanitaria e sul riscaldamento. | K77: =IF(Heating!K22<>"","Risparmierai fino a " & ROUND(Heating!G22,0) & " kWh , equivalenti a " & ROUND(Heating!H22,0) & " € all'anno." & " Il costo relativo all'installazione ammonta a circa " & ROUND(Heating!J22,0) & " €. Il ritorno dell'investimento è pari a " & ROUND(Heating!K22,0) & " anni." & " Aiuterai l'ambiente riducendo le tue emissioni di " & ROUND(Heating!I22,0) & " kg CO2.","Risparmierai " & ROUND(Heating!G22,0) & " kWh , equivalenti a " & ROUND(Heating!H22,0) & " € all'anno." & " Il costo relativo all'installazione ammonta a circa " & ROUND(Heating!J22,0) & " €. Aiuterai l'ambiente riducendo le tue emissioni di " & ROUND(Heating!I22,0) & " kg CO2.") -> Risparmierai 0 kWh , equivalenti a 0 € all'anno. Il costo relativo all'installazione ammonta a circa 0 €. Aiuterai l'ambiente riducendo le tue emissioni di 0 kg CO2. | L77: Znatno smanjite energiju potrebnu za pripremu potrošne tople vode (PTV) postavljanjem solarnih sustava. Iskoristite besplatno sunčevo zračenje. | M77: =IF(Heating!K22<>"","Uštedjet ćete " & ROUND(Heating!G22,0) & " kWh (što vrijedi oko " & ROUND(Heating!H22,0) & " €) godišnje. " & "Cijena postavljanja (ugradnje) solarnog sustava za pripremu potrošne tople vode je oko " & ROUND(Heating!J22,2) & " € (molimo vas da zatražite informacije kako bi saznali točan iznos za vaš slučaj). " & "Jednostavan period povrata (JPP) ulaganja je " & ROUND(Heating!K22,2) & " god. Pomoći ćete okolišu smanjenjem emisija " & ROUND(Heating!I22,0) & " kgCO2.","Uštedjet ćete " & ROUND(Heating!G22,0) & " kWh (što vrijedi oko " & ROUND(Heating!H22,0) & " €) godišnje. " & "Cijena postavljanja (ugradnje) solarnog sustava za pripremu potrošne tople vode je oko " & ROUND(Heating!J22,2) & " € (molimo vas da zatražite informacije kako bi saznali točan iznos za vaš slučaj). Pomoći ćete okolišu smanjenjem emisija " & ROUND(Heating!I22,0) & " kgCO2.") -> Uštedjet ćete 0 kWh (što vrijedi oko 0 €) godišnje. Cijena postavljanja (ugradnje) solarnog sustava za pripremu potrošne tople vode je oko 0 € (molimo vas da zatražite informacije kako bi saznali točan iznos za vaš slučaj). Pomoći ćete okolišu smanjenjem emisija 0 kgCO2. | N77: Намалете значително разхода си на енергия, като монтирате слънчеви панели за БГВ. Използвайте слънцето за производство на топлинна енергия за БГВ и охлаждане. | O77: =IF(Heating!K22<>"","Ще спестите " & ROUND(Heating!G22,0) & " кВтч (това е около " & ROUND(Heating!H22,2) & " €) годишно. " & "Цената на слънчеви пнели за БГВ може да бъде " & ROUND(Heating!J22,2) & " € (проверете за по-точна цена във вашия случай). " & "Срокът на изплащане е " & ROUND(Heating!K22,0) & " години. Ще намалите вредните емисии с " & ROUND(Heating!I22,0) & " kgCO2.","Ще спестите " & ROUND(Heating!G22,0) & " кВтч (това е около " & ROUND(Heating!H22,2) & " €) годишно. " & "Цената на слънчеви пнели за БГВ може да бъде " & ROUND(Heating!J22,2) & " € (проверете за по-точна цена във вашия случай). Ще намалите вредните емисии с " & ROUND(Heating!I22,0) & " kgCO2.") -> Ще спестите 0 кВтч (това е около 0 €) годишно. Цената на слънчеви пнели за БГВ може да бъде 0 € (проверете за по-точна цена във вашия случай). Ще намалите вредните емисии с 0 kgCO2.
B78: Tip 19 | C78: Use photovoltaic energy. | D78: Use photovoltaic energy. Your roof can become a renewable power station by installing photovoltaic panels with batteries to store electricity | E78: If you are interested in learning more about photovoltaic energy, the auditor will help you to decide if this is a suitable source for your house. . | F78: Reducid vuestro consumo de electricidad con energía fotovoltaica. Vuestro tejado puede convertirse en productor de energía renovable instalando paneles con baterías para almacenar la electricidad. | G78: ="Ahorraréis [Savings kWh Tip 19] kWh (lo que supone un ahorro de [Savings euros Tip 19] €) al año." & " El precio de una instalación de energía solar térmica es aproximadamente de [Cost range Tip 19] € (os recomendamos que solicitéis presupuesto para vuestro caso concreto). " & "Recuperaréis la inversión aproximadamente en [Payback range Tip 19] años. Estaréis ayudando al medioambiente al reducir vuestras emisiones en [Potential savings kCO2 Tip 19] kgCO2." -> Ahorraréis [Savings kWh Tip 19] kWh (lo que supone un ahorro de [Savings euros Tip 19] €) al año. El precio de una instalación de energía solar térmica es aproximadamente de [Cost range Tip 19] € (os recomendamos que solicitéis presupuesto para vuestro caso concreto). Recuperaréis la inversión aproximadamente en [Payback range Tip 19] años. Estaréis ayudando al medioambiente al reducir vuestras emisiones en [Potential savings kCO2 Tip 19] kgCO2. | H78: Χρησιμοποιήστε φωτοβολταϊκή ενέργεια. Η στέγη σας μπορεί να μεταμορφωθεί σε σταθμός ανανεώσιμων πηγών ενέργειας με την εγκατάσταση φωτοβολταϊκών πάνελ με μπαταρίες για την αποθήκευση ηλεκτρικής ενέργειας | I78: Αν σας ενδιαφέρει να μάθετε περισσότερα για την φωτοβολταϊκή ενέργεια, ο ελεγκτής θα σας βοηθήσει να αποφασίσετε εάν αυτό είναι μια κατάλληλη πηγή για το σπίτι σας | J78: Utilizza l'energia fotovoltaica. Un impianto fotovoltaico installato sul tetto di casa produce energia elettrica che può essere utilizzata direttamente, ceduta alla rete (quando non utilizzata) oppure accumulata in batteria. | K78: ="Risparmierai fino a [Savings kWh Tip 19] kWh , equivalenti a [Savings euros Tip 19] € all'anno." & " Il costo relativo all'installazione di un impianto fotovoltaico ammonta a circa [Cost range Tip 19] €.Il ritorno dell'investimento è pari a [Payback range Tip 19] anni." & " Aiuterai l'ambiente riducendo le tue emissioni di [Potential savings kCO2 Tip 19] kgCO2." -> Risparmierai fino a [Savings kWh Tip 19] kWh , equivalenti a [Savings euros Tip 19] € all'anno. Il costo relativo all'installazione di un impianto fotovoltaico ammonta a circa [Cost range Tip 19] €.Il ritorno dell'investimento è pari a [Payback range Tip 19] anni. Aiuterai l'ambiente riducendo le tue emissioni di [Potential savings kCO2 Tip 19] kgCO2. | L78: Koristite solarnu fotonaponsku energiju. Ugradite fotonaponske module (panele) za proizvodnju električne energije. | M78: Ako želite saznati više o fotonaponskim modulima (panelima), savjetnik će vam pomoći da se odlučite je li to prikladan izvor za vašu kuću. | N78: Ползвайте фотоволтаична енергия. Покривът ви може да се превърне в мини ВЕИ електрическа централа, монтирайки PV-панели и акумулаторни батерии за съхранение на електричество. | O78: Ако желаете да научите повече за енергията от фотоволтаици, одиторът ще ви помогне да решите дали този източник на енергия е подходящ за домът ви.
